Workbook

Sheet NOMBRE (hidden)
C1: CÓDIGOS
A2: NOMBRE DE COMUNA | I2: =IF(OR(NOMBRE!C2="",NOMBRE!D2="",NOMBRE!E2="",NOMBRE!F2="",NOMBRE!G2=""),"Falta Cód. Com.","") -> Falta Cód. Com. | AG2: =IF(I2>"",1,0) -> 1
A3: NOMBRE ESTABLECIMIENTO/ESTRATEGIA | I3: =IF(OR(NOMBRE!C3="",NOMBRE!D3="",NOMBRE!E3="",NOMBRE!F3="",NOMBRE!G3="",NOMBRE!H3=""),"Falta Cód. Est.","") -> Falta Cód. Est. | AG3: =IF(I3>"",1,0) -> 1
A4: TIPO DE ESTABLECIMIENTO/ESTRATEGIA | I4: =IF(OR(NOMBRE!B4=""),"Falta Tipo. Est.","") -> Falta Tipo. Est. | AG4: =IF(I4>"",1,0) -> 1
A5: DEPENDENCIA | I5: =IF(OR(NOMBRE!B5=""),"Falta Dependencia. Est.","") -> Falta Dependencia. Est. | AG5: =IF(I5>"",1,0) -> 1
A6: MES: | I6: =IF(OR(NOMBRE!C6="",NOMBRE!D6=""),"Falta Cód. Mes.","") -> Falta Cód. Mes. | AG6: =IF(I6>"",1,0) -> 1
A7: AÑO: | B7: 2023 | AG7: =SUM(AG2:AG6) -> 5
A9: Versión 1.1: Junio 2023
A11: Director/a Servicio de Salud o Director/a Establecimiento | AA11: JUNIO | AB11: Establecimiento de Mayor Complejidad (EMAYC) | AC11: SERVICIO DE SALUD
A12: Jefe/a de Estadísticas | AA12: DICIEMBRE | AB12: Establecimiento de Mediana Complejidad (EMEDC) | AC12: MUNICIPAL
AB13: Establecimiento de Menor Complejidad (EMENC) | AC13: Organizaciones sin fines de lucro y ONG (Delegado)
AB14: Centros de Diagnóstico Terapeutico (CDT)
A15: MINSAL - DEIS | AB15: Centro de Referencia de Salud (CRS)
AB16: Consultorio General Urbano (CGU)
B17: SERIE P | AB17: Consultorio General Urbano (CGU) - CESFAM
AB18: Consultorio General Urbano(CGU) con SAPU/SUR/SAR
AB19: Consultorio General Urbano (CGU) - CESFAM con SAPU/SAR
AB20: Consultorio General Rural (CGR)
AB21: Consultorio General Rural (CGR) - CESFAM
AB22: Consultorio General Rural (CGR) con SAPU/SAR/SUR
AB23: Consultorio General Rural (CGR) - CESFAM con SAPU/SAR/SUR
AB24: Posta de Salud Rural (PSR)
AB25: Centro Comunitario de Salud Familiar (CECOF)
AB26: Consultorio de Salud Mental (COSAM)
AB27: Programa de Reparación y Atención Integral de Salud (PRAIS)
AB28: Centro de Atención Funcionarios (CAF)
AB29: Unidad de Salud de Funcionarios (USF)
AB30: ClÍnica Dental Móvil (CDM)
AB31: Dirección Servicio de Salud (DSS)
AB32: Servicio de Atención Primaria de Urgencia (SAPU)
AB33: Servicio de Atención Primaria de Urgencia de Alta Resolutividad (SAR)
AB34: Servicio de Urgencia Rural (SUR)
AB35: Laboratorio Clínico o Dental
AB36: Servicio de Atención Primaria de Urgencia Dental (SAPUDENT)
AB37: Centro de Rehabilitación (CR)
AB38: Hospital de Campaña
AB39: Centro Oncologico
AB40: SAMU

Sheet Filtro
A1: Mes | B1: (Todas)
A2: Comuna/ Hospital | B2: (Todas)
A3: Establecimiento | B3: (Todas)
A5: Etiquetas de fila | B5: Suma de Col01 | C5: Suma de Col02 | D5: Suma de Col03 | E5: Suma de Col04 | F5: Suma de Col05 | G5: Suma de Col06 | H5: Suma de Col07 | I5: Suma de Col08 | J5: Suma de Col09 | K5: Suma de Col10 | L5: Suma de Col11 | M5: Suma de Col12 | N5: Suma de Col13 | O5: Suma de Col14 | P5: Suma de Col15 | Q5: Suma de Col16 | R5: Suma de Col17 | S5: Suma de Col18 | T5: Suma de Col19 | U5: Suma de Col20 | V5: Suma de Col21 | W5: Suma de Col22 | X5: Suma de Col23 | Y5: Suma de Col24 | Z5: Suma de Col25 | AA5: Suma de Col26 | AB5: Suma de Col27 | AC5: Suma de Col28 | AD5: Suma de Col29 | AE5: Suma de Col30 | AF5: Suma de Col31 | AG5: Suma de Col32 | AH5: Suma de Col33 | AI5: Suma de Col34 | AJ5: Suma de Col35 | AK5: Suma de Col36 | AL5: Suma de Col37 | AM5: Suma de Col38 | AN5: Suma de Col39 | AO5: Suma de Col40 | AP5: Suma de Col41 | AQ5: Suma de col42 | AR5: Suma de col43 | AS5: Suma de col44 | AT5: Suma de col45 | AU5: Suma de col46 | AV5: Suma de col47 | AW5: Suma de col48 | AX5: Suma de col49 | AY5: Suma de col50
A6: P1010100 | B6: 6906 | C6: 0 | D6: 50 | E6: 382 | F6: 1112 | G6: 1502 | H6: 1357 | I6: 1097 | J6: 913 | K6: 544 | L6: 131 | P6: 94 | Q6: 243 | R6: 7
A7: P1010201 | B7: 13647 | C7: 305 | D7: 2224 | E7: 2791 | F7: 2377 | G7: 2256 | H7: 1909 | I7: 1302 | J7: 727 | K7: 186 | L7: 14 | P7: 152 | Q7: 418 | R7: 3
A8: P1010202 | B8: 4737 | C8: 20 | D8: 173 | E8: 328 | F8: 624 | G8: 740 | H8: 681 | I8: 823 | J8: 992 | K8: 462 | L8: 40 | P8: 54 | Q8: 160 | R8: 0
A9: P1010203 | B9: 6655 | C9: 86 | D9: 979 | E9: 1629 | F9: 1457 | G9: 1107 | H9: 803 | I9: 495 | J9: 233 | K9: 52 | L9: 6 | P9: 112 | Q9: 287 | R9: 2
A10: P1010301 | B10: 1702 | C10: 32 | D10: 251 | E10: 209 | F10: 243 | G10: 265 | H10: 224 | I10: 227 | J10: 139 | K10: 111 | L10: 32 | P10: 21 | Q10: 96 | R10: 4
A11: P1010302 | B11: 649 | C11: 46 | D11: 277 | E11: 73 | F11: 65 | G11: 60 | H11: 39 | I11: 50 | J11: 22 | K11: 5 | L11: 16 | P11: 1 | Q11: 41 | R11: 5
A12: P1020100 | B12: 6 | C12: 6 | D12: 1 | E12: 4 | F12: 1
A13: P1020200 | B13: 172 | C13: 82 | D13: 8 | E13: 63 | F13: 25
A14: P1030101 | B14: 1282 | C14: 1 | D14: 34 | E14: 260 | F14: 391 | G14: 381 | H14: 192 | I14: 52 | J14: 1 | K14: 0
A15: P1030102 | B15: 1089 | C15: 1 | D15: 39 | E15: 247 | F15: 344 | G15: 298 | H15: 152 | I15: 32 | J15: 2 | K15: 0
A16: P1030103 | B16: 824 | C16: 3 | D16: 77 | E16: 227 | F16: 261 | G16: 164 | H16: 92 | I16: 21 | J16: 1 | K16: 0
A17: P1030104 | B17: 127 | C17: 1 | D17: 22 | E17: 36 | F17: 34 | G17: 25 | H17: 8 | I17: 1 | J17: 0 | K17: 0
A18: P1030201 | B18: 228 | C18: 0 | D18: 11 | E18: 46 | F18: 60 | G18: 61 | H18: 42 | I18: 8 | J18: 0 | K18: 0
A19: P1030202 | B19: 196 | C19: 0 | D19: 7 | E19: 41 | F19: 60 | G19: 59 | H19: 20 | I19: 8 | J19: 1 | K19: 0
A20: P1030203 | B20: 151 | C20: 0 | D20: 20 | E20: 42 | F20: 59 | G20: 26 | H20: 2 | I20: 1 | J20: 1 | K20: 0
A21: P1030204 | B21: 6 | D21: 2 | E21: 1 | F21: 2 | G21: 1
A22: P1030301 | B22: 3794
A23: P1030303 | B23: 4
A24: P1030304 | B24: 67
A25: P1030401 | B25: 34
A26: P1030403 | B26: 316
A27: P1030404 | B27: 672
A28: P1040500 | B28: 9777 | C28: 185 | D28: 1824 | E28: 2326 | F28: 2124 | G28: 1728 | H28: 1015 | I28: 546 | J28: 244 | K28: 47 | L28: 2 | P28: 111 | Q28: 795 | R28: 6
A29: P1040501 | B29: 771 | C29: 189 | D29: 14 | E29: 208 | F29: 107
A30: P1040502 | B30: 348 | C30: 348
A31: P1040503 | B31: 108 | C31: 216
A32: P1040504 | B32: 70 | C32: 210
A33: P1040505 | B33: 42 | C33: 113
A34: P1040506 | B34: 20
A35: P1040507 | B35: 5
A36: P1040508 | B36: 13438 | C36: 171 | D36: 1278 | E36: 2352 | F36: 2825 | G36: 2569 | H36: 1863 | I36: 1319 | J36: 1070 | K36: 345 | L36: 10 | P36: 206 | Q36: 793 | R36: 7
A37: P1050100 | B37: 34
A38: P1050101 | B38: 703
A39: P1050102 | B39: 588
A40: P1050103 | B40: 51
A41: P1050104 | B41: 237
A42: P1060010 | B42: 3273 | C42: 0 | D42: 11 | E42: 102 | F42: 185 | G42: 302 | H42: 515 | I42: 723 | J42: 855 | K42: 545 | L42: 150 | P42: 31 | Q42: 46 | R42: 0
A43: P1060040 | B43: 2635
A44: P1060050 | B44: 1220
A45: P1060060 | B45: 607
A46: P1060070 | B46: 39
A47: P1060080 | B47: 11
A48: P1060090 | B48: 4886 | C48: 115 | D48: 1320 | E48: 1190 | F48: 865 | G48: 665 | H48: 456 | I48: 271 | J48: 187 | K48: 54 | L48: 7 | P48: 55 | Q48: 239 | R48: 3
A49: P1060100 | B49: 1030 | C49: 227 | D49: 18 | E49: 385 | F49: 120
A50: P1060101 | B50: 868 | C50: 166 | D50: 15 | E50: 390 | F50: 87
A51: P1060102 | B51: 446 | C51: 83 | D51: 8 | E51: 230 | F51: 59
A52: P1060103 | B52: 109 | C52: 27 | D52: 1 | E52: 75 | F52: 12
A53: P1060104 | B53: 4 | C53: 1 | D53: 0 | E53: 2 | F53: 0
A54: P1060106 | B54: 3 | C54: 4 | D54: 2 | E54: 2
A55: P1060107 | B55: 78 | C55: 137 | D55: 94 | E55: 62
A56: P1060108 | B56: 380 | C56: 451 | D56: 337 | E56: 169
A57: P1060109 | B57: 501 | C57: 669 | D57: 475 | E57: 235
A58: P1060110 | B58: 465 | C58: 557 | D58: 456 | E58: 210
A59: P1060111 | B59: 210 | C59: 290 | D59: 220 | E59: 111
A60: P1060112 | B60: 50 | C60: 62 | D60: 48 | E60: 24
A61: P1060113 | B61: 2 | C61: 3 | D61: 2 | E61: 2
A62: P1060115 | B62: 36
A63: P1060116 | B63: 120
A64: P1060117 | B64: 30
A65: P1060118 | B65: 13
A66: P1060119 | B66: 9
A67: P1060120 | B67: 30
A68: P1060121 | B68: 14
A69: P1060122 | B69: 15
A70: P1060123 | B70: 14
A71: P1060124 | B71: 1221 | C71: 3 | D71: 36 | E71: 151 | F71: 289 | G71: 336 | H71: 217 | I71: 147 | J71: 65 | K71: 12 | L71: 4 | P71: 29 | Q71: 63 | R71: 2
A72: P11000140 | B72: 12 | C72: 2 | D72: 10 | E72: 0 | F72: 0 | G72: 0 | H72: 0 | I72: 1 | J72: 1 | K72: 0 | L72: 0 | M72: 1 | N72: 5 | O72: 0 | P72: 2 | Q72: 0 | R72: 2 | S72: 0 | T72: 0 | U72: 0 | V72: 0 | W72: 0 | X72: 0 | Y72: 0 | Z72: 0 | AA72: 0 | AB72: 0 | AC72: 0 | AD72: 0 | AE72: 0 | AF72: 0 | AG72: 0 | AH72: 0 | AI72: 0 | AJ72: 7
A73: P11000150 | B73: 4 | D73: 4 | R73: 1 | V73: 2 | X73: 1 | AQ73: 0 | AR73: 0 | AS73: 1 | AT73: 1 | AU73: 0 | AV73: 0
A74: P11000160 | B74: 7 | D74: 7 | T74: 1 | V74: 1 | X74: 5 | AQ74: 0 | AR74: 0 | AS74: 0 | AT74: 0 | AU74: 0 | AV74: 0
A75: P11000170 | B75: 2228 | C75: 1805 | D75: 423 | E75: 0 | F75: 0 | G75: 0 | H75: 0 | I75: 1 | J75: 0 | K75: 1 | L75: 0 | M75: 2 | N75: 3 | O75: 6 | P75: 8 | Q75: 86 | R75: 11 | S75: 261 | T75: 27 | U75: 378 | V75: 54 | W75: 267 | X75: 64 | Y75: 236 | Z75: 57 | AA75: 150 | AB75: 50 | AC75: 158 | AD75: 51 | AE75: 108 | AF75: 48 | AG75: 86 | AH75: 26 | AI75: 26 | AJ75: 13 | AK75: 21 | AL75: 11 | AM75: 12 | AN75: 0 | AO75: 6 | AP75: 0 | AQ75: 16 | AR75: 16 | AS75: 5 | AT75: 294 | AU75: 0 | AV75: 0
A76: P11000180 | B76: 81 | C76: 60 | D76: 21 | E76: 0 | F76: 0 | G76: 0 | H76: 0 | I76: 0 | J76: 0 | K76: 0 | L76: 0 | M76: 0 | N76: 0 | O76: 0 | P76: 0 | Q76: 6 | R76: 1 | S76: 13 | T76: 0 | U76: 12 | V76: 3 | W76: 13 | X76: 7 | Y76: 11 | Z76: 2 | AA76: 1 | AB76: 3 | AC76: 4 | AD76: 1 | AE76: 0 | AF76: 0 | AG76: 0 | AH76: 4 | AI76: 0 | AJ76: 0 | AK76: 0 | AL76: 0 | AM76: 0 | AN76: 0 | AO76: 0 | AP76: 0 | AQ76: 0 | AR76: 0 | AS76: 0 | AT76: 5 | AU76: 0 | AV76: 0
A77: P11000190 | B77: 5 | D77: 5 | R77: 1 | V77: 2 | X77: 2 | AQ77: 0 | AR77: 0 | AS77: 1 | AT77: 1 | AU77: 0 | AV77: 0
A78: P11000200 | B78: 1934 | C78: 1577 | D78: 357 | E78: 0 | F78: 0 | G78: 0 | H78: 0 | I78: 1 | J78: 0 | K78: 0 | L78: 0 | M78: 2 | N78: 3 | O78: 5 | P78: 5 | Q78: 68 | R78: 9 | S78: 212 | T78: 23 | U78: 327 | V78: 39 | W78: 231 | X78: 50 | Y78: 219 | Z78: 50 | AA78: 136 | AB78: 43 | AC78: 139 | AD78: 44 | AE78: 96 | AF78: 42 | AG78: 76 | AH78: 25 | AI78: 26 | AJ78: 12 | AK78: 21 | AL78: 11 | AM78: 12 | AN78: 0 | AO78: 6 | AP78: 1 | AQ78: 12 | AR78: 0 | AS78: 4 | AT78: 143 | AU78: 0 | AV78: 0
A79: P1200190 | B79: 2989 | C79: 70 | D79: 576 | E79: 731 | F79: 670 | G79: 520 | H79: 326 | I79: 183 | J79: 58 | K79: 5 | L79: 0 | P79: 40 | Q79: 332 | R79: 2
A80: P1200200 | B80: 566 | C80: 7 | D80: 94 | E80: 104 | F80: 111 | G80: 80 | H80: 50 | I80: 47 | J80: 24 | K80: 27 | L80: 15 | M80: 2 | N80: 3 | O80: 2 | P80: 14 | Q80: 25 | R80: 3
A81: P1200210 | B81: 36 | C81: 4 | D81: 14 | E81: 2 | F81: 5 | G81: 1 | H81: 2 | I81: 1 | J81: 2 | K81: 1 | L81: 2 | M81: 2 | N81: 0 | O81: 0 | P81: 0 | Q81: 2 | R81: 0
A82: P1200220 | B82: 1087 | C82: 0 | D82: 21 | E82: 53 | F82: 71 | G82: 78 | H82: 73 | I82: 80 | J82: 147 | K82: 207 | L82: 175 | M82: 104 | N82: 47 | O82: 31 | P82: 7 | Q82: 36 | R82: 2
A83: P1200230 | B83: 16 | C83: 1 | D83: 1 | E83: 1 | F83: 1 | G83: 1 | H83: 2 | I83: 5 | J83: 8 | K83: 2 | L83: 0 | M83: 1 | N83: 0 | O83: 0 | P83: 0 | Q83: 0 | R83: 0
A84: P1200240 | B84: 2859 | C84: 0 | D84: 0 | E84: 19 | F84: 127 | G84: 356 | H84: 647 | I84: 718 | J84: 565 | K84: 321 | L84: 195 | P84: 48 | Q84: 144 | R84: 7
A85: P1200250 | B85: 5 | G85: 2 | H85: 1 | I85: 1 | J85: 1 | P85: 0 | Q85: 0 | R85: 0
A86: P1200270 | B86: 391 | C86: 5 | D86: 52 | E86: 121 | F86: 134 | G86: 78 | H86: 37 | I86: 12 | J86: 1 | K86: 0 | L86: 0 | P86: 12 | Q86: 16 | R86: 0
A87: P1200280 | B87: 62 | C87: 4 | D87: 10 | E87: 23 | F87: 17 | G87: 8 | H87: 0 | I87: 2
A88: P1200290 | B88: 148 | C88: 3 | D88: 24 | E88: 54 | F88: 46 | G88: 21 | H88: 2 | I88: 2
A89: P1200300 | B89: 40 | C89: 1 | D89: 3 | E89: 14 | F89: 15 | G89: 7 | H89: 0 | I89: 1
A90: P1200310 | B90: 73 | C90: 36 | D90: 6 | E90: 16 | F90: 12 | G90: 3 | H90: 0 | I90: 0
A91: P1200320 | B91: 9 | C91: 0 | D91: 5 | E91: 4 | F91: 0 | G91: 0 | H91: 0 | I91: 0
A92: P1200330 | B92: 450 | C92: 10 | D92: 83 | E92: 202 | F92: 128 | G92: 30 | H92: 3 | I92: 13
A93: P1200340 | B93: 22
A94: P1200350 | B94: 325 | C94: 4 | D94: 42 | E94: 52 | F94: 62 | G94: 58 | H94: 43 | I94: 19 | J94: 40 | K94: 3 | L94: 0 | M94: 0 | N94: 2 | O94: 0 | P94: 1 | Q94: 7 | R94: 0
A95: P1206010 | B95: 9159 | C95: 0
A96: P1206020 | B96: 9600 | C96: 0
A97: P1206030 | B97: 8490 | C97: 0
A98: P1206040 | B98: 7797 | C98: 0
A99: P1206050 | B99: 7612 | C99: 0
A100: P1206060 | B100: 7449 | C100: 0
A101: P1206070 | B101: 7027 | C101: 0
A102: P1206080 | B102: 5711 | C102: 0
A103: P1207010 | B103: 2685 | C103: 2238 | D103: 320 | E103: 73 | F103: 18 | G103: 21 | H103: 5 | I103: 8 | J103: 1 | K103: 1 | L103: 0
A104: P1207020 | B104: 2816 | C104: 2324 | D104: 286 | E104: 53 | F104: 102 | G104: 15 | H104: 11 | I104: 23 | J104: 1 | K104: 1 | L104: 0
A105: P1207030 | B105: 6595
A106: P1207040 | B106: 5254
A107: P1207050 | B107: 2930
A108: P1207060 | B108: 1245
A109: P1207070 | B109: 466
A110: P1207080 | B110: 165
A111: P1207090 | B111: 7941
A112: P1207100 | B112: 6222
A113: P1207110 | B113: 2747
A114: P1207120 | B114: 780
A115: P1207130 | B115: 257
A116: P1207140 | B116: 68
A117: P1207150 | B117: 5844 | C117: 0
A118: P1207160 | B118: 2394 | C118: 0
A119: P1207170 | B119: 1361 | C119: 1115 | D119: 170 | E119: 34 | F119: 13 | G119: 17 | H119: 10 | I119: 2 | J119: 0 | K119: 0 | L119: 0
A120: P1207180 | B120: 24064
A121: P1207190 | B121: 163
A122: P1208020 | B122: 2487 | C122: 2042 | D122: 243 | E122: 52 | F122: 112 | G122: 12 | H122: 8 | I122: 15 | J122: 3 | K122: 0 | L122: 0
A123: P1208030 | B123: 2321 | C123: 1950 | D123: 204 | E123: 38 | F123: 92 | G123: 10 | H123: 6 | I123: 19 | J123: 2 | K123: 0 | L123: 0
A124: P1208040 | B124: 2350 | C124: 2022 | D124: 181 | E124: 46 | F124: 80 | G124: 7 | H124: 3 | I124: 8 | J124: 3 | K124: 0 | L124: 0
A125: P1208050 | B125: 2199 | C125: 1938 | D125: 165 | E125: 25 | F125: 58 | G125: 3 | H125: 2 | I125: 7 | J125: 1 | K125: 0 | L125: 0
A126: P1208060 | B126: 2141 | C126: 1824 | D126: 191 | E126: 31 | F126: 85 | G126: 1 | H126: 4 | I126: 4 | J126: 1 | K126: 0 | L126: 0
A127: P1208070 | B127: 1718 | C127: 1500 | D127: 146 | E127: 19 | F127: 47 | G127: 2 | H127: 0 | I127: 2 | J127: 1 | K127: 1 | L127: 0
A128: P1208080 | B128: 635 | C128: 570 | D128: 53 | E128: 7 | F128: 2 | G128: 1 | H128: 0 | I128: 1 | J128: 0 | K128: 1 | L128: 0
A129: P1208090 | B129: 176 | C129: 164 | D129: 5 | E129: 5 | F129: 0 | G129: 2 | H129: 0 | I129: 0 | J129: 0 | K129: 0 | L129: 0
A130: P1208100 | B130: 48 | C130: 46 | D130: 1 | E130: 1 | F130: 0 | G130: 0 | H130: 0 | I130: 0 | J130: 0 | K130: 0 | L130: 0
A131: P1220020 | B131: 10659
A132: P1220030 | B132: 6998
A133: P1220070 | B133: 26273
A134: P1220090 | B134: 8522
A135: P1220091 | B135: 2 | C135: 3 | D135: 0 | E135: 1 | F135: 0 | G135: 0 | H135: 0 | I135: 1 | J135: 0 | K135: 0 | L135: 0
A136: P1220092 | B136: 9 | C136: 7 | D136: 0 | E136: 1 | F136: 0 | G136: 1 | H136: 0 | I136: 1 | J136: 0 | K136: 0 | L136: 0
A137: P1220093 | B137: 13 | C137: 12 | D137: 0 | E137: 0 | F137: 0 | G137: 3 | H137: 0 | I137: 0 | J137: 0 | K137: 0 | L137: 0
A138: P1220094 | B138: 10 | C138: 11 | D138: 0 | E138: 0 | F138: 0 | G138: 1 | H138: 1 | I138: 1 | J138: 0 | K138: 0 | L138: 0
A139: P1220095 | B139: 18 | C139: 15 | D139: 0 | E139: 1 | F139: 0 | G139: 1 | H139: 1 | I139: 1 | J139: 0 | K139: 0 | L139: 0
A140: P1220096 | B140: 10 | C140: 11 | D140: 1 | E140: 0 | F140: 0 | G140: 1 | H140: 1 | I140: 0 | J140: 0 | K140: 0 | L140: 0
A141: P1220097 | B141: 12 | C141: 9 | D141: 0 | E141: 0 | F141: 1 | G141: 1 | H141: 1 | I141: 0 | J141: 1 | K141: 1 | L141: 0
A142: P1220098 | B142: 6 | C142: 5 | D142: 0 | E142: 1 | F142: 0 | G142: 0 | H142: 0 | I142: 0 | J142: 0 | K142: 0 | L142: 0
A143: P1220099 | B143: 1 | C143: 1
A144: P1220101 | B144: 1 | K144: 1
A145: P1230001 | B145: 564 | C145: 0
A146: P1230002 | B146: 198 | C146: 0
A147: P1230003 | B147: 48 | C147: 0
A148: P1230004 | B148: 9 | C148: 9 | D148: 0 | E148: 0 | F148: 0 | G148: 0 | H148: 0 | I148: 0 | J148: 0 | K148: 0 | L148: 0
A149: P1240010 | B149: 2782 | C149: 0
A150: P1240011 | B150: 2950 | C150: 0
A151: P1240012 | B151: 2577 | C151: 0
A152: P1240013 | B152: 2547 | C152: 0
A153: P1240014 | B153: 2342 | C153: 0
A154: P1240015 | B154: 2136 | C154: 0
A155: P1240016 | B155: 1500 | C155: 0
A156: P1240017 | B156: 1702 | C156: 1321 | D156: 93 | E156: 23 | F156: 282 | G156: 0
A157: P1240018 | B157: 1794 | C157: 1533 | D157: 63 | E157: 24 | F157: 206 | G157: 0
A158: P1240019 | B158: 1586 | C158: 1382 | D158: 65 | E158: 17 | F158: 149 | G158: 0
A159: P1240020 | B159: 1549 | C159: 1383 | D159: 46 | E159: 7 | F159: 129 | G159: 0
A160: P1240021 | B160: 1371 | C160: 1219 | D160: 59 | E160: 10 | F160: 101 | G160: 0
A161: P1240022 | B161: 1323 | C161: 1178 | D161: 37 | E161: 10 | F161: 109 | G161: 0
A162: P1240023 | B162: 875 | C162: 792 | D162: 26 | E162: 2 | F162: 62 | G162: 0
A163: P1240024 | B163: 117 | C163: 107 | D163: 2 | E163: 2 | F163: 6 | G163: 0
A164: P1240025 | B164: 2 | C164: 2 | D164: 0 | E164: 0 | F164: 0 | G164: 0
A165: P1240026 | B165: 1 | F165: 1
A166: P1240028 | B166: 3 | C166: 0 | D166: 1 | E166: 0 | F166: 2 | G166: 0
A167: P1240030 | B167: 1 | C167: 1
A168: P1240032 | B168: 1 | C168: 0 | D168: 1 | E168: 0 | F168: 0 | G168: 0
A169: P1240033 | B169: 2 | C169: 1 | D169: 0 | E169: 0 | F169: 1 | G169: 0
A170: P1240034 | B170: 1 | C170: 1 | D170: 0 | E170: 0 | F170: 0 | G170: 0
A171: P1310020 | B171: 2870 | C171: 1315 | D171: 1555 | E171: 332 | F171: 395 | G171: 353 | H171: 309 | I171: 390 | J171: 470 | K171: 223 | L171: 346 | M171: 12 | N171: 9 | O171: 5 | P171: 26 | Q171: 33 | R171: 47
A172: P1310030 | B172: 199 | C172: 102 | D172: 97 | E172: 19 | F172: 11 | G172: 24 | H172: 19 | I172: 29 | J172: 34 | K172: 30 | L172: 33 | M172: 0 | N172: 0 | O172: 0 | P172: 0 | Q172: 4 | R172: 0
A173: P1310040 | B173: 27 | C173: 26 | D173: 1 | I173: 1 | J173: 0 | K173: 20 | L173: 1 | M173: 5 | N173: 0 | O173: 0 | P173: 0 | Q173: 1 | R173: 1
A174: P1310050 | B174: 442 | C174: 8 | D174: 434 | I174: 4 | J174: 48 | K174: 4 | L174: 136 | M174: 0 | N174: 55 | O174: 0 | P174: 195 | Q174: 5 | R174: 10 | S174: 129 | T174: 30
A175: P1310060 | B175: 21 | C175: 7 | D175: 14 | I175: 1 | J175: 3 | K175: 4 | L175: 10 | M175: 2 | N175: 0 | O175: 0 | P175: 1 | Q175: 0 | R175: 0 | S175: 21 | T175: 0
A176: P1310070 | B176: 660 | C176: 335 | D176: 325 | E176: 140 | F176: 144 | G176: 195 | H176: 181 | Q176: 5 | R176: 12 | S176: 434 | T176: 36
A177: P1310080 | B177: 533 | C177: 239 | D177: 294 | I177: 157 | J177: 194 | K177: 82 | L177: 100 | M177: 0 | N177: 0 | O177: 0 | P177: 0 | Q177: 7 | R177: 11 | S177: 423 | T177: 32
A178: P1310090 | B178: 1257 | C178: 580 | D178: 677 | E178: 12 | F178: 14 | G178: 179 | H178: 148 | I178: 201 | J178: 272 | K178: 171 | L178: 217 | M178: 13 | N178: 7 | O178: 4 | P178: 19 | Q178: 18 | R178: 10 | S178: 794 | T178: 293
A179: P1320010 | B179: 159 | C179: 69 | D179: 90 | E179: 9 | F179: 18 | G179: 22 | H179: 21 | I179: 25 | J179: 27 | K179: 12 | L179: 24 | M179: 1 | N179: 0 | Q179: 2 | R179: 4 | S179: 105 | T179: 20
A180: P1600100 | B180: 20831 | C180: 116 | D180: 1366 | E180: 2881 | F180: 3757 | G180: 3939 | H180: 3329 | I180: 2601 | J180: 1981 | K180: 861
A181: P1600101 | B181: 20071 | C181: 211 | D181: 1923 | E181: 3051 | F181: 3561 | G181: 3596 | H181: 3049 | I181: 2228 | J181: 1653 | K181: 799
A182: P1600102 | B182: 16819 | C182: 387 | D182: 3087 | E182: 3594 | F182: 3128 | G182: 2611 | H182: 1667 | I182: 1199 | J182: 818 | K182: 328
A183: P1600103 | B183: 887 | C183: 42 | D183: 294 | E183: 230 | F183: 187 | G183: 91 | H183: 51 | I183: 26 | J183: 20 | K183: 3
A184: P1600105 | B184: 222 | C184: 1 | D184: 17 | E184: 40 | F184: 48 | G184: 57 | H184: 41 | I184: 15 | J184: 5 | K184: 1 | L184: 0 | P184: 3 | Q184: 9 | R184: 0
A185: P1600106 | B185: 174 | C185: 1 | D185: 34 | E185: 47 | F185: 48 | G185: 32 | H185: 10 | I185: 5 | J185: 1 | K185: 0 | L185: 0 | P185: 0 | Q185: 12 | R185: 0
A186: P1600107 | B186: 6 | C186: 0 | D186: 1 | E186: 3 | F186: 2 | G186: 0 | H186: 0 | I186: 0 | J186: 0 | K186: 0 | L186: 0 | P186: 0 | Q186: 1 | R186: 0
A187: P1600108 | B187: 83 | C187: 2 | D187: 11 | E187: 29 | F187: 13 | G187: 15 | H187: 9 | I187: 4 | J187: 2 | K187: 0 | L187: 0 | P187: 0 | Q187: 12 | R187: 1
A188: P1600109 | B188: 6 | C188: 0 | D188: 0 | E188: 2 | F188: 1 | G188: 2 | H188: 1 | I188: 0 | J188: 0 | K188: 0 | L188: 0 | P188: 0 | Q188: 2 | R188: 0
A189: P1600110 | B189: 78 | C189: 7 | D189: 7 | E189: 23 | F189: 30 | G189: 11 | H189: 0 | I189: 3
A190: P1600111 | B190: 6 | C190: 6 | D190: 4 | E190: 6 | F190: 6 | G190: 6
A191: P1600112 | B191: 165 | C191: 153 | D191: 154 | E191: 53 | F191: 48 | G191: 47
A192: P1600113 | B192: 767 | C192: 706 | D192: 692 | E192: 159 | F192: 139 | G192: 138
A193: P1600114 | B193: 1009 | C193: 942 | D193: 924 | E193: 219 | F193: 180 | G193: 174
A194: P1600115 | B194: 857 | C194: 783 | D194: 773 | E194: 212 | F194: 169 | G194: 168
A195: P1600116 | B195: 429 | C195: 394 | D195: 384 | E195: 108 | F195: 85 | G195: 85
A196: P1600117 | B196: 104 | C196: 99 | D196: 95 | E196: 21 | F196: 16 | G196: 14
A197: P1600118 | B197: 4 | C197: 4 | D197: 4 | E197: 1 | F197: 1 | G197: 1
A198: P1600120 | C198: 97 | D198: 133 | F198: 234 | G198: 270
A199: P2060000 | B199: 29091 | C199: 15177 | D199: 14278 | E199: 173 | F199: 179 | G199: 277 | H199: 253 | I199: 301 | J199: 314 | K199: 269 | L199: 265 | M199: 302 | N199: 317 | O199: 265 | P199: 295 | Q199: 403 | R199: 368 | S199: 1244 | T199: 1257 | U199: 1613 | V199: 1518 | W199: 1529 | X199: 1502 | Y199: 2796 | Z199: 2689 | AA199: 3022 | AB199: 2925 | AC199: 2983 | AD199: 2765 | AE199: 152 | AF199: 200 | AG199: 339 | AH199: 355
A200: P2070101 | B200: 1557 | C200: 862 | D200: 695 | E200: 8 | F200: 12 | G200: 22 | H200: 18 | I200: 21 | J200: 32 | K200: 15 | L200: 12 | M200: 10 | N200: 18 | O200: 13 | P200: 10 | Q200: 25 | R200: 11 | S200: 56 | T200: 52 | U200: 112 | V200: 59 | W200: 110 | X200: 72 | Y200: 174 | Z200: 122 | AA200: 172 | AB200: 158 | AC200: 145 | AD200: 135 | AE200: 5 | AF200: 10 | AG200: 20 | AH200: 26
A201: P2070102 | B201: 222 | C201: 132 | D201: 90 | E201: 9 | F201: 3 | G201: 5 | H201: 7 | I201: 7 | J201: 5 | K201: 2 | L201: 1 | M201: 3 | N201: 2 | O201: 5 | P201: 2 | Q201: 3 | R201: 0 | S201: 4 | T201: 3 | U201: 21 | V201: 8 | W201: 19 | X201: 8 | Y201: 24 | Z201: 21 | AA201: 19 | AB201: 15 | AC201: 14 | AD201: 18 | AE201: 1 | AF201: 0 | AG201: 4 | AH201: 5
... 428 more rows

Sheet P1
B1: DATOS DEL ESTABLECIMIENTO
B2: =CONCATENATE("COMUNA: ",NOMBRE!$B$2," - ","( ",NOMBRE!$C$2,NOMBRE!$D$2,NOMBRE!$E$2,NOMBRE!$F$2,NOMBRE!$G$2," )") -> COMUNA: - ( )
B3: =CONCATENATE("ESTABLECIMIENTO/ESTRATEGIA: ",NOMBRE!$B$3," - ","( ",NOMBRE!$C$3,NOMBRE!$D$3,NOMBRE!$E$3,NOMBRE!$F$3,NOMBRE!$G$3,NOMBRE!$H$3," )") -> ESTABLECIMIENTO/ESTRATEGIA: - ( )
B4: =CONCATENATE("MES: ",NOMBRE!$B$6," - ","( ",NOMBRE!$C$6,NOMBRE!$D$6," )") -> MES: - ( )
B5: =CONCATENATE("AÑO: ",NOMBRE!$B$7) -> AÑO: 2023
D6: REM-P1. POBLACIÓN EN CONTROL PROGRAMA DE SALUD DE LA MUJER
B7: ATENCIÓN PRIMARIA DE SALUD
B8: SECCION A: POBLACIÓN EN CONTROL SEGÚN MÉTODO DE REGULACIÓN DE FERTILIDAD Y SALUD SEXUAL
B9: MÉTODOS | D9: TOTAL | E9: GRUPO DE EDAD (en años) | R9: Pueblos Originarios | S9: Migrantes | T9: PV-VIH (personas viviendo con VIH)
E10: Menor de 15 años | F10: 15 a 19 años | G10: 20 a 24 años | H10: 25 a 29 años | I10: 30 a 34 años | J10: 35 a 39 años | K10: 40 a 44 años | L10: 45 a 49 años | M10: 50 a 54 años | N10: 55 a 59 años | O10: 60 a 64 años | P10: 65 a 69 años | Q10: 70 y más años
A11: P1010100 | B11: D . I . U T con Cobre | D11: =SUM(E11:N11) -> 7088 | E11: =IFERROR(VLOOKUP($A11,Filtro!$A$5:$AY$629,3,FALSE),0) -> 0 | F11: =IFERROR(VLOOKUP($A11,Filtro!$A$5:$AY$629,4,FALSE),0) -> 50 | G11: =IFERROR(VLOOKUP($A11,Filtro!$A$5:$AY$629,5,FALSE),0) -> 382 | H11: =IFERROR(VLOOKUP($A11,Filtro!$A$5:$AY$629,6,FALSE),0) -> 1112 | I11: =IFERROR(VLOOKUP($A11,Filtro!$A$5:$AY$629,7,FALSE),0) -> 1502 | J11: =IFERROR(VLOOKUP($A11,Filtro!$A$5:$AY$629,8,FALSE),0) -> 1357 | K11: =IFERROR(VLOOKUP($A11,Filtro!$A$5:$AY$629,9,FALSE),0) -> 1097 | L11: =IFERROR(VLOOKUP($A11,Filtro!$A$5:$AY$629,10,FALSE),0) -> 913 | M11: =IFERROR(VLOOKUP($A11,Filtro!$A$5:$AY$629,11,FALSE),0) -> 544 | N11: =IFERROR(VLOOKUP($A11,Filtro!$A$5:$AY$629,12,FALSE),0) -> 131 | O11: =IFERROR(VLOOKUP($A11,Filtro!$A$5:$AY$629,13,FALSE),0) -> 0 | P11: =IFERROR(VLOOKUP($A11,Filtro!$A$5:$AY$629,14,FALSE),0) -> 0 | Q11: =IFERROR(VLOOKUP($A11,Filtro!$A$5:$AY$629,15,FALSE),0) -> 0 | R11: =IFERROR(VLOOKUP($A11,Filtro!$A$5:$AY$629,16,FALSE),0) -> 94 | S11: =IFERROR(VLOOKUP($A11,Filtro!$A$5:$AY$629,17,FALSE),0) -> 243 | T11: =IFERROR(VLOOKUP($A11,Filtro!$A$5:$AY$629,18,FALSE),0) -> 7 | CC11: =IF($R11>$D11,"* La celda 'Pueblos Originarios' debe ser menor o igual al Total en control. ","") ->  | CD11: =IF($S11>$D11,"* La celda 'Población Migrantes' debe ser menor o igual al Total en control. ","") ->  | CE11: =IF($T11>$D11,"* La celda 'Personas Viviendo con VIH' debe ser menor o igual al Total en control. ","") ->  | CF11: =IF(AND($D11<>0,$R11=""),"* No olvide escribir en la celda de 'Pueblos Originarios' (Digite CERO si no tiene). ","") ->  | CG11: =IF(AND($D11<>0,$S11=""),"* No olvide escribir en la celda de 'Población Migrantes' (Digite CERO si no tiene). ","") ->  | CH11: =IF(AND($D11<>0,$T11=""),"* No olvide escribir en la celda de 'PV-VIH' (Digite CERO si no tiene). ","") ->  | DC11: =IF($R11>$D11,1,0) -> 0 | DD11: =IF($S11>$D11,1,0) -> 0 | DE11: =IF($T11>$D11,1,0) -> 0 | DF11: =IF(AND($D11<>0,$R11=""),1,0) -> 0 | DG11: =IF(AND($D11<>0,$S11=""),1,0) -> 0 | DH11: =IF(AND($D11<>0,$T11=""),1,0) -> 0
A12: P1060124 | B12: D . I . U con Levonorgestrel | D12: =SUM(E12:N12) -> 1260 | E12: =IFERROR(VLOOKUP($A12,Filtro!$A$5:$AY$629,3,FALSE),0) -> 3 | F12: =IFERROR(VLOOKUP($A12,Filtro!$A$5:$AY$629,4,FALSE),0) -> 36 | G12: =IFERROR(VLOOKUP($A12,Filtro!$A$5:$AY$629,5,FALSE),0) -> 151 | H12: =IFERROR(VLOOKUP($A12,Filtro!$A$5:$AY$629,6,FALSE),0) -> 289 | I12: =IFERROR(VLOOKUP($A12,Filtro!$A$5:$AY$629,7,FALSE),0) -> 336 | J12: =IFERROR(VLOOKUP($A12,Filtro!$A$5:$AY$629,8,FALSE),0) -> 217 | K12: =IFERROR(VLOOKUP($A12,Filtro!$A$5:$AY$629,9,FALSE),0) -> 147 | L12: =IFERROR(VLOOKUP($A12,Filtro!$A$5:$AY$629,10,FALSE),0) -> 65 | M12: =IFERROR(VLOOKUP($A12,Filtro!$A$5:$AY$629,11,FALSE),0) -> 12 | N12: =IFERROR(VLOOKUP($A12,Filtro!$A$5:$AY$629,12,FALSE),0) -> 4 | O12: =IFERROR(VLOOKUP($A12,Filtro!$A$5:$AY$629,13,FALSE),0) -> 0 | P12: =IFERROR(VLOOKUP($A12,Filtro!$A$5:$AY$629,14,FALSE),0) -> 0 | Q12: =IFERROR(VLOOKUP($A12,Filtro!$A$5:$AY$629,15,FALSE),0) -> 0 | R12: =IFERROR(VLOOKUP($A12,Filtro!$A$5:$AY$629,16,FALSE),0) -> 29 | S12: =IFERROR(VLOOKUP($A12,Filtro!$A$5:$AY$629,17,FALSE),0) -> 63 | T12: =IFERROR(VLOOKUP($A12,Filtro!$A$5:$AY$629,18,FALSE),0) -> 2 | DC12: 0 | DD12: 0 | DE12: 0 | DF12: 0 | DG12: 0 | DH12: 0
A13: P1010201 | B13: HORMONAL | C13: Oral Combinado | D13: 14091 | E13: =IFERROR(VLOOKUP($A13,Filtro!$A$5:$AY$629,3,FALSE),0) -> 305 | F13: =IFERROR(VLOOKUP($A13,Filtro!$A$5:$AY$629,4,FALSE),0) -> 2224 | G13: =IFERROR(VLOOKUP($A13,Filtro!$A$5:$AY$629,5,FALSE),0) -> 2791 | H13: =IFERROR(VLOOKUP($A13,Filtro!$A$5:$AY$629,6,FALSE),0) -> 2377 | I13: =IFERROR(VLOOKUP($A13,Filtro!$A$5:$AY$629,7,FALSE),0) -> 2256 | J13: =IFERROR(VLOOKUP($A13,Filtro!$A$5:$AY$629,8,FALSE),0) -> 1909 | K13: =IFERROR(VLOOKUP($A13,Filtro!$A$5:$AY$629,9,FALSE),0) -> 1302 | L13: =IFERROR(VLOOKUP($A13,Filtro!$A$5:$AY$629,10,FALSE),0) -> 727 | M13: =IFERROR(VLOOKUP($A13,Filtro!$A$5:$AY$629,11,FALSE),0) -> 186 | N13: =IFERROR(VLOOKUP($A13,Filtro!$A$5:$AY$629,12,FALSE),0) -> 14 | O13: =IFERROR(VLOOKUP($A13,Filtro!$A$5:$AY$629,13,FALSE),0) -> 0 | P13: =IFERROR(VLOOKUP($A13,Filtro!$A$5:$AY$629,14,FALSE),0) -> 0 | Q13: =IFERROR(VLOOKUP($A13,Filtro!$A$5:$AY$629,15,FALSE),0) -> 0 | R13: =IFERROR(VLOOKUP($A13,Filtro!$A$5:$AY$629,16,FALSE),0) -> 152 | S13: =IFERROR(VLOOKUP($A13,Filtro!$A$5:$AY$629,17,FALSE),0) -> 418 | T13: =IFERROR(VLOOKUP($A13,Filtro!$A$5:$AY$629,18,FALSE),0) -> 3 | DC13: 0 | DD13: 0 | DE13: 0 | DF13: 0 | DG13: 0 | DH13: 0
A14: P1010202 | C14: Oral Progestágeno | D14: 4883 | E14: =IFERROR(VLOOKUP($A14,Filtro!$A$5:$AY$629,3,FALSE),0) -> 20 | F14: =IFERROR(VLOOKUP($A14,Filtro!$A$5:$AY$629,4,FALSE),0) -> 173 | G14: =IFERROR(VLOOKUP($A14,Filtro!$A$5:$AY$629,5,FALSE),0) -> 328 | H14: =IFERROR(VLOOKUP($A14,Filtro!$A$5:$AY$629,6,FALSE),0) -> 624 | I14: =IFERROR(VLOOKUP($A14,Filtro!$A$5:$AY$629,7,FALSE),0) -> 740 | J14: =IFERROR(VLOOKUP($A14,Filtro!$A$5:$AY$629,8,FALSE),0) -> 681 | K14: =IFERROR(VLOOKUP($A14,Filtro!$A$5:$AY$629,9,FALSE),0) -> 823 | L14: =IFERROR(VLOOKUP($A14,Filtro!$A$5:$AY$629,10,FALSE),0) -> 992 | M14: =IFERROR(VLOOKUP($A14,Filtro!$A$5:$AY$629,11,FALSE),0) -> 462 | N14: =IFERROR(VLOOKUP($A14,Filtro!$A$5:$AY$629,12,FALSE),0) -> 40 | O14: =IFERROR(VLOOKUP($A14,Filtro!$A$5:$AY$629,13,FALSE),0) -> 0 | P14: =IFERROR(VLOOKUP($A14,Filtro!$A$5:$AY$629,14,FALSE),0) -> 0 | Q14: =IFERROR(VLOOKUP($A14,Filtro!$A$5:$AY$629,15,FALSE),0) -> 0 | R14: =IFERROR(VLOOKUP($A14,Filtro!$A$5:$AY$629,16,FALSE),0) -> 54 | S14: =IFERROR(VLOOKUP($A14,Filtro!$A$5:$AY$629,17,FALSE),0) -> 160 | T14: =IFERROR(VLOOKUP($A14,Filtro!$A$5:$AY$629,18,FALSE),0) -> 0 | DC14: 0 | DD14: 0 | DE14: 0 | DF14: 0 | DG14: 0 | DH14: 0
A15: P1010203 | C15: Inyectable Combinado | D15: 6847 | E15: =IFERROR(VLOOKUP($A15,Filtro!$A$5:$AY$629,3,FALSE),0) -> 86 | F15: =IFERROR(VLOOKUP($A15,Filtro!$A$5:$AY$629,4,FALSE),0) -> 979 | G15: =IFERROR(VLOOKUP($A15,Filtro!$A$5:$AY$629,5,FALSE),0) -> 1629 | H15: =IFERROR(VLOOKUP($A15,Filtro!$A$5:$AY$629,6,FALSE),0) -> 1457 | I15: =IFERROR(VLOOKUP($A15,Filtro!$A$5:$AY$629,7,FALSE),0) -> 1107 | J15: =IFERROR(VLOOKUP($A15,Filtro!$A$5:$AY$629,8,FALSE),0) -> 803 | K15: =IFERROR(VLOOKUP($A15,Filtro!$A$5:$AY$629,9,FALSE),0) -> 495 | L15: =IFERROR(VLOOKUP($A15,Filtro!$A$5:$AY$629,10,FALSE),0) -> 233 | M15: =IFERROR(VLOOKUP($A15,Filtro!$A$5:$AY$629,11,FALSE),0) -> 52 | N15: =IFERROR(VLOOKUP($A15,Filtro!$A$5:$AY$629,12,FALSE),0) -> 6 | O15: =IFERROR(VLOOKUP($A15,Filtro!$A$5:$AY$629,13,FALSE),0) -> 0 | P15: =IFERROR(VLOOKUP($A15,Filtro!$A$5:$AY$629,14,FALSE),0) -> 0 | Q15: =IFERROR(VLOOKUP($A15,Filtro!$A$5:$AY$629,15,FALSE),0) -> 0 | R15: =IFERROR(VLOOKUP($A15,Filtro!$A$5:$AY$629,16,FALSE),0) -> 112 | S15: =IFERROR(VLOOKUP($A15,Filtro!$A$5:$AY$629,17,FALSE),0) -> 287 | T15: =IFERROR(VLOOKUP($A15,Filtro!$A$5:$AY$629,18,FALSE),0) -> 2 | DC15: 0 | DD15: 0 | DE15: 0 | DF15: 0 | DG15: 0 | DH15: 0
A16: P1040508 | C16: Inyectable Progestágeno | D16: 13802 | E16: =IFERROR(VLOOKUP($A16,Filtro!$A$5:$AY$629,3,FALSE),0) -> 171 | F16: =IFERROR(VLOOKUP($A16,Filtro!$A$5:$AY$629,4,FALSE),0) -> 1278 | G16: =IFERROR(VLOOKUP($A16,Filtro!$A$5:$AY$629,5,FALSE),0) -> 2352 | H16: =IFERROR(VLOOKUP($A16,Filtro!$A$5:$AY$629,6,FALSE),0) -> 2825 | I16: =IFERROR(VLOOKUP($A16,Filtro!$A$5:$AY$629,7,FALSE),0) -> 2569 | J16: =IFERROR(VLOOKUP($A16,Filtro!$A$5:$AY$629,8,FALSE),0) -> 1863 | K16: =IFERROR(VLOOKUP($A16,Filtro!$A$5:$AY$629,9,FALSE),0) -> 1319 | L16: =IFERROR(VLOOKUP($A16,Filtro!$A$5:$AY$629,10,FALSE),0) -> 1070 | M16: =IFERROR(VLOOKUP($A16,Filtro!$A$5:$AY$629,11,FALSE),0) -> 345 | N16: =IFERROR(VLOOKUP($A16,Filtro!$A$5:$AY$629,12,FALSE),0) -> 10 | O16: =IFERROR(VLOOKUP($A16,Filtro!$A$5:$AY$629,13,FALSE),0) -> 0 | P16: =IFERROR(VLOOKUP($A16,Filtro!$A$5:$AY$629,14,FALSE),0) -> 0 | Q16: =IFERROR(VLOOKUP($A16,Filtro!$A$5:$AY$629,15,FALSE),0) -> 0 | R16: =IFERROR(VLOOKUP($A16,Filtro!$A$5:$AY$629,16,FALSE),0) -> 206 | S16: =IFERROR(VLOOKUP($A16,Filtro!$A$5:$AY$629,17,FALSE),0) -> 793 | T16: =IFERROR(VLOOKUP($A16,Filtro!$A$5:$AY$629,18,FALSE),0) -> 7 | DC16: 0 | DD16: 0 | DE16: 0 | DF16: 0 | DG16: 0 | DH16: 0
A17: P1040500 | C17: Implante Etonogestrel (3 años) | D17: 10041 | E17: =IFERROR(VLOOKUP($A17,Filtro!$A$5:$AY$629,3,FALSE),0) -> 185 | F17: =IFERROR(VLOOKUP($A17,Filtro!$A$5:$AY$629,4,FALSE),0) -> 1824 | G17: =IFERROR(VLOOKUP($A17,Filtro!$A$5:$AY$629,5,FALSE),0) -> 2326 | H17: =IFERROR(VLOOKUP($A17,Filtro!$A$5:$AY$629,6,FALSE),0) -> 2124 | I17: =IFERROR(VLOOKUP($A17,Filtro!$A$5:$AY$629,7,FALSE),0) -> 1728 | J17: =IFERROR(VLOOKUP($A17,Filtro!$A$5:$AY$629,8,FALSE),0) -> 1015 | K17: =IFERROR(VLOOKUP($A17,Filtro!$A$5:$AY$629,9,FALSE),0) -> 546 | L17: =IFERROR(VLOOKUP($A17,Filtro!$A$5:$AY$629,10,FALSE),0) -> 244 | M17: =IFERROR(VLOOKUP($A17,Filtro!$A$5:$AY$629,11,FALSE),0) -> 47 | N17: =IFERROR(VLOOKUP($A17,Filtro!$A$5:$AY$629,12,FALSE),0) -> 2 | O17: =IFERROR(VLOOKUP($A17,Filtro!$A$5:$AY$629,13,FALSE),0) -> 0 | P17: =IFERROR(VLOOKUP($A17,Filtro!$A$5:$AY$629,14,FALSE),0) -> 0 | Q17: =IFERROR(VLOOKUP($A17,Filtro!$A$5:$AY$629,15,FALSE),0) -> 0 | R17: =IFERROR(VLOOKUP($A17,Filtro!$A$5:$AY$629,16,FALSE),0) -> 111 | S17: =IFERROR(VLOOKUP($A17,Filtro!$A$5:$AY$629,17,FALSE),0) -> 795 | T17: =IFERROR(VLOOKUP($A17,Filtro!$A$5:$AY$629,18,FALSE),0) -> 6 | DC17: 0 | DD17: 0 | DE17: 0 | DF17: 0 | DG17: 0 | DH17: 0
A18: P1200190 | C18: Implante Levonorgestrel (5 años) | D18: 3139 | E18: =IFERROR(VLOOKUP($A18,Filtro!$A$5:$AY$629,3,FALSE),0) -> 70 | F18: =IFERROR(VLOOKUP($A18,Filtro!$A$5:$AY$629,4,FALSE),0) -> 576 | G18: =IFERROR(VLOOKUP($A18,Filtro!$A$5:$AY$629,5,FALSE),0) -> 731 | H18: =IFERROR(VLOOKUP($A18,Filtro!$A$5:$AY$629,6,FALSE),0) -> 670 | I18: =IFERROR(VLOOKUP($A18,Filtro!$A$5:$AY$629,7,FALSE),0) -> 520 | J18: =IFERROR(VLOOKUP($A18,Filtro!$A$5:$AY$629,8,FALSE),0) -> 326 | K18: =IFERROR(VLOOKUP($A18,Filtro!$A$5:$AY$629,9,FALSE),0) -> 183 | L18: =IFERROR(VLOOKUP($A18,Filtro!$A$5:$AY$629,10,FALSE),0) -> 58 | M18: =IFERROR(VLOOKUP($A18,Filtro!$A$5:$AY$629,11,FALSE),0) -> 5 | N18: =IFERROR(VLOOKUP($A18,Filtro!$A$5:$AY$629,12,FALSE),0) -> 0 | O18: =IFERROR(VLOOKUP($A18,Filtro!$A$5:$AY$629,13,FALSE),0) -> 0 | P18: =IFERROR(VLOOKUP($A18,Filtro!$A$5:$AY$629,14,FALSE),0) -> 0 | Q18: =IFERROR(VLOOKUP($A18,Filtro!$A$5:$AY$629,15,FALSE),0) -> 0 | R18: =IFERROR(VLOOKUP($A18,Filtro!$A$5:$AY$629,16,FALSE),0) -> 40 | S18: =IFERROR(VLOOKUP($A18,Filtro!$A$5:$AY$629,17,FALSE),0) -> 332 | T18: =IFERROR(VLOOKUP($A18,Filtro!$A$5:$AY$629,18,FALSE),0) -> 2 | DC18: 0 | DD18: 0 | DE18: 0 | DF18: 0 | DG18: 0 | DH18: 0
A19: P1600105 | C19: Anillo Vaginal | D19: =SUM(E19:N19) -> 225 | E19: =IFERROR(VLOOKUP($A19,Filtro!$A$5:$AY$629,3,FALSE),0) -> 1 | F19: =IFERROR(VLOOKUP($A19,Filtro!$A$5:$AY$629,4,FALSE),0) -> 17 | G19: =IFERROR(VLOOKUP($A19,Filtro!$A$5:$AY$629,5,FALSE),0) -> 40 | H19: =IFERROR(VLOOKUP($A19,Filtro!$A$5:$AY$629,6,FALSE),0) -> 48 | I19: =IFERROR(VLOOKUP($A19,Filtro!$A$5:$AY$629,7,FALSE),0) -> 57 | J19: =IFERROR(VLOOKUP($A19,Filtro!$A$5:$AY$629,8,FALSE),0) -> 41 | K19: =IFERROR(VLOOKUP($A19,Filtro!$A$5:$AY$629,9,FALSE),0) -> 15 | L19: =IFERROR(VLOOKUP($A19,Filtro!$A$5:$AY$629,10,FALSE),0) -> 5 | M19: =IFERROR(VLOOKUP($A19,Filtro!$A$5:$AY$629,11,FALSE),0) -> 1 | N19: =IFERROR(VLOOKUP($A19,Filtro!$A$5:$AY$629,12,FALSE),0) -> 0 | O19: =IFERROR(VLOOKUP($A19,Filtro!$A$5:$AY$629,13,FALSE),0) -> 0 | P19: =IFERROR(VLOOKUP($A19,Filtro!$A$5:$AY$629,14,FALSE),0) -> 0 | Q19: =IFERROR(VLOOKUP($A19,Filtro!$A$5:$AY$629,15,FALSE),0) -> 0 | R19: =IFERROR(VLOOKUP($A19,Filtro!$A$5:$AY$629,16,FALSE),0) -> 3 | S19: =IFERROR(VLOOKUP($A19,Filtro!$A$5:$AY$629,17,FALSE),0) -> 9 | T19: =IFERROR(VLOOKUP($A19,Filtro!$A$5:$AY$629,18,FALSE),0) -> 0 | DC19: 0 | DD19: 0 | DE19: 0 | DF19: 0 | DG19: 0 | DH19: 0
A20: P1010301 | B20: SÓLO PRESERVATIVO MAC | C20: Mujer | D20: =SUM(E20:Q20) -> 1733 | E20: =IFERROR(VLOOKUP($A20,Filtro!$A$5:$AY$629,3,FALSE),0) -> 32 | F20: =IFERROR(VLOOKUP($A20,Filtro!$A$5:$AY$629,4,FALSE),0) -> 251 | G20: =IFERROR(VLOOKUP($A20,Filtro!$A$5:$AY$629,5,FALSE),0) -> 209 | H20: =IFERROR(VLOOKUP($A20,Filtro!$A$5:$AY$629,6,FALSE),0) -> 243 | I20: =IFERROR(VLOOKUP($A20,Filtro!$A$5:$AY$629,7,FALSE),0) -> 265 | J20: =IFERROR(VLOOKUP($A20,Filtro!$A$5:$AY$629,8,FALSE),0) -> 224 | K20: =IFERROR(VLOOKUP($A20,Filtro!$A$5:$AY$629,9,FALSE),0) -> 227 | L20: =IFERROR(VLOOKUP($A20,Filtro!$A$5:$AY$629,10,FALSE),0) -> 139 | M20: =IFERROR(VLOOKUP($A20,Filtro!$A$5:$AY$629,11,FALSE),0) -> 111 | N20: =IFERROR(VLOOKUP($A20,Filtro!$A$5:$AY$629,12,FALSE),0) -> 32 | O20: =IFERROR(VLOOKUP($A20,Filtro!$A$5:$AY$629,13,FALSE),0) -> 0 | P20: =IFERROR(VLOOKUP($A20,Filtro!$A$5:$AY$629,14,FALSE),0) -> 0 | Q20: =IFERROR(VLOOKUP($A20,Filtro!$A$5:$AY$629,15,FALSE),0) -> 0 | R20: =IFERROR(VLOOKUP($A20,Filtro!$A$5:$AY$629,16,FALSE),0) -> 21 | S20: =IFERROR(VLOOKUP($A20,Filtro!$A$5:$AY$629,17,FALSE),0) -> 96 | T20: =IFERROR(VLOOKUP($A20,Filtro!$A$5:$AY$629,18,FALSE),0) -> 4 | DC20: 0 | DD20: 0 | DE20: 0 | DF20: 0 | DG20: 0 | DH20: 0
A21: P1010302 | C21: Hombres | D21: =SUM(E21:Q21) -> 653 | E21: =IFERROR(VLOOKUP($A21,Filtro!$A$5:$AY$629,3,FALSE),0) -> 46 | F21: =IFERROR(VLOOKUP($A21,Filtro!$A$5:$AY$629,4,FALSE),0) -> 277 | G21: =IFERROR(VLOOKUP($A21,Filtro!$A$5:$AY$629,5,FALSE),0) -> 73 | H21: =IFERROR(VLOOKUP($A21,Filtro!$A$5:$AY$629,6,FALSE),0) -> 65 | I21: =IFERROR(VLOOKUP($A21,Filtro!$A$5:$AY$629,7,FALSE),0) -> 60 | J21: =IFERROR(VLOOKUP($A21,Filtro!$A$5:$AY$629,8,FALSE),0) -> 39 | K21: =IFERROR(VLOOKUP($A21,Filtro!$A$5:$AY$629,9,FALSE),0) -> 50 | L21: =IFERROR(VLOOKUP($A21,Filtro!$A$5:$AY$629,10,FALSE),0) -> 22 | M21: =IFERROR(VLOOKUP($A21,Filtro!$A$5:$AY$629,11,FALSE),0) -> 5 | N21: =IFERROR(VLOOKUP($A21,Filtro!$A$5:$AY$629,12,FALSE),0) -> 16 | O21: =IFERROR(VLOOKUP($A21,Filtro!$A$5:$AY$629,13,FALSE),0) -> 0 | P21: =IFERROR(VLOOKUP($A21,Filtro!$A$5:$AY$629,14,FALSE),0) -> 0 | Q21: =IFERROR(VLOOKUP($A21,Filtro!$A$5:$AY$629,15,FALSE),0) -> 0 | R21: =IFERROR(VLOOKUP($A21,Filtro!$A$5:$AY$629,16,FALSE),0) -> 1 | S21: =IFERROR(VLOOKUP($A21,Filtro!$A$5:$AY$629,17,FALSE),0) -> 41 | T21: =IFERROR(VLOOKUP($A21,Filtro!$A$5:$AY$629,18,FALSE),0) -> 5 | DC21: 0 | DD21: 0 | DE21: 0 | DF21: 0 | DG21: 0 | DH21: 0
A22: P1200240 | B22: ESTERILIZACIÓN QUIRURGICA | C22: Mujer | D22: =SUM(E22:N22) -> 2948 | E22: =IFERROR(VLOOKUP($A22,Filtro!$A$5:$AY$629,3,FALSE),0) -> 0 | F22: =IFERROR(VLOOKUP($A22,Filtro!$A$5:$AY$629,4,FALSE),0) -> 0 | G22: =IFERROR(VLOOKUP($A22,Filtro!$A$5:$AY$629,5,FALSE),0) -> 19 | H22: =IFERROR(VLOOKUP($A22,Filtro!$A$5:$AY$629,6,FALSE),0) -> 127 | I22: =IFERROR(VLOOKUP($A22,Filtro!$A$5:$AY$629,7,FALSE),0) -> 356 | J22: =IFERROR(VLOOKUP($A22,Filtro!$A$5:$AY$629,8,FALSE),0) -> 647 | K22: =IFERROR(VLOOKUP($A22,Filtro!$A$5:$AY$629,9,FALSE),0) -> 718 | L22: =IFERROR(VLOOKUP($A22,Filtro!$A$5:$AY$629,10,FALSE),0) -> 565 | M22: =IFERROR(VLOOKUP($A22,Filtro!$A$5:$AY$629,11,FALSE),0) -> 321 | N22: =IFERROR(VLOOKUP($A22,Filtro!$A$5:$AY$629,12,FALSE),0) -> 195 | O22: =IFERROR(VLOOKUP($A22,Filtro!$A$5:$AY$629,13,FALSE),0) -> 0 | P22: =IFERROR(VLOOKUP($A22,Filtro!$A$5:$AY$629,14,FALSE),0) -> 0 | Q22: =IFERROR(VLOOKUP($A22,Filtro!$A$5:$AY$629,15,FALSE),0) -> 0 | R22: =IFERROR(VLOOKUP($A22,Filtro!$A$5:$AY$629,16,FALSE),0) -> 48 | S22: =IFERROR(VLOOKUP($A22,Filtro!$A$5:$AY$629,17,FALSE),0) -> 144 | T22: =IFERROR(VLOOKUP($A22,Filtro!$A$5:$AY$629,18,FALSE),0) -> 7 | DC22: 0 | DD22: 0 | DE22: 0 | DF22: 0 | DG22: 0 | DH22: 0
A23: P1200250 | C23: Hombres | D23: =SUM(E23:N23) -> 5 | E23: =IFERROR(VLOOKUP($A23,Filtro!$A$5:$AY$629,3,FALSE),0) -> 0 | F23: =IFERROR(VLOOKUP($A23,Filtro!$A$5:$AY$629,4,FALSE),0) -> 0 | G23: =IFERROR(VLOOKUP($A23,Filtro!$A$5:$AY$629,5,FALSE),0) -> 0 | H23: =IFERROR(VLOOKUP($A23,Filtro!$A$5:$AY$629,6,FALSE),0) -> 0 | I23: =IFERROR(VLOOKUP($A23,Filtro!$A$5:$AY$629,7,FALSE),0) -> 2 | J23: =IFERROR(VLOOKUP($A23,Filtro!$A$5:$AY$629,8,FALSE),0) -> 1 | K23: =IFERROR(VLOOKUP($A23,Filtro!$A$5:$AY$629,9,FALSE),0) -> 1 | L23: =IFERROR(VLOOKUP($A23,Filtro!$A$5:$AY$629,10,FALSE),0) -> 1 | M23: =IFERROR(VLOOKUP($A23,Filtro!$A$5:$AY$629,11,FALSE),0) -> 0 | N23: =IFERROR(VLOOKUP($A23,Filtro!$A$5:$AY$629,12,FALSE),0) -> 0 | O23: =IFERROR(VLOOKUP($A23,Filtro!$A$5:$AY$629,13,FALSE),0) -> 0 | P23: =IFERROR(VLOOKUP($A23,Filtro!$A$5:$AY$629,14,FALSE),0) -> 0 | Q23: =IFERROR(VLOOKUP($A23,Filtro!$A$5:$AY$629,15,FALSE),0) -> 0 | R23: =IFERROR(VLOOKUP($A23,Filtro!$A$5:$AY$629,16,FALSE),0) -> 0 | S23: =IFERROR(VLOOKUP($A23,Filtro!$A$5:$AY$629,17,FALSE),0) -> 0 | T23: =IFERROR(VLOOKUP($A23,Filtro!$A$5:$AY$629,18,FALSE),0) -> 0 | DC23: 0 | DD23: 0 | DE23: 0 | DF23: 0 | DG23: 0 | DH23: 0
B24: TOTAL | D24: =SUM(D11:D23) -> 66715 | E24: =SUM(E11:E23) -> 919 | F24: 7685 | G24: 11031 | H24: 11961 | I24: 11498 | J24: 9123 | K24: 6923 | L24: 5034 | M24: 2091 | N24: 450 | O24: 0 | P24: 0 | Q24: 0 | R24: 871 | S24: 3381 | T24: 45
A25: P1060010 | B25: Mujeres en control con enfermedad cardiovascular (DM-HTA) | D25: =IFERROR(VLOOKUP($A25,Filtro!$A$5:$AY$629,2,FALSE),0) -> 3273 | E25: =IFERROR(VLOOKUP($A25,Filtro!$A$5:$AY$629,3,FALSE),0) -> 0 | F25: =IFERROR(VLOOKUP($A25,Filtro!$A$5:$AY$629,4,FALSE),0) -> 11 | G25: =IFERROR(VLOOKUP($A25,Filtro!$A$5:$AY$629,5,FALSE),0) -> 102 | H25: =IFERROR(VLOOKUP($A25,Filtro!$A$5:$AY$629,6,FALSE),0) -> 185 | I25: =IFERROR(VLOOKUP($A25,Filtro!$A$5:$AY$629,7,FALSE),0) -> 302 | J25: =IFERROR(VLOOKUP($A25,Filtro!$A$5:$AY$629,8,FALSE),0) -> 515 | K25: =IFERROR(VLOOKUP($A25,Filtro!$A$5:$AY$629,9,FALSE),0) -> 723 | L25: =IFERROR(VLOOKUP($A25,Filtro!$A$5:$AY$629,10,FALSE),0) -> 855 | M25: =IFERROR(VLOOKUP($A25,Filtro!$A$5:$AY$629,11,FALSE),0) -> 545 | N25: =IFERROR(VLOOKUP($A25,Filtro!$A$5:$AY$629,12,FALSE),0) -> 150 | O25: =IFERROR(VLOOKUP($A25,Filtro!$A$5:$AY$629,13,FALSE),0) -> 0 | P25: =IFERROR(VLOOKUP($A25,Filtro!$A$5:$AY$629,14,FALSE),0) -> 0 | Q25: =IFERROR(VLOOKUP($A25,Filtro!$A$5:$AY$629,15,FALSE),0) -> 0 | R25: =IFERROR(VLOOKUP($A25,Filtro!$A$5:$AY$629,16,FALSE),0) -> 31 | S25: =IFERROR(VLOOKUP($A25,Filtro!$A$5:$AY$629,17,FALSE),0) -> 46 | T25: =IFERROR(VLOOKUP($A25,Filtro!$A$5:$AY$629,18,FALSE),0) -> 0 | CC25: =IF($R25>$D25,"* La celda 'Pueblos Originarios' debe ser menor o igual al Total en control. ","") ->  | CD25: =IF($S25>$D25,"* La celda 'Población Migrantes' debe ser menor o igual al Total en control. ","") ->  | CE25: =IF($T25>$D25,"* La celda 'Personas Viviendo con VIH' debe ser menor o igual al Total en control. ","") ->  | CF25: =IF(AND($D25<>0,$R25=""),"* No olvide escribir en la celda de 'Pueblos Originarios' (Digite CERO si no tiene). ","") ->  | CG25: =IF(AND($D25<>0,$S25=""),"* No olvide escribir en la celda de 'Población Migrantes' (Digite CERO si no tiene). ","") ->  | CH25: =IF(AND($D25<>0,$T25=""),"* No olvide escribir en la celda de 'PV-VIH' (Digite CERO si no tiene). ","") ->  | DC25: =IF($R25>$D25,1,0) -> 0 | DD25: =IF($S25>$D25,1,0) -> 0 | DE25: =IF($T25>$D25,1,0) -> 0 | DF25: =IF(AND($D25<>0,$R25=""),1,0) -> 0 | DG25: =IF(AND($D25<>0,$S25=""),1,0) -> 0 | DH25: =IF(AND($D25<>0,$T25=""),1,0) -> 0
A26: P1600106 | B26: Mujeres con Retiro de Implante Anticipado en el semestre (antes de los 3 años) | C26: En APS | D26: =IFERROR(VLOOKUP($A26,Filtro!$A$5:$AY$629,2,FALSE),0) -> 174 | E26: =IFERROR(VLOOKUP($A26,Filtro!$A$5:$AY$629,3,FALSE),0) -> 1 | F26: =IFERROR(VLOOKUP($A26,Filtro!$A$5:$AY$629,4,FALSE),0) -> 34 | G26: =IFERROR(VLOOKUP($A26,Filtro!$A$5:$AY$629,5,FALSE),0) -> 47 | H26: =IFERROR(VLOOKUP($A26,Filtro!$A$5:$AY$629,6,FALSE),0) -> 48 | I26: =IFERROR(VLOOKUP($A26,Filtro!$A$5:$AY$629,7,FALSE),0) -> 32 | J26: =IFERROR(VLOOKUP($A26,Filtro!$A$5:$AY$629,8,FALSE),0) -> 10 | K26: =IFERROR(VLOOKUP($A26,Filtro!$A$5:$AY$629,9,FALSE),0) -> 5 | L26: =IFERROR(VLOOKUP($A26,Filtro!$A$5:$AY$629,10,FALSE),0) -> 1 | M26: =IFERROR(VLOOKUP($A26,Filtro!$A$5:$AY$629,11,FALSE),0) -> 0 | N26: =IFERROR(VLOOKUP($A26,Filtro!$A$5:$AY$629,12,FALSE),0) -> 0 | O26: =IFERROR(VLOOKUP($A26,Filtro!$A$5:$AY$629,13,FALSE),0) -> 0 | P26: =IFERROR(VLOOKUP($A26,Filtro!$A$5:$AY$629,14,FALSE),0) -> 0 | Q26: =IFERROR(VLOOKUP($A26,Filtro!$A$5:$AY$629,15,FALSE),0) -> 0 | R26: =IFERROR(VLOOKUP($A26,Filtro!$A$5:$AY$629,16,FALSE),0) -> 0 | S26: =IFERROR(VLOOKUP($A26,Filtro!$A$5:$AY$629,17,FALSE),0) -> 12 | T26: =IFERROR(VLOOKUP($A26,Filtro!$A$5:$AY$629,18,FALSE),0) -> 0 | DC26: 0 | DD26: 0 | DE26: 0 | DF26: 0 | DG26: 0 | DH26: 0
A27: P1600107 | C27: En Extrasistema | D27: =IFERROR(VLOOKUP($A27,Filtro!$A$5:$AY$629,2,FALSE),0) -> 6 | E27: =IFERROR(VLOOKUP($A27,Filtro!$A$5:$AY$629,3,FALSE),0) -> 0 | F27: =IFERROR(VLOOKUP($A27,Filtro!$A$5:$AY$629,4,FALSE),0) -> 1 | G27: =IFERROR(VLOOKUP($A27,Filtro!$A$5:$AY$629,5,FALSE),0) -> 3 | H27: =IFERROR(VLOOKUP($A27,Filtro!$A$5:$AY$629,6,FALSE),0) -> 2 | I27: =IFERROR(VLOOKUP($A27,Filtro!$A$5:$AY$629,7,FALSE),0) -> 0 | J27: =IFERROR(VLOOKUP($A27,Filtro!$A$5:$AY$629,8,FALSE),0) -> 0 | K27: =IFERROR(VLOOKUP($A27,Filtro!$A$5:$AY$629,9,FALSE),0) -> 0 | L27: =IFERROR(VLOOKUP($A27,Filtro!$A$5:$AY$629,10,FALSE),0) -> 0 | M27: =IFERROR(VLOOKUP($A27,Filtro!$A$5:$AY$629,11,FALSE),0) -> 0 | N27: =IFERROR(VLOOKUP($A27,Filtro!$A$5:$AY$629,12,FALSE),0) -> 0 | O27: =IFERROR(VLOOKUP($A27,Filtro!$A$5:$AY$629,13,FALSE),0) -> 0 | P27: =IFERROR(VLOOKUP($A27,Filtro!$A$5:$AY$629,14,FALSE),0) -> 0 | Q27: =IFERROR(VLOOKUP($A27,Filtro!$A$5:$AY$629,15,FALSE),0) -> 0 | R27: =IFERROR(VLOOKUP($A27,Filtro!$A$5:$AY$629,16,FALSE),0) -> 0 | S27: =IFERROR(VLOOKUP($A27,Filtro!$A$5:$AY$629,17,FALSE),0) -> 1 | T27: =IFERROR(VLOOKUP($A27,Filtro!$A$5:$AY$629,18,FALSE),0) -> 0
A28: P1600108 | B28: Mujeres con Retiro de Implante Anticipado en el semestre (antes de los 5 años) | C28: En APS | D28: =IFERROR(VLOOKUP($A28,Filtro!$A$5:$AY$629,2,FALSE),0) -> 83 | E28: =IFERROR(VLOOKUP($A28,Filtro!$A$5:$AY$629,3,FALSE),0) -> 2 | F28: =IFERROR(VLOOKUP($A28,Filtro!$A$5:$AY$629,4,FALSE),0) -> 11 | G28: =IFERROR(VLOOKUP($A28,Filtro!$A$5:$AY$629,5,FALSE),0) -> 29 | H28: =IFERROR(VLOOKUP($A28,Filtro!$A$5:$AY$629,6,FALSE),0) -> 13 | I28: =IFERROR(VLOOKUP($A28,Filtro!$A$5:$AY$629,7,FALSE),0) -> 15 | J28: =IFERROR(VLOOKUP($A28,Filtro!$A$5:$AY$629,8,FALSE),0) -> 9 | K28: =IFERROR(VLOOKUP($A28,Filtro!$A$5:$AY$629,9,FALSE),0) -> 4 | L28: =IFERROR(VLOOKUP($A28,Filtro!$A$5:$AY$629,10,FALSE),0) -> 2 | M28: =IFERROR(VLOOKUP($A28,Filtro!$A$5:$AY$629,11,FALSE),0) -> 0 | N28: =IFERROR(VLOOKUP($A28,Filtro!$A$5:$AY$629,12,FALSE),0) -> 0 | O28: =IFERROR(VLOOKUP($A28,Filtro!$A$5:$AY$629,13,FALSE),0) -> 0 | P28: =IFERROR(VLOOKUP($A28,Filtro!$A$5:$AY$629,14,FALSE),0) -> 0 | Q28: =IFERROR(VLOOKUP($A28,Filtro!$A$5:$AY$629,15,FALSE),0) -> 0 | R28: =IFERROR(VLOOKUP($A28,Filtro!$A$5:$AY$629,16,FALSE),0) -> 0 | S28: =IFERROR(VLOOKUP($A28,Filtro!$A$5:$AY$629,17,FALSE),0) -> 12 | T28: =IFERROR(VLOOKUP($A28,Filtro!$A$5:$AY$629,18,FALSE),0) -> 1
A29: P1600109 | C29: En Extrasistema | D29: =IFERROR(VLOOKUP($A29,Filtro!$A$5:$AY$629,2,FALSE),0) -> 6 | E29: =IFERROR(VLOOKUP($A29,Filtro!$A$5:$AY$629,3,FALSE),0) -> 0 | F29: =IFERROR(VLOOKUP($A29,Filtro!$A$5:$AY$629,4,FALSE),0) -> 0 | G29: =IFERROR(VLOOKUP($A29,Filtro!$A$5:$AY$629,5,FALSE),0) -> 2 | H29: =IFERROR(VLOOKUP($A29,Filtro!$A$5:$AY$629,6,FALSE),0) -> 1 | I29: =IFERROR(VLOOKUP($A29,Filtro!$A$5:$AY$629,7,FALSE),0) -> 2 | J29: =IFERROR(VLOOKUP($A29,Filtro!$A$5:$AY$629,8,FALSE),0) -> 1 | K29: =IFERROR(VLOOKUP($A29,Filtro!$A$5:$AY$629,9,FALSE),0) -> 0 | L29: =IFERROR(VLOOKUP($A29,Filtro!$A$5:$AY$629,10,FALSE),0) -> 0 | M29: =IFERROR(VLOOKUP($A29,Filtro!$A$5:$AY$629,11,FALSE),0) -> 0 | N29: =IFERROR(VLOOKUP($A29,Filtro!$A$5:$AY$629,12,FALSE),0) -> 0 | O29: =IFERROR(VLOOKUP($A29,Filtro!$A$5:$AY$629,13,FALSE),0) -> 0 | P29: =IFERROR(VLOOKUP($A29,Filtro!$A$5:$AY$629,14,FALSE),0) -> 0 | Q29: =IFERROR(VLOOKUP($A29,Filtro!$A$5:$AY$629,15,FALSE),0) -> 0 | R29: =IFERROR(VLOOKUP($A29,Filtro!$A$5:$AY$629,16,FALSE),0) -> 0 | S29: =IFERROR(VLOOKUP($A29,Filtro!$A$5:$AY$629,17,FALSE),0) -> 2 | T29: =IFERROR(VLOOKUP($A29,Filtro!$A$5:$AY$629,18,FALSE),0) -> 0 | DC29: 0 | DD29: 0 | DE29: 0 | DF29: 0 | DG29: 0 | DH29: 0
A30: P1060090 | B30: Método de Regulación de Fertilidad más Preservativo | D30: =IFERROR(VLOOKUP($A30,Filtro!$A$5:$AY$629,2,FALSE),0) -> 4886 | E30: =IFERROR(VLOOKUP($A30,Filtro!$A$5:$AY$629,3,FALSE),0) -> 115 | F30: =IFERROR(VLOOKUP($A30,Filtro!$A$5:$AY$629,4,FALSE),0) -> 1320 | G30: =IFERROR(VLOOKUP($A30,Filtro!$A$5:$AY$629,5,FALSE),0) -> 1190 | H30: =IFERROR(VLOOKUP($A30,Filtro!$A$5:$AY$629,6,FALSE),0) -> 865 | I30: =IFERROR(VLOOKUP($A30,Filtro!$A$5:$AY$629,7,FALSE),0) -> 665 | J30: =IFERROR(VLOOKUP($A30,Filtro!$A$5:$AY$629,8,FALSE),0) -> 456 | K30: =IFERROR(VLOOKUP($A30,Filtro!$A$5:$AY$629,9,FALSE),0) -> 271 | L30: =IFERROR(VLOOKUP($A30,Filtro!$A$5:$AY$629,10,FALSE),0) -> 187 | M30: =IFERROR(VLOOKUP($A30,Filtro!$A$5:$AY$629,11,FALSE),0) -> 54 | N30: =IFERROR(VLOOKUP($A30,Filtro!$A$5:$AY$629,12,FALSE),0) -> 7 | O30: =IFERROR(VLOOKUP($A30,Filtro!$A$5:$AY$629,13,FALSE),0) -> 0 | P30: =IFERROR(VLOOKUP($A30,Filtro!$A$5:$AY$629,14,FALSE),0) -> 0 | Q30: =IFERROR(VLOOKUP($A30,Filtro!$A$5:$AY$629,15,FALSE),0) -> 0 | R30: =IFERROR(VLOOKUP($A30,Filtro!$A$5:$AY$629,16,FALSE),0) -> 55 | S30: =IFERROR(VLOOKUP($A30,Filtro!$A$5:$AY$629,17,FALSE),0) -> 239 | T30: =IFERROR(VLOOKUP($A30,Filtro!$A$5:$AY$629,18,FALSE),0) -> 3 | DC30: 0 | DD30: 0 | DE30: 0 | DF30: 0 | DG30: 0 | DH30: 0
A31: P1200270 | B31: Gestantes que reciben preservativo | D31: =IFERROR(VLOOKUP($A31,Filtro!$A$5:$AY$629,2,FALSE),0) -> 391 | E31: =IFERROR(VLOOKUP($A31,Filtro!$A$5:$AY$629,3,FALSE),0) -> 5 | F31: =IFERROR(VLOOKUP($A31,Filtro!$A$5:$AY$629,4,FALSE),0) -> 52 | G31: =IFERROR(VLOOKUP($A31,Filtro!$A$5:$AY$629,5,FALSE),0) -> 121 | H31: =IFERROR(VLOOKUP($A31,Filtro!$A$5:$AY$629,6,FALSE),0) -> 134 | I31: =IFERROR(VLOOKUP($A31,Filtro!$A$5:$AY$629,7,FALSE),0) -> 78 | J31: =IFERROR(VLOOKUP($A31,Filtro!$A$5:$AY$629,8,FALSE),0) -> 37 | K31: =IFERROR(VLOOKUP($A31,Filtro!$A$5:$AY$629,9,FALSE),0) -> 12 | L31: =IFERROR(VLOOKUP($A31,Filtro!$A$5:$AY$629,10,FALSE),0) -> 1 | M31: =IFERROR(VLOOKUP($A31,Filtro!$A$5:$AY$629,11,FALSE),0) -> 0 | N31: =IFERROR(VLOOKUP($A31,Filtro!$A$5:$AY$629,12,FALSE),0) -> 0 | O31: =IFERROR(VLOOKUP($A31,Filtro!$A$5:$AY$629,13,FALSE),0) -> 0 | P31: =IFERROR(VLOOKUP($A31,Filtro!$A$5:$AY$629,14,FALSE),0) -> 0 | Q31: =IFERROR(VLOOKUP($A31,Filtro!$A$5:$AY$629,15,FALSE),0) -> 0 | R31: =IFERROR(VLOOKUP($A31,Filtro!$A$5:$AY$629,16,FALSE),0) -> 12 | S31: =IFERROR(VLOOKUP($A31,Filtro!$A$5:$AY$629,17,FALSE),0) -> 16 | T31: =IFERROR(VLOOKUP($A31,Filtro!$A$5:$AY$629,18,FALSE),0) -> 0 | DC31: 0 | DD31: 0 | DE31: 0 | DF31: 0 | DG31: 0 | DH31: 0
A32: P1200200 | B32: PRESERVATIVO/PRACTICA SEXUAL SEGURA | C32: Mujer | D32: =IFERROR(VLOOKUP($A32,Filtro!$A$5:$AY$629,2,FALSE),0) -> 566 | E32: =IFERROR(VLOOKUP($A32,Filtro!$A$5:$AY$629,3,FALSE),0) -> 7 | F32: =IFERROR(VLOOKUP($A32,Filtro!$A$5:$AY$629,4,FALSE),0) -> 94 | G32: =IFERROR(VLOOKUP($A32,Filtro!$A$5:$AY$629,5,FALSE),0) -> 104 | H32: =IFERROR(VLOOKUP($A32,Filtro!$A$5:$AY$629,6,FALSE),0) -> 111 | I32: =IFERROR(VLOOKUP($A32,Filtro!$A$5:$AY$629,7,FALSE),0) -> 80 | J32: =IFERROR(VLOOKUP($A32,Filtro!$A$5:$AY$629,8,FALSE),0) -> 50 | K32: =IFERROR(VLOOKUP($A32,Filtro!$A$5:$AY$629,9,FALSE),0) -> 47 | L32: =IFERROR(VLOOKUP($A32,Filtro!$A$5:$AY$629,10,FALSE),0) -> 24 | M32: =IFERROR(VLOOKUP($A32,Filtro!$A$5:$AY$629,11,FALSE),0) -> 27 | N32: =IFERROR(VLOOKUP($A32,Filtro!$A$5:$AY$629,12,FALSE),0) -> 15 | O32: =IFERROR(VLOOKUP($A32,Filtro!$A$5:$AY$629,13,FALSE),0) -> 2 | P32: =IFERROR(VLOOKUP($A32,Filtro!$A$5:$AY$629,14,FALSE),0) -> 3 | Q32: =IFERROR(VLOOKUP($A32,Filtro!$A$5:$AY$629,15,FALSE),0) -> 2 | R32: =IFERROR(VLOOKUP($A32,Filtro!$A$5:$AY$629,16,FALSE),0) -> 14 | S32: =IFERROR(VLOOKUP($A32,Filtro!$A$5:$AY$629,17,FALSE),0) -> 25 | T32: =IFERROR(VLOOKUP($A32,Filtro!$A$5:$AY$629,18,FALSE),0) -> 3 | DC32: 0 | DD32: 0 | DE32: 0 | DF32: 0 | DG32: 0 | DH32: 0
A33: P1200210 | C33: Hombres | D33: =IFERROR(VLOOKUP($A33,Filtro!$A$5:$AY$629,2,FALSE),0) -> 36 | E33: =IFERROR(VLOOKUP($A33,Filtro!$A$5:$AY$629,3,FALSE),0) -> 4 | F33: =IFERROR(VLOOKUP($A33,Filtro!$A$5:$AY$629,4,FALSE),0) -> 14 | G33: =IFERROR(VLOOKUP($A33,Filtro!$A$5:$AY$629,5,FALSE),0) -> 2 | H33: =IFERROR(VLOOKUP($A33,Filtro!$A$5:$AY$629,6,FALSE),0) -> 5 | I33: =IFERROR(VLOOKUP($A33,Filtro!$A$5:$AY$629,7,FALSE),0) -> 1 | J33: =IFERROR(VLOOKUP($A33,Filtro!$A$5:$AY$629,8,FALSE),0) -> 2 | K33: =IFERROR(VLOOKUP($A33,Filtro!$A$5:$AY$629,9,FALSE),0) -> 1 | L33: =IFERROR(VLOOKUP($A33,Filtro!$A$5:$AY$629,10,FALSE),0) -> 2 | M33: =IFERROR(VLOOKUP($A33,Filtro!$A$5:$AY$629,11,FALSE),0) -> 1 | N33: =IFERROR(VLOOKUP($A33,Filtro!$A$5:$AY$629,12,FALSE),0) -> 2 | O33: =IFERROR(VLOOKUP($A33,Filtro!$A$5:$AY$629,13,FALSE),0) -> 2 | P33: =IFERROR(VLOOKUP($A33,Filtro!$A$5:$AY$629,14,FALSE),0) -> 0 | Q33: =IFERROR(VLOOKUP($A33,Filtro!$A$5:$AY$629,15,FALSE),0) -> 0 | R33: =IFERROR(VLOOKUP($A33,Filtro!$A$5:$AY$629,16,FALSE),0) -> 0 | S33: =IFERROR(VLOOKUP($A33,Filtro!$A$5:$AY$629,17,FALSE),0) -> 2 | T33: =IFERROR(VLOOKUP($A33,Filtro!$A$5:$AY$629,18,FALSE),0) -> 0 | DC33: 0 | DD33: 0 | DE33: 0 | DF33: 0 | DG33: 0 | DH33: 0
A34: P1200220 | B34: LUBRICANTES | C34: Mujer | D34: =IFERROR(VLOOKUP($A34,Filtro!$A$5:$AY$629,2,FALSE),0) -> 1087 | E34: =IFERROR(VLOOKUP($A34,Filtro!$A$5:$AY$629,3,FALSE),0) -> 0 | F34: =IFERROR(VLOOKUP($A34,Filtro!$A$5:$AY$629,4,FALSE),0) -> 21 | G34: =IFERROR(VLOOKUP($A34,Filtro!$A$5:$AY$629,5,FALSE),0) -> 53 | H34: =IFERROR(VLOOKUP($A34,Filtro!$A$5:$AY$629,6,FALSE),0) -> 71 | I34: =IFERROR(VLOOKUP($A34,Filtro!$A$5:$AY$629,7,FALSE),0) -> 78 | J34: =IFERROR(VLOOKUP($A34,Filtro!$A$5:$AY$629,8,FALSE),0) -> 73 | K34: =IFERROR(VLOOKUP($A34,Filtro!$A$5:$AY$629,9,FALSE),0) -> 80 | L34: =IFERROR(VLOOKUP($A34,Filtro!$A$5:$AY$629,10,FALSE),0) -> 147 | M34: =IFERROR(VLOOKUP($A34,Filtro!$A$5:$AY$629,11,FALSE),0) -> 207 | N34: =IFERROR(VLOOKUP($A34,Filtro!$A$5:$AY$629,12,FALSE),0) -> 175 | O34: =IFERROR(VLOOKUP($A34,Filtro!$A$5:$AY$629,13,FALSE),0) -> 104 | P34: =IFERROR(VLOOKUP($A34,Filtro!$A$5:$AY$629,14,FALSE),0) -> 47 | Q34: =IFERROR(VLOOKUP($A34,Filtro!$A$5:$AY$629,15,FALSE),0) -> 31 | R34: =IFERROR(VLOOKUP($A34,Filtro!$A$5:$AY$629,16,FALSE),0) -> 7 | S34: =IFERROR(VLOOKUP($A34,Filtro!$A$5:$AY$629,17,FALSE),0) -> 36 | T34: =IFERROR(VLOOKUP($A34,Filtro!$A$5:$AY$629,18,FALSE),0) -> 2 | DC34: 0 | DD34: 0 | DE34: 0 | DF34: 0 | DG34: 0 | DH34: 0
A35: P1200230 | C35: Hombres | D35: =IFERROR(VLOOKUP($A35,Filtro!$A$5:$AY$629,2,FALSE),0) -> 16 | E35: =IFERROR(VLOOKUP($A35,Filtro!$A$5:$AY$629,3,FALSE),0) -> 1 | F35: =IFERROR(VLOOKUP($A35,Filtro!$A$5:$AY$629,4,FALSE),0) -> 1 | G35: =IFERROR(VLOOKUP($A35,Filtro!$A$5:$AY$629,5,FALSE),0) -> 1 | H35: =IFERROR(VLOOKUP($A35,Filtro!$A$5:$AY$629,6,FALSE),0) -> 1 | I35: =IFERROR(VLOOKUP($A35,Filtro!$A$5:$AY$629,7,FALSE),0) -> 1 | J35: =IFERROR(VLOOKUP($A35,Filtro!$A$5:$AY$629,8,FALSE),0) -> 2 | K35: =IFERROR(VLOOKUP($A35,Filtro!$A$5:$AY$629,9,FALSE),0) -> 5 | L35: =IFERROR(VLOOKUP($A35,Filtro!$A$5:$AY$629,10,FALSE),0) -> 8 | M35: =IFERROR(VLOOKUP($A35,Filtro!$A$5:$AY$629,11,FALSE),0) -> 2 | N35: =IFERROR(VLOOKUP($A35,Filtro!$A$5:$AY$629,12,FALSE),0) -> 0 | O35: =IFERROR(VLOOKUP($A35,Filtro!$A$5:$AY$629,13,FALSE),0) -> 1 | P35: =IFERROR(VLOOKUP($A35,Filtro!$A$5:$AY$629,14,FALSE),0) -> 0 | Q35: =IFERROR(VLOOKUP($A35,Filtro!$A$5:$AY$629,15,FALSE),0) -> 0 | R35: =IFERROR(VLOOKUP($A35,Filtro!$A$5:$AY$629,16,FALSE),0) -> 0 | S35: =IFERROR(VLOOKUP($A35,Filtro!$A$5:$AY$629,17,FALSE),0) -> 0 | T35: =IFERROR(VLOOKUP($A35,Filtro!$A$5:$AY$629,18,FALSE),0) -> 0 | DC35: 0 | DD35: 0 | DE35: 0 | DF35: 0 | DG35: 0 | DH35: 0
A36: P1200350 | B36: CONDON FEMENINO | D36: =IFERROR(VLOOKUP($A36,Filtro!$A$5:$AY$629,2,FALSE),0) -> 325 | E36: =IFERROR(VLOOKUP($A36,Filtro!$A$5:$AY$629,3,FALSE),0) -> 4 | F36: =IFERROR(VLOOKUP($A36,Filtro!$A$5:$AY$629,4,FALSE),0) -> 42 | G36: =IFERROR(VLOOKUP($A36,Filtro!$A$5:$AY$629,5,FALSE),0) -> 52 | H36: =IFERROR(VLOOKUP($A36,Filtro!$A$5:$AY$629,6,FALSE),0) -> 62 | I36: =IFERROR(VLOOKUP($A36,Filtro!$A$5:$AY$629,7,FALSE),0) -> 58 | J36: =IFERROR(VLOOKUP($A36,Filtro!$A$5:$AY$629,8,FALSE),0) -> 43 | K36: =IFERROR(VLOOKUP($A36,Filtro!$A$5:$AY$629,9,FALSE),0) -> 19 | L36: =IFERROR(VLOOKUP($A36,Filtro!$A$5:$AY$629,10,FALSE),0) -> 40 | M36: =IFERROR(VLOOKUP($A36,Filtro!$A$5:$AY$629,11,FALSE),0) -> 3 | N36: =IFERROR(VLOOKUP($A36,Filtro!$A$5:$AY$629,12,FALSE),0) -> 0 | O36: =IFERROR(VLOOKUP($A36,Filtro!$A$5:$AY$629,13,FALSE),0) -> 0 | P36: =IFERROR(VLOOKUP($A36,Filtro!$A$5:$AY$629,14,FALSE),0) -> 2 | Q36: =IFERROR(VLOOKUP($A36,Filtro!$A$5:$AY$629,15,FALSE),0) -> 0 | R36: =IFERROR(VLOOKUP($A36,Filtro!$A$5:$AY$629,16,FALSE),0) -> 1 | S36: =IFERROR(VLOOKUP($A36,Filtro!$A$5:$AY$629,17,FALSE),0) -> 7 | T36: =IFERROR(VLOOKUP($A36,Filtro!$A$5:$AY$629,18,FALSE),0) -> 0 | DC36: 0 | DD36: 0 | DE36: 0 | DF36: 0 | DG36: 0 | DH36: 0
B37: SECCION B: GESTANTES EN CONTROL CON EVALUACIÓN RIESGO BIOPSICOSOCIAL
B38: GRUPOS DE EDAD | C38: TOTAL DE GESTANTES EN CONTROL | D38: EN RIESGO PSICO- SOCIAL | E38: QUE PRESENTAN VIOLENCIA DE GÉNERO | F38: GESTANTES QUE PRESENTAN ARO | G38: MIGRANTES
A40: P1020100 | B40: Menos de 15 años | C40: =IFERROR(VLOOKUP($A40,Filtro!$A$5:$AY$629,2,FALSE),0) -> 6 | D40: =IFERROR(VLOOKUP($A40,Filtro!$A$5:$AY$629,3,FALSE),0) -> 6 | E40: =IFERROR(VLOOKUP($A40,Filtro!$A$5:$AY$629,4,FALSE),0) -> 1 | F40: =IFERROR(VLOOKUP($A40,Filtro!$A$5:$AY$629,5,FALSE),0) -> 4 | G40: =IFERROR(VLOOKUP($A40,Filtro!$A$5:$AY$629,6,FALSE),0) -> 1 | H40: =($CB40&$CC40&$CD40&$CE40&$CF40&$CG40&$CH40&$CI40&$CJ40&$CK40&$CM40&$CN40&$CO40&$CP40&$CQ40&$CR40&$CS40&$CT40&$CU40&$CV40&$CW40&$CX40&$CY40&$CZ40&$DA40) ->  | CB40: =IF($D40<$E40,"* Las Gestantes Menores de 15 años con violencia de género deben estar incluidas en las Gestantes con riesgo psicosocial. ","") ->  | CC40: =IF($C40<$D40,"* Las Gestantes Menores de 15 años con Riesgo Psicosocial deben estar incluidas en el Total de Gestantes en Control misma edad. ","") ->  | CD40: =IF($C40<$F40,"* Las Gestantes Menores de 15 años que presentan ARO deben estar incluidas en el Total de Gestantes en Control misma edad. ","") ->  | CE40: =IF($C40<$G40,"* Las Gestantes Menores de 15 años que pertenecen a 'Población Migrantes' deben estar incluidas en el Total de Gestantes en Control misma edad. ","") ->  | CG40: =IF(AND(C40<>0,G40=""),"* No olvide escribir en la celda de 'Población Migrantes' (Digite CERO si no tiene). ","") ->  | DB40: =IF($D40<$E40,1,0) -> 0 | DC40: =IF($C40<$D40,1,0) -> 0 | DD40: =IF($C40<$F40,1,0) -> 0 | DE40: =IF($C40<$G40,1,0) -> 0 | DG40: =IF(AND(C40<>0,G40=""),1,0) -> 0
A41: P1020200 | B41: 15 a 19 años | C41: =IFERROR(VLOOKUP($A41,Filtro!$A$5:$AY$629,2,FALSE),0) -> 172 | D41: =IFERROR(VLOOKUP($A41,Filtro!$A$5:$AY$629,3,FALSE),0) -> 82 | E41: =IFERROR(VLOOKUP($A41,Filtro!$A$5:$AY$629,4,FALSE),0) -> 8 | F41: =IFERROR(VLOOKUP($A41,Filtro!$A$5:$AY$629,5,FALSE),0) -> 63 | G41: =IFERROR(VLOOKUP($A41,Filtro!$A$5:$AY$629,6,FALSE),0) -> 25 | CB41: =IF($D41<$E41,"* Las Gestantes de 15 a 19 años con violencia de género deben estar incluidas en las Gestantes con riesgo psicosocial. ","") ->  | CC41: =IF($C41<$D41,"* Las Gestantes de 15 a 19 años con Riesgo Psicosocial deben estar incluidas en el Total de Gestantes en Control misma edad. ","") ->  | CD41: =IF($C41<$F41,"* Las Gestantes de 15 a 19 años que presentan ARO deben estar incluidas en el Total de Gestantes en Control misma edad. ","") ->  | CE41: =IF($C41<$G41,"* Las Gestantes de 15 a 19 años que pertenecen a 'Población Migrantes' deben estar incluidas en el Total de Gestantes en Control misma edad. ","") ->  | DB41: 0 | DC41: 0 | DD41: 0 | DE41: 0 | DG41: 0
A42: P1040501 | B42: 20 a 24 años | C42: =IFERROR(VLOOKUP($A42,Filtro!$A$5:$AY$629,2,FALSE),0) -> 771 | D42: =IFERROR(VLOOKUP($A42,Filtro!$A$5:$AY$629,3,FALSE),0) -> 189 | E42: =IFERROR(VLOOKUP($A42,Filtro!$A$5:$AY$629,4,FALSE),0) -> 14 | F42: =IFERROR(VLOOKUP($A42,Filtro!$A$5:$AY$629,5,FALSE),0) -> 208 | G42: =IFERROR(VLOOKUP($A42,Filtro!$A$5:$AY$629,6,FALSE),0) -> 107 | CB42: =IF($D42<$E42,"* Las Gestantes de 20 a 24 años con violencia de género deben estar incluidas en las Gestantes con riesgo psicosocial. ","") ->  | CC42: =IF($C42<$D42,"* Las Gestantes de 20 a 24 años con Riesgo Psicosocial deben estar incluidas en el Total de Gestantes en Control misma edad. ","") ->  | CD42: =IF($C42<$F42,"* Las Gestantes de 20 a 24 años que presentan ARO deben estar incluidas en el Total de Gestantes en Control misma edad. ","") ->  | CE42: =IF($C42<$G42,"* Las Gestantes de 20 a 24 años que pertenecen a 'Población Migrantes' deben estar incluidas en el Total de Gestantes en Control misma edad. ","") ->  | DB42: 0 | DC42: 0 | DD42: 0 | DE42: 0 | DG42: 0
A43: P1060100 | B43: 25 a 29 años | C43: =IFERROR(VLOOKUP($A43,Filtro!$A$5:$AY$629,2,FALSE),0) -> 1030 | D43: =IFERROR(VLOOKUP($A43,Filtro!$A$5:$AY$629,3,FALSE),0) -> 227 | E43: =IFERROR(VLOOKUP($A43,Filtro!$A$5:$AY$629,4,FALSE),0) -> 18 | F43: =IFERROR(VLOOKUP($A43,Filtro!$A$5:$AY$629,5,FALSE),0) -> 385 | G43: =IFERROR(VLOOKUP($A43,Filtro!$A$5:$AY$629,6,FALSE),0) -> 120 | CB43: =IF($D43<$E43,"* Las Gestantes de 25 a 29 años con violencia de género deben estar incluidas en las Gestantes con riesgo psicosocial. ","") ->  | CC43: =IF($C43<$D43,"* Las Gestantes de 25 a 29 años con Riesgo Psicosocial deben estar incluidas en el Total de Gestantes en Control misma edad. ","") ->  | CD43: =IF($C43<$F43,"* Las Gestantes de 25 a 29 años que presentan ARO deben estar incluidas en el Total de Gestantes en Control misma edad. ","") ->  | CE43: =IF($C43<$G43,"* Las Gestantes de 25 a 29 años que pertenecen a 'Población Migrantes' deben estar incluidas en el Total de Gestantes en Control misma edad. ","") ->  | DB43: 0 | DC43: 0 | DD43: 0 | DE43: 0 | DG43: 0
A44: P1060101 | B44: 30 a 34 años | C44: =IFERROR(VLOOKUP($A44,Filtro!$A$5:$AY$629,2,FALSE),0) -> 868 | D44: =IFERROR(VLOOKUP($A44,Filtro!$A$5:$AY$629,3,FALSE),0) -> 166 | E44: =IFERROR(VLOOKUP($A44,Filtro!$A$5:$AY$629,4,FALSE),0) -> 15 | F44: =IFERROR(VLOOKUP($A44,Filtro!$A$5:$AY$629,5,FALSE),0) -> 390 | G44: =IFERROR(VLOOKUP($A44,Filtro!$A$5:$AY$629,6,FALSE),0) -> 87 | CB44: =IF($D44<$E44,"* Las Gestantes de 30 a 34 años con violencia de género deben estar incluidas en las Gestantes con riesgo psicosocial. ","") ->  | CC44: =IF($C44<$D44,"* Las Gestantes de 30 a 34 años con Riesgo Psicosocial deben estar incluidas en el Total de Gestantes en Control misma edad. ","") ->  | CD44: =IF($C44<$F44,"* Las Gestantes de 30 a 34 años que presentan ARO deben estar incluidas en el Total de Gestantes en Control misma edad. ","") ->  | CE44: =IF($C44<$G44,"* Las Gestantes de 30 a 34 años que pertenecen a 'Población Migrantes' deben estar incluidas en el Total de Gestantes en Control misma edad. ","") ->  | DB44: 0 | DC44: 0 | DD44: 0 | DE44: 0 | DG44: 0
A45: P1060102 | B45: 35 a 39 años | C45: =IFERROR(VLOOKUP($A45,Filtro!$A$5:$AY$629,2,FALSE),0) -> 446 | D45: =IFERROR(VLOOKUP($A45,Filtro!$A$5:$AY$629,3,FALSE),0) -> 83 | E45: =IFERROR(VLOOKUP($A45,Filtro!$A$5:$AY$629,4,FALSE),0) -> 8 | F45: =IFERROR(VLOOKUP($A45,Filtro!$A$5:$AY$629,5,FALSE),0) -> 230 | G45: =IFERROR(VLOOKUP($A45,Filtro!$A$5:$AY$629,6,FALSE),0) -> 59 | CB45: =IF($D45<$E45,"* Las Gestantes de 35 a 39 años con violencia de género deben estar incluidas en las Gestantes con riesgo psicosocial. ","") ->  | CC45: =IF($C45<$D45,"* Las Gestantes de 35 a 39 años con Riesgo Psicosocial deben estar incluidas en el Total de Gestantes en Control misma edad. ","") ->  | CD45: =IF($C45<$F45,"* Las Gestantes de 35 a 39 años que presentan ARO deben estar incluidas en el Total de Gestantes en Control misma edad. ","") ->  | CE45: =IF($C45<$G45,"* Las Gestantes de 35 a 39 años que pertenecen a 'Población Migrantes' deben estar incluidas en el Total de Gestantes en Control misma edad. ","") ->  | DB45: 0 | DC45: 0 | DD45: 0 | DE45: 0 | DG45: 0
A46: P1060103 | B46: 40 a 44 años | C46: =IFERROR(VLOOKUP($A46,Filtro!$A$5:$AY$629,2,FALSE),0) -> 109 | D46: =IFERROR(VLOOKUP($A46,Filtro!$A$5:$AY$629,3,FALSE),0) -> 27 | E46: =IFERROR(VLOOKUP($A46,Filtro!$A$5:$AY$629,4,FALSE),0) -> 1 | F46: =IFERROR(VLOOKUP($A46,Filtro!$A$5:$AY$629,5,FALSE),0) -> 75 | G46: =IFERROR(VLOOKUP($A46,Filtro!$A$5:$AY$629,6,FALSE),0) -> 12 | CB46: =IF($D46<$E46,"* Las Gestantes de 40 a 44 años con violencia de género deben estar incluidas en las Gestantes con riesgo psicosocial. ","") ->  | CC46: =IF($C46<$D46,"* Las Gestantes de 40 a 44 años con Riesgo Psicosocial deben estar incluidas en el Total de Gestantes en Control misma edad. ","") ->  | CD46: =IF($C46<$F46,"* Las Gestantes de 40 a 44 años que presentan ARO deben estar incluidas en el Total de Gestantes en Control misma edad. ","") ->  | CE46: =IF($C46<$G46,"* Las Gestantes de 40 a 44 años que pertenecen a 'Población Migrantes' deben estar incluidas en el Total de Gestantes en Control misma edad. ","") ->  | DB46: 0 | DC46: 0 | DD46: 0 | DE46: 0 | DG46: 0
A47: P1060104 | B47: 45 a 49 años | C47: =IFERROR(VLOOKUP($A47,Filtro!$A$5:$AY$629,2,FALSE),0) -> 4 | D47: =IFERROR(VLOOKUP($A47,Filtro!$A$5:$AY$629,3,FALSE),0) -> 1 | E47: =IFERROR(VLOOKUP($A47,Filtro!$A$5:$AY$629,4,FALSE),0) -> 0 | F47: =IFERROR(VLOOKUP($A47,Filtro!$A$5:$AY$629,5,FALSE),0) -> 2 | G47: =IFERROR(VLOOKUP($A47,Filtro!$A$5:$AY$629,6,FALSE),0) -> 0 | CB47: =IF($D47<$E47,"* Las Gestantes de 45 a 49 años con violencia de género deben estar incluidas en las Gestantes con riesgo psicosocial. ","") ->  | CC47: =IF($C47<$D47,"* Las Gestantes de 45 a 49 años con Riesgo Psicosocial deben estar incluidas en el Total de Gestantes en Control misma edad. ","") ->  | CD47: =IF($C47<$F47,"* Las Gestantes de 45 a 49 años que presentan ARO deben estar incluidas en el Total de Gestantes en Control misma edad. ","") ->  | CE47: =IF($C47<$G47,"* Las Gestantes de 45 a 49 años que pertenecen a 'Población Migrantes' deben estar incluidas en el Total de Gestantes en Control misma edad. ","") ->  | DB47: 0 | DC47: 0 | DD47: 0 | DE47: 0 | DG47: 0
A48: P1060105 | B48: 50 a 54 años | C48: =IFERROR(VLOOKUP($A48,Filtro!$A$5:$AY$629,2,FALSE),0) -> 0 | D48: =IFERROR(VLOOKUP($A48,Filtro!$A$5:$AY$629,3,FALSE),0) -> 0 | E48: =IFERROR(VLOOKUP($A48,Filtro!$A$5:$AY$629,4,FALSE),0) -> 0 | F48: =IFERROR(VLOOKUP($A48,Filtro!$A$5:$AY$629,5,FALSE),0) -> 0 | G48: =IFERROR(VLOOKUP($A48,Filtro!$A$5:$AY$629,6,FALSE),0) -> 0 | CB48: =IF($D48<$E48,"* Las Gestantes de 50 a 54 años con violencia de género deben estar incluidas en las Gestantes con riesgo psicosocial. ","") ->  | CC48: =IF($C48<$D48,"* Las Gestantes de 50 a 54 años con Riesgo Psicosocial deben estar incluidas en el Total de Gestantes en Control misma edad. ","") ->  | CD48: =IF($C48<$F48,"* Las Gestantes de 50 a 54 años que presentan ARO deben estar incluidas en el Total de Gestantes en Control misma edad. ","") ->  | CE48: =IF($C48<$G48,"* Las Gestantes de 50 a 54 años que pertenecen a 'Población Migrantes' deben estar incluidas en el Total de Gestantes en Control misma edad. ","") ->  | DB48: 0 | DC48: 0 | DD48: 0 | DE48: 0 | DG48: 0
B49: TOTAL | C49: =SUM(C40:C48) -> 3406 | D49: =SUM(D40:D48) -> 781 | E49: =SUM(E40:E48) -> 65 | F49: =SUM(F40:F48) -> 1357 | G49: =SUM(G40:G48) -> 411
B50: SECCION C: GESTANTES EN RIESGO PSICOSOCIAL CON VISITA DOMICILIARIA INTEGRAL REALIZADA EN EL SEMESTRE
B51: N° VDI | C51: N° Gestantes con VDI | D51: TOTAL de Visitas
A53: P1040502 | B53: 1 Visita | C53: =IFERROR(VLOOKUP($A53,Filtro!$A$5:$AY$629,2,FALSE),0) -> 348 | D53: =IFERROR(VLOOKUP($A53,Filtro!$A$5:$AY$629,3,FALSE),0) -> 348 | E53: =($CB53&$CC53&$CD53&$CE53&$CF53&$CG53&$CH53&$CI53&$CJ53&$CK53&$CM53&$CN53&$CO53&$CP53&$CQ53&$CR53&$CS53&$CT53&$CU53&$CV53&$CW53&$CX53&$CY53&$CZ53&$DA53) ->  | CB53: =IF($D$53<>$C$53*1,"* NO ALTERE LAS FÓRMULAS, el Total de Visitas equivale a 1 visita por gestante. ","") ->  | DB53: =IF($D$53<>$C$53*1,1,0) -> 0
A54: P1040503 | B54: 2 Visitas | C54: =IFERROR(VLOOKUP($A54,Filtro!$A$5:$AY$629,2,FALSE),0) -> 108 | D54: =IFERROR(VLOOKUP($A54,Filtro!$A$5:$AY$629,3,FALSE),0) -> 216 | E54: =($CB54&$CC54&$CD54&$CE54&$CF54&$CG54&$CH54&$CI54&$CJ54&$CK54&$CM54&$CN54&$CO54&$CP54&$CQ54&$CR54&$CS54&$CT54&$CU54&$CV54&$CW54&$CX54&$CY54&$CZ54&$DA54) ->  | CB54: =IF($D$54<>$C$54*2,"* NO ALTERE LAS FÓRMULAS, el Total de Visitas equivale a 2 visitas por gestante. ","") ->  | DB54: =IF($D$54<>$C$54*2,1,0) -> 0
A55: P1040504 | B55: 3 Visitas | C55: =IFERROR(VLOOKUP($A55,Filtro!$A$5:$AY$629,2,FALSE),0) -> 70 | D55: =IFERROR(VLOOKUP($A55,Filtro!$A$5:$AY$629,3,FALSE),0) -> 210 | E55: =($CB55&$CC55&$CD55&$CE55&$CF55&$CG55&$CH55&$CI55&$CJ55&$CK55&$CM55&$CN55&$CO55&$CP55&$CQ55&$CR55&$CS55&$CT55&$CU55&$CV55&$CW55&$CX55&$CY55&$CZ55&$DA55) ->  | CB55: =IF($D$55<>$C$55*3,"* NO ALTERE LAS FÓRMULAS, el Total de Visitas equivale a 3 visitas por gestante. ","") ->  | DB55: =IF($D$55<>$C$55*3,1,0) -> 0
A56: P1040505 | B56: 4 y más visitas | C56: =IFERROR(VLOOKUP($A56,Filtro!$A$5:$AY$629,2,FALSE),0) -> 42 | D56: =IFERROR(VLOOKUP($A56,Filtro!$A$5:$AY$629,3,FALSE),0) -> 113 | E56: =($CB56&$CC56&$CD56&$CE56&$CF56&$CG56&$CH56&$CI56&$CJ56&$CK56&$CM56&$CN56&$CO56&$CP56&$CQ56&$CR56&$CS56&$CT56&$CU56&$CV56&$CW56&$CX56&$CY56&$CZ56&$DA56) -> 
B57: TOTAL | C57: =SUM(C53:C56) -> 568 | D57: =SUM(D53:D56) -> 887
B58: SECCION D: GESTANTES Y MUJERES DE 8° MES POST-PARTO EN CONTROL, SEGÚN ESTADO NUTRICIONAL
B59: POBLACION | C59: ESTADO NUTRICIONAL | D59: TOTAL | E59: GRUPOS DE EDAD (en años)
E60: Menos 15 años | F60: 15 a 19 años | G60: 20 a 24 años | H60: 25 a 29 años | I60: 30 a 34 años | J60: 35 a 39 años | K60: 40 a 44 años | L60: 45 a 49 años | M60: 50 a 54 años
A61: P1030101 | B61: GESTANTES EN CONTROL (Información a la fecha de corte) | C61: OBESA | D61: =SUM(E61:M61) -> 1312 | E61: =IFERROR(VLOOKUP($A61,Filtro!$A$5:$AY$629,3,FALSE),0) -> 1 | F61: =IFERROR(VLOOKUP($A61,Filtro!$A$5:$AY$629,4,FALSE),0) -> 34 | G61: =IFERROR(VLOOKUP($A61,Filtro!$A$5:$AY$629,5,FALSE),0) -> 260 | H61: =IFERROR(VLOOKUP($A61,Filtro!$A$5:$AY$629,6,FALSE),0) -> 391 | I61: =IFERROR(VLOOKUP($A61,Filtro!$A$5:$AY$629,7,FALSE),0) -> 381 | J61: =IFERROR(VLOOKUP($A61,Filtro!$A$5:$AY$629,8,FALSE),0) -> 192 | K61: =IFERROR(VLOOKUP($A61,Filtro!$A$5:$AY$629,9,FALSE),0) -> 52 | L61: =IFERROR(VLOOKUP($A61,Filtro!$A$5:$AY$629,10,FALSE),0) -> 1 | M61: =IFERROR(VLOOKUP($A61,Filtro!$A$5:$AY$629,11,FALSE),0) -> 0 | N61: =($CB61&$CC61&$CD61&$CE61&$CF61&$CG61&$CH61&$CI61&$CJ61&$CK61&$CM61&$CN61&$CO61&$CP61&$CQ61&$CR61&$CS61&$CT61&$CU61&$CV61&$CW61&$CX61&$CY61&$CZ61&$DA61) -> 
A62: P1030102 | C62: SOBREPESO | D62: =SUM(E62:M62) -> 1115 | E62: =IFERROR(VLOOKUP($A62,Filtro!$A$5:$AY$629,3,FALSE),0) -> 1 | F62: =IFERROR(VLOOKUP($A62,Filtro!$A$5:$AY$629,4,FALSE),0) -> 39 | G62: =IFERROR(VLOOKUP($A62,Filtro!$A$5:$AY$629,5,FALSE),0) -> 247 | H62: =IFERROR(VLOOKUP($A62,Filtro!$A$5:$AY$629,6,FALSE),0) -> 344 | I62: =IFERROR(VLOOKUP($A62,Filtro!$A$5:$AY$629,7,FALSE),0) -> 298 | J62: =IFERROR(VLOOKUP($A62,Filtro!$A$5:$AY$629,8,FALSE),0) -> 152 | K62: =IFERROR(VLOOKUP($A62,Filtro!$A$5:$AY$629,9,FALSE),0) -> 32 | L62: =IFERROR(VLOOKUP($A62,Filtro!$A$5:$AY$629,10,FALSE),0) -> 2 | M62: =IFERROR(VLOOKUP($A62,Filtro!$A$5:$AY$629,11,FALSE),0) -> 0
A63: P1030103 | C63: NORMAL | D63: =SUM(E63:M63) -> 846 | E63: =IFERROR(VLOOKUP($A63,Filtro!$A$5:$AY$629,3,FALSE),0) -> 3 | F63: =IFERROR(VLOOKUP($A63,Filtro!$A$5:$AY$629,4,FALSE),0) -> 77 | G63: =IFERROR(VLOOKUP($A63,Filtro!$A$5:$AY$629,5,FALSE),0) -> 227 | H63: =IFERROR(VLOOKUP($A63,Filtro!$A$5:$AY$629,6,FALSE),0) -> 261 | I63: =IFERROR(VLOOKUP($A63,Filtro!$A$5:$AY$629,7,FALSE),0) -> 164 | J63: =IFERROR(VLOOKUP($A63,Filtro!$A$5:$AY$629,8,FALSE),0) -> 92 | K63: =IFERROR(VLOOKUP($A63,Filtro!$A$5:$AY$629,9,FALSE),0) -> 21 | L63: =IFERROR(VLOOKUP($A63,Filtro!$A$5:$AY$629,10,FALSE),0) -> 1 | M63: =IFERROR(VLOOKUP($A63,Filtro!$A$5:$AY$629,11,FALSE),0) -> 0
A64: P1030104 | C64: BAJO PESO | D64: =SUM(E64:M64) -> 127 | E64: =IFERROR(VLOOKUP($A64,Filtro!$A$5:$AY$629,3,FALSE),0) -> 1 | F64: =IFERROR(VLOOKUP($A64,Filtro!$A$5:$AY$629,4,FALSE),0) -> 22 | G64: =IFERROR(VLOOKUP($A64,Filtro!$A$5:$AY$629,5,FALSE),0) -> 36 | H64: =IFERROR(VLOOKUP($A64,Filtro!$A$5:$AY$629,6,FALSE),0) -> 34 | I64: =IFERROR(VLOOKUP($A64,Filtro!$A$5:$AY$629,7,FALSE),0) -> 25 | J64: =IFERROR(VLOOKUP($A64,Filtro!$A$5:$AY$629,8,FALSE),0) -> 8 | K64: =IFERROR(VLOOKUP($A64,Filtro!$A$5:$AY$629,9,FALSE),0) -> 1 | L64: =IFERROR(VLOOKUP($A64,Filtro!$A$5:$AY$629,10,FALSE),0) -> 0 | M64: =IFERROR(VLOOKUP($A64,Filtro!$A$5:$AY$629,11,FALSE),0) -> 0
C65: TOTAL | D65: =SUM(E65:M65) -> 3400 | E65: =SUM(E61:E64) -> 6 | F65: =SUM(F61:F64) -> 172 | G65: 770 | H65: 1030 | I65: 868 | J65: 444 | K65: 106 | L65: 4 | M65: 0 | N65: =CB65 & CC65 & CD65 & CE65 & CF65 & CG65 & CH65 & CI65 & CJ65 -> * Las gestantes20-24 años, según Estado Nutricional debe ser igual al Total de gestantes en Control de esa edad en Sección B. * Las gestantes 35-39 años, según Estado Nutricional debe ser igual al Total de gestantes en Control de esa edad en Sección B. * Las gestantes 40-44 años, según Estado Nutricional debe ser igual al Total de gestantes en Control de esa edad en Sección B. | CB65: =IF($C$40<>$E65,"* Las Gestantes Menores de 15 años, según Estado Nutricional debe ser igual al Total de gestantes en Control de esa edad en Sección B. ","") ->  | CC65: =IF($C$41<>$F65,"* Las gestantes 15-19 años, según Estado Nutricional debe ser igual al Total de gestantes en Control de esa edad en Sección B. ","") ->  | CD65: =IF($C$42<>$G65,"* Las gestantes20-24 años, según Estado Nutricional debe ser igual al Total de gestantes en Control de esa edad en Sección B. ","") -> * Las gestantes20-24 años, según Estado Nutricional debe ser igual al Total de gestantes en Control de esa edad en Sección B. | CE65: =IF($C$43<>$H65,"* Las gestantes 25-29 años, según Estado Nutricional debe ser igual al Total de gestantes en Control de esa edad en Sección B. ","") ->  | CF65: =IF($C$44<>$I65,"* Las gestantes30-34 años, según Estado Nutricional debe ser igual al Total de gestantes en Control de esa edad en Sección B. ","") ->  | CG65: =IF($C$45<>$J65,"* Las gestantes 35-39 años, según Estado Nutricional debe ser igual al Total de gestantes en Control de esa edad en Sección B. ","") -> * Las gestantes 35-39 años, según Estado Nutricional debe ser igual al Total de gestantes en Control de esa edad en Sección B. | CH65: =IF($C$46<>$K65,"* Las gestantes 40-44 años, según Estado Nutricional debe ser igual al Total de gestantes en Control de esa edad en Sección B. ","") -> * Las gestantes 40-44 años, según Estado Nutricional debe ser igual al Total de gestantes en Control de esa edad en Sección B. | CI65: =IF($C$47<>$L65,"* Las gestantes 45-49 años, según Estado Nutricional debe ser igual al Total de gestantes en Control de esa edad en Sección B. ","") ->  | CJ65: =IF($C$48<>$M65,"* Las gestantes 50-54 años, según Estado Nutricional debe ser igual al Total de gestantes en Control de esa edad en Sección B. ","") ->  | DB65: =IF($C$40<>$E65,1,0) -> 0 | DC65: =IF($C$41<>$F65,1,0) -> 0 | DD65: =IF($C$42<>$G65,1,0) -> 1 | DE65: =IF($C$43<>$H65,1,0) -> 0 | DF65: =IF($C$44<>$I65,1,0) -> 0 | DG65: =IF($C$45<>$J65,1,0) -> 1 | DH65: =IF($C$46<>$K65,1,0) -> 1 | DI65: =IF($C$47<>$L65,1,0) -> 0 | DJ65: =IF($C$48<>$M65,1,0) -> 0
A66: P1030201 | B66: CONTROL AL 8º MES POST-PARTO (Información del semestre) | C66: OBESA | D66: =SUM(E66:M66) -> 228 | E66: =IFERROR(VLOOKUP($A66,Filtro!$A$5:$AY$629,3,FALSE),0) -> 0 | F66: =IFERROR(VLOOKUP($A66,Filtro!$A$5:$AY$629,4,FALSE),0) -> 11 | G66: =IFERROR(VLOOKUP($A66,Filtro!$A$5:$AY$629,5,FALSE),0) -> 46 | H66: =IFERROR(VLOOKUP($A66,Filtro!$A$5:$AY$629,6,FALSE),0) -> 60 | I66: =IFERROR(VLOOKUP($A66,Filtro!$A$5:$AY$629,7,FALSE),0) -> 61 | J66: =IFERROR(VLOOKUP($A66,Filtro!$A$5:$AY$629,8,FALSE),0) -> 42 | K66: =IFERROR(VLOOKUP($A66,Filtro!$A$5:$AY$629,9,FALSE),0) -> 8 | L66: =IFERROR(VLOOKUP($A66,Filtro!$A$5:$AY$629,10,FALSE),0) -> 0 | M66: =IFERROR(VLOOKUP($A66,Filtro!$A$5:$AY$629,11,FALSE),0) -> 0
A67: P1030202 | C67: SOBREPESO | D67: 196 | E67: =IFERROR(VLOOKUP($A67,Filtro!$A$5:$AY$629,3,FALSE),0) -> 0 | F67: =IFERROR(VLOOKUP($A67,Filtro!$A$5:$AY$629,4,FALSE),0) -> 7 | G67: =IFERROR(VLOOKUP($A67,Filtro!$A$5:$AY$629,5,FALSE),0) -> 41 | H67: =IFERROR(VLOOKUP($A67,Filtro!$A$5:$AY$629,6,FALSE),0) -> 60 | I67: =IFERROR(VLOOKUP($A67,Filtro!$A$5:$AY$629,7,FALSE),0) -> 59 | J67: =IFERROR(VLOOKUP($A67,Filtro!$A$5:$AY$629,8,FALSE),0) -> 20 | K67: =IFERROR(VLOOKUP($A67,Filtro!$A$5:$AY$629,9,FALSE),0) -> 8 | L67: =IFERROR(VLOOKUP($A67,Filtro!$A$5:$AY$629,10,FALSE),0) -> 1 | M67: =IFERROR(VLOOKUP($A67,Filtro!$A$5:$AY$629,11,FALSE),0) -> 0
A68: P1030203 | C68: NORMAL | D68: 151 | E68: =IFERROR(VLOOKUP($A68,Filtro!$A$5:$AY$629,3,FALSE),0) -> 0 | F68: =IFERROR(VLOOKUP($A68,Filtro!$A$5:$AY$629,4,FALSE),0) -> 20 | G68: =IFERROR(VLOOKUP($A68,Filtro!$A$5:$AY$629,5,FALSE),0) -> 42 | H68: =IFERROR(VLOOKUP($A68,Filtro!$A$5:$AY$629,6,FALSE),0) -> 59 | I68: =IFERROR(VLOOKUP($A68,Filtro!$A$5:$AY$629,7,FALSE),0) -> 26 | J68: =IFERROR(VLOOKUP($A68,Filtro!$A$5:$AY$629,8,FALSE),0) -> 2 | K68: =IFERROR(VLOOKUP($A68,Filtro!$A$5:$AY$629,9,FALSE),0) -> 1 | L68: =IFERROR(VLOOKUP($A68,Filtro!$A$5:$AY$629,10,FALSE),0) -> 1 | M68: =IFERROR(VLOOKUP($A68,Filtro!$A$5:$AY$629,11,FALSE),0) -> 0
A69: P1030204 | C69: BAJO PESO | D69: 6 | E69: =IFERROR(VLOOKUP($A69,Filtro!$A$5:$AY$629,3,FALSE),0) -> 0 | F69: =IFERROR(VLOOKUP($A69,Filtro!$A$5:$AY$629,4,FALSE),0) -> 2 | G69: =IFERROR(VLOOKUP($A69,Filtro!$A$5:$AY$629,5,FALSE),0) -> 1 | H69: =IFERROR(VLOOKUP($A69,Filtro!$A$5:$AY$629,6,FALSE),0) -> 2 | I69: =IFERROR(VLOOKUP($A69,Filtro!$A$5:$AY$629,7,FALSE),0) -> 1 | J69: =IFERROR(VLOOKUP($A69,Filtro!$A$5:$AY$629,8,FALSE),0) -> 0 | K69: =IFERROR(VLOOKUP($A69,Filtro!$A$5:$AY$629,9,FALSE),0) -> 0 | L69: =IFERROR(VLOOKUP($A69,Filtro!$A$5:$AY$629,10,FALSE),0) -> 0 | M69: =IFERROR(VLOOKUP($A69,Filtro!$A$5:$AY$629,11,FALSE),0) -> 0
C70: TOTAL | D70: =SUM(E70:M70) -> 581 | E70: =SUM(E66:E69) -> 0 | F70: =SUM(F66:F69) -> 40 | G70: =SUM(G66:G69) -> 130 | H70: =SUM(H66:H69) -> 181 | I70: 147 | J70: 64 | K70: =SUM(K66:K69) -> 17 | L70: 2 | M70: 0
B71: SECCION E: MUJERES Y GESTANTES EN CONTROL CON CONSULTA NUTRICIONAL
B72: MUJERES | C72: TOTAL
A73: P1050100 | B73: Gestantes con malnutrición por déficit (bajo peso) | C73: =IFERROR(VLOOKUP($A73,Filtro!$A$5:$AY$629,2,FALSE),0) -> 34 | D73: =($CB73&$CC73&$CD73&$CE73&$CF73&$CG73&$CH73&$CI73&$CJ73&$CK73&$CM73&$CN73&$CO73&$CP73&$CQ73&$CR73&$CS73&$CT73&$CU73&$CV73&$CW73&$CX73&$CY73&$CZ73&$DA73) ->  | CB73: =IF($C$73<=$D$64,"","* Gestantes malnutricion no debe ser mayor que Gestantes en Control Bajo Peso (Seccion D). ") ->  | DB73: =IF($C$73<=$D$64,0,1) -> 0
A74: P1050101 | B74: Gestantes con malnutrición por exceso - Obesa | C74: =IFERROR(VLOOKUP($A74,Filtro!$A$5:$AY$629,2,FALSE),0) -> 703 | D74: =($CB74&$CC74&$CD74&$CE74&$CF74&$CG74&$CH74&$CI74&$CJ74&$CK74&$CM74&$CN74&$CO74&$CP74&$CQ74&$CR74&$CS74&$CT74&$CU74&$CV74&$CW74&$CX74&$CY74&$CZ74&$DA74) ->  | CB74: =IF($C$74<=$D$61,"","* Gestantes malnutricion no debe ser mayor que Gestantes en Control Obesa (Seccion D). ") ->  | DB74: =IF($C$74<=$D$61,0,1) -> 0
A75: P1050102 | B75: Gestantes con malnutrición por exceso - Sobrepeso | C75: =IFERROR(VLOOKUP($A75,Filtro!$A$5:$AY$629,2,FALSE),0) -> 588 | D75: =($CB75&$CC75&$CD75&$CE75&$CF75&$CG75&$CH75&$CI75&$CJ75&$CK75&$CM75&$CN75&$CO75&$CP75&$CQ75&$CR75&$CS75&$CT75&$CU75&$CV75&$CW75&$CX75&$CY75&$CZ75&$DA75) ->  | CB75: =IF($C$75<=$D$62,"","* Gestantes malnutricion no debe ser mayor que Gestantes en Control Sobrepeso (Seccion D). ") ->  | DB75: =IF($C$75<=$D$62,0,1) -> 0
A76: P1050103 | B76: En 3º mes post parto | C76: =IFERROR(VLOOKUP($A76,Filtro!$A$5:$AY$629,2,FALSE),0) -> 51 | D76: =($CB76&$CC76&$CD76&$CE76&$CF76&$CG76&$CH76&$CI76&$CJ76&$CK76&$CM76&$CN76&$CO76&$CP76&$CQ76&$CR76&$CS76&$CT76&$CU76&$CV76&$CW76&$CX76&$CY76&$CZ76&$DA76) -> 
A77: P1050104 | B77: En 6º mes post parto | C77: =IFERROR(VLOOKUP($A77,Filtro!$A$5:$AY$629,2,FALSE),0) -> 237 | D77: =($CB77&$CC77&$CD77&$CE77&$CF77&$CG77&$CH77&$CI77&$CJ77&$CK77&$CM77&$CN77&$CO77&$CP77&$CQ77&$CR77&$CS77&$CT77&$CU77&$CV77&$CW77&$CX77&$CY77&$CZ77&$DA77) -> 
B78: SECCION F: MUJERES EN CONTROL DE CLIMATERIO
B79: Población | C79: 45 a 64 años
A80: P1030301 | B80: Población en Control | C80: =IFERROR(VLOOKUP($A80,Filtro!$A$5:$AY$629,2,FALSE),0) -> 3794 | D80: =($CB80&$CC80&$CD80&$CE80&$CF80&$CG80&$CH80&$CI80&$CJ80&$CK80&$CM80&$CN80&$CO80&$CP80&$CQ80&$CR80&$CS80&$CT80&$CU80&$CV80&$CW80&$CX80&$CY80&$CZ80&$DA80) -> 
A81: P1060040 | B81: Mujeres con pauta aplicada MRS* | C81: =IFERROR(VLOOKUP($A81,Filtro!$A$5:$AY$629,2,FALSE),0) -> 2635 | D81: =($CB81&$CC81&$CD81&$CE81&$CF81&$CG81&$CH81&$CI81&$CJ81&$CK81&$CM81&$CN81&$CO81&$CP81&$CQ81&$CR81&$CS81&$CT81&$CU81&$CV81&$CW81&$CX81&$CY81&$CZ81&$DA81) ->  | CB81: =IF($C81>$C80,"* El Nº de mujeres con pauta aplicada MRS no debe ser mayor a la población de mujeres en control por climaterio. ","") ->  | DB81: =IF($C81>$C80,1,0) -> 0
A82: P1060050 | B82: Mujeres con MRS elevado* | C82: =IFERROR(VLOOKUP($A82,Filtro!$A$5:$AY$629,2,FALSE),0) -> 1220 | D82: =($CB82&$CC82&$CD82&$CE82&$CF82&$CG82&$CH82&$CI82&$CJ82&$CK82&$CM82&$CN82&$CO82&$CP82&$CQ82&$CR82&$CS82&$CT82&$CU82&$CV82&$CW82&$CX82&$CY82&$CZ82&$DA82) ->  | CB82: =IF($C82>$C81,"* El Nº de mujeres con puntaje elevado de MRS no debe ser mayor al Nº de mujeres con pauta aplicada MRS. ","") ->  | DB82: =IF($C82>$C81,1,0) -> 0
A83: P1060060 | B83: Mujeres con aplicación de terapia hormonal de la menopausia según MRS* | C83: =IFERROR(VLOOKUP($A83,Filtro!$A$5:$AY$629,2,FALSE),0) -> 607 | D83: =($CB83&$CC83&$CD83&$CE83&$CF83&$CG83&$CH83&$CI83&$CJ83&$CK83&$CM83&$CN83&$CO83&$CP83&$CQ83&$CR83&$CS83&$CT83&$CU83&$CV83&$CW83&$CX83&$CY83&$CZ83&$DA83) ->  | CB83: =IF($C83>$C82,"* El Nº de mujeres con aplicación de terapia hormonal de reemplazo según MRS no debe ser mayor que el numero de mujeres con puntaje elevado de MRS. ","") ->  | DB83: =IF($C83>$C82,1,0) -> 0
A84: P1200340 | B84: Mujeres que asisten a Talleres Educativos | C84: =IFERROR(VLOOKUP($A84,Filtro!$A$5:$AY$629,2,FALSE),0) -> 22 | D84: =($CB84&$CC84&$CD84&$CE84&$CF84&$CG84&$CH84&$CI84&$CJ84&$CK84&$CM84&$CN84&$CO84&$CP84&$CQ84&$CR84&$CS84&$CT84&$CU84&$CV84&$CW84&$CX84&$CY84&$CZ84&$DA84) -> 
B85: * MRS: Menopause Rating Scale
B86: SECCION F.1: POBLACIÓN EN CONTROL CLIMATERIO SEGÚN TIPO TERAPIA REEMPLAZO HORMONAL
B87: MÉTODOS | D87: TOTAL | E87: GRUPO DE EDAD (en años) | J87: Pueblos Originarios | K87: Migrantes
E88: Menor de 45 años | F88: 45 a 49 años | G88: 50 a 54 años | H88: 55 a 60 años | I88: 60 a 64 años
A89: P1200280 | B89: Estradiol Micronizado 1mg | D89: =SUM(E89:I89) -> 62 | E89: =IFERROR(VLOOKUP($A89,Filtro!$A$5:$AY$629,3,FALSE),0) -> 4 | F89: =IFERROR(VLOOKUP($A89,Filtro!$A$5:$AY$629,4,FALSE),0) -> 10 | G89: =IFERROR(VLOOKUP($A89,Filtro!$A$5:$AY$629,5,FALSE),0) -> 23 | H89: =IFERROR(VLOOKUP($A89,Filtro!$A$5:$AY$629,6,FALSE),0) -> 17 | I89: =IFERROR(VLOOKUP($A89,Filtro!$A$5:$AY$629,7,FALSE),0) -> 8 | J89: =IFERROR(VLOOKUP($A89,Filtro!$A$5:$AY$629,8,FALSE),0) -> 0 | K89: =IFERROR(VLOOKUP($A89,Filtro!$A$5:$AY$629,9,FALSE),0) -> 2 | L89: =($CB89&$CC89&$CD89&$CE89&$CF89&$CG89&$CH89&$CI89&$CJ89&$CK89&$CM89&$CN89&$CO89&$CP89&$CQ89&$CR89&$CS89&$CT89&$CU89&$CV89&$CW89&$CX89&$CY89&$CZ89&$DA89) ->  | CB89: =IF($J89>$D89,"* La celda 'Pueblos Originarios' debe ser menor o igual al Total en control. ","") ->  | CC89: =IF($K89>$D89,"* La celda 'Población Migrantes' debe ser menor o igual al Total en control. ","") ->  | CD89: =IF(AND($D89<>0,$J89=""),"* No olvide escribir en la celda de 'Pueblos Originarios' (Digite CERO si no tiene). ","") ->  | CE89: =IF(AND($D89<>0,$K89=""),"* No olvide escribir en la celda de 'Población Migrantes' (Digite CERO si no tiene). ","") ->  | DB89: =IF($J89>$D89,1,0) -> 0 | DC89: =IF($K89>$D89,1,0) -> 0 | DD89: =IF(AND($D89<>0,$J89=""),1,0) -> 0 | DE89: =IF(AND($D89<>0,$K89=""),1,0) -> 0
A90: P1200290 | B90: Estradiol Gel | D90: =SUM(E90:I90) -> 148 | E90: =IFERROR(VLOOKUP($A90,Filtro!$A$5:$AY$629,3,FALSE),0) -> 3 | F90: =IFERROR(VLOOKUP($A90,Filtro!$A$5:$AY$629,4,FALSE),0) -> 24 | G90: =IFERROR(VLOOKUP($A90,Filtro!$A$5:$AY$629,5,FALSE),0) -> 54 | H90: =IFERROR(VLOOKUP($A90,Filtro!$A$5:$AY$629,6,FALSE),0) -> 46 | I90: =IFERROR(VLOOKUP($A90,Filtro!$A$5:$AY$629,7,FALSE),0) -> 21 | J90: =IFERROR(VLOOKUP($A90,Filtro!$A$5:$AY$629,8,FALSE),0) -> 2 | K90: =IFERROR(VLOOKUP($A90,Filtro!$A$5:$AY$629,9,FALSE),0) -> 2 | DB90: 0 | DC90: 0 | DD90: 0 | DE90: 0
A91: P1200300 | B91: Progesterona Micronizada 100mg | D91: 40 | E91: =IFERROR(VLOOKUP($A91,Filtro!$A$5:$AY$629,3,FALSE),0) -> 1 | F91: =IFERROR(VLOOKUP($A91,Filtro!$A$5:$AY$629,4,FALSE),0) -> 3 | G91: =IFERROR(VLOOKUP($A91,Filtro!$A$5:$AY$629,5,FALSE),0) -> 14 | H91: =IFERROR(VLOOKUP($A91,Filtro!$A$5:$AY$629,6,FALSE),0) -> 15 | I91: =IFERROR(VLOOKUP($A91,Filtro!$A$5:$AY$629,7,FALSE),0) -> 7 | J91: =IFERROR(VLOOKUP($A91,Filtro!$A$5:$AY$629,8,FALSE),0) -> 0 | K91: =IFERROR(VLOOKUP($A91,Filtro!$A$5:$AY$629,9,FALSE),0) -> 1 | DB91: 0 | DC91: 0 | DD91: 0 | DE91: 0
A92: P1200310 | B92: Progesterona Micronizada 200mg | D92: 73 | E92: =IFERROR(VLOOKUP($A92,Filtro!$A$5:$AY$629,3,FALSE),0) -> 36 | F92: =IFERROR(VLOOKUP($A92,Filtro!$A$5:$AY$629,4,FALSE),0) -> 6 | G92: =IFERROR(VLOOKUP($A92,Filtro!$A$5:$AY$629,5,FALSE),0) -> 16 | H92: =IFERROR(VLOOKUP($A92,Filtro!$A$5:$AY$629,6,FALSE),0) -> 12 | I92: =IFERROR(VLOOKUP($A92,Filtro!$A$5:$AY$629,7,FALSE),0) -> 3 | J92: =IFERROR(VLOOKUP($A92,Filtro!$A$5:$AY$629,8,FALSE),0) -> 0 | K92: =IFERROR(VLOOKUP($A92,Filtro!$A$5:$AY$629,9,FALSE),0) -> 0 | DB92: 0 | DC92: 0 | DD92: 0 | DE92: 0
A93: P1200320 | B93: Nomegestrol 5mg comp. | D93: 9 | E93: =IFERROR(VLOOKUP($A93,Filtro!$A$5:$AY$629,3,FALSE),0) -> 0 | F93: =IFERROR(VLOOKUP($A93,Filtro!$A$5:$AY$629,4,FALSE),0) -> 5 | G93: =IFERROR(VLOOKUP($A93,Filtro!$A$5:$AY$629,5,FALSE),0) -> 4 | H93: =IFERROR(VLOOKUP($A93,Filtro!$A$5:$AY$629,6,FALSE),0) -> 0 | I93: =IFERROR(VLOOKUP($A93,Filtro!$A$5:$AY$629,7,FALSE),0) -> 0 | J93: =IFERROR(VLOOKUP($A93,Filtro!$A$5:$AY$629,8,FALSE),0) -> 0 | K93: =IFERROR(VLOOKUP($A93,Filtro!$A$5:$AY$629,9,FALSE),0) -> 0 | DB93: 0 | DC93: 0 | DD93: 0 | DE93: 0
A94: P1200330 | B94: Tibolona 2,5mg comp. | D94: 453 | E94: =IFERROR(VLOOKUP($A94,Filtro!$A$5:$AY$629,3,FALSE),0) -> 10 | F94: =IFERROR(VLOOKUP($A94,Filtro!$A$5:$AY$629,4,FALSE),0) -> 83 | G94: =IFERROR(VLOOKUP($A94,Filtro!$A$5:$AY$629,5,FALSE),0) -> 202 | H94: =IFERROR(VLOOKUP($A94,Filtro!$A$5:$AY$629,6,FALSE),0) -> 128 | I94: =IFERROR(VLOOKUP($A94,Filtro!$A$5:$AY$629,7,FALSE),0) -> 30 | J94: =IFERROR(VLOOKUP($A94,Filtro!$A$5:$AY$629,8,FALSE),0) -> 3 | K94: =IFERROR(VLOOKUP($A94,Filtro!$A$5:$AY$629,9,FALSE),0) -> 13 | DB94: 0 | DC94: 0 | DD94: 0 | DE94: 0
A95: P1600110 | B95: Terapia Dual | D95: 78 | E95: =IFERROR(VLOOKUP($A95,Filtro!$A$5:$AY$629,3,FALSE),0) -> 7 | F95: =IFERROR(VLOOKUP($A95,Filtro!$A$5:$AY$629,4,FALSE),0) -> 7 | G95: =IFERROR(VLOOKUP($A95,Filtro!$A$5:$AY$629,5,FALSE),0) -> 23 | H95: =IFERROR(VLOOKUP($A95,Filtro!$A$5:$AY$629,6,FALSE),0) -> 30 | I95: =IFERROR(VLOOKUP($A95,Filtro!$A$5:$AY$629,7,FALSE),0) -> 11 | J95: =IFERROR(VLOOKUP($A95,Filtro!$A$5:$AY$629,8,FALSE),0) -> 0 | K95: =IFERROR(VLOOKUP($A95,Filtro!$A$5:$AY$629,9,FALSE),0) -> 3
B96: SECCION G: GESTANTES EN CONTROL CON ECOGRAFÍA POR TRIMESTRE DE GESTACION (EN EL SEMESTRE)
B97: Población | C97: Primer trimestre | E97: Segundo trimestre 22-24 semanas | F97: Tercer trimestre 30-34 semanas
C98: <11 semanas | D98: 11- 13+6 semanas
A99: P1060106 | B99: Menor de 15 | C99: =IFERROR(VLOOKUP($A99,Filtro!$A$5:$AY$629,2,FALSE),0) -> 3 | D99: =IFERROR(VLOOKUP($A99,Filtro!$A$5:$AY$629,3,FALSE),0) -> 4 | E99: =IFERROR(VLOOKUP($A99,Filtro!$A$5:$AY$629,4,FALSE),0) -> 2 | F99: =IFERROR(VLOOKUP($A99,Filtro!$A$5:$AY$629,5,FALSE),0) -> 2
A100: P1060107 | B100: 15 - 19 | C100: =IFERROR(VLOOKUP($A100,Filtro!$A$5:$AY$629,2,FALSE),0) -> 78 | D100: =IFERROR(VLOOKUP($A100,Filtro!$A$5:$AY$629,3,FALSE),0) -> 137 | E100: =IFERROR(VLOOKUP($A100,Filtro!$A$5:$AY$629,4,FALSE),0) -> 94 | F100: =IFERROR(VLOOKUP($A100,Filtro!$A$5:$AY$629,5,FALSE),0) -> 62
A101: P1060108 | B101: 20 - 24 | C101: =IFERROR(VLOOKUP($A101,Filtro!$A$5:$AY$629,2,FALSE),0) -> 380 | D101: =IFERROR(VLOOKUP($A101,Filtro!$A$5:$AY$629,3,FALSE),0) -> 451 | E101: =IFERROR(VLOOKUP($A101,Filtro!$A$5:$AY$629,4,FALSE),0) -> 337 | F101: =IFERROR(VLOOKUP($A101,Filtro!$A$5:$AY$629,5,FALSE),0) -> 169
A102: P1060109 | B102: 25 - 29 | C102: =IFERROR(VLOOKUP($A102,Filtro!$A$5:$AY$629,2,FALSE),0) -> 501 | D102: =IFERROR(VLOOKUP($A102,Filtro!$A$5:$AY$629,3,FALSE),0) -> 669 | E102: =IFERROR(VLOOKUP($A102,Filtro!$A$5:$AY$629,4,FALSE),0) -> 475 | F102: =IFERROR(VLOOKUP($A102,Filtro!$A$5:$AY$629,5,FALSE),0) -> 235
A103: P1060110 | B103: 30 - 34 | C103: =IFERROR(VLOOKUP($A103,Filtro!$A$5:$AY$629,2,FALSE),0) -> 465 | D103: =IFERROR(VLOOKUP($A103,Filtro!$A$5:$AY$629,3,FALSE),0) -> 557 | E103: =IFERROR(VLOOKUP($A103,Filtro!$A$5:$AY$629,4,FALSE),0) -> 456 | F103: =IFERROR(VLOOKUP($A103,Filtro!$A$5:$AY$629,5,FALSE),0) -> 210
A104: P1060111 | B104: 35 - 39 | C104: =IFERROR(VLOOKUP($A104,Filtro!$A$5:$AY$629,2,FALSE),0) -> 210 | D104: =IFERROR(VLOOKUP($A104,Filtro!$A$5:$AY$629,3,FALSE),0) -> 290 | E104: =IFERROR(VLOOKUP($A104,Filtro!$A$5:$AY$629,4,FALSE),0) -> 220 | F104: =IFERROR(VLOOKUP($A104,Filtro!$A$5:$AY$629,5,FALSE),0) -> 111
A105: P1060112 | B105: 40 - 44 | C105: =IFERROR(VLOOKUP($A105,Filtro!$A$5:$AY$629,2,FALSE),0) -> 50 | D105: =IFERROR(VLOOKUP($A105,Filtro!$A$5:$AY$629,3,FALSE),0) -> 62 | E105: =IFERROR(VLOOKUP($A105,Filtro!$A$5:$AY$629,4,FALSE),0) -> 48 | F105: =IFERROR(VLOOKUP($A105,Filtro!$A$5:$AY$629,5,FALSE),0) -> 24
A106: P1060113 | B106: 45 - 49 | C106: =IFERROR(VLOOKUP($A106,Filtro!$A$5:$AY$629,2,FALSE),0) -> 2 | D106: =IFERROR(VLOOKUP($A106,Filtro!$A$5:$AY$629,3,FALSE),0) -> 3 | E106: =IFERROR(VLOOKUP($A106,Filtro!$A$5:$AY$629,4,FALSE),0) -> 2 | F106: =IFERROR(VLOOKUP($A106,Filtro!$A$5:$AY$629,5,FALSE),0) -> 2
A107: P1060114 | B107: 50 - 54 | C107: =IFERROR(VLOOKUP($A107,Filtro!$A$5:$AY$629,2,FALSE),0) -> 0 | D107: =IFERROR(VLOOKUP($A107,Filtro!$A$5:$AY$629,3,FALSE),0) -> 0 | E107: =IFERROR(VLOOKUP($A107,Filtro!$A$5:$AY$629,4,FALSE),0) -> 0 | F107: =IFERROR(VLOOKUP($A107,Filtro!$A$5:$AY$629,5,FALSE),0) -> 0
B108: TOTAL | C108: =SUM(C99:C107) -> 1689 | D108: =SUM(D99:D107) -> 2173 | E108: =SUM(E99:E107) -> 1634 | F108: =SUM(F99:F107) -> 815
B109: SECCION H: MUJERES BAJO CONTROL DE REGULACIÓN DE FERTILIDAD SEGÚN ESTADO NUTRICIONAL
B110: POBLACION | C110: ESTADO NUTRICIONAL | D110: TOTAL | E110: GRUPOS DE EDAD (en años)
E111: Menos 15 años | F111: 15 a 19 años | G111: 20 a 24 años | H111: 25 a 29 años | I111: 30 a 34 años | J111: 35 a 39 años | K111: 40 a 44 años | L111: 45 a 49 años | M111: 50 a 54 años
A112: P1600100 | B112: MUJERES BAJO CONTROL DE REGULACIÓN DE FERTILIDAD SEGÚN ESTADO NUTRICIONAL | C112: OBESA | D112: =SUM(E112:M112) -> 20831 | E112: =IFERROR(VLOOKUP($A112,Filtro!$A$5:$AY$629,3,FALSE),0) -> 116 | F112: =IFERROR(VLOOKUP($A112,Filtro!$A$5:$AY$629,4,FALSE),0) -> 1366 | G112: =IFERROR(VLOOKUP($A112,Filtro!$A$5:$AY$629,5,FALSE),0) -> 2881 | H112: =IFERROR(VLOOKUP($A112,Filtro!$A$5:$AY$629,6,FALSE),0) -> 3757 | I112: =IFERROR(VLOOKUP($A112,Filtro!$A$5:$AY$629,7,FALSE),0) -> 3939 | J112: =IFERROR(VLOOKUP($A112,Filtro!$A$5:$AY$629,8,FALSE),0) -> 3329 | K112: =IFERROR(VLOOKUP($A112,Filtro!$A$5:$AY$629,9,FALSE),0) -> 2601 | L112: =IFERROR(VLOOKUP($A112,Filtro!$A$5:$AY$629,10,FALSE),0) -> 1981 | M112: =IFERROR(VLOOKUP($A112,Filtro!$A$5:$AY$629,11,FALSE),0) -> 861
A113: P1600101 | C113: SOBREPESO | D113: =SUM(E113:M113) -> 20071 | E113: =IFERROR(VLOOKUP($A113,Filtro!$A$5:$AY$629,3,FALSE),0) -> 211 | F113: =IFERROR(VLOOKUP($A113,Filtro!$A$5:$AY$629,4,FALSE),0) -> 1923 | G113: =IFERROR(VLOOKUP($A113,Filtro!$A$5:$AY$629,5,FALSE),0) -> 3051 | H113: =IFERROR(VLOOKUP($A113,Filtro!$A$5:$AY$629,6,FALSE),0) -> 3561 | I113: =IFERROR(VLOOKUP($A113,Filtro!$A$5:$AY$629,7,FALSE),0) -> 3596 | J113: =IFERROR(VLOOKUP($A113,Filtro!$A$5:$AY$629,8,FALSE),0) -> 3049 | K113: =IFERROR(VLOOKUP($A113,Filtro!$A$5:$AY$629,9,FALSE),0) -> 2228 | L113: =IFERROR(VLOOKUP($A113,Filtro!$A$5:$AY$629,10,FALSE),0) -> 1653 | M113: =IFERROR(VLOOKUP($A113,Filtro!$A$5:$AY$629,11,FALSE),0) -> 799
A114: P1600102 | C114: NORMAL | D114: =SUM(E114:M114) -> 16819 | E114: =IFERROR(VLOOKUP($A114,Filtro!$A$5:$AY$629,3,FALSE),0) -> 387 | F114: =IFERROR(VLOOKUP($A114,Filtro!$A$5:$AY$629,4,FALSE),0) -> 3087 | G114: =IFERROR(VLOOKUP($A114,Filtro!$A$5:$AY$629,5,FALSE),0) -> 3594 | H114: =IFERROR(VLOOKUP($A114,Filtro!$A$5:$AY$629,6,FALSE),0) -> 3128 | I114: =IFERROR(VLOOKUP($A114,Filtro!$A$5:$AY$629,7,FALSE),0) -> 2611 | J114: =IFERROR(VLOOKUP($A114,Filtro!$A$5:$AY$629,8,FALSE),0) -> 1667 | K114: =IFERROR(VLOOKUP($A114,Filtro!$A$5:$AY$629,9,FALSE),0) -> 1199 | L114: =IFERROR(VLOOKUP($A114,Filtro!$A$5:$AY$629,10,FALSE),0) -> 818 | M114: =IFERROR(VLOOKUP($A114,Filtro!$A$5:$AY$629,11,FALSE),0) -> 328
A115: P1600103 | C115: BAJO PESO | D115: =SUM(E115:M115) -> 944 | E115: =IFERROR(VLOOKUP($A115,Filtro!$A$5:$AY$629,3,FALSE),0) -> 42 | F115: =IFERROR(VLOOKUP($A115,Filtro!$A$5:$AY$629,4,FALSE),0) -> 294 | G115: =IFERROR(VLOOKUP($A115,Filtro!$A$5:$AY$629,5,FALSE),0) -> 230 | H115: =IFERROR(VLOOKUP($A115,Filtro!$A$5:$AY$629,6,FALSE),0) -> 187 | I115: =IFERROR(VLOOKUP($A115,Filtro!$A$5:$AY$629,7,FALSE),0) -> 91 | J115: =IFERROR(VLOOKUP($A115,Filtro!$A$5:$AY$629,8,FALSE),0) -> 51 | K115: =IFERROR(VLOOKUP($A115,Filtro!$A$5:$AY$629,9,FALSE),0) -> 26 | L115: =IFERROR(VLOOKUP($A115,Filtro!$A$5:$AY$629,10,FALSE),0) -> 20 | M115: =IFERROR(VLOOKUP($A115,Filtro!$A$5:$AY$629,11,FALSE),0) -> 3
C116: TOTAL | D116: =SUM(E116:M116) -> 58665 | E116: =SUM(E112:E115) -> 756 | F116: =SUM(F112:F115) -> 6670 | G116: 9756 | H116: 10633 | I116: 10237 | J116: 8096 | K116: 6054 | L116: 4472 | M116: 1991
B117: SECCION I: GESTANTES EN CONTROL CON TEST DE VIH/SIFILIS TOMADO (EN EL SEMESTRE, RED PÚBLICA O EXTRASISTEMA)
B118: Población | C118: TOTAL GESTANTES BAJO CONTROL | D118: GESTANTES EN CONTROL CON RESULTADO 1° VIH | E118: GESTANTES EN CONTROL CON RESULTADO 1° TAMIZAJE SIFILIS | F118: TOTAL GESTANTES EN CONTROL >34 sem | G118: GESTANTES EN CONTROL CON RESULTADO 2° VIH | H118: GESTANTES EN CONTROL CON RESULTADO TAMIZAJE SIFILIS 3° TRIMESTRE GESTACION
A119: P1600111 | B119: Menor de 15 | C119: =IFERROR(VLOOKUP($A119,Filtro!$A$5:$AY$629,2,FALSE),0) -> 6 | D119: =IFERROR(VLOOKUP($A119,Filtro!$A$5:$AY$629,3,FALSE),0) -> 6 | E119: =IFERROR(VLOOKUP($A119,Filtro!$A$5:$AY$629,4,FALSE),0) -> 4 | F119: =IFERROR(VLOOKUP($A119,Filtro!$A$5:$AY$629,5,FALSE),0) -> 6 | G119: =IFERROR(VLOOKUP($A119,Filtro!$A$5:$AY$629,6,FALSE),0) -> 6 | H119: =IFERROR(VLOOKUP($A119,Filtro!$A$5:$AY$629,7,FALSE),0) -> 6
A120: P1600112 | B120: 15 - 19 | C120: =IFERROR(VLOOKUP($A120,Filtro!$A$5:$AY$629,2,FALSE),0) -> 165 | D120: =IFERROR(VLOOKUP($A120,Filtro!$A$5:$AY$629,3,FALSE),0) -> 153 | E120: =IFERROR(VLOOKUP($A120,Filtro!$A$5:$AY$629,4,FALSE),0) -> 154 | F120: =IFERROR(VLOOKUP($A120,Filtro!$A$5:$AY$629,5,FALSE),0) -> 53 | G120: =IFERROR(VLOOKUP($A120,Filtro!$A$5:$AY$629,6,FALSE),0) -> 48 | H120: =IFERROR(VLOOKUP($A120,Filtro!$A$5:$AY$629,7,FALSE),0) -> 47
A121: P1600113 | B121: 20 - 24 | C121: =IFERROR(VLOOKUP($A121,Filtro!$A$5:$AY$629,2,FALSE),0) -> 767 | D121: =IFERROR(VLOOKUP($A121,Filtro!$A$5:$AY$629,3,FALSE),0) -> 706 | E121: =IFERROR(VLOOKUP($A121,Filtro!$A$5:$AY$629,4,FALSE),0) -> 692 | F121: =IFERROR(VLOOKUP($A121,Filtro!$A$5:$AY$629,5,FALSE),0) -> 159 | G121: =IFERROR(VLOOKUP($A121,Filtro!$A$5:$AY$629,6,FALSE),0) -> 139 | H121: =IFERROR(VLOOKUP($A121,Filtro!$A$5:$AY$629,7,FALSE),0) -> 138
A122: P1600114 | B122: 25 - 29 | C122: =IFERROR(VLOOKUP($A122,Filtro!$A$5:$AY$629,2,FALSE),0) -> 1009 | D122: =IFERROR(VLOOKUP($A122,Filtro!$A$5:$AY$629,3,FALSE),0) -> 942 | E122: =IFERROR(VLOOKUP($A122,Filtro!$A$5:$AY$629,4,FALSE),0) -> 924 | F122: =IFERROR(VLOOKUP($A122,Filtro!$A$5:$AY$629,5,FALSE),0) -> 219 | G122: =IFERROR(VLOOKUP($A122,Filtro!$A$5:$AY$629,6,FALSE),0) -> 180 | H122: =IFERROR(VLOOKUP($A122,Filtro!$A$5:$AY$629,7,FALSE),0) -> 174
A123: P1600115 | B123: 30 - 34 | C123: =IFERROR(VLOOKUP($A123,Filtro!$A$5:$AY$629,2,FALSE),0) -> 857 | D123: =IFERROR(VLOOKUP($A123,Filtro!$A$5:$AY$629,3,FALSE),0) -> 783 | E123: =IFERROR(VLOOKUP($A123,Filtro!$A$5:$AY$629,4,FALSE),0) -> 773 | F123: =IFERROR(VLOOKUP($A123,Filtro!$A$5:$AY$629,5,FALSE),0) -> 212 | G123: =IFERROR(VLOOKUP($A123,Filtro!$A$5:$AY$629,6,FALSE),0) -> 169 | H123: =IFERROR(VLOOKUP($A123,Filtro!$A$5:$AY$629,7,FALSE),0) -> 168
A124: P1600116 | B124: 35 - 39 | C124: =IFERROR(VLOOKUP($A124,Filtro!$A$5:$AY$629,2,FALSE),0) -> 429 | D124: =IFERROR(VLOOKUP($A124,Filtro!$A$5:$AY$629,3,FALSE),0) -> 394 | E124: =IFERROR(VLOOKUP($A124,Filtro!$A$5:$AY$629,4,FALSE),0) -> 384 | F124: =IFERROR(VLOOKUP($A124,Filtro!$A$5:$AY$629,5,FALSE),0) -> 108 | G124: =IFERROR(VLOOKUP($A124,Filtro!$A$5:$AY$629,6,FALSE),0) -> 85 | H124: =IFERROR(VLOOKUP($A124,Filtro!$A$5:$AY$629,7,FALSE),0) -> 85
A125: P1600117 | B125: 40 - 44 | C125: =IFERROR(VLOOKUP($A125,Filtro!$A$5:$AY$629,2,FALSE),0) -> 104 | D125: =IFERROR(VLOOKUP($A125,Filtro!$A$5:$AY$629,3,FALSE),0) -> 99 | E125: =IFERROR(VLOOKUP($A125,Filtro!$A$5:$AY$629,4,FALSE),0) -> 95 | F125: =IFERROR(VLOOKUP($A125,Filtro!$A$5:$AY$629,5,FALSE),0) -> 21 | G125: =IFERROR(VLOOKUP($A125,Filtro!$A$5:$AY$629,6,FALSE),0) -> 16 | H125: =IFERROR(VLOOKUP($A125,Filtro!$A$5:$AY$629,7,FALSE),0) -> 14
A126: P1600118 | B126: 45 - 49 | C126: =IFERROR(VLOOKUP($A126,Filtro!$A$5:$AY$629,2,FALSE),0) -> 4 | D126: =IFERROR(VLOOKUP($A126,Filtro!$A$5:$AY$629,3,FALSE),0) -> 4 | E126: =IFERROR(VLOOKUP($A126,Filtro!$A$5:$AY$629,4,FALSE),0) -> 4 | F126: =IFERROR(VLOOKUP($A126,Filtro!$A$5:$AY$629,5,FALSE),0) -> 1 | G126: =IFERROR(VLOOKUP($A126,Filtro!$A$5:$AY$629,6,FALSE),0) -> 1 | H126: =IFERROR(VLOOKUP($A126,Filtro!$A$5:$AY$629,7,FALSE),0) -> 1
A127: P1600119 | B127: 50 - 54 | C127: =IFERROR(VLOOKUP($A127,Filtro!$A$5:$AY$629,2,FALSE),0) -> 0 | D127: =IFERROR(VLOOKUP($A127,Filtro!$A$5:$AY$629,3,FALSE),0) -> 0 | E127: =IFERROR(VLOOKUP($A127,Filtro!$A$5:$AY$629,4,FALSE),0) -> 0 | F127: =IFERROR(VLOOKUP($A127,Filtro!$A$5:$AY$629,5,FALSE),0) -> 0 | G127: =IFERROR(VLOOKUP($A127,Filtro!$A$5:$AY$629,6,FALSE),0) -> 0 | H127: =IFERROR(VLOOKUP($A127,Filtro!$A$5:$AY$629,7,FALSE),0) -> 0
B128: TOTAL | C128: =SUM(C119:C127) -> 3341 | D128: 3087 | E128: 3030 | F128: 779 | G128: 644 | H128: 633
A129: P1600120 | B129: Gestantes con Tamizajes resultado pendiente | C129: 0 | D129: =IFERROR(VLOOKUP($A129,Filtro!$A$5:$AY$629,3,FALSE),0) -> 97 | E129: =IFERROR(VLOOKUP($A129,Filtro!$A$5:$AY$629,4,FALSE),0) -> 133 | F129: 0 | G129: =IFERROR(VLOOKUP($A129,Filtro!$A$5:$AY$629,6,FALSE),0) -> 234 | H129: =IFERROR(VLOOKUP($A129,Filtro!$A$5:$AY$629,7,FALSE),0) -> 270
B130: NIVEL SECUNDARIO
B131: SECCIÓN J: POBLACIÓN EN CONTROL POR PATOLOGÍAS DE ALTO RIESGO OBSTÉTRICO
B132: PATOLOGÍA | C132: TOTAL
A133: P1030303 | B133: Preeclampsia (PE) | C133: =IFERROR(VLOOKUP($A133,Filtro!$A$5:$AY$629,2,FALSE),0) -> 4 | D133: =($CB111&$CC111&$CD111&$CE111&$CF111&$CG111&$CH111&$CI111&$CJ111&$CK111&$CM111&$CN111&$CO111&$CP111&$CQ111&$CR111&$CS111&$CT111&$CU111&$CV111&$CW111&$CX111&$CY111&$CZ111&$DA111) -> 
A134: P1060070 | B134: Sindrome Hipertensivo del Embarazo (SHE) | C134: =IFERROR(VLOOKUP($A134,Filtro!$A$5:$AY$629,2,FALSE),0) -> 39
A135: P1030304 | B135: Factores de riesgo y condicionantes de Parto Prematuro | C135: =IFERROR(VLOOKUP($A135,Filtro!$A$5:$AY$629,2,FALSE),0) -> 67
A136: P1030401 | B136: Retardo Crecimiento Intrauterino (RCIU) | C136: =IFERROR(VLOOKUP($A136,Filtro!$A$5:$AY$629,2,FALSE),0) -> 34
A137: P1040506 | B137: Sífilis | C137: =IFERROR(VLOOKUP($A137,Filtro!$A$5:$AY$629,2,FALSE),0) -> 20
A138: P1040507 | B138: VIH | C138: =IFERROR(VLOOKUP($A138,Filtro!$A$5:$AY$629,2,FALSE),0) -> 5
A139: P1060115 | B139: Diabetes Pre Gestacional | C139: =IFERROR(VLOOKUP($A139,Filtro!$A$5:$AY$629,2,FALSE),0) -> 36 | D139: =($CB130&$CC130&$CD130&$CE130&$CF130&$CG130&$CH130&$CI130&$CJ130&$CK130&$CM130&$CN130&$CO130&$CP130&$CQ130&$CR130&$CS130&$CT130&$CU130&$CV130&$CW130&$CX130&$CY130&$CZ130&$DA130) -> 
A140: P1060116 | B140: Diabetes Gestacional | C140: =IFERROR(VLOOKUP($A140,Filtro!$A$5:$AY$629,2,FALSE),0) -> 120
A141: P1030403 | B141: Cesárea anterior | C141: =IFERROR(VLOOKUP($A141,Filtro!$A$5:$AY$629,2,FALSE),0) -> 316
A142: P1060080 | B142: Malformación Congénita | C142: =IFERROR(VLOOKUP($A142,Filtro!$A$5:$AY$629,2,FALSE),0) -> 11
A143: P1060117 | B143: Anemia | C143: =IFERROR(VLOOKUP($A143,Filtro!$A$5:$AY$629,2,FALSE),0) -> 30
A144: P1060118 | B144: Cardiopatías | C144: =IFERROR(VLOOKUP($A144,Filtro!$A$5:$AY$629,2,FALSE),0) -> 13
A145: P1060119 | B145: Pielonefritis | C145: =IFERROR(VLOOKUP($A145,Filtro!$A$5:$AY$629,2,FALSE),0) -> 9
A146: P1060120 | B146: Rh(-) sensibilizada | C146: =IFERROR(VLOOKUP($A146,Filtro!$A$5:$AY$629,2,FALSE),0) -> 30
A147: P1060121 | B147: Placenta previa | C147: =IFERROR(VLOOKUP($A147,Filtro!$A$5:$AY$629,2,FALSE),0) -> 14
A148: P1060122 | B148: Chagas | C148: =IFERROR(VLOOKUP($A148,Filtro!$A$5:$AY$629,2,FALSE),0) -> 15
A149: P1060123 | B149: Colestasia Intrahépatica de Embarazo | C149: =IFERROR(VLOOKUP($A149,Filtro!$A$5:$AY$629,2,FALSE),0) -> 14
A150: P1030404 | B150: Otras patologías del embarazo | C150: =IFERROR(VLOOKUP($A150,Filtro!$A$5:$AY$629,2,FALSE),0) -> 672
B151: TOTAL | C151: =SUM(C133:C150) -> 1449
A157: CODIGOS ELIMINADOS
A158: P1060020
A159: P1200260
B160: =SUM(D11:T36,C40:G49,C53:D57,D61:M70,C73:C77,C80:C84,D89:K95,C99:F108,,C133:C151,E112:M116) -> 473467 | C160: datos
B161: =SUM(DB$10:EA153) -> 3 | C161: errores
A162: CODIGOS NUEVOS
A163: P1600105
A164: P1600106
A165: P1600107
A166: P1600108
A167: P1600109
A168: P1600110
A169: P1600111
A170: P1600112
A171: P1600113
A172: P1600114
A173: P1600115
A174: P1600116
A175: P1600117
A176: P1600118
A177: P1600119
A178: P1600120

Sheet P2
B1: DATOS DEL ESTABLECIMIENTO
B2: =CONCATENATE("COMUNA: ",NOMBRE!$B$2," - ","( ",NOMBRE!$C$2,NOMBRE!$D$2,NOMBRE!$E$2,NOMBRE!$F$2,NOMBRE!$G$2," )") -> COMUNA: - ( )
B3: =CONCATENATE("ESTABLECIMIENTO/ESTRATEGIA: ",NOMBRE!$B$3," - ","( ",NOMBRE!$C$3,NOMBRE!$D$3,NOMBRE!$E$3,NOMBRE!$F$3,NOMBRE!$G$3,NOMBRE!$H$3," )") -> ESTABLECIMIENTO/ESTRATEGIA: - ( )
B4: =CONCATENATE("MES: ",NOMBRE!$B$6," - ","( ",NOMBRE!$C$6,NOMBRE!$D$6," )") -> MES: - ( )
B5: =CONCATENATE("AÑO: ",NOMBRE!$B$7) -> AÑO: 2023
B6: REM-P2. POBLACIÓN EN CONTROL PROGRAMA NACIONAL DE SALUD DE LA INFANCIA
B7: SECCION A: POBLACIÓN EN CONTROL, SEGÚN ESTADO NUTRICIONAL PARA NIÑOS MENOR DE UN MES- 59 MESES
B8: INDICADOR NUTRICIONAL Y PARÁMETROS DE MEDICIÓN | D8: TOTAL | G8: GRUPOS DE EDAD (en meses) Y SEXO | AG8: Pueblos Originarios | AI8: Migrantes
G9: Menor de 1 mes | I9: 1 mes | K9: 2 meses | M9: 3 meses | O9: 4 meses | Q9: 5 meses | S9: 6 meses | U9: 7 a 11 meses | W9: 12 a 17 meses | Y9: 18 a 23 meses | AA9: 24 a 35 meses | AC9: 36 a 47 meses | AE9: 48 a 59 meses
D10: Ambos sexos | E10: Hombres | F10: Mujeres | G10: Hombres | H10: Mujeres | I10: Hombres | J10: Mujeres | K10: Hombres | L10: Mujeres | M10: Hombres | N10: Mujeres | O10: Hombres | P10: Mujeres | Q10: Hombres | R10: Mujeres | S10: Hombres | T10: Mujeres | U10: Hombres | V10: Mujeres | W10: Hombres | X10: Mujeres | Y10: Hombres | Z10: Mujeres | AA10: Hombres | AB10: Mujeres | AC10: Hombres | AD10: Mujeres | AE10: Hombres | AF10: Mujeres | AG10: Hombres | AH10: Mujeres | AI10: Hombres | AJ10: Mujeres
A11: P2060000 | B11: TOTAL DE NIÑOS EN CONTROL | D11: =SUM(E11:F11) -> 29824 | E11: =+G11+I11+K11+M11+O11+Q11+S11+U11+W11+Y11+AA11+AC11+AE11 -> 15177 | F11: =+H11+J11+L11+N11+P11+R11+T11+V11+X11+Z11+AB11+AD11+AF11 -> 14647 | G11: =IFERROR(VLOOKUP($A11,Filtro!$A$5:$AY$629,5,FALSE),0) -> 173 | H11: =IFERROR(VLOOKUP($A11,Filtro!$A$5:$AY$629,6,FALSE),0) -> 179 | I11: =IFERROR(VLOOKUP($A11,Filtro!$A$5:$AY$629,7,FALSE),0) -> 277 | J11: =IFERROR(VLOOKUP($A11,Filtro!$A$5:$AY$629,8,FALSE),0) -> 253 | K11: =IFERROR(VLOOKUP($A11,Filtro!$A$5:$AY$629,9,FALSE),0) -> 301 | L11: =IFERROR(VLOOKUP($A11,Filtro!$A$5:$AY$629,10,FALSE),0) -> 314 | M11: =IFERROR(VLOOKUP($A11,Filtro!$A$5:$AY$629,11,FALSE),0) -> 269 | N11: =IFERROR(VLOOKUP($A11,Filtro!$A$5:$AY$629,12,FALSE),0) -> 265 | O11: =IFERROR(VLOOKUP($A11,Filtro!$A$5:$AY$629,13,FALSE),0) -> 302 | P11: =IFERROR(VLOOKUP($A11,Filtro!$A$5:$AY$629,14,FALSE),0) -> 317 | Q11: =IFERROR(VLOOKUP($A11,Filtro!$A$5:$AY$629,15,FALSE),0) -> 265 | R11: =IFERROR(VLOOKUP($A11,Filtro!$A$5:$AY$629,16,FALSE),0) -> 295 | S11: =IFERROR(VLOOKUP($A11,Filtro!$A$5:$AY$629,17,FALSE),0) -> 403 | T11: =IFERROR(VLOOKUP($A11,Filtro!$A$5:$AY$629,18,FALSE),0) -> 368 | U11: =IFERROR(VLOOKUP($A11,Filtro!$A$5:$AY$629,19,FALSE),0) -> 1244 | V11: =IFERROR(VLOOKUP($A11,Filtro!$A$5:$AY$629,20,FALSE),0) -> 1257 | W11: =IFERROR(VLOOKUP($A11,Filtro!$A$5:$AY$629,21,FALSE),0) -> 1613 | X11: =IFERROR(VLOOKUP($A11,Filtro!$A$5:$AY$629,22,FALSE),0) -> 1518 | Y11: =IFERROR(VLOOKUP($A11,Filtro!$A$5:$AY$629,23,FALSE),0) -> 1529 | Z11: =IFERROR(VLOOKUP($A11,Filtro!$A$5:$AY$629,24,FALSE),0) -> 1502 | AA11: =IFERROR(VLOOKUP($A11,Filtro!$A$5:$AY$629,25,FALSE),0) -> 2796 | AB11: =IFERROR(VLOOKUP($A11,Filtro!$A$5:$AY$629,26,FALSE),0) -> 2689 | AC11: =IFERROR(VLOOKUP($A11,Filtro!$A$5:$AY$629,27,FALSE),0) -> 3022 | AD11: =IFERROR(VLOOKUP($A11,Filtro!$A$5:$AY$629,28,FALSE),0) -> 2925 | AE11: =IFERROR(VLOOKUP($A11,Filtro!$A$5:$AY$629,29,FALSE),0) -> 2983 | AF11: =IFERROR(VLOOKUP($A11,Filtro!$A$5:$AY$629,30,FALSE),0) -> 2765 | AG11: =IFERROR(VLOOKUP($A11,Filtro!$A$5:$AY$629,31,FALSE),0) -> 152 | AH11: =IFERROR(VLOOKUP($A11,Filtro!$A$5:$AY$629,32,FALSE),0) -> 200 | AI11: =IFERROR(VLOOKUP($A11,Filtro!$A$5:$AY$629,33,FALSE),0) -> 339 | AJ11: =IFERROR(VLOOKUP($A11,Filtro!$A$5:$AY$629,34,FALSE),0) -> 355 | AK11: =BO11 & BP11 & BQ11 & BR11 & BS11 & BT11 & BU11 & BV11 & BT12 & BO12 & BP12 & BQ12 & BR12 & BS12 & BU12 & BV12 & BW12 & BV13 & BW13 -> * El Total de niños (as) en Control de 1 mes debe ser igual al Total de niños(as) según Diagnóstico Nutricional Integrado. * El Total de niños (as) en Control de 2 meses debe ser igual al Total de niños(as) según Diagnóstico Nutricional Integrado. * El Total de niños (as) en Control de 3 meses debe ser igual al Total de niños(as) según Diagnóstico Nutricional Integrado. * El Total de niños (as) en Control de 4 meses debe ser igual al Total de niños(as) según Diagnóstico Nutricional Integrado. * El Total de niños (as) en Control de 5 meses debe ser igual al Total de niños(as) según Diagnóstico Nutricional Integrado. * El Total de niños (as) en Control de 6 meses debe ser igual al Total de niños(as) según Diagnóstico Nutricional Integrado. * El Total de niños (as) en Control de 7 a 11 meses debe ser igual al Total de niños(as) según Diagnóstico Nutricional Integrado. * El Total de niños (as) en Control de 12 a 17 meses debe ser igual al Total de niños(as) según Diagnóstico Nutricional Integrado. * El Total de niños (as) en Control de 18 a 23 meses debe ser igual al Total de niños(as) según Diagnóstico Nutricional Integrado. * El Total de niños (as) en Control de 24 a 35 meses debe ser igual al Total de niños(as) según Diagnóstico Nutricional Integrado. * El Total de niños (as) en Control de 36 a 47 meses debe ser igual al Total de niños(as) según Diagnóstico Nutricional Integrado. * El Total de niños (as) en Control de 48 a 59 meses debe ser igual al Total de niños(as) según Diagnóstico Nutricional Integrado. * El Total de niños (as) en Control de Pueblos Originarios debe ser igual al Total de niños(as) según Diagnóstico Nutricional Integrado. * El Total de niños (as) en Control de Población Migrantes debe ser igual al Total de niños(as) según Diagnóstico Nutricional Integrado. | BO11: =IF(I11+J11<>I38+J38,"* El Total de niños (as) en Control de 1 mes debe ser igual al Total de niños(as) según Diagnóstico Nutricional Integrado. ","") -> * El Total de niños (as) en Control de 1 mes debe ser igual al Total de niños(as) según Diagnóstico Nutricional Integrado. | BP11: =IF(K11+L11<>K38+L38,"* El Total de niños (as) en Control de 2 meses debe ser igual al Total de niños(as) según Diagnóstico Nutricional Integrado. ","") -> * El Total de niños (as) en Control de 2 meses debe ser igual al Total de niños(as) según Diagnóstico Nutricional Integrado. | BQ11: =IF(M11+N11<>M38+N38,"* El Total de niños (as) en Control de 3 meses debe ser igual al Total de niños(as) según Diagnóstico Nutricional Integrado. ","") -> * El Total de niños (as) en Control de 3 meses debe ser igual al Total de niños(as) según Diagnóstico Nutricional Integrado. | BR11: =IF(O11+P11<>O38+P38,"* El Total de niños (as) en Control de 4 meses debe ser igual al Total de niños(as) según Diagnóstico Nutricional Integrado. ","") -> * El Total de niños (as) en Control de 4 meses debe ser igual al Total de niños(as) según Diagnóstico Nutricional Integrado. | BS11: =IF(Q11+R11<>Q38+R38,"* El Total de niños (as) en Control de 5 meses debe ser igual al Total de niños(as) según Diagnóstico Nutricional Integrado. ","") -> * El Total de niños (as) en Control de 5 meses debe ser igual al Total de niños(as) según Diagnóstico Nutricional Integrado. | BT11: =IF($S$11+$T$11<>$S$38+$T$38,"* El Total de niños (as) en Control de 6 meses debe ser igual al Total de niños(as) según Diagnóstico Nutricional Integrado. ","") -> * El Total de niños (as) en Control de 6 meses debe ser igual al Total de niños(as) según Diagnóstico Nutricional Integrado. | BU11: =IF($U$11+$V$11<>$U$38+$V$38,"* El Total de niños (as) en Control de 7 a 11 meses debe ser igual al Total de niños(as) según Diagnóstico Nutricional Integrado. ","") -> * El Total de niños (as) en Control de 7 a 11 meses debe ser igual al Total de niños(as) según Diagnóstico Nutricional Integrado. | BV11: =IF($W$11+$X$11<>$W$38+$X$38,"* El Total de niños (as) en Control de 12 a 17 meses debe ser igual al Total de niños(as) según Diagnóstico Nutricional Integrado. ","") -> * El Total de niños (as) en Control de 12 a 17 meses debe ser igual al Total de niños(as) según Diagnóstico Nutricional Integrado. | CS11: =IF($G$11+$H$11<>$G$39+$H$39,1,0) -> 1 | CT11: =IF($I$11+$J$11<>$I$39+$J$39,1,0) -> 1 | CU11: =IF($K$11+$L$11<>$K$39+$L$39,1,0) -> 1
A12: P2400100 | B12: INDICADOR PESO/EDAD | C12: + 2 D.S. (>= +2.0) | D12: 2633 | E12: =+G12+I12+K12+M12+O12+Q12+S12+U12+W12+Y12+AA12+AC12+AE12 -> 1407 | F12: 1226 | G12: =IFERROR(VLOOKUP($A12,Filtro!$A$5:$AY$629,5,FALSE),0) -> 13 | H12: =IFERROR(VLOOKUP($A12,Filtro!$A$5:$AY$629,6,FALSE),0) -> 8 | I12: =IFERROR(VLOOKUP($A12,Filtro!$A$5:$AY$629,7,FALSE),0) -> 11 | J12: =IFERROR(VLOOKUP($A12,Filtro!$A$5:$AY$629,8,FALSE),0) -> 4 | K12: =IFERROR(VLOOKUP($A12,Filtro!$A$5:$AY$629,9,FALSE),0) -> 7 | L12: =IFERROR(VLOOKUP($A12,Filtro!$A$5:$AY$629,10,FALSE),0) -> 6 | M12: =IFERROR(VLOOKUP($A12,Filtro!$A$5:$AY$629,11,FALSE),0) -> 15 | N12: =IFERROR(VLOOKUP($A12,Filtro!$A$5:$AY$629,12,FALSE),0) -> 19 | O12: =IFERROR(VLOOKUP($A12,Filtro!$A$5:$AY$629,13,FALSE),0) -> 27 | P12: =IFERROR(VLOOKUP($A12,Filtro!$A$5:$AY$629,14,FALSE),0) -> 16 | Q12: =IFERROR(VLOOKUP($A12,Filtro!$A$5:$AY$629,15,FALSE),0) -> 16 | R12: =IFERROR(VLOOKUP($A12,Filtro!$A$5:$AY$629,16,FALSE),0) -> 22 | S12: =IFERROR(VLOOKUP($A12,Filtro!$A$5:$AY$629,17,FALSE),0) -> 36 | T12: =IFERROR(VLOOKUP($A12,Filtro!$A$5:$AY$629,18,FALSE),0) -> 17 | U12: =IFERROR(VLOOKUP($A12,Filtro!$A$5:$AY$629,19,FALSE),0) -> 101 | V12: =IFERROR(VLOOKUP($A12,Filtro!$A$5:$AY$629,20,FALSE),0) -> 102 | W12: =IFERROR(VLOOKUP($A12,Filtro!$A$5:$AY$629,21,FALSE),0) -> 130 | X12: =IFERROR(VLOOKUP($A12,Filtro!$A$5:$AY$629,22,FALSE),0) -> 113 | Y12: =IFERROR(VLOOKUP($A12,Filtro!$A$5:$AY$629,23,FALSE),0) -> 107 | Z12: =IFERROR(VLOOKUP($A12,Filtro!$A$5:$AY$629,24,FALSE),0) -> 116 | AA12: =IFERROR(VLOOKUP($A12,Filtro!$A$5:$AY$629,25,FALSE),0) -> 220 | AB12: =IFERROR(VLOOKUP($A12,Filtro!$A$5:$AY$629,26,FALSE),0) -> 216 | AC12: =IFERROR(VLOOKUP($A12,Filtro!$A$5:$AY$629,27,FALSE),0) -> 352 | AD12: =IFERROR(VLOOKUP($A12,Filtro!$A$5:$AY$629,28,FALSE),0) -> 290 | AE12: =IFERROR(VLOOKUP($A12,Filtro!$A$5:$AY$629,29,FALSE),0) -> 372 | AF12: =IFERROR(VLOOKUP($A12,Filtro!$A$5:$AY$629,30,FALSE),0) -> 297 | AG12: =IFERROR(VLOOKUP($A12,Filtro!$A$5:$AY$629,31,FALSE),0) -> 14 | AH12: =IFERROR(VLOOKUP($A12,Filtro!$A$5:$AY$629,32,FALSE),0) -> 10 | AI12: =IFERROR(VLOOKUP($A12,Filtro!$A$5:$AY$629,33,FALSE),0) -> 20 | AJ12: =IFERROR(VLOOKUP($A12,Filtro!$A$5:$AY$629,34,FALSE),0) -> 17 | BO12: =IF($Y$11+$Z$11<>$Y$38+$Z$38,"* El Total de niños (as) en Control de 18 a 23 meses debe ser igual al Total de niños(as) según Diagnóstico Nutricional Integrado. ","") -> * El Total de niños (as) en Control de 18 a 23 meses debe ser igual al Total de niños(as) según Diagnóstico Nutricional Integrado. | BP12: =IF($AA$11+$AB$11<>$AA$38+$AB$38,"* El Total de niños (as) en Control de 24 a 35 meses debe ser igual al Total de niños(as) según Diagnóstico Nutricional Integrado. ","") -> * El Total de niños (as) en Control de 24 a 35 meses debe ser igual al Total de niños(as) según Diagnóstico Nutricional Integrado. | BQ12: =IF(AC11+AD11<>AC38+AD38,"* El Total de niños (as) en Control de 36 a 47 meses debe ser igual al Total de niños(as) según Diagnóstico Nutricional Integrado. ","") -> * El Total de niños (as) en Control de 36 a 47 meses debe ser igual al Total de niños(as) según Diagnóstico Nutricional Integrado. | BR12: =IF($AE$11+$AF$11<>$AE$38+$AF$38,"* El Total de niños (as) en Control de 48 a 59 meses debe ser igual al Total de niños(as) según Diagnóstico Nutricional Integrado. ","") -> * El Total de niños (as) en Control de 48 a 59 meses debe ser igual al Total de niños(as) según Diagnóstico Nutricional Integrado. | BT12: =IF($D11>=$W11+$X11,"","* El Total de Pueblos Originarios no debe ser mayor al total de niños en control. ") ->  | BU12: =IF($D11>=$Y11+$Z11,"","* El Total de Población Migrantes no debe ser mayor al total de niños en control. ") ->  | BV12: =IF($W$11+$X$11<>$U$39+$V$39,"* El Total de niños (as) en Control de Pueblos Originarios debe ser igual al Total de niños(as) según Diagnóstico Nutricional Integrado. ","") -> * El Total de niños (as) en Control de Pueblos Originarios debe ser igual al Total de niños(as) según Diagnóstico Nutricional Integrado. | BW12: =IF($Y$11+$Z$11<>$W$39+$X$39,"* El Total de niños (as) en Control de Población Migrantes debe ser igual al Total de niños(as) según Diagnóstico Nutricional Integrado. ","") -> * El Total de niños (as) en Control de Población Migrantes debe ser igual al Total de niños(as) según Diagnóstico Nutricional Integrado. | CN12: =IF($M$11+$N$11<>$M$39+$N$39,1,0) -> 1 | CO12: =IF($O$11+$P$11<>$O$39+$P$39,1,0) -> 1 | CQ12: =IF($Q$11+$R$11<>$Q$39+$R$39,1,0) -> 1 | CR12: =IF($S$11+$T$11<>$S$39+$T$39,1,0) -> 1 | CS12: =IF($D11>=$W11+$X11,0,1) -> 0 | CT12: =IF($D11>=$Y11+$Z11,0,1) -> 0 | CU12: =IF($W$11+$X$11<>$U$39+$V$39,1,0) -> 1 | CV12: =IF($Y$11+$Z$11<>$W$39+$X$39,1,0) -> 1
A13: P2400110 | C13: + 1 D.S. (+1.0 a +1.9) | D13: 5763 | E13: 2823 | F13: 2940 | G13: =IFERROR(VLOOKUP($A13,Filtro!$A$5:$AY$629,5,FALSE),0) -> 12 | H13: =IFERROR(VLOOKUP($A13,Filtro!$A$5:$AY$629,6,FALSE),0) -> 17 | I13: =IFERROR(VLOOKUP($A13,Filtro!$A$5:$AY$629,7,FALSE),0) -> 37 | J13: =IFERROR(VLOOKUP($A13,Filtro!$A$5:$AY$629,8,FALSE),0) -> 22 | K13: =IFERROR(VLOOKUP($A13,Filtro!$A$5:$AY$629,9,FALSE),0) -> 45 | L13: =IFERROR(VLOOKUP($A13,Filtro!$A$5:$AY$629,10,FALSE),0) -> 38 | M13: =IFERROR(VLOOKUP($A13,Filtro!$A$5:$AY$629,11,FALSE),0) -> 44 | N13: =IFERROR(VLOOKUP($A13,Filtro!$A$5:$AY$629,12,FALSE),0) -> 52 | O13: =IFERROR(VLOOKUP($A13,Filtro!$A$5:$AY$629,13,FALSE),0) -> 48 | P13: =IFERROR(VLOOKUP($A13,Filtro!$A$5:$AY$629,14,FALSE),0) -> 44 | Q13: =IFERROR(VLOOKUP($A13,Filtro!$A$5:$AY$629,15,FALSE),0) -> 42 | R13: =IFERROR(VLOOKUP($A13,Filtro!$A$5:$AY$629,16,FALSE),0) -> 60 | S13: =IFERROR(VLOOKUP($A13,Filtro!$A$5:$AY$629,17,FALSE),0) -> 84 | T13: =IFERROR(VLOOKUP($A13,Filtro!$A$5:$AY$629,18,FALSE),0) -> 99 | U13: =IFERROR(VLOOKUP($A13,Filtro!$A$5:$AY$629,19,FALSE),0) -> 272 | V13: =IFERROR(VLOOKUP($A13,Filtro!$A$5:$AY$629,20,FALSE),0) -> 308 | W13: =IFERROR(VLOOKUP($A13,Filtro!$A$5:$AY$629,21,FALSE),0) -> 316 | X13: =IFERROR(VLOOKUP($A13,Filtro!$A$5:$AY$629,22,FALSE),0) -> 342 | Y13: =IFERROR(VLOOKUP($A13,Filtro!$A$5:$AY$629,23,FALSE),0) -> 314 | Z13: =IFERROR(VLOOKUP($A13,Filtro!$A$5:$AY$629,24,FALSE),0) -> 344 | AA13: =IFERROR(VLOOKUP($A13,Filtro!$A$5:$AY$629,25,FALSE),0) -> 495 | AB13: =IFERROR(VLOOKUP($A13,Filtro!$A$5:$AY$629,26,FALSE),0) -> 592 | AC13: =IFERROR(VLOOKUP($A13,Filtro!$A$5:$AY$629,27,FALSE),0) -> 557 | AD13: =IFERROR(VLOOKUP($A13,Filtro!$A$5:$AY$629,28,FALSE),0) -> 565 | AE13: =IFERROR(VLOOKUP($A13,Filtro!$A$5:$AY$629,29,FALSE),0) -> 557 | AF13: =IFERROR(VLOOKUP($A13,Filtro!$A$5:$AY$629,30,FALSE),0) -> 457 | AG13: =IFERROR(VLOOKUP($A13,Filtro!$A$5:$AY$629,31,FALSE),0) -> 20 | AH13: =IFERROR(VLOOKUP($A13,Filtro!$A$5:$AY$629,32,FALSE),0) -> 30 | AI13: =IFERROR(VLOOKUP($A13,Filtro!$A$5:$AY$629,33,FALSE),0) -> 39 | AJ13: =IFERROR(VLOOKUP($A13,Filtro!$A$5:$AY$629,34,FALSE),0) -> 42 | BV13: =IF(AND(E11<>0,W11=""), "* No olvide escribir en la celda de Pueblos Originarios (Digite CERO si no tiene). ",IF(AND(F11<>0,X11=""), "* No olvide escribir en la celda de Pueblos Originarios (Digite CERO si no tiene). ","")) ->  | BW13: =IF(AND(E11<>0,Y11=""), "* No olvide escribir en la celda de Población Migrantes (Digite CERO si no tiene). ",IF(AND(F11<>0,Z11=""), "* No olvide escribir en la celda de Población Migrantes (Digite CERO si no tiene). ","")) ->  | CU13: =IF(AND(E11<>0,W11=""), 1,IF(AND(F11<>0,X11=""), 1,0)) -> 0 | CV13: =IF(AND(E11<>0,Y11=""), 1,IF(AND(F11<>0,Z11=""), 1,0)) -> 0
C14: TOTAL | D14: 8396 | E14: =+G14+I14+K14+M14+O14+Q14+S14+U14+W14+Y14+AA14+AC14+AE14 -> 4230 | F14: =+H14+J14+L14+N14+P14+R14+T14+V14+X14+Z14+AB14+AD14+AF14 -> 4166 | G14: =+SUM(G12:G13) -> 25 | H14: =+SUM(H12:H13) -> 25 | I14: =+SUM(I12:I13) -> 48 | J14: =+SUM(J12:J13) -> 26 | K14: 52 | L14: 44 | M14: 59 | N14: 71 | O14: 75 | P14: 60 | Q14: 58 | R14: 82 | S14: 120 | T14: 116 | U14: 373 | V14: =+SUM(V12:V13) -> 410 | W14: =SUM(W12:W13) -> 446 | X14: =SUM(X12:X13) -> 455 | Y14: =SUM(Y12:Y13) -> 421 | Z14: 460 | AA14: 715 | AB14: 808 | AC14: 909 | AD14: 855 | AE14: 929 | AF14: 754 | AG14: =+SUM(AG12:AG13) -> 34 | AH14: =+SUM(AH12:AH13) -> 40 | AI14: =+SUM(AI12:AI13) -> 59 | AJ14: =+SUM(AJ12:AJ13) -> 59 | BO14: =IF($D14>=$W14+$X14,"","* El Total de Pueblos Originarios no debe ser mayor al Total Indicador peso/edad") ->  | BP14: =IF($D14>=$Y14+$Z14,"","* El Total de Población Migrante no debe ser mayor al Total Indicador peso/edad") ->  | BR14: =IF(AND(E12<>0,W12=""), "* No olvide escribir en la celda de Pueblos Originarios (Digite CERO si no tiene). ",IF(AND(F12<>0,X12=""), "* No olvide escribir en la celda de Pueblos Originarios (Digite CERO si no tiene). ","")) ->  | BS14: =IF(AND(E12<>0,Y12=""), "* No olvide escribir en la celda de Población Migrantes (Digite CERO si no tiene). ",IF(AND(F12<>0,Z12=""), "* No olvide escribir en la celda de Población Migrantes (Digite CERO si no tiene). ","")) ->  | BT14: =IF(AND(E13<>0,W13=""), "* No olvide escribir en la celda de Pueblos Originarios (Digite CERO si no tiene). ",IF(AND(F13<>0,X13=""), "* No olvide escribir en la celda de Pueblos Originarios (Digite CERO si no tiene). ","")) ->  | BU14: =IF(AND(E13<>0,Y13=""), "* No olvide escribir en la celda de Población Migrantes (Digite CERO si no tiene). ",IF(AND(F13<>0,Z13=""), "* No olvide escribir en la celda de Población Migrantes (Digite CERO si no tiene). ","")) ->  | CN14: =IF($D14>=$W14+$X14,0,1) -> 0 | CO14: =IF($D14>=$Y14+$Z14,0,1) -> 0 | CR14: =IF(AND(E12<>0,W12=""), 1,IF(AND(F12<>0,X12=""), 1,0)) -> 0 | CS14: =IF(AND(E12<>0,Y12=""), 1,IF(AND(F12<>0,Z12=""), 1,0)) -> 0 | CT14: =IF(AND(E13<>0,Y13=""), 1,IF(AND(F13<>0,Z13=""), 1,0)) -> 0 | CU14: =IF(AND(E13<>0,Y13=""), 1,IF(AND(F13<>0,Z13=""), 1,0)) -> 0
A15: P2070101 | C15: - 1 D.S. (-1.0 a -1.9) | D15: 1594 | E15: =+G15+I15+K15+M15+O15+Q15+S15+U15+W15+Y15+AA15+AC15+AE15 -> 883 | F15: 711 | G15: =IFERROR(VLOOKUP($A15,Filtro!$A$5:$AY$629,5,FALSE),0) -> 8 | H15: =IFERROR(VLOOKUP($A15,Filtro!$A$5:$AY$629,6,FALSE),0) -> 12 | I15: =IFERROR(VLOOKUP($A15,Filtro!$A$5:$AY$629,7,FALSE),0) -> 22 | J15: =IFERROR(VLOOKUP($A15,Filtro!$A$5:$AY$629,8,FALSE),0) -> 18 | K15: =IFERROR(VLOOKUP($A15,Filtro!$A$5:$AY$629,9,FALSE),0) -> 21 | L15: =IFERROR(VLOOKUP($A15,Filtro!$A$5:$AY$629,10,FALSE),0) -> 32 | M15: =IFERROR(VLOOKUP($A15,Filtro!$A$5:$AY$629,11,FALSE),0) -> 15 | N15: =IFERROR(VLOOKUP($A15,Filtro!$A$5:$AY$629,12,FALSE),0) -> 12 | O15: =IFERROR(VLOOKUP($A15,Filtro!$A$5:$AY$629,13,FALSE),0) -> 10 | P15: =IFERROR(VLOOKUP($A15,Filtro!$A$5:$AY$629,14,FALSE),0) -> 18 | Q15: =IFERROR(VLOOKUP($A15,Filtro!$A$5:$AY$629,15,FALSE),0) -> 13 | R15: =IFERROR(VLOOKUP($A15,Filtro!$A$5:$AY$629,16,FALSE),0) -> 10 | S15: =IFERROR(VLOOKUP($A15,Filtro!$A$5:$AY$629,17,FALSE),0) -> 25 | T15: =IFERROR(VLOOKUP($A15,Filtro!$A$5:$AY$629,18,FALSE),0) -> 11 | U15: =IFERROR(VLOOKUP($A15,Filtro!$A$5:$AY$629,19,FALSE),0) -> 56 | V15: =IFERROR(VLOOKUP($A15,Filtro!$A$5:$AY$629,20,FALSE),0) -> 52 | W15: =IFERROR(VLOOKUP($A15,Filtro!$A$5:$AY$629,21,FALSE),0) -> 112 | X15: =IFERROR(VLOOKUP($A15,Filtro!$A$5:$AY$629,22,FALSE),0) -> 59 | Y15: =IFERROR(VLOOKUP($A15,Filtro!$A$5:$AY$629,23,FALSE),0) -> 110 | Z15: =IFERROR(VLOOKUP($A15,Filtro!$A$5:$AY$629,24,FALSE),0) -> 72 | AA15: =IFERROR(VLOOKUP($A15,Filtro!$A$5:$AY$629,25,FALSE),0) -> 174 | AB15: =IFERROR(VLOOKUP($A15,Filtro!$A$5:$AY$629,26,FALSE),0) -> 122 | AC15: =IFERROR(VLOOKUP($A15,Filtro!$A$5:$AY$629,27,FALSE),0) -> 172 | AD15: =IFERROR(VLOOKUP($A15,Filtro!$A$5:$AY$629,28,FALSE),0) -> 158 | AE15: =IFERROR(VLOOKUP($A15,Filtro!$A$5:$AY$629,29,FALSE),0) -> 145 | AF15: =IFERROR(VLOOKUP($A15,Filtro!$A$5:$AY$629,30,FALSE),0) -> 135 | AG15: =IFERROR(VLOOKUP($A15,Filtro!$A$5:$AY$629,31,FALSE),0) -> 5 | AH15: =IFERROR(VLOOKUP($A15,Filtro!$A$5:$AY$629,32,FALSE),0) -> 10 | AI15: =IFERROR(VLOOKUP($A15,Filtro!$A$5:$AY$629,33,FALSE),0) -> 20 | AJ15: =IFERROR(VLOOKUP($A15,Filtro!$A$5:$AY$629,34,FALSE),0) -> 26 | BO15: =IF($D17>=$W17+$X17,"","* El Total de Pueblos Originarios no debe ser mayor al Total Indicador peso/edad") ->  | BP15: =IF($D17>=$Y17+$Z17,"","* El Total de Población Migrante no debe ser mayor al Total Indicador peso/edad") ->  | BV15: =IF(AND(E15<>0,W15=""), "* No olvide escribir en la celda de Pueblos Originarios (Digite CERO si no tiene). ",IF(AND(F15<>0,X15=""), "* No olvide escribir en la celda de Pueblos Originarios (Digite CERO si no tiene). ","")) ->  | BW15: =IF(AND(E15<>0,Y15=""), "* No olvide escribir en la celda de Población Migrantes (Digite CERO si no tiene). ",IF(AND(F15<>0,Z15=""), "* No olvide escribir en la celda de Población Migrantes (Digite CERO si no tiene). ","")) ->  | CN15: =IF($D17>=$W17+$X17,0,1) -> 0 | CO15: =IF($D17>=$Y17+$Z17,0,1) -> 0 | CU15: =IF(AND(E15<>0,W15=""), 1,IF(AND(F15<>0,X15=""), 1,0)) -> 0 | CV15: =IF(AND(E15<>0,Y15=""), 1,IF(AND(F15<>0,Z15=""), 1,0)) -> 0
A16: P2070102 | C16: - 2 D.S. (<= -2.0) | D16: 228 | E16: 135 | F16: =+H16+J16+L16+N16+P16+R16+T16+V16+X16+Z16+AB16+AD16+AF16 -> 93 | G16: =IFERROR(VLOOKUP($A16,Filtro!$A$5:$AY$629,5,FALSE),0) -> 9 | H16: =IFERROR(VLOOKUP($A16,Filtro!$A$5:$AY$629,6,FALSE),0) -> 3 | I16: =IFERROR(VLOOKUP($A16,Filtro!$A$5:$AY$629,7,FALSE),0) -> 5 | J16: =IFERROR(VLOOKUP($A16,Filtro!$A$5:$AY$629,8,FALSE),0) -> 7 | K16: =IFERROR(VLOOKUP($A16,Filtro!$A$5:$AY$629,9,FALSE),0) -> 7 | L16: =IFERROR(VLOOKUP($A16,Filtro!$A$5:$AY$629,10,FALSE),0) -> 5 | M16: =IFERROR(VLOOKUP($A16,Filtro!$A$5:$AY$629,11,FALSE),0) -> 2 | N16: =IFERROR(VLOOKUP($A16,Filtro!$A$5:$AY$629,12,FALSE),0) -> 1 | O16: =IFERROR(VLOOKUP($A16,Filtro!$A$5:$AY$629,13,FALSE),0) -> 3 | P16: =IFERROR(VLOOKUP($A16,Filtro!$A$5:$AY$629,14,FALSE),0) -> 2 | Q16: =IFERROR(VLOOKUP($A16,Filtro!$A$5:$AY$629,15,FALSE),0) -> 5 | R16: =IFERROR(VLOOKUP($A16,Filtro!$A$5:$AY$629,16,FALSE),0) -> 2 | S16: =IFERROR(VLOOKUP($A16,Filtro!$A$5:$AY$629,17,FALSE),0) -> 3 | T16: =IFERROR(VLOOKUP($A16,Filtro!$A$5:$AY$629,18,FALSE),0) -> 0 | U16: =IFERROR(VLOOKUP($A16,Filtro!$A$5:$AY$629,19,FALSE),0) -> 4 | V16: =IFERROR(VLOOKUP($A16,Filtro!$A$5:$AY$629,20,FALSE),0) -> 3 | W16: =IFERROR(VLOOKUP($A16,Filtro!$A$5:$AY$629,21,FALSE),0) -> 21 | X16: =IFERROR(VLOOKUP($A16,Filtro!$A$5:$AY$629,22,FALSE),0) -> 8 | Y16: =IFERROR(VLOOKUP($A16,Filtro!$A$5:$AY$629,23,FALSE),0) -> 19 | Z16: =IFERROR(VLOOKUP($A16,Filtro!$A$5:$AY$629,24,FALSE),0) -> 8 | AA16: =IFERROR(VLOOKUP($A16,Filtro!$A$5:$AY$629,25,FALSE),0) -> 24 | AB16: =IFERROR(VLOOKUP($A16,Filtro!$A$5:$AY$629,26,FALSE),0) -> 21 | AC16: =IFERROR(VLOOKUP($A16,Filtro!$A$5:$AY$629,27,FALSE),0) -> 19 | AD16: =IFERROR(VLOOKUP($A16,Filtro!$A$5:$AY$629,28,FALSE),0) -> 15 | AE16: =IFERROR(VLOOKUP($A16,Filtro!$A$5:$AY$629,29,FALSE),0) -> 14 | AF16: =IFERROR(VLOOKUP($A16,Filtro!$A$5:$AY$629,30,FALSE),0) -> 18 | AG16: =IFERROR(VLOOKUP($A16,Filtro!$A$5:$AY$629,31,FALSE),0) -> 1 | AH16: =IFERROR(VLOOKUP($A16,Filtro!$A$5:$AY$629,32,FALSE),0) -> 0 | AI16: =IFERROR(VLOOKUP($A16,Filtro!$A$5:$AY$629,33,FALSE),0) -> 4 | AJ16: =IFERROR(VLOOKUP($A16,Filtro!$A$5:$AY$629,34,FALSE),0) -> 5 | BV16: =IF(AND(E16<>0,W16=""), "* No olvide escribir en la celda de Pueblos Originarios (Digite CERO si no tiene). ",IF(AND(F16<>0,X16=""), "* No olvide escribir en la celda de Pueblos Originarios (Digite CERO si no tiene). ","")) ->  | BW16: =IF(AND(E16<>0,Y16=""), "* No olvide escribir en la celda de Población Migrantes (Digite CERO si no tiene). ",IF(AND(F16<>0,Z16=""), "* No olvide escribir en la celda de Población Migrantes (Digite CERO si no tiene). ","")) ->  | CU16: =IF(AND(E16<>0,W16=""), 1,IF(AND(F16<>0,X16=""), 1,0)) -> 0 | CV16: =IF(AND(E16<>0,Y16=""), 1,IF(AND(F16<>0,Z16=""), 1,0)) -> 0
C17: TOTAL | D17: 1822 | E17: =+G17+I17+K17+M17+O17+Q17+S17+U17+W17+Y17+AA17+AC17+AE17 -> 1018 | F17: =+H17+J17+L17+N17+P17+R17+T17+V17+X17+Z17+AB17+AD17+AF17 -> 804 | G17: =+SUM(G15:G16) -> 17 | H17: 15 | I17: =SUM(I15:I16) -> 27 | J17: =SUM(J15:J16) -> 25 | K17: 28 | L17: 37 | M17: 17 | N17: 13 | O17: 13 | P17: 20 | Q17: 18 | R17: 12 | S17: 28 | T17: 11 | U17: 60 | V17: 55 | W17: =SUM(W15:W16) -> 133 | X17: =SUM(X15:X16) -> 67 | Y17: 129 | Z17: 80 | AA17: 198 | AB17: 143 | AC17: 191 | AD17: 173 | AE17: 159 | AF17: 153 | AG17: =SUM(AG15:AG16) -> 6 | AH17: =SUM(AH15:AH16) -> 10 | AI17: =SUM(AI15:AI16) -> 24 | AJ17: =SUM(AJ15:AJ16) -> 31
A18: P2070201 | B18: INDICADOR PESO/TALLA | C18: + 2 D.S. (>= +2.0) | D18: 3590 | E18: =+G18+I18+K18+M18+O18+Q18+S18+U18+W18+Y18+AA18+AC18+AE18 -> 1889 | F18: 1701 | G18: =IFERROR(VLOOKUP($A18,Filtro!$A$5:$AY$629,5,FALSE),0) -> 13 | H18: =IFERROR(VLOOKUP($A18,Filtro!$A$5:$AY$629,6,FALSE),0) -> 6 | I18: =IFERROR(VLOOKUP($A18,Filtro!$A$5:$AY$629,7,FALSE),0) -> 14 | J18: =IFERROR(VLOOKUP($A18,Filtro!$A$5:$AY$629,8,FALSE),0) -> 15 | K18: =IFERROR(VLOOKUP($A18,Filtro!$A$5:$AY$629,9,FALSE),0) -> 15 | L18: =IFERROR(VLOOKUP($A18,Filtro!$A$5:$AY$629,10,FALSE),0) -> 10 | M18: =IFERROR(VLOOKUP($A18,Filtro!$A$5:$AY$629,11,FALSE),0) -> 20 | N18: =IFERROR(VLOOKUP($A18,Filtro!$A$5:$AY$629,12,FALSE),0) -> 19 | O18: =IFERROR(VLOOKUP($A18,Filtro!$A$5:$AY$629,13,FALSE),0) -> 34 | P18: =IFERROR(VLOOKUP($A18,Filtro!$A$5:$AY$629,14,FALSE),0) -> 19 | Q18: =IFERROR(VLOOKUP($A18,Filtro!$A$5:$AY$629,15,FALSE),0) -> 25 | R18: =IFERROR(VLOOKUP($A18,Filtro!$A$5:$AY$629,16,FALSE),0) -> 21 | S18: =IFERROR(VLOOKUP($A18,Filtro!$A$5:$AY$629,17,FALSE),0) -> 41 | T18: =IFERROR(VLOOKUP($A18,Filtro!$A$5:$AY$629,18,FALSE),0) -> 34 | U18: =IFERROR(VLOOKUP($A18,Filtro!$A$5:$AY$629,19,FALSE),0) -> 161 | V18: =IFERROR(VLOOKUP($A18,Filtro!$A$5:$AY$629,20,FALSE),0) -> 137 | W18: =IFERROR(VLOOKUP($A18,Filtro!$A$5:$AY$629,21,FALSE),0) -> 200 | X18: =IFERROR(VLOOKUP($A18,Filtro!$A$5:$AY$629,22,FALSE),0) -> 177 | Y18: =IFERROR(VLOOKUP($A18,Filtro!$A$5:$AY$629,23,FALSE),0) -> 164 | Z18: =IFERROR(VLOOKUP($A18,Filtro!$A$5:$AY$629,24,FALSE),0) -> 160 | AA18: =IFERROR(VLOOKUP($A18,Filtro!$A$5:$AY$629,25,FALSE),0) -> 276 | AB18: =IFERROR(VLOOKUP($A18,Filtro!$A$5:$AY$629,26,FALSE),0) -> 286 | AC18: =IFERROR(VLOOKUP($A18,Filtro!$A$5:$AY$629,27,FALSE),0) -> 437 | AD18: =IFERROR(VLOOKUP($A18,Filtro!$A$5:$AY$629,28,FALSE),0) -> 391 | AE18: =IFERROR(VLOOKUP($A18,Filtro!$A$5:$AY$629,29,FALSE),0) -> 489 | AF18: =IFERROR(VLOOKUP($A18,Filtro!$A$5:$AY$629,30,FALSE),0) -> 426 | AG18: =IFERROR(VLOOKUP($A18,Filtro!$A$5:$AY$629,31,FALSE),0) -> 8 | AH18: =IFERROR(VLOOKUP($A18,Filtro!$A$5:$AY$629,32,FALSE),0) -> 4 | AI18: =IFERROR(VLOOKUP($A18,Filtro!$A$5:$AY$629,33,FALSE),0) -> 8 | AJ18: =IFERROR(VLOOKUP($A18,Filtro!$A$5:$AY$629,34,FALSE),0) -> 15 | BV18: =IF(AND(E18<>0,W18=""), "* No olvide escribir en la celda de Pueblos Originarios (Digite CERO si no tiene). ",IF(AND(F18<>0,X18=""), "* No olvide escribir en la celda de Pueblos Originarios (Digite CERO si no tiene). ","")) ->  | BW18: =IF(AND(E18<>0,Y18=""), "* No olvide escribir en la celda de Población Migrantes (Digite CERO si no tiene). ",IF(AND(F18<>0,Z18=""), "* No olvide escribir en la celda de Población Migrantes (Digite CERO si no tiene). ","")) ->  | CU18: =IF(AND(E18<>0,W18=""), 1,IF(AND(F18<>0,X18=""), 1,0)) -> 0 | CV18: =IF(AND(E18<>0,Y18=""), 1,IF(AND(F18<>0,Z18=""), 1,0)) -> 0
A19: P2070202 | C19: + 1 D.S. (+1.0 a +1.9) | D19: 6589 | E19: 3333 | F19: 3256 | G19: =IFERROR(VLOOKUP($A19,Filtro!$A$5:$AY$629,5,FALSE),0) -> 14 | H19: =IFERROR(VLOOKUP($A19,Filtro!$A$5:$AY$629,6,FALSE),0) -> 9 | I19: =IFERROR(VLOOKUP($A19,Filtro!$A$5:$AY$629,7,FALSE),0) -> 39 | J19: =IFERROR(VLOOKUP($A19,Filtro!$A$5:$AY$629,8,FALSE),0) -> 32 | K19: =IFERROR(VLOOKUP($A19,Filtro!$A$5:$AY$629,9,FALSE),0) -> 68 | L19: =IFERROR(VLOOKUP($A19,Filtro!$A$5:$AY$629,10,FALSE),0) -> 61 | M19: =IFERROR(VLOOKUP($A19,Filtro!$A$5:$AY$629,11,FALSE),0) -> 50 | N19: =IFERROR(VLOOKUP($A19,Filtro!$A$5:$AY$629,12,FALSE),0) -> 43 | O19: =IFERROR(VLOOKUP($A19,Filtro!$A$5:$AY$629,13,FALSE),0) -> 62 | P19: =IFERROR(VLOOKUP($A19,Filtro!$A$5:$AY$629,14,FALSE),0) -> 74 | Q19: =IFERROR(VLOOKUP($A19,Filtro!$A$5:$AY$629,15,FALSE),0) -> 69 | R19: =IFERROR(VLOOKUP($A19,Filtro!$A$5:$AY$629,16,FALSE),0) -> 74 | S19: =IFERROR(VLOOKUP($A19,Filtro!$A$5:$AY$629,17,FALSE),0) -> 105 | T19: =IFERROR(VLOOKUP($A19,Filtro!$A$5:$AY$629,18,FALSE),0) -> 110 | U19: =IFERROR(VLOOKUP($A19,Filtro!$A$5:$AY$629,19,FALSE),0) -> 361 | V19: =IFERROR(VLOOKUP($A19,Filtro!$A$5:$AY$629,20,FALSE),0) -> 337 | W19: =IFERROR(VLOOKUP($A19,Filtro!$A$5:$AY$629,21,FALSE),0) -> 406 | X19: =IFERROR(VLOOKUP($A19,Filtro!$A$5:$AY$629,22,FALSE),0) -> 412 | Y19: =IFERROR(VLOOKUP($A19,Filtro!$A$5:$AY$629,23,FALSE),0) -> 338 | Z19: =IFERROR(VLOOKUP($A19,Filtro!$A$5:$AY$629,24,FALSE),0) -> 367 | AA19: =IFERROR(VLOOKUP($A19,Filtro!$A$5:$AY$629,25,FALSE),0) -> 610 | AB19: =IFERROR(VLOOKUP($A19,Filtro!$A$5:$AY$629,26,FALSE),0) -> 563 | AC19: =IFERROR(VLOOKUP($A19,Filtro!$A$5:$AY$629,27,FALSE),0) -> 609 | AD19: =IFERROR(VLOOKUP($A19,Filtro!$A$5:$AY$629,28,FALSE),0) -> 644 | AE19: =IFERROR(VLOOKUP($A19,Filtro!$A$5:$AY$629,29,FALSE),0) -> 602 | AF19: =IFERROR(VLOOKUP($A19,Filtro!$A$5:$AY$629,30,FALSE),0) -> 530 | AG19: =IFERROR(VLOOKUP($A19,Filtro!$A$5:$AY$629,31,FALSE),0) -> 18 | AH19: =IFERROR(VLOOKUP($A19,Filtro!$A$5:$AY$629,32,FALSE),0) -> 17 | AI19: =IFERROR(VLOOKUP($A19,Filtro!$A$5:$AY$629,33,FALSE),0) -> 32 | AJ19: =IFERROR(VLOOKUP($A19,Filtro!$A$5:$AY$629,34,FALSE),0) -> 31 | BV19: =IF(AND(E19<>0,W19=""), "* No olvide escribir en la celda de Pueblos Originarios (Digite CERO si no tiene). ",IF(AND(F19<>0,X19=""), "* No olvide escribir en la celda de Pueblos Originarios (Digite CERO si no tiene). ","")) ->  | BW19: =IF(AND(E19<>0,Y19=""), "* No olvide escribir en la celda de Población Migrantes (Digite CERO si no tiene). ",IF(AND(F19<>0,Z19=""), "* No olvide escribir en la celda de Población Migrantes (Digite CERO si no tiene). ","")) ->  | CU19: =IF(AND(E19<>0,W19=""), 1,IF(AND(F19<>0,X19=""), 1,0)) -> 0 | CV19: =IF(AND(E19<>0,Y19=""), 1,IF(AND(F19<>0,Z19=""), 1,0)) -> 0
C20: TOTAL | D20: 10179 | E20: =+G20+I20+K20+M20+O20+Q20+S20+U20+W20+Y20+AA20+AC20+AE20 -> 5222 | F20: =+H20+J20+L20+N20+P20+R20+T20+V20+X20+Z20+AB20+AD20+AF20 -> 4957 | G20: =SUM(G18:G19) -> 27 | H20: =SUM(H18:H19) -> 15 | I20: =+SUM(I18:I19) -> 53 | J20: =+SUM(J18:J19) -> 47 | K20: =+SUM(K18:K19) -> 83 | L20: 71 | M20: 70 | N20: 62 | O20: 96 | P20: 93 | Q20: 94 | R20: 95 | S20: 146 | T20: 144 | U20: 522 | V20: 474 | W20: 606 | X20: 589 | Y20: 502 | Z20: 527 | AA20: 886 | AB20: 849 | AC20: 1046 | AD20: 1035 | AE20: 1091 | AF20: 956 | AG20: 26 | AH20: 21 | AI20: 40 | AJ20: 46 | BO20: =IF($D20>=$W20+$X20,"","* El Total de Pueblos Originarios no debe ser mayor al Total Indicador peso/talla") ->  | BP20: =IF($D20>=$Y20+$Z20,"","* El Total de Población Migrante no debe ser mayor al Total Indicador peso/talla") ->  | CN20: =IF($D20>=$W20+$X20,0,1) -> 0 | CO20: =IF($D20>=$Y20+$Z20,0,1) -> 0
A21: P2070301 | C21: - 1 D.S. (-1.0 a -1.9) | D21: 895 | E21: =+G21+I21+K21+M21+O21+Q21+S21+U21+W21+Y21+AA21+AC21+AE21 -> 512 | F21: 383 | G21: =IFERROR(VLOOKUP($A21,Filtro!$A$5:$AY$629,5,FALSE),0) -> 11 | H21: =IFERROR(VLOOKUP($A21,Filtro!$A$5:$AY$629,6,FALSE),0) -> 19 | I21: =IFERROR(VLOOKUP($A21,Filtro!$A$5:$AY$629,7,FALSE),0) -> 15 | J21: =IFERROR(VLOOKUP($A21,Filtro!$A$5:$AY$629,8,FALSE),0) -> 16 | K21: =IFERROR(VLOOKUP($A21,Filtro!$A$5:$AY$629,9,FALSE),0) -> 16 | L21: =IFERROR(VLOOKUP($A21,Filtro!$A$5:$AY$629,10,FALSE),0) -> 19 | M21: =IFERROR(VLOOKUP($A21,Filtro!$A$5:$AY$629,11,FALSE),0) -> 14 | N21: =IFERROR(VLOOKUP($A21,Filtro!$A$5:$AY$629,12,FALSE),0) -> 5 | O21: =IFERROR(VLOOKUP($A21,Filtro!$A$5:$AY$629,13,FALSE),0) -> 12 | P21: =IFERROR(VLOOKUP($A21,Filtro!$A$5:$AY$629,14,FALSE),0) -> 10 | Q21: =IFERROR(VLOOKUP($A21,Filtro!$A$5:$AY$629,15,FALSE),0) -> 10 | R21: =IFERROR(VLOOKUP($A21,Filtro!$A$5:$AY$629,16,FALSE),0) -> 1 | S21: =IFERROR(VLOOKUP($A21,Filtro!$A$5:$AY$629,17,FALSE),0) -> 18 | T21: =IFERROR(VLOOKUP($A21,Filtro!$A$5:$AY$629,18,FALSE),0) -> 8 | U21: =IFERROR(VLOOKUP($A21,Filtro!$A$5:$AY$629,19,FALSE),0) -> 35 | V21: =IFERROR(VLOOKUP($A21,Filtro!$A$5:$AY$629,20,FALSE),0) -> 23 | W21: =IFERROR(VLOOKUP($A21,Filtro!$A$5:$AY$629,21,FALSE),0) -> 40 | X21: =IFERROR(VLOOKUP($A21,Filtro!$A$5:$AY$629,22,FALSE),0) -> 29 | Y21: =IFERROR(VLOOKUP($A21,Filtro!$A$5:$AY$629,23,FALSE),0) -> 47 | Z21: =IFERROR(VLOOKUP($A21,Filtro!$A$5:$AY$629,24,FALSE),0) -> 40 | AA21: =IFERROR(VLOOKUP($A21,Filtro!$A$5:$AY$629,25,FALSE),0) -> 111 | AB21: =IFERROR(VLOOKUP($A21,Filtro!$A$5:$AY$629,26,FALSE),0) -> 66 | AC21: =IFERROR(VLOOKUP($A21,Filtro!$A$5:$AY$629,27,FALSE),0) -> 102 | AD21: =IFERROR(VLOOKUP($A21,Filtro!$A$5:$AY$629,28,FALSE),0) -> 83 | AE21: =IFERROR(VLOOKUP($A21,Filtro!$A$5:$AY$629,29,FALSE),0) -> 81 | AF21: =IFERROR(VLOOKUP($A21,Filtro!$A$5:$AY$629,30,FALSE),0) -> 64 | AG21: =IFERROR(VLOOKUP($A21,Filtro!$A$5:$AY$629,31,FALSE),0) -> 0 | AH21: =IFERROR(VLOOKUP($A21,Filtro!$A$5:$AY$629,32,FALSE),0) -> 5 | AI21: =IFERROR(VLOOKUP($A21,Filtro!$A$5:$AY$629,33,FALSE),0) -> 14 | AJ21: =IFERROR(VLOOKUP($A21,Filtro!$A$5:$AY$629,34,FALSE),0) -> 14 | BV21: =IF(AND(E21<>0,W21=""), "* No olvide escribir en la celda de Pueblos Originarios (Digite CERO si no tiene). ",IF(AND(F21<>0,X21=""), "* No olvide escribir en la celda de Pueblos Originarios (Digite CERO si no tiene). ","")) ->  | BW21: =IF(AND(E21<>0,Y21=""), "* No olvide escribir en la celda de Población Migrantes (Digite CERO si no tiene). ",IF(AND(F21<>0,Z21=""), "* No olvide escribir en la celda de Población Migrantes (Digite CERO si no tiene). ","")) ->  | CU21: =IF(AND(E21<>0,W21=""), 1,IF(AND(F21<>0,X21=""), 1,0)) -> 0 | CV21: =IF(AND(E21<>0,Y21=""), 1,IF(AND(F21<>0,Z21=""), 1,0)) -> 0
A22: P2070302 | C22: - 2 D.S. (<= -2.0) | D22: 139 | E22: 83 | F22: 56 | G22: =IFERROR(VLOOKUP($A22,Filtro!$A$5:$AY$629,5,FALSE),0) -> 5 | H22: =IFERROR(VLOOKUP($A22,Filtro!$A$5:$AY$629,6,FALSE),0) -> 4 | I22: =IFERROR(VLOOKUP($A22,Filtro!$A$5:$AY$629,7,FALSE),0) -> 3 | J22: =IFERROR(VLOOKUP($A22,Filtro!$A$5:$AY$629,8,FALSE),0) -> 4 | K22: =IFERROR(VLOOKUP($A22,Filtro!$A$5:$AY$629,9,FALSE),0) -> 4 | L22: =IFERROR(VLOOKUP($A22,Filtro!$A$5:$AY$629,10,FALSE),0) -> 3 | M22: =IFERROR(VLOOKUP($A22,Filtro!$A$5:$AY$629,11,FALSE),0) -> 5 | N22: =IFERROR(VLOOKUP($A22,Filtro!$A$5:$AY$629,12,FALSE),0) -> 0 | O22: =IFERROR(VLOOKUP($A22,Filtro!$A$5:$AY$629,13,FALSE),0) -> 0 | P22: =IFERROR(VLOOKUP($A22,Filtro!$A$5:$AY$629,14,FALSE),0) -> 1 | Q22: =IFERROR(VLOOKUP($A22,Filtro!$A$5:$AY$629,15,FALSE),0) -> 2 | R22: =IFERROR(VLOOKUP($A22,Filtro!$A$5:$AY$629,16,FALSE),0) -> 2 | S22: =IFERROR(VLOOKUP($A22,Filtro!$A$5:$AY$629,17,FALSE),0) -> 1 | T22: =IFERROR(VLOOKUP($A22,Filtro!$A$5:$AY$629,18,FALSE),0) -> 0 | U22: =IFERROR(VLOOKUP($A22,Filtro!$A$5:$AY$629,19,FALSE),0) -> 6 | V22: =IFERROR(VLOOKUP($A22,Filtro!$A$5:$AY$629,20,FALSE),0) -> 5 | W22: =IFERROR(VLOOKUP($A22,Filtro!$A$5:$AY$629,21,FALSE),0) -> 13 | X22: =IFERROR(VLOOKUP($A22,Filtro!$A$5:$AY$629,22,FALSE),0) -> 4 | Y22: =IFERROR(VLOOKUP($A22,Filtro!$A$5:$AY$629,23,FALSE),0) -> 5 | Z22: =IFERROR(VLOOKUP($A22,Filtro!$A$5:$AY$629,24,FALSE),0) -> 1 | AA22: =IFERROR(VLOOKUP($A22,Filtro!$A$5:$AY$629,25,FALSE),0) -> 10 | AB22: =IFERROR(VLOOKUP($A22,Filtro!$A$5:$AY$629,26,FALSE),0) -> 12 | AC22: =IFERROR(VLOOKUP($A22,Filtro!$A$5:$AY$629,27,FALSE),0) -> 20 | AD22: =IFERROR(VLOOKUP($A22,Filtro!$A$5:$AY$629,28,FALSE),0) -> 8 | AE22: =IFERROR(VLOOKUP($A22,Filtro!$A$5:$AY$629,29,FALSE),0) -> 9 | AF22: =IFERROR(VLOOKUP($A22,Filtro!$A$5:$AY$629,30,FALSE),0) -> 12 | AG22: =IFERROR(VLOOKUP($A22,Filtro!$A$5:$AY$629,31,FALSE),0) -> 0 | AH22: =IFERROR(VLOOKUP($A22,Filtro!$A$5:$AY$629,32,FALSE),0) -> 0 | AI22: =IFERROR(VLOOKUP($A22,Filtro!$A$5:$AY$629,33,FALSE),0) -> 1 | AJ22: =IFERROR(VLOOKUP($A22,Filtro!$A$5:$AY$629,34,FALSE),0) -> 13 | BV22: =IF(AND(E22<>0,W22=""), "* No olvide escribir en la celda de Pueblos Originarios (Digite CERO si no tiene). ",IF(AND(F22<>0,X22=""), "* No olvide escribir en la celda de Pueblos Originarios (Digite CERO si no tiene). ","")) ->  | BW22: =IF(AND(E22<>0,Y22=""), "* No olvide escribir en la celda de Población Migrantes (Digite CERO si no tiene). ",IF(AND(F22<>0,Z22=""), "* No olvide escribir en la celda de Población Migrantes (Digite CERO si no tiene). ","")) ->  | CU22: =IF(AND(E22<>0,W22=""), 1,IF(AND(F22<>0,X22=""), 1,0)) -> 0 | CV22: =IF(AND(E22<>0,Y22=""), 1,IF(AND(F22<>0,Z22=""), 1,0)) -> 0
C23: TOTAL | D23: 1034 | E23: =+G23+I23+K23+M23+O23+Q23+S23+U23+W23+Y23+AA23+AC23+AE23 -> 595 | F23: =+H23+J23+L23+N23+P23+R23+T23+V23+X23+Z23+AB23+AD23+AF23 -> 439 | G23: =SUM(G21:G22) -> 16 | H23: 23 | I23: =SUM(I21:I22) -> 18 | J23: =SUM(J21:J22) -> 20 | K23: =SUM(K21:K22) -> 20 | L23: 22 | M23: 19 | N23: 5 | O23: 12 | P23: 11 | Q23: 12 | R23: 3 | S23: 19 | T23: 8 | U23: 41 | V23: 28 | W23: 53 | X23: 33 | Y23: 52 | Z23: 41 | AA23: 121 | AB23: 78 | AC23: 122 | AD23: 91 | AE23: 90 | AF23: 76 | AG23: 0 | AH23: 5 | AI23: 15 | AJ23: =SUM(AJ21:AJ22) -> 27 | BO23: =IF($D23>=$W23+$X23,"","* El Total de Pueblos Originarios no debe ser mayor al Total Indicador peso/talla. ") ->  | BP23: =IF($D23>=$Y23+$Z23,"","* El Total de Población Migrantes no debe ser mayor al Total Indicador peso/talla. ") ->  | CN23: =IF($D23>=$W23+$X23,0,1) -> 0 | CO23: =IF($D23>=$Y23+$Z23,0,1) -> 0
A24: P2400120 | B24: INDICADOR TALLA/EDAD | C24: + 2 D.S. (>= +2.0) | D24: 771 | E24: =+G24+I24+K24+M24+O24+Q24+S24+U24+W24+Y24+AA24+AC24+AE24 -> 456 | F24: 315 | G24: =IFERROR(VLOOKUP($A24,Filtro!$A$5:$AY$629,5,FALSE),0) -> 2 | H24: =IFERROR(VLOOKUP($A24,Filtro!$A$5:$AY$629,6,FALSE),0) -> 7 | I24: =IFERROR(VLOOKUP($A24,Filtro!$A$5:$AY$629,7,FALSE),0) -> 6 | J24: =IFERROR(VLOOKUP($A24,Filtro!$A$5:$AY$629,8,FALSE),0) -> 6 | K24: =IFERROR(VLOOKUP($A24,Filtro!$A$5:$AY$629,9,FALSE),0) -> 4 | L24: =IFERROR(VLOOKUP($A24,Filtro!$A$5:$AY$629,10,FALSE),0) -> 2 | M24: =IFERROR(VLOOKUP($A24,Filtro!$A$5:$AY$629,11,FALSE),0) -> 9 | N24: =IFERROR(VLOOKUP($A24,Filtro!$A$5:$AY$629,12,FALSE),0) -> 4 | O24: =IFERROR(VLOOKUP($A24,Filtro!$A$5:$AY$629,13,FALSE),0) -> 9 | P24: =IFERROR(VLOOKUP($A24,Filtro!$A$5:$AY$629,14,FALSE),0) -> 4 | Q24: =IFERROR(VLOOKUP($A24,Filtro!$A$5:$AY$629,15,FALSE),0) -> 4 | R24: =IFERROR(VLOOKUP($A24,Filtro!$A$5:$AY$629,16,FALSE),0) -> 2 | S24: =IFERROR(VLOOKUP($A24,Filtro!$A$5:$AY$629,17,FALSE),0) -> 20 | T24: =IFERROR(VLOOKUP($A24,Filtro!$A$5:$AY$629,18,FALSE),0) -> 6 | U24: =IFERROR(VLOOKUP($A24,Filtro!$A$5:$AY$629,19,FALSE),0) -> 39 | V24: =IFERROR(VLOOKUP($A24,Filtro!$A$5:$AY$629,20,FALSE),0) -> 27 | W24: =IFERROR(VLOOKUP($A24,Filtro!$A$5:$AY$629,21,FALSE),0) -> 30 | X24: =IFERROR(VLOOKUP($A24,Filtro!$A$5:$AY$629,22,FALSE),0) -> 26 | Y24: =IFERROR(VLOOKUP($A24,Filtro!$A$5:$AY$629,23,FALSE),0) -> 33 | Z24: =IFERROR(VLOOKUP($A24,Filtro!$A$5:$AY$629,24,FALSE),0) -> 28 | AA24: =IFERROR(VLOOKUP($A24,Filtro!$A$5:$AY$629,25,FALSE),0) -> 79 | AB24: =IFERROR(VLOOKUP($A24,Filtro!$A$5:$AY$629,26,FALSE),0) -> 62 | AC24: =IFERROR(VLOOKUP($A24,Filtro!$A$5:$AY$629,27,FALSE),0) -> 99 | AD24: =IFERROR(VLOOKUP($A24,Filtro!$A$5:$AY$629,28,FALSE),0) -> 64 | AE24: =IFERROR(VLOOKUP($A24,Filtro!$A$5:$AY$629,29,FALSE),0) -> 122 | AF24: =IFERROR(VLOOKUP($A24,Filtro!$A$5:$AY$629,30,FALSE),0) -> 77 | AG24: =IFERROR(VLOOKUP($A24,Filtro!$A$5:$AY$629,31,FALSE),0) -> 4 | AH24: =IFERROR(VLOOKUP($A24,Filtro!$A$5:$AY$629,32,FALSE),0) -> 6 | AI24: =IFERROR(VLOOKUP($A24,Filtro!$A$5:$AY$629,33,FALSE),0) -> 7 | AJ24: =IFERROR(VLOOKUP($A24,Filtro!$A$5:$AY$629,34,FALSE),0) -> 10 | BV24: =IF(AND(E24<>0,U24=""), "* No olvide escribir en la celda de Pueblos Originarios (Digite CERO si no tiene). ",IF(AND(F24<>0,V24=""), "* No olvide escribir en la celda de Pueblos Originarios (Digite CERO si no tiene). ","")) ->  | BW24: =IF(AND(E24<>0,W24=""), "* No olvide escribir en la celda de Población Migrantes (Digite CERO si no tiene). ",IF(AND(F24<>0,X24=""), "* No olvide escribir en la celda de Población Migrantes (Digite CERO si no tiene). ","")) ->  | CU24: =IF(AND(E24<>0,U24=""), 1,IF(AND(F24<>0,V24=""), 1,0)) -> 0 | CV24: =IF(AND(E24<>0,W24=""), 1,IF(AND(F24<>0,X24=""), 1,0)) -> 0
A25: P2400130 | C25: + 1 D.S. (+1.0 a +1.9) | D25: 3461 | E25: 1748 | F25: 1713 | G25: =IFERROR(VLOOKUP($A25,Filtro!$A$5:$AY$629,5,FALSE),0) -> 18 | H25: =IFERROR(VLOOKUP($A25,Filtro!$A$5:$AY$629,6,FALSE),0) -> 28 | I25: =IFERROR(VLOOKUP($A25,Filtro!$A$5:$AY$629,7,FALSE),0) -> 24 | J25: =IFERROR(VLOOKUP($A25,Filtro!$A$5:$AY$629,8,FALSE),0) -> 13 | K25: =IFERROR(VLOOKUP($A25,Filtro!$A$5:$AY$629,9,FALSE),0) -> 19 | L25: =IFERROR(VLOOKUP($A25,Filtro!$A$5:$AY$629,10,FALSE),0) -> 35 | M25: =IFERROR(VLOOKUP($A25,Filtro!$A$5:$AY$629,11,FALSE),0) -> 26 | N25: =IFERROR(VLOOKUP($A25,Filtro!$A$5:$AY$629,12,FALSE),0) -> 29 | O25: =IFERROR(VLOOKUP($A25,Filtro!$A$5:$AY$629,13,FALSE),0) -> 34 | P25: =IFERROR(VLOOKUP($A25,Filtro!$A$5:$AY$629,14,FALSE),0) -> 27 | Q25: =IFERROR(VLOOKUP($A25,Filtro!$A$5:$AY$629,15,FALSE),0) -> 21 | R25: =IFERROR(VLOOKUP($A25,Filtro!$A$5:$AY$629,16,FALSE),0) -> 32 | S25: =IFERROR(VLOOKUP($A25,Filtro!$A$5:$AY$629,17,FALSE),0) -> 47 | T25: =IFERROR(VLOOKUP($A25,Filtro!$A$5:$AY$629,18,FALSE),0) -> 34 | U25: =IFERROR(VLOOKUP($A25,Filtro!$A$5:$AY$629,19,FALSE),0) -> 138 | V25: =IFERROR(VLOOKUP($A25,Filtro!$A$5:$AY$629,20,FALSE),0) -> 155 | W25: =IFERROR(VLOOKUP($A25,Filtro!$A$5:$AY$629,21,FALSE),0) -> 153 | X25: =IFERROR(VLOOKUP($A25,Filtro!$A$5:$AY$629,22,FALSE),0) -> 156 | Y25: =IFERROR(VLOOKUP($A25,Filtro!$A$5:$AY$629,23,FALSE),0) -> 158 | Z25: =IFERROR(VLOOKUP($A25,Filtro!$A$5:$AY$629,24,FALSE),0) -> 166 | AA25: =IFERROR(VLOOKUP($A25,Filtro!$A$5:$AY$629,25,FALSE),0) -> 284 | AB25: =IFERROR(VLOOKUP($A25,Filtro!$A$5:$AY$629,26,FALSE),0) -> 379 | AC25: =IFERROR(VLOOKUP($A25,Filtro!$A$5:$AY$629,27,FALSE),0) -> 404 | AD25: =IFERROR(VLOOKUP($A25,Filtro!$A$5:$AY$629,28,FALSE),0) -> 369 | AE25: =IFERROR(VLOOKUP($A25,Filtro!$A$5:$AY$629,29,FALSE),0) -> 422 | AF25: =IFERROR(VLOOKUP($A25,Filtro!$A$5:$AY$629,30,FALSE),0) -> 290 | AG25: =IFERROR(VLOOKUP($A25,Filtro!$A$5:$AY$629,31,FALSE),0) -> 12 | AH25: =IFERROR(VLOOKUP($A25,Filtro!$A$5:$AY$629,32,FALSE),0) -> 20 | AI25: =IFERROR(VLOOKUP($A25,Filtro!$A$5:$AY$629,33,FALSE),0) -> 23 | AJ25: =IFERROR(VLOOKUP($A25,Filtro!$A$5:$AY$629,34,FALSE),0) -> 18 | BV25: =IF(AND(E25<>0,U25=""), "* No olvide escribir en la celda de Pueblos Originarios (Digite CERO si no tiene). ",IF(AND(F25<>0,V25=""), "* No olvide escribir en la celda de Pueblos Originarios (Digite CERO si no tiene). ","")) ->  | BW25: =IF(AND(E25<>0,W25=""), "* No olvide escribir en la celda de Población Migrantes (Digite CERO si no tiene). ",IF(AND(F25<>0,X25=""), "* No olvide escribir en la celda de Población Migrantes (Digite CERO si no tiene). ","")) ->  | CU25: =IF(AND(E25<>0,U25=""), 1,IF(AND(F25<>0,V25=""), 1,0)) -> 0 | CV25: =IF(AND(E25<>0,W25=""), 1,IF(AND(F25<>0,X25=""), 1,0)) -> 0
C26: TOTAL | D26: 4232 | E26: =+G26+I26+K26+M26+O26+Q26+S26+U26+W26+Y26+AA26+AC26+AE26 -> 2204 | F26: =+H26+J26+L26+N26+P26+R26+T26+V26+X26+Z26+AB26+AD26+AF26 -> 2028 | G26: =SUM(G24:G25) -> 20 | H26: 35 | I26: =SUM(I24:I25) -> 30 | J26: =SUM(J24:J25) -> 19 | K26: 23 | L26: 37 | M26: 35 | N26: 33 | O26: 43 | P26: 31 | Q26: 25 | R26: 34 | S26: 67 | T26: 40 | U26: 177 | V26: 182 | W26: 183 | X26: 182 | Y26: 191 | Z26: 194 | AA26: 363 | AB26: 441 | AC26: 503 | AD26: 433 | AE26: 544 | AF26: 367 | AG26: 16 | AH26: 26 | AI26: 30 | AJ26: 28 | BO26: =IF($D26>=$U26+$V26,"","* El Total de Pueblos Originarios no debe ser mayor al Total Indicador peso/talla. ") ->  | BP26: =IF($D26>=$W26+$X26,"","* El Total de Población Migrantes no debe ser mayor al Total Indicador peso/talla. ") ->  | CN26: =IF($D26>=$U26+$V26,0,1) -> 0 | CO26: =IF($D26>=$W26+$X26,0,1) -> 0
A27: P2070401 | C27: - 1 D.S. (-1.0 a -1.9) | D27: 3779 | E27: =+G27+I27+K27+M27+O27+Q27+S27+U27+W27+Y27+AA27+AC27+AE27 -> 1982 | F27: =+H27+J27+L27+N27+P27+R27+T27+V27+X27+Z27+AB27+AD27+AF27 -> 1797 | G27: =IFERROR(VLOOKUP($A27,Filtro!$A$5:$AY$629,5,FALSE),0) -> 10 | H27: =IFERROR(VLOOKUP($A27,Filtro!$A$5:$AY$629,6,FALSE),0) -> 10 | I27: =IFERROR(VLOOKUP($A27,Filtro!$A$5:$AY$629,7,FALSE),0) -> 25 | J27: =IFERROR(VLOOKUP($A27,Filtro!$A$5:$AY$629,8,FALSE),0) -> 33 | K27: =IFERROR(VLOOKUP($A27,Filtro!$A$5:$AY$629,9,FALSE),0) -> 47 | L27: =IFERROR(VLOOKUP($A27,Filtro!$A$5:$AY$629,10,FALSE),0) -> 45 | M27: =IFERROR(VLOOKUP($A27,Filtro!$A$5:$AY$629,11,FALSE),0) -> 34 | N27: =IFERROR(VLOOKUP($A27,Filtro!$A$5:$AY$629,12,FALSE),0) -> 20 | O27: =IFERROR(VLOOKUP($A27,Filtro!$A$5:$AY$629,13,FALSE),0) -> 38 | P27: =IFERROR(VLOOKUP($A27,Filtro!$A$5:$AY$629,14,FALSE),0) -> 30 | Q27: =IFERROR(VLOOKUP($A27,Filtro!$A$5:$AY$629,15,FALSE),0) -> 35 | R27: =IFERROR(VLOOKUP($A27,Filtro!$A$5:$AY$629,16,FALSE),0) -> 33 | S27: =IFERROR(VLOOKUP($A27,Filtro!$A$5:$AY$629,17,FALSE),0) -> 48 | T27: =IFERROR(VLOOKUP($A27,Filtro!$A$5:$AY$629,18,FALSE),0) -> 37 | U27: =IFERROR(VLOOKUP($A27,Filtro!$A$5:$AY$629,19,FALSE),0) -> 205 | V27: =IFERROR(VLOOKUP($A27,Filtro!$A$5:$AY$629,20,FALSE),0) -> 188 | W27: =IFERROR(VLOOKUP($A27,Filtro!$A$5:$AY$629,21,FALSE),0) -> 275 | X27: =IFERROR(VLOOKUP($A27,Filtro!$A$5:$AY$629,22,FALSE),0) -> 210 | Y27: =IFERROR(VLOOKUP($A27,Filtro!$A$5:$AY$629,23,FALSE),0) -> 253 | Z27: =IFERROR(VLOOKUP($A27,Filtro!$A$5:$AY$629,24,FALSE),0) -> 203 | AA27: =IFERROR(VLOOKUP($A27,Filtro!$A$5:$AY$629,25,FALSE),0) -> 359 | AB27: =IFERROR(VLOOKUP($A27,Filtro!$A$5:$AY$629,26,FALSE),0) -> 330 | AC27: =IFERROR(VLOOKUP($A27,Filtro!$A$5:$AY$629,27,FALSE),0) -> 356 | AD27: =IFERROR(VLOOKUP($A27,Filtro!$A$5:$AY$629,28,FALSE),0) -> 344 | AE27: =IFERROR(VLOOKUP($A27,Filtro!$A$5:$AY$629,29,FALSE),0) -> 297 | AF27: =IFERROR(VLOOKUP($A27,Filtro!$A$5:$AY$629,30,FALSE),0) -> 314 | AG27: =IFERROR(VLOOKUP($A27,Filtro!$A$5:$AY$629,31,FALSE),0) -> 11 | AH27: =IFERROR(VLOOKUP($A27,Filtro!$A$5:$AY$629,32,FALSE),0) -> 18 | AI27: =IFERROR(VLOOKUP($A27,Filtro!$A$5:$AY$629,33,FALSE),0) -> 37 | AJ27: =IFERROR(VLOOKUP($A27,Filtro!$A$5:$AY$629,34,FALSE),0) -> 55 | BV27: =IF(AND(E27<>0,U27=""), "* No olvide escribir en la celda de Pueblos Originarios (Digite CERO si no tiene). ",IF(AND(F27<>0,V27=""), "* No olvide escribir en la celda de Pueblos Originarios (Digite CERO si no tiene). ","")) ->  | BW27: =IF(AND(E27<>0,W27=""), "* No olvide escribir en la celda de Población Migrantes (Digite CERO si no tiene). ",IF(AND(F27<>0,X27=""), "* No olvide escribir en la celda de Población Migrantes (Digite CERO si no tiene). ","")) ->  | CU27: =IF(AND(E27<>0,U27=""), 1,IF(AND(F27<>0,V27=""), 1,0)) -> 0 | CV27: =IF(AND(E27<>0,W27=""), 1,IF(AND(F27<>0,X27=""), 1,0)) -> 0
A28: P2070402 | C28: - 2 D.S. (<= -2.0) | D28: 670 | E28: 407 | F28: 263 | G28: =IFERROR(VLOOKUP($A28,Filtro!$A$5:$AY$629,5,FALSE),0) -> 11 | H28: =IFERROR(VLOOKUP($A28,Filtro!$A$5:$AY$629,6,FALSE),0) -> 2 | I28: =IFERROR(VLOOKUP($A28,Filtro!$A$5:$AY$629,7,FALSE),0) -> 11 | J28: =IFERROR(VLOOKUP($A28,Filtro!$A$5:$AY$629,8,FALSE),0) -> 9 | K28: =IFERROR(VLOOKUP($A28,Filtro!$A$5:$AY$629,9,FALSE),0) -> 18 | L28: =IFERROR(VLOOKUP($A28,Filtro!$A$5:$AY$629,10,FALSE),0) -> 9 | M28: =IFERROR(VLOOKUP($A28,Filtro!$A$5:$AY$629,11,FALSE),0) -> 8 | N28: =IFERROR(VLOOKUP($A28,Filtro!$A$5:$AY$629,12,FALSE),0) -> 4 | O28: =IFERROR(VLOOKUP($A28,Filtro!$A$5:$AY$629,13,FALSE),0) -> 12 | P28: =IFERROR(VLOOKUP($A28,Filtro!$A$5:$AY$629,14,FALSE),0) -> 4 | Q28: =IFERROR(VLOOKUP($A28,Filtro!$A$5:$AY$629,15,FALSE),0) -> 8 | R28: =IFERROR(VLOOKUP($A28,Filtro!$A$5:$AY$629,16,FALSE),0) -> 4 | S28: =IFERROR(VLOOKUP($A28,Filtro!$A$5:$AY$629,17,FALSE),0) -> 15 | T28: =IFERROR(VLOOKUP($A28,Filtro!$A$5:$AY$629,18,FALSE),0) -> 3 | U28: =IFERROR(VLOOKUP($A28,Filtro!$A$5:$AY$629,19,FALSE),0) -> 42 | V28: =IFERROR(VLOOKUP($A28,Filtro!$A$5:$AY$629,20,FALSE),0) -> 22 | W28: =IFERROR(VLOOKUP($A28,Filtro!$A$5:$AY$629,21,FALSE),0) -> 86 | X28: =IFERROR(VLOOKUP($A28,Filtro!$A$5:$AY$629,22,FALSE),0) -> 31 | Y28: =IFERROR(VLOOKUP($A28,Filtro!$A$5:$AY$629,23,FALSE),0) -> 58 | Z28: =IFERROR(VLOOKUP($A28,Filtro!$A$5:$AY$629,24,FALSE),0) -> 29 | AA28: =IFERROR(VLOOKUP($A28,Filtro!$A$5:$AY$629,25,FALSE),0) -> 66 | AB28: =IFERROR(VLOOKUP($A28,Filtro!$A$5:$AY$629,26,FALSE),0) -> 45 | AC28: =IFERROR(VLOOKUP($A28,Filtro!$A$5:$AY$629,27,FALSE),0) -> 37 | AD28: =IFERROR(VLOOKUP($A28,Filtro!$A$5:$AY$629,28,FALSE),0) -> 51 | AE28: =IFERROR(VLOOKUP($A28,Filtro!$A$5:$AY$629,29,FALSE),0) -> 35 | AF28: =IFERROR(VLOOKUP($A28,Filtro!$A$5:$AY$629,30,FALSE),0) -> 50 | AG28: =IFERROR(VLOOKUP($A28,Filtro!$A$5:$AY$629,31,FALSE),0) -> 5 | AH28: =IFERROR(VLOOKUP($A28,Filtro!$A$5:$AY$629,32,FALSE),0) -> 3 | AI28: =IFERROR(VLOOKUP($A28,Filtro!$A$5:$AY$629,33,FALSE),0) -> 7 | AJ28: =IFERROR(VLOOKUP($A28,Filtro!$A$5:$AY$629,34,FALSE),0) -> 4 | BV28: =IF(AND(E28<>0,U28=""), "* No olvide escribir en la celda de Pueblos Originarios (Digite CERO si no tiene). ",IF(AND(F28<>0,V28=""), "* No olvide escribir en la celda de Pueblos Originarios (Digite CERO si no tiene). ","")) ->  | BW28: =IF(AND(E28<>0,W28=""), "* No olvide escribir en la celda de Población Migrantes (Digite CERO si no tiene). ",IF(AND(F28<>0,X28=""), "* No olvide escribir en la celda de Población Migrantes (Digite CERO si no tiene). ","")) ->  | CU28: =IF(AND(E28<>0,U28=""), 1,IF(AND(F28<>0,V28=""), 1,0)) -> 0 | CV28: =IF(AND(E28<>0,W28=""), 1,IF(AND(F28<>0,X28=""), 1,0)) -> 0
C29: TOTAL | D29: =SUM(E29:F29) -> 4449 | E29: =+G29+I29+K29+M29+O29+Q29+S29+U29+W29+Y29+AA29+AC29+AE29 -> 2389 | F29: =+H29+J29+L29+N29+P29+R29+T29+V29+X29+Z29+AB29+AD29+AF29 -> 2060 | G29: =SUM(G27:G28) -> 21 | H29: =SUM(H27:H28) -> 12 | I29: =SUM(I27:I28) -> 36 | J29: =SUM(J27:J28) -> 42 | K29: 65 | L29: 54 | M29: 42 | N29: 24 | O29: 50 | P29: 34 | Q29: 43 | R29: 37 | S29: 63 | T29: 40 | U29: 247 | V29: 210 | W29: 361 | X29: 241 | Y29: 311 | Z29: 232 | AA29: 425 | AB29: 375 | AC29: 393 | AD29: 395 | AE29: 332 | AF29: 364 | AG29: 16 | AH29: 21 | AI29: 44 | AJ29: 59 | BO29: =IF($D29>=$U29+$V29,"","* El Total de Pueblos Originarios no debe ser mayor al Total Indicador peso/talla. ") ->  | BP29: =IF($D29>=$W29+$X29,"","* El Total de Población Migrantes no debe ser mayor al Total Indicador peso/talla. ") ->  | CN29: =IF($D29>=$U29+$V29,0,1) -> 0 | CO29: =IF($D29>=$W29+$X29,0,1) -> 0
A30: P2400140 | C30: PROMEDIO (-0,9 A + 0,9) | D30: 17111 | E30: =+G30+I30+K30+M30+O30+Q30+S30+U30+W30+Y30+AA30+AC30+AE30 -> 8537 | F30: =+H30+J30+L30+N30+P30+R30+T30+V30+X30+Z30+AB30+AD30+AF30 -> 8574 | G30: =IFERROR(VLOOKUP($A30,Filtro!$A$5:$AY$629,5,FALSE),0) -> 79 | H30: =IFERROR(VLOOKUP($A30,Filtro!$A$5:$AY$629,6,FALSE),0) -> 84 | I30: =IFERROR(VLOOKUP($A30,Filtro!$A$5:$AY$629,7,FALSE),0) -> 161 | J30: =IFERROR(VLOOKUP($A30,Filtro!$A$5:$AY$629,8,FALSE),0) -> 154 | K30: =IFERROR(VLOOKUP($A30,Filtro!$A$5:$AY$629,9,FALSE),0) -> 145 | L30: =IFERROR(VLOOKUP($A30,Filtro!$A$5:$AY$629,10,FALSE),0) -> 180 | M30: =IFERROR(VLOOKUP($A30,Filtro!$A$5:$AY$629,11,FALSE),0) -> 133 | N30: =IFERROR(VLOOKUP($A30,Filtro!$A$5:$AY$629,12,FALSE),0) -> 163 | O30: =IFERROR(VLOOKUP($A30,Filtro!$A$5:$AY$629,13,FALSE),0) -> 167 | P30: =IFERROR(VLOOKUP($A30,Filtro!$A$5:$AY$629,14,FALSE),0) -> 191 | Q30: =IFERROR(VLOOKUP($A30,Filtro!$A$5:$AY$629,15,FALSE),0) -> 155 | R30: =IFERROR(VLOOKUP($A30,Filtro!$A$5:$AY$629,16,FALSE),0) -> 179 | S30: =IFERROR(VLOOKUP($A30,Filtro!$A$5:$AY$629,17,FALSE),0) -> 208 | T30: =IFERROR(VLOOKUP($A30,Filtro!$A$5:$AY$629,18,FALSE),0) -> 225 | U30: =IFERROR(VLOOKUP($A30,Filtro!$A$5:$AY$629,19,FALSE),0) -> 660 | V30: =IFERROR(VLOOKUP($A30,Filtro!$A$5:$AY$629,20,FALSE),0) -> 702 | W30: =IFERROR(VLOOKUP($A30,Filtro!$A$5:$AY$629,21,FALSE),0) -> 878 | X30: =IFERROR(VLOOKUP($A30,Filtro!$A$5:$AY$629,22,FALSE),0) -> 885 | Y30: =IFERROR(VLOOKUP($A30,Filtro!$A$5:$AY$629,23,FALSE),0) -> 822 | Z30: =IFERROR(VLOOKUP($A30,Filtro!$A$5:$AY$629,24,FALSE),0) -> 885 | AA30: =IFERROR(VLOOKUP($A30,Filtro!$A$5:$AY$629,25,FALSE),0) -> 1634 | AB30: =IFERROR(VLOOKUP($A30,Filtro!$A$5:$AY$629,26,FALSE),0) -> 1527 | AC30: =IFERROR(VLOOKUP($A30,Filtro!$A$5:$AY$629,27,FALSE),0) -> 1801 | AD30: =IFERROR(VLOOKUP($A30,Filtro!$A$5:$AY$629,28,FALSE),0) -> 1769 | AE30: =IFERROR(VLOOKUP($A30,Filtro!$A$5:$AY$629,29,FALSE),0) -> 1694 | AF30: =IFERROR(VLOOKUP($A30,Filtro!$A$5:$AY$629,30,FALSE),0) -> 1630 | AG30: =IFERROR(VLOOKUP($A30,Filtro!$A$5:$AY$629,31,FALSE),0) -> 78 | AH30: =IFERROR(VLOOKUP($A30,Filtro!$A$5:$AY$629,32,FALSE),0) -> 93 | AI30: =IFERROR(VLOOKUP($A30,Filtro!$A$5:$AY$629,33,FALSE),0) -> 144 | AJ30: =IFERROR(VLOOKUP($A30,Filtro!$A$5:$AY$629,34,FALSE),0) -> 128 | BV30: =IF(AND(E30<>0,U30=""), "* No olvide escribir en la celda de Pueblos Originarios (Digite CERO si no tiene). ",IF(AND(F30<>0,V30=""), "* No olvide escribir en la celda de Pueblos Originarios (Digite CERO si no tiene). ","")) ->  | BW30: =IF(AND(E30<>0,W30=""), "* No olvide escribir en la celda de Población Migrantes (Digite CERO si no tiene). ",IF(AND(F30<>0,X30=""), "* No olvide escribir en la celda de Población Migrantes (Digite CERO si no tiene). ","")) ->  | CU30: =IF(AND(E30<>0,U30=""), 1,IF(AND(F30<>0,V30=""), 1,0)) -> 0 | CV30: =IF(AND(E30<>0,W30=""), 1,IF(AND(F30<>0,X30=""), 1,0)) -> 0
A31: P2070501 | B31: DIAGNOSTICO NUTRICIONAL INTEGRADO | C31: RIESGO DE DESNUTRIR/ DEFICIT PONDERAL* | D31: 931 | E31: =+I31+K31+M31+O31+Q31+S31+U31+W31+Y31+AA31+AC31+AE31 -> 536 | F31: =+J31+L31+N31+P31+R31+T31+V31+X31+Z31+AB31+AD31+AF31 -> 395 | G31: 0 | H31: 0 | I31: =IFERROR(VLOOKUP($A31,Filtro!$A$5:$AY$629,7,FALSE),0) -> 17 | J31: =IFERROR(VLOOKUP($A31,Filtro!$A$5:$AY$629,8,FALSE),0) -> 17 | K31: =IFERROR(VLOOKUP($A31,Filtro!$A$5:$AY$629,9,FALSE),0) -> 16 | L31: =IFERROR(VLOOKUP($A31,Filtro!$A$5:$AY$629,10,FALSE),0) -> 27 | M31: =IFERROR(VLOOKUP($A31,Filtro!$A$5:$AY$629,11,FALSE),0) -> 17 | N31: =IFERROR(VLOOKUP($A31,Filtro!$A$5:$AY$629,12,FALSE),0) -> 11 | O31: =IFERROR(VLOOKUP($A31,Filtro!$A$5:$AY$629,13,FALSE),0) -> 8 | P31: =IFERROR(VLOOKUP($A31,Filtro!$A$5:$AY$629,14,FALSE),0) -> 14 | Q31: =IFERROR(VLOOKUP($A31,Filtro!$A$5:$AY$629,15,FALSE),0) -> 13 | R31: =IFERROR(VLOOKUP($A31,Filtro!$A$5:$AY$629,16,FALSE),0) -> 11 | S31: =IFERROR(VLOOKUP($A31,Filtro!$A$5:$AY$629,17,FALSE),0) -> 20 | T31: =IFERROR(VLOOKUP($A31,Filtro!$A$5:$AY$629,18,FALSE),0) -> 11 | U31: =IFERROR(VLOOKUP($A31,Filtro!$A$5:$AY$629,19,FALSE),0) -> 51 | V31: =IFERROR(VLOOKUP($A31,Filtro!$A$5:$AY$629,20,FALSE),0) -> 38 | W31: =IFERROR(VLOOKUP($A31,Filtro!$A$5:$AY$629,21,FALSE),0) -> 48 | X31: =IFERROR(VLOOKUP($A31,Filtro!$A$5:$AY$629,22,FALSE),0) -> 32 | Y31: =IFERROR(VLOOKUP($A31,Filtro!$A$5:$AY$629,23,FALSE),0) -> 54 | Z31: =IFERROR(VLOOKUP($A31,Filtro!$A$5:$AY$629,24,FALSE),0) -> 33 | AA31: =IFERROR(VLOOKUP($A31,Filtro!$A$5:$AY$629,25,FALSE),0) -> 109 | AB31: =IFERROR(VLOOKUP($A31,Filtro!$A$5:$AY$629,26,FALSE),0) -> 57 | AC31: =IFERROR(VLOOKUP($A31,Filtro!$A$5:$AY$629,27,FALSE),0) -> 104 | AD31: =IFERROR(VLOOKUP($A31,Filtro!$A$5:$AY$629,28,FALSE),0) -> 82 | AE31: =IFERROR(VLOOKUP($A31,Filtro!$A$5:$AY$629,29,FALSE),0) -> 79 | AF31: =IFERROR(VLOOKUP($A31,Filtro!$A$5:$AY$629,30,FALSE),0) -> 62 | AG31: =IFERROR(VLOOKUP($A31,Filtro!$A$5:$AY$629,31,FALSE),0) -> 4 | AH31: =IFERROR(VLOOKUP($A31,Filtro!$A$5:$AY$629,32,FALSE),0) -> 7 | AI31: =IFERROR(VLOOKUP($A31,Filtro!$A$5:$AY$629,33,FALSE),0) -> 18 | AJ31: =IFERROR(VLOOKUP($A31,Filtro!$A$5:$AY$629,34,FALSE),0) -> 17 | CU31: 0 | CV31: 0
A32: P2070502 | C32: DESNUTRIDO | D32: 109 | E32: =+I32+K32+M32+O32+Q32+S32+U32+W32+Y32+AA32+AC32+AE32 -> 74 | F32: 35 | G32: 0 | H32: 0 | I32: =IFERROR(VLOOKUP($A32,Filtro!$A$5:$AY$629,7,FALSE),0) -> 2 | J32: =IFERROR(VLOOKUP($A32,Filtro!$A$5:$AY$629,8,FALSE),0) -> 4 | K32: =IFERROR(VLOOKUP($A32,Filtro!$A$5:$AY$629,9,FALSE),0) -> 8 | L32: =IFERROR(VLOOKUP($A32,Filtro!$A$5:$AY$629,10,FALSE),0) -> 2 | M32: =IFERROR(VLOOKUP($A32,Filtro!$A$5:$AY$629,11,FALSE),0) -> 3 | N32: =IFERROR(VLOOKUP($A32,Filtro!$A$5:$AY$629,12,FALSE),0) -> 0 | O32: =IFERROR(VLOOKUP($A32,Filtro!$A$5:$AY$629,13,FALSE),0) -> 1 | P32: =IFERROR(VLOOKUP($A32,Filtro!$A$5:$AY$629,14,FALSE),0) -> 1 | Q32: =IFERROR(VLOOKUP($A32,Filtro!$A$5:$AY$629,15,FALSE),0) -> 5 | R32: =IFERROR(VLOOKUP($A32,Filtro!$A$5:$AY$629,16,FALSE),0) -> 2 | S32: =IFERROR(VLOOKUP($A32,Filtro!$A$5:$AY$629,17,FALSE),0) -> 3 | T32: =IFERROR(VLOOKUP($A32,Filtro!$A$5:$AY$629,18,FALSE),0) -> 0 | U32: =IFERROR(VLOOKUP($A32,Filtro!$A$5:$AY$629,19,FALSE),0) -> 3 | V32: =IFERROR(VLOOKUP($A32,Filtro!$A$5:$AY$629,20,FALSE),0) -> 1 | W32: =IFERROR(VLOOKUP($A32,Filtro!$A$5:$AY$629,21,FALSE),0) -> 11 | X32: =IFERROR(VLOOKUP($A32,Filtro!$A$5:$AY$629,22,FALSE),0) -> 3 | Y32: =IFERROR(VLOOKUP($A32,Filtro!$A$5:$AY$629,23,FALSE),0) -> 6 | Z32: =IFERROR(VLOOKUP($A32,Filtro!$A$5:$AY$629,24,FALSE),0) -> 0 | AA32: =IFERROR(VLOOKUP($A32,Filtro!$A$5:$AY$629,25,FALSE),0) -> 7 | AB32: =IFERROR(VLOOKUP($A32,Filtro!$A$5:$AY$629,26,FALSE),0) -> 11 | AC32: =IFERROR(VLOOKUP($A32,Filtro!$A$5:$AY$629,27,FALSE),0) -> 18 | AD32: =IFERROR(VLOOKUP($A32,Filtro!$A$5:$AY$629,28,FALSE),0) -> 4 | AE32: =IFERROR(VLOOKUP($A32,Filtro!$A$5:$AY$629,29,FALSE),0) -> 7 | AF32: =IFERROR(VLOOKUP($A32,Filtro!$A$5:$AY$629,30,FALSE),0) -> 7 | AG32: =IFERROR(VLOOKUP($A32,Filtro!$A$5:$AY$629,31,FALSE),0) -> 0 | AH32: =IFERROR(VLOOKUP($A32,Filtro!$A$5:$AY$629,32,FALSE),0) -> 0 | AI32: =IFERROR(VLOOKUP($A32,Filtro!$A$5:$AY$629,33,FALSE),0) -> 1 | AJ32: =IFERROR(VLOOKUP($A32,Filtro!$A$5:$AY$629,34,FALSE),0) -> 3 | CU32: 0 | CV32: 0
A33: P2070503 | C33: SOBREPESO / RIESGO OBESIDAD | D33: 6984 | E33: 3501 | F33: 3483 | G33: 0 | H33: 0 | I33: =IFERROR(VLOOKUP($A33,Filtro!$A$5:$AY$629,7,FALSE),0) -> 39 | J33: =IFERROR(VLOOKUP($A33,Filtro!$A$5:$AY$629,8,FALSE),0) -> 29 | K33: =IFERROR(VLOOKUP($A33,Filtro!$A$5:$AY$629,9,FALSE),0) -> 68 | L33: =IFERROR(VLOOKUP($A33,Filtro!$A$5:$AY$629,10,FALSE),0) -> 65 | M33: =IFERROR(VLOOKUP($A33,Filtro!$A$5:$AY$629,11,FALSE),0) -> 54 | N33: =IFERROR(VLOOKUP($A33,Filtro!$A$5:$AY$629,12,FALSE),0) -> 49 | O33: =IFERROR(VLOOKUP($A33,Filtro!$A$5:$AY$629,13,FALSE),0) -> 62 | P33: =IFERROR(VLOOKUP($A33,Filtro!$A$5:$AY$629,14,FALSE),0) -> 77 | Q33: =IFERROR(VLOOKUP($A33,Filtro!$A$5:$AY$629,15,FALSE),0) -> 74 | R33: =IFERROR(VLOOKUP($A33,Filtro!$A$5:$AY$629,16,FALSE),0) -> 78 | S33: =IFERROR(VLOOKUP($A33,Filtro!$A$5:$AY$629,17,FALSE),0) -> 108 | T33: =IFERROR(VLOOKUP($A33,Filtro!$A$5:$AY$629,18,FALSE),0) -> 117 | U33: =IFERROR(VLOOKUP($A33,Filtro!$A$5:$AY$629,19,FALSE),0) -> 384 | V33: =IFERROR(VLOOKUP($A33,Filtro!$A$5:$AY$629,20,FALSE),0) -> 360 | W33: =IFERROR(VLOOKUP($A33,Filtro!$A$5:$AY$629,21,FALSE),0) -> 436 | X33: =IFERROR(VLOOKUP($A33,Filtro!$A$5:$AY$629,22,FALSE),0) -> 439 | Y33: =IFERROR(VLOOKUP($A33,Filtro!$A$5:$AY$629,23,FALSE),0) -> 357 | Z33: =IFERROR(VLOOKUP($A33,Filtro!$A$5:$AY$629,24,FALSE),0) -> 394 | AA33: =IFERROR(VLOOKUP($A33,Filtro!$A$5:$AY$629,25,FALSE),0) -> 634 | AB33: =IFERROR(VLOOKUP($A33,Filtro!$A$5:$AY$629,26,FALSE),0) -> 593 | AC33: =IFERROR(VLOOKUP($A33,Filtro!$A$5:$AY$629,27,FALSE),0) -> 630 | AD33: =IFERROR(VLOOKUP($A33,Filtro!$A$5:$AY$629,28,FALSE),0) -> 710 | AE33: =IFERROR(VLOOKUP($A33,Filtro!$A$5:$AY$629,29,FALSE),0) -> 655 | AF33: =IFERROR(VLOOKUP($A33,Filtro!$A$5:$AY$629,30,FALSE),0) -> 572 | AG33: =IFERROR(VLOOKUP($A33,Filtro!$A$5:$AY$629,31,FALSE),0) -> 36 | AH33: =IFERROR(VLOOKUP($A33,Filtro!$A$5:$AY$629,32,FALSE),0) -> 39 | AI33: =IFERROR(VLOOKUP($A33,Filtro!$A$5:$AY$629,33,FALSE),0) -> 66 | AJ33: =IFERROR(VLOOKUP($A33,Filtro!$A$5:$AY$629,34,FALSE),0) -> 64 | CU33: 0 | CV33: 0
A34: P2070504 | C34: OBESO | D34: 3793 | E34: 1958 | F34: 1835 | G34: 0 | H34: 0 | I34: =IFERROR(VLOOKUP($A34,Filtro!$A$5:$AY$629,7,FALSE),0) -> 17 | J34: =IFERROR(VLOOKUP($A34,Filtro!$A$5:$AY$629,8,FALSE),0) -> 6 | K34: =IFERROR(VLOOKUP($A34,Filtro!$A$5:$AY$629,9,FALSE),0) -> 14 | L34: =IFERROR(VLOOKUP($A34,Filtro!$A$5:$AY$629,10,FALSE),0) -> 10 | M34: =IFERROR(VLOOKUP($A34,Filtro!$A$5:$AY$629,11,FALSE),0) -> 22 | N34: =IFERROR(VLOOKUP($A34,Filtro!$A$5:$AY$629,12,FALSE),0) -> 22 | O34: =IFERROR(VLOOKUP($A34,Filtro!$A$5:$AY$629,13,FALSE),0) -> 39 | P34: =IFERROR(VLOOKUP($A34,Filtro!$A$5:$AY$629,14,FALSE),0) -> 19 | Q34: =IFERROR(VLOOKUP($A34,Filtro!$A$5:$AY$629,15,FALSE),0) -> 24 | R34: =IFERROR(VLOOKUP($A34,Filtro!$A$5:$AY$629,16,FALSE),0) -> 27 | S34: =IFERROR(VLOOKUP($A34,Filtro!$A$5:$AY$629,17,FALSE),0) -> 50 | T34: =IFERROR(VLOOKUP($A34,Filtro!$A$5:$AY$629,18,FALSE),0) -> 36 | U34: =IFERROR(VLOOKUP($A34,Filtro!$A$5:$AY$629,19,FALSE),0) -> 168 | V34: =IFERROR(VLOOKUP($A34,Filtro!$A$5:$AY$629,20,FALSE),0) -> 156 | W34: =IFERROR(VLOOKUP($A34,Filtro!$A$5:$AY$629,21,FALSE),0) -> 209 | X34: =IFERROR(VLOOKUP($A34,Filtro!$A$5:$AY$629,22,FALSE),0) -> 187 | Y34: =IFERROR(VLOOKUP($A34,Filtro!$A$5:$AY$629,23,FALSE),0) -> 174 | Z34: =IFERROR(VLOOKUP($A34,Filtro!$A$5:$AY$629,24,FALSE),0) -> 174 | AA34: =IFERROR(VLOOKUP($A34,Filtro!$A$5:$AY$629,25,FALSE),0) -> 291 | AB34: =IFERROR(VLOOKUP($A34,Filtro!$A$5:$AY$629,26,FALSE),0) -> 299 | AC34: =IFERROR(VLOOKUP($A34,Filtro!$A$5:$AY$629,27,FALSE),0) -> 447 | AD34: =IFERROR(VLOOKUP($A34,Filtro!$A$5:$AY$629,28,FALSE),0) -> 436 | AE34: =IFERROR(VLOOKUP($A34,Filtro!$A$5:$AY$629,29,FALSE),0) -> 503 | AF34: =IFERROR(VLOOKUP($A34,Filtro!$A$5:$AY$629,30,FALSE),0) -> 463 | AG34: =IFERROR(VLOOKUP($A34,Filtro!$A$5:$AY$629,31,FALSE),0) -> 22 | AH34: =IFERROR(VLOOKUP($A34,Filtro!$A$5:$AY$629,32,FALSE),0) -> 22 | AI34: =IFERROR(VLOOKUP($A34,Filtro!$A$5:$AY$629,33,FALSE),0) -> 25 | AJ34: =IFERROR(VLOOKUP($A34,Filtro!$A$5:$AY$629,34,FALSE),0) -> 19 | CU34: 0 | CV34: 0
A35: P2070505 | C35: NORMAL | D35: 18094 | E35: 9120 | F35: 8974 | G35: 0 | H35: 0 | I35: =IFERROR(VLOOKUP($A35,Filtro!$A$5:$AY$629,7,FALSE),0) -> 202 | J35: =IFERROR(VLOOKUP($A35,Filtro!$A$5:$AY$629,8,FALSE),0) -> 205 | K35: =IFERROR(VLOOKUP($A35,Filtro!$A$5:$AY$629,9,FALSE),0) -> 195 | L35: =IFERROR(VLOOKUP($A35,Filtro!$A$5:$AY$629,10,FALSE),0) -> 208 | M35: =IFERROR(VLOOKUP($A35,Filtro!$A$5:$AY$629,11,FALSE),0) -> 172 | N35: =IFERROR(VLOOKUP($A35,Filtro!$A$5:$AY$629,12,FALSE),0) -> 183 | O35: =IFERROR(VLOOKUP($A35,Filtro!$A$5:$AY$629,13,FALSE),0) -> 188 | P35: =IFERROR(VLOOKUP($A35,Filtro!$A$5:$AY$629,14,FALSE),0) -> 204 | Q35: =IFERROR(VLOOKUP($A35,Filtro!$A$5:$AY$629,15,FALSE),0) -> 148 | R35: =IFERROR(VLOOKUP($A35,Filtro!$A$5:$AY$629,16,FALSE),0) -> 176 | S35: =IFERROR(VLOOKUP($A35,Filtro!$A$5:$AY$629,17,FALSE),0) -> 222 | T35: =IFERROR(VLOOKUP($A35,Filtro!$A$5:$AY$629,18,FALSE),0) -> 203 | U35: =IFERROR(VLOOKUP($A35,Filtro!$A$5:$AY$629,19,FALSE),0) -> 634 | V35: =IFERROR(VLOOKUP($A35,Filtro!$A$5:$AY$629,20,FALSE),0) -> 696 | W35: =IFERROR(VLOOKUP($A35,Filtro!$A$5:$AY$629,21,FALSE),0) -> 911 | X35: =IFERROR(VLOOKUP($A35,Filtro!$A$5:$AY$629,22,FALSE),0) -> 851 | Y35: =IFERROR(VLOOKUP($A35,Filtro!$A$5:$AY$629,23,FALSE),0) -> 934 | Z35: =IFERROR(VLOOKUP($A35,Filtro!$A$5:$AY$629,24,FALSE),0) -> 902 | AA35: =IFERROR(VLOOKUP($A35,Filtro!$A$5:$AY$629,25,FALSE),0) -> 1753 | AB35: =IFERROR(VLOOKUP($A35,Filtro!$A$5:$AY$629,26,FALSE),0) -> 1721 | AC35: =IFERROR(VLOOKUP($A35,Filtro!$A$5:$AY$629,27,FALSE),0) -> 1930 | AD35: =IFERROR(VLOOKUP($A35,Filtro!$A$5:$AY$629,28,FALSE),0) -> 1852 | AE35: =IFERROR(VLOOKUP($A35,Filtro!$A$5:$AY$629,29,FALSE),0) -> 1831 | AF35: =IFERROR(VLOOKUP($A35,Filtro!$A$5:$AY$629,30,FALSE),0) -> 1773 | AG35: =IFERROR(VLOOKUP($A35,Filtro!$A$5:$AY$629,31,FALSE),0) -> 87 | AH35: =IFERROR(VLOOKUP($A35,Filtro!$A$5:$AY$629,32,FALSE),0) -> 99 | AI35: =IFERROR(VLOOKUP($A35,Filtro!$A$5:$AY$629,33,FALSE),0) -> 211 | AJ35: =IFERROR(VLOOKUP($A35,Filtro!$A$5:$AY$629,34,FALSE),0) -> 231 | CU35: 0 | CV35: 0
C36: SUBTOTAL | D36: =SUM(E36:F36) -> 29911 | E36: 15189 | F36: 14722 | I36: =SUM(I31:I35) -> 277 | J36: 261 | K36: 301 | L36: 312 | M36: 268 | N36: 265 | O36: 298 | P36: 315 | Q36: 264 | R36: 294 | S36: 403 | T36: 367 | U36: 1240 | V36: 1251 | W36: 1615 | X36: 1512 | Y36: 1525 | Z36: 1503 | AA36: 2794 | AB36: 2681 | AC36: 3129 | AD36: 3084 | AE36: 3075 | AF36: 2877 | AG36: 149 | AH36: 167 | AI36: 321 | AJ36: 334 | BO36: =IF($D36>=$U36+$V36,"","* El Total de Pueblos Originarios no debe ser mayor al Total Indicador peso/talla. ") ->  | BP36: =IF($D36>=$W36+$X36,"","* El Total de Población Migrantes no debe ser mayor al Total Indicador peso/talla. ") ->  | CN36: =IF($D36>=$U36+$V36,0,1) -> 0 | CO36: =IF($D36>=$W36+$X36,0,1) -> 0
A37: P2070506 | C37: DESNUTRICIÓN SECUNDARIA | D37: =SUM(E37:F37) -> 13 | E37: 5 | F37: 8 | G37: 0 | H37: 0 | I37: =IFERROR(VLOOKUP($A37,Filtro!$A$5:$AY$629,7,FALSE),0) -> 0 | J37: =IFERROR(VLOOKUP($A37,Filtro!$A$5:$AY$629,8,FALSE),0) -> 1 | K37: =IFERROR(VLOOKUP($A37,Filtro!$A$5:$AY$629,9,FALSE),0) -> 0 | L37: =IFERROR(VLOOKUP($A37,Filtro!$A$5:$AY$629,10,FALSE),0) -> 0 | M37: =IFERROR(VLOOKUP($A37,Filtro!$A$5:$AY$629,11,FALSE),0) -> 0 | N37: =IFERROR(VLOOKUP($A37,Filtro!$A$5:$AY$629,12,FALSE),0) -> 0 | O37: =IFERROR(VLOOKUP($A37,Filtro!$A$5:$AY$629,13,FALSE),0) -> 1 | P37: =IFERROR(VLOOKUP($A37,Filtro!$A$5:$AY$629,14,FALSE),0) -> 0 | Q37: =IFERROR(VLOOKUP($A37,Filtro!$A$5:$AY$629,15,FALSE),0) -> 0 | R37: =IFERROR(VLOOKUP($A37,Filtro!$A$5:$AY$629,16,FALSE),0) -> 0 | S37: =IFERROR(VLOOKUP($A37,Filtro!$A$5:$AY$629,17,FALSE),0) -> 0 | T37: =IFERROR(VLOOKUP($A37,Filtro!$A$5:$AY$629,18,FALSE),0) -> 0 | U37: =IFERROR(VLOOKUP($A37,Filtro!$A$5:$AY$629,19,FALSE),0) -> 0 | V37: =IFERROR(VLOOKUP($A37,Filtro!$A$5:$AY$629,20,FALSE),0) -> 1 | W37: =IFERROR(VLOOKUP($A37,Filtro!$A$5:$AY$629,21,FALSE),0) -> 1 | X37: =IFERROR(VLOOKUP($A37,Filtro!$A$5:$AY$629,22,FALSE),0) -> 0 | Y37: =IFERROR(VLOOKUP($A37,Filtro!$A$5:$AY$629,23,FALSE),0) -> 0 | Z37: =IFERROR(VLOOKUP($A37,Filtro!$A$5:$AY$629,24,FALSE),0) -> 1 | AA37: =IFERROR(VLOOKUP($A37,Filtro!$A$5:$AY$629,25,FALSE),0) -> 1 | AB37: =IFERROR(VLOOKUP($A37,Filtro!$A$5:$AY$629,26,FALSE),0) -> 1 | AC37: =IFERROR(VLOOKUP($A37,Filtro!$A$5:$AY$629,27,FALSE),0) -> 1 | AD37: =IFERROR(VLOOKUP($A37,Filtro!$A$5:$AY$629,28,FALSE),0) -> 3 | AE37: =IFERROR(VLOOKUP($A37,Filtro!$A$5:$AY$629,29,FALSE),0) -> 1 | AF37: =IFERROR(VLOOKUP($A37,Filtro!$A$5:$AY$629,30,FALSE),0) -> 1 | AG37: =IFERROR(VLOOKUP($A37,Filtro!$A$5:$AY$629,31,FALSE),0) -> 0 | AH37: =IFERROR(VLOOKUP($A37,Filtro!$A$5:$AY$629,32,FALSE),0) -> 0 | AI37: =IFERROR(VLOOKUP($A37,Filtro!$A$5:$AY$629,33,FALSE),0) -> 1 | AJ37: =IFERROR(VLOOKUP($A37,Filtro!$A$5:$AY$629,34,FALSE),0) -> 1 | BV37: =IF(AND(E37<>0,U37=""), "* No olvide escribir en la celda de Pueblos Originarios (Digite CERO si no tiene). ",IF(AND(F37<>0,V37=""), "* No olvide escribir en la celda de Pueblos Originarios (Digite CERO si no tiene). ","")) ->  | BW37: =IF(AND(E37<>0,W37=""), "* No olvide escribir en la celda de Población Migrantes (Digite CERO si no tiene). ",IF(AND(F37<>0,X37=""), "* No olvide escribir en la celda de Población Migrantes (Digite CERO si no tiene). ","")) ->  | CU37: =IF(AND(E37<>0,U37=""), 1,IF(AND(F37<>0,V37=""), 1,0)) -> 0 | CV37: =IF(AND(E37<>0,W37=""), 1,IF(AND(F37<>0,X37=""), 1,0)) -> 0
C38: TOTAL | D38: 29924 | E38: 15194 | F38: 14730 | I38: =SUM(I31:I35)+I37 -> 277 | J38: 262 | K38: 301 | L38: 312 | M38: 268 | N38: 265 | O38: 299 | P38: 315 | Q38: 264 | R38: 294 | S38: 403 | T38: 367 | U38: 1240 | V38: 1252 | W38: 1616 | X38: 1512 | Y38: 1525 | Z38: 1504 | AA38: 2795 | AB38: 2682 | AC38: 3130 | AD38: 3087 | AE38: 3076 | AF38: 2878 | AG38: 149 | AH38: 167 | AI38: 322 | AJ38: 335
A39: P2501800 | B39: NIÑOS SIN EVALUACIÓN NUTRICIONAL POR CURSO DE VIDA (RECIÉN NACIDOS) O POR CONDICIÓN ESPECIAL DE SALUD | D39: =SUM(E39:F39) -> 160 | E39: =+G39+I39+K39+M39+O39+Q39+S39+U39+W39+Y39+AA39+AC39+AE39 -> 80 | F39: =+H39+J39+L39+N39+P39+R39+T39+V39+X39+Z39+AB39+AD39+AF39 -> 80 | G39: =IFERROR(VLOOKUP($A39,Filtro!$A$5:$AY$629,5,FALSE),0) -> 72 | H39: =IFERROR(VLOOKUP($A39,Filtro!$A$5:$AY$629,6,FALSE),0) -> 74 | I39: =IFERROR(VLOOKUP($A39,Filtro!$A$5:$AY$629,7,FALSE),0) -> 0 | J39: =IFERROR(VLOOKUP($A39,Filtro!$A$5:$AY$629,8,FALSE),0) -> 0 | K39: =IFERROR(VLOOKUP($A39,Filtro!$A$5:$AY$629,9,FALSE),0) -> 0 | L39: =IFERROR(VLOOKUP($A39,Filtro!$A$5:$AY$629,10,FALSE),0) -> 0 | M39: =IFERROR(VLOOKUP($A39,Filtro!$A$5:$AY$629,11,FALSE),0) -> 0 | N39: =IFERROR(VLOOKUP($A39,Filtro!$A$5:$AY$629,12,FALSE),0) -> 0 | O39: =IFERROR(VLOOKUP($A39,Filtro!$A$5:$AY$629,13,FALSE),0) -> 0 | P39: =IFERROR(VLOOKUP($A39,Filtro!$A$5:$AY$629,14,FALSE),0) -> 0 | Q39: =IFERROR(VLOOKUP($A39,Filtro!$A$5:$AY$629,15,FALSE),0) -> 0 | R39: =IFERROR(VLOOKUP($A39,Filtro!$A$5:$AY$629,16,FALSE),0) -> 0 | S39: =IFERROR(VLOOKUP($A39,Filtro!$A$5:$AY$629,17,FALSE),0) -> 0 | T39: =IFERROR(VLOOKUP($A39,Filtro!$A$5:$AY$629,18,FALSE),0) -> 0 | U39: =IFERROR(VLOOKUP($A39,Filtro!$A$5:$AY$629,19,FALSE),0) -> 0 | V39: =IFERROR(VLOOKUP($A39,Filtro!$A$5:$AY$629,20,FALSE),0) -> 0 | W39: =IFERROR(VLOOKUP($A39,Filtro!$A$5:$AY$629,21,FALSE),0) -> 0 | X39: =IFERROR(VLOOKUP($A39,Filtro!$A$5:$AY$629,22,FALSE),0) -> 2 | Y39: =IFERROR(VLOOKUP($A39,Filtro!$A$5:$AY$629,23,FALSE),0) -> 0 | Z39: =IFERROR(VLOOKUP($A39,Filtro!$A$5:$AY$629,24,FALSE),0) -> 2 | AA39: =IFERROR(VLOOKUP($A39,Filtro!$A$5:$AY$629,25,FALSE),0) -> 1 | AB39: =IFERROR(VLOOKUP($A39,Filtro!$A$5:$AY$629,26,FALSE),0) -> 0 | AC39: =IFERROR(VLOOKUP($A39,Filtro!$A$5:$AY$629,27,FALSE),0) -> 3 | AD39: =IFERROR(VLOOKUP($A39,Filtro!$A$5:$AY$629,28,FALSE),0) -> 0 | AE39: =IFERROR(VLOOKUP($A39,Filtro!$A$5:$AY$629,29,FALSE),0) -> 4 | AF39: =IFERROR(VLOOKUP($A39,Filtro!$A$5:$AY$629,30,FALSE),0) -> 2 | AG39: =IFERROR(VLOOKUP($A39,Filtro!$A$5:$AY$629,31,FALSE),0) -> 0 | AH39: =IFERROR(VLOOKUP($A39,Filtro!$A$5:$AY$629,32,FALSE),0) -> 0 | AI39: =IFERROR(VLOOKUP($A39,Filtro!$A$5:$AY$629,33,FALSE),0) -> 0 | AJ39: =IFERROR(VLOOKUP($A39,Filtro!$A$5:$AY$629,34,FALSE),0) -> 0 | BO39: =IF($D39>=$U39+$V39,"","* El Total de Pueblos Originarios no debe ser mayor al Total Indicador peso/talla. ") ->  | BP39: =IF($D39>=$W39+$X39,"","* El Total de Población Migrantes no debe ser mayor al Total Indicador peso/talla. ") ->  | CN39: =IF($D39>=$U39+$V39,0,1) -> 0 | CO39: =IF($D39>=$W39+$X39,0,1) -> 0
B40: SECCION A.1: POBLACIÓN EN CONTROL, SEGÚN ESTADO NUTRICIONAL PARA NIÑOS AS DE 60 MESES - 9 AÑOS 11 MESES
B41: INDICADOR NUTRICIONAL Y PARÁMETROS DE MEDICIÓN | D41: TOTAL | G41: GRUPOS DE EDAD (en meses - años) Y SEXO
G42: 60 a 71 meses | I42: 6 a 6 años 11 meses | K42: 7 a 7 años 11 meses | M42: 8 a 8 años 11 meses | O42: 9 a 9 años 11 meses | Q42: Pueblos Originarios | S42: Migrantes
D43: Ambos sexos | E43: Hombres | F43: Mujeres | G43: Hombres | H43: Mujeres | I43: Hombres | J43: Mujeres | K43: Hombres | L43: Mujeres | M43: Hombres | N43: Mujeres | O43: Hombres | P43: Mujeres | Q43: Hombres | R43: Mujeres | S43: Hombres | T43: Mujeres
A44: P2400150 | B44: TOTAL DE NIÑOS EN CONTROL | D44: =+E44+F44 -> 17598 | E44: =+G44+I44+K44+M44+O44 -> 8872 | F44: =+H44+J44+L44+N44+P44 -> 8726 | G44: =IFERROR(VLOOKUP($A44,Filtro!$A$5:$AY$629,5,FALSE),0) -> 2587 | H44: =IFERROR(VLOOKUP($A44,Filtro!$A$5:$AY$629,6,FALSE),0) -> 2552 | I44: =IFERROR(VLOOKUP($A44,Filtro!$A$5:$AY$629,7,FALSE),0) -> 2152 | J44: =IFERROR(VLOOKUP($A44,Filtro!$A$5:$AY$629,8,FALSE),0) -> 1996 | K44: =IFERROR(VLOOKUP($A44,Filtro!$A$5:$AY$629,9,FALSE),0) -> 1694 | L44: =IFERROR(VLOOKUP($A44,Filtro!$A$5:$AY$629,10,FALSE),0) -> 1706 | M44: =IFERROR(VLOOKUP($A44,Filtro!$A$5:$AY$629,11,FALSE),0) -> 1381 | N44: =IFERROR(VLOOKUP($A44,Filtro!$A$5:$AY$629,12,FALSE),0) -> 1411 | O44: =IFERROR(VLOOKUP($A44,Filtro!$A$5:$AY$629,13,FALSE),0) -> 1058 | P44: =IFERROR(VLOOKUP($A44,Filtro!$A$5:$AY$629,14,FALSE),0) -> 1061 | Q44: =IFERROR(VLOOKUP($A44,Filtro!$A$5:$AY$629,15,FALSE),0) -> 144 | R44: =IFERROR(VLOOKUP($A44,Filtro!$A$5:$AY$629,16,FALSE),0) -> 153 | S44: =IFERROR(VLOOKUP($A44,Filtro!$A$5:$AY$629,17,FALSE),0) -> 293 | T44: =IFERROR(VLOOKUP($A44,Filtro!$A$5:$AY$629,18,FALSE),0) -> 287 | U44: =CI44 & CJ44 & CK44 & CL44 & CM44 & CN44 & CP44 & CQ44 -> * El Total de niños en control de 60 a 71 meses no debe ser distinto al total del Diagnóstico Nutricional Integrado. * El Total de niñas en control de 6 a 6 años 11 meses no debe ser distinto al total del Diagnóstico Nutricional Integrado. * El Total de niños en control de 7 a 7 años 11 meses no debe ser distinto al total del Diagnóstico Nutricional Integrado. * El Total de niñas en control de 8 a 8 años 11 meses no debe ser distinto al total del Diagnóstico Nutricional Integrado. | CI44: =IF(G44+H44<>G72+H72,"* El Total de niños en control de 60 a 71 meses no debe ser distinto al total del Diagnóstico Nutricional Integrado. ","") -> * El Total de niños en control de 60 a 71 meses no debe ser distinto al total del Diagnóstico Nutricional Integrado. | CJ44: =IF(I44+J44<>I72+J72,"* El Total de niñas en control de 6 a 6 años 11 meses no debe ser distinto al total del Diagnóstico Nutricional Integrado. ","") -> * El Total de niñas en control de 6 a 6 años 11 meses no debe ser distinto al total del Diagnóstico Nutricional Integrado. | CK44: =IF(K44+L44<>K72+L72,"* El Total de niños en control de 7 a 7 años 11 meses no debe ser distinto al total del Diagnóstico Nutricional Integrado. ","") -> * El Total de niños en control de 7 a 7 años 11 meses no debe ser distinto al total del Diagnóstico Nutricional Integrado. | CL44: =IF(M44+N44<>M72+N72,"* El Total de niñas en control de 8 a 8 años 11 meses no debe ser distinto al total del Diagnóstico Nutricional Integrado. ","") -> * El Total de niñas en control de 8 a 8 años 11 meses no debe ser distinto al total del Diagnóstico Nutricional Integrado. | CM44: =IF($D44>=$Q44+$R44,"","* El Total de Pueblos Originarios no debe ser mayor al total de niños en control. ") ->  | CN44: =IF($D44>=$S44+$T44,"","* El Total de Pueblación Migrantes no debe ser mayor al total de niños en control. ") ->  | CP44: =IF(AND(E44<>0,Q44=""), "* No olvide escribir en la celda de Pueblos Originarios (Digite CERO si no tiene). ",IF(AND(F44<>0,R44=""), "* No olvide escribir en la celda de Pueblos Originarios (Digite CERO si no tiene). ","")) ->  | CQ44: =IF(AND(E44<>0,S44=""), "* No olvide escribir en la celda de Población Migrantes (Digite CERO si no tiene). ",IF(AND(F44<>0,T44=""), "* No olvide escribir en la celda de Población Migrantes (Digite CERO si no tiene). ","")) ->  | DH44: =IF(G44<>G72,1,0) -> 1 | DI44: =IF(H44<>H72,1,0) -> 1 | DJ44: =IF(O44<>O72,1,0) -> 1 | DK44: =IF(P44<>P72,1,0) -> 1 | DL44: =IF($D44>=$Q44+$R44,0,1) -> 0 | DM44: =IF($D44>=$S44+$T44,0,1) -> 0 | DO44: =IF(AND(E44<>0,Q44=""), 1,IF(AND(F44<>0,R44=""), 1,0)) -> 0 | DP44: =IF(AND(E44<>0,S44=""), 1,IF(AND(F44<>0,T44=""), 1,0)) -> 0
A45: P2400160 | B45: INDICADOR IMC / EDAD | C45: + 3 D.S. (>= 3 ) | D45: =+E45+F45 -> 1570 | E45: =+G45+I45+K45+M45+O45 -> 1017 | F45: 553 | G45: =IFERROR(VLOOKUP($A45,Filtro!$A$5:$AY$629,5,FALSE),0) -> 190 | H45: =IFERROR(VLOOKUP($A45,Filtro!$A$5:$AY$629,6,FALSE),0) -> 98 | I45: =IFERROR(VLOOKUP($A45,Filtro!$A$5:$AY$629,7,FALSE),0) -> 247 | J45: =IFERROR(VLOOKUP($A45,Filtro!$A$5:$AY$629,8,FALSE),0) -> 131 | K45: =IFERROR(VLOOKUP($A45,Filtro!$A$5:$AY$629,9,FALSE),0) -> 219 | L45: =IFERROR(VLOOKUP($A45,Filtro!$A$5:$AY$629,10,FALSE),0) -> 129 | M45: =IFERROR(VLOOKUP($A45,Filtro!$A$5:$AY$629,11,FALSE),0) -> 218 | N45: =IFERROR(VLOOKUP($A45,Filtro!$A$5:$AY$629,12,FALSE),0) -> 122 | O45: =IFERROR(VLOOKUP($A45,Filtro!$A$5:$AY$629,13,FALSE),0) -> 143 | P45: =IFERROR(VLOOKUP($A45,Filtro!$A$5:$AY$629,14,FALSE),0) -> 73 | Q45: =IFERROR(VLOOKUP($A45,Filtro!$A$5:$AY$629,15,FALSE),0) -> 4 | R45: =IFERROR(VLOOKUP($A45,Filtro!$A$5:$AY$629,16,FALSE),0) -> 8 | S45: =IFERROR(VLOOKUP($A45,Filtro!$A$5:$AY$629,17,FALSE),0) -> 4 | T45: =IFERROR(VLOOKUP($A45,Filtro!$A$5:$AY$629,18,FALSE),0) -> 4 | U45: =CP45 & CQ45 ->  | CP45: =IF(AND(E45<>0,Q45=""), "* No olvide escribir en la celda de Pueblos Originarios (Digite CERO si no tiene). ",IF(AND(F45<>0,R45=""), "* No olvide escribir en la celda de Pueblos Originarios (Digite CERO si no tiene). ","")) ->  | CQ45: =IF(AND(E45<>0,S45=""), "* No olvide escribir en la celda de Población Migrantes (Digite CERO si no tiene). ",IF(AND(F45<>0,T45=""), "* No olvide escribir en la celda de Población Migrantes (Digite CERO si no tiene). ","")) ->  | DO45: =IF(AND(E45<>0,Q45=""), 1,IF(AND(F45<>0,R45=""), 1,0)) -> 0 | DP45: =IF(AND(E45<>0,S45=""), 1,IF(AND(F45<>0,T45=""), 1,0)) -> 0
A46: P2400170 | C46: + 2 D.S. (>= +2.0 a +2.9) | D46: =+E46+F46 -> 3028 | E46: 1498 | F46: 1530 | G46: =IFERROR(VLOOKUP($A46,Filtro!$A$5:$AY$629,5,FALSE),0) -> 371 | H46: =IFERROR(VLOOKUP($A46,Filtro!$A$5:$AY$629,6,FALSE),0) -> 365 | I46: =IFERROR(VLOOKUP($A46,Filtro!$A$5:$AY$629,7,FALSE),0) -> 305 | J46: =IFERROR(VLOOKUP($A46,Filtro!$A$5:$AY$629,8,FALSE),0) -> 327 | K46: =IFERROR(VLOOKUP($A46,Filtro!$A$5:$AY$629,9,FALSE),0) -> 276 | L46: =IFERROR(VLOOKUP($A46,Filtro!$A$5:$AY$629,10,FALSE),0) -> 300 | M46: =IFERROR(VLOOKUP($A46,Filtro!$A$5:$AY$629,11,FALSE),0) -> 275 | N46: =IFERROR(VLOOKUP($A46,Filtro!$A$5:$AY$629,12,FALSE),0) -> 309 | O46: =IFERROR(VLOOKUP($A46,Filtro!$A$5:$AY$629,13,FALSE),0) -> 271 | P46: =IFERROR(VLOOKUP($A46,Filtro!$A$5:$AY$629,14,FALSE),0) -> 229 | Q46: =IFERROR(VLOOKUP($A46,Filtro!$A$5:$AY$629,15,FALSE),0) -> 13 | R46: =IFERROR(VLOOKUP($A46,Filtro!$A$5:$AY$629,16,FALSE),0) -> 10 | S46: =IFERROR(VLOOKUP($A46,Filtro!$A$5:$AY$629,17,FALSE),0) -> 16 | T46: =IFERROR(VLOOKUP($A46,Filtro!$A$5:$AY$629,18,FALSE),0) -> 13 | U46: =CP46 & CQ46 ->  | CP46: =IF(AND(E46<>0,Q46=""), "* No olvide escribir en la celda de Pueblos Originarios (Digite CERO si no tiene). ",IF(AND(F46<>0,R46=""), "* No olvide escribir en la celda de Pueblos Originarios (Digite CERO si no tiene). ","")) ->  | CQ46: =IF(AND(E46<>0,S46=""), "* No olvide escribir en la celda de Población Migrantes (Digite CERO si no tiene). ",IF(AND(F46<>0,T46=""), "* No olvide escribir en la celda de Población Migrantes (Digite CERO si no tiene). ","")) ->  | DO46: =IF(AND(E46<>0,Q46=""), 1,IF(AND(F46<>0,R46=""), 1,0)) -> 0 | DP46: =IF(AND(E46<>0,S46=""), 1,IF(AND(F46<>0,T46=""), 1,0)) -> 0
A47: P2400180 | C47: + 1 D.S. (>= +1.0 a +1.9) | D47: 3617 | E47: 1757 | F47: 1860 | G47: =IFERROR(VLOOKUP($A47,Filtro!$A$5:$AY$629,5,FALSE),0) -> 493 | H47: =IFERROR(VLOOKUP($A47,Filtro!$A$5:$AY$629,6,FALSE),0) -> 469 | I47: =IFERROR(VLOOKUP($A47,Filtro!$A$5:$AY$629,7,FALSE),0) -> 394 | J47: =IFERROR(VLOOKUP($A47,Filtro!$A$5:$AY$629,8,FALSE),0) -> 412 | K47: =IFERROR(VLOOKUP($A47,Filtro!$A$5:$AY$629,9,FALSE),0) -> 362 | L47: =IFERROR(VLOOKUP($A47,Filtro!$A$5:$AY$629,10,FALSE),0) -> 377 | M47: =IFERROR(VLOOKUP($A47,Filtro!$A$5:$AY$629,11,FALSE),0) -> 287 | N47: =IFERROR(VLOOKUP($A47,Filtro!$A$5:$AY$629,12,FALSE),0) -> 333 | O47: =IFERROR(VLOOKUP($A47,Filtro!$A$5:$AY$629,13,FALSE),0) -> 221 | P47: =IFERROR(VLOOKUP($A47,Filtro!$A$5:$AY$629,14,FALSE),0) -> 269 | Q47: =IFERROR(VLOOKUP($A47,Filtro!$A$5:$AY$629,15,FALSE),0) -> 13 | R47: =IFERROR(VLOOKUP($A47,Filtro!$A$5:$AY$629,16,FALSE),0) -> 9 | S47: =IFERROR(VLOOKUP($A47,Filtro!$A$5:$AY$629,17,FALSE),0) -> 29 | T47: =IFERROR(VLOOKUP($A47,Filtro!$A$5:$AY$629,18,FALSE),0) -> 26 | U47: =CP47 & CQ47 ->  | CP47: =IF(AND(E47<>0,Q47=""), "* No olvide escribir en la celda de Pueblos Originarios (Digite CERO si no tiene). ",IF(AND(F47<>0,R47=""), "* No olvide escribir en la celda de Pueblos Originarios (Digite CERO si no tiene). ","")) ->  | CQ47: =IF(AND(E47<>0,S47=""), "* No olvide escribir en la celda de Población Migrantes (Digite CERO si no tiene). ",IF(AND(F47<>0,T47=""), "* No olvide escribir en la celda de Población Migrantes (Digite CERO si no tiene). ","")) ->  | DO47: =IF(AND(E47<>0,Q47=""), 1,IF(AND(F47<>0,R47=""), 1,0)) -> 0 | DP47: =IF(AND(E47<>0,S47=""), 1,IF(AND(F47<>0,T47=""), 1,0)) -> 0
C48: TOTAL | D48: 8215 | E48: =+G48+I48+K48+M48+O48 -> 4272 | F48: =+H48+J48+L48+N48+P48 -> 3943 | G48: =SUM(G45:G47) -> 1054 | H48: =SUM(H45:H47) -> 932 | I48: 946 | J48: 870 | K48: 857 | L48: 806 | M48: 780 | N48: 764 | O48: 635 | P48: 571 | Q48: 30 | R48: 27 | S48: 49 | T48: 43 | U48: =CM48 & CN48 ->  | CM48: =IF($D48>=$Q48+$R48,"","* El Total de Pueblos Originarios no debe ser mayor al total de niños en control. ") ->  | CN48: =IF($D48>=$S48+$T48,"","* El Total de Pueblación Migrantes no debe ser mayor al total de niños en control. ") ->  | DL48: =IF($D48>=$Q48+$R48,0,1) -> 0 | DM48: =IF($D48>=$S48+$T48,0,1) -> 0
A49: P2400190 | C49: - 1 D.S. (<= -1.0 a -1.9) | D49: 620 | E49: =+G49+I49+K49+M49+O49 -> 328 | F49: =+H49+J49+L49+N49+P49 -> 292 | G49: =IFERROR(VLOOKUP($A49,Filtro!$A$5:$AY$629,5,FALSE),0) -> 92 | H49: =IFERROR(VLOOKUP($A49,Filtro!$A$5:$AY$629,6,FALSE),0) -> 80 | I49: =IFERROR(VLOOKUP($A49,Filtro!$A$5:$AY$629,7,FALSE),0) -> 94 | J49: =IFERROR(VLOOKUP($A49,Filtro!$A$5:$AY$629,8,FALSE),0) -> 64 | K49: =IFERROR(VLOOKUP($A49,Filtro!$A$5:$AY$629,9,FALSE),0) -> 71 | L49: =IFERROR(VLOOKUP($A49,Filtro!$A$5:$AY$629,10,FALSE),0) -> 64 | M49: =IFERROR(VLOOKUP($A49,Filtro!$A$5:$AY$629,11,FALSE),0) -> 46 | N49: =IFERROR(VLOOKUP($A49,Filtro!$A$5:$AY$629,12,FALSE),0) -> 51 | O49: =IFERROR(VLOOKUP($A49,Filtro!$A$5:$AY$629,13,FALSE),0) -> 25 | P49: =IFERROR(VLOOKUP($A49,Filtro!$A$5:$AY$629,14,FALSE),0) -> 33 | Q49: =IFERROR(VLOOKUP($A49,Filtro!$A$5:$AY$629,15,FALSE),0) -> 4 | R49: =IFERROR(VLOOKUP($A49,Filtro!$A$5:$AY$629,16,FALSE),0) -> 3 | S49: =IFERROR(VLOOKUP($A49,Filtro!$A$5:$AY$629,17,FALSE),0) -> 14 | T49: =IFERROR(VLOOKUP($A49,Filtro!$A$5:$AY$629,18,FALSE),0) -> 11 | U49: =CP49 & CQ49 ->  | CP49: =IF(AND(E49<>0,Q49=""), "* No olvide escribir en la celda de Pueblos Originarios (Digite CERO si no tiene). ",IF(AND(F49<>0,R49=""), "* No olvide escribir en la celda de Pueblos Originarios (Digite CERO si no tiene). ","")) ->  | CQ49: =IF(AND(E49<>0,S49=""), "* No olvide escribir en la celda de Población Migrantes (Digite CERO si no tiene). ",IF(AND(F49<>0,T49=""), "* No olvide escribir en la celda de Población Migrantes (Digite CERO si no tiene). ","")) ->  | DO49: =IF(AND(E49<>0,Q49=""), 1,IF(AND(F49<>0,R49=""), 1,0)) -> 0 | DP49: =IF(AND(E49<>0,S49=""), 1,IF(AND(F49<>0,T49=""), 1,0)) -> 0
A50: P2400200 | C50: - 2 D.S. (<= -2.0) | D50: =+E50+F50 -> 64 | E50: 31 | F50: 33 | G50: =IFERROR(VLOOKUP($A50,Filtro!$A$5:$AY$629,5,FALSE),0) -> 7 | H50: =IFERROR(VLOOKUP($A50,Filtro!$A$5:$AY$629,6,FALSE),0) -> 10 | I50: =IFERROR(VLOOKUP($A50,Filtro!$A$5:$AY$629,7,FALSE),0) -> 8 | J50: =IFERROR(VLOOKUP($A50,Filtro!$A$5:$AY$629,8,FALSE),0) -> 4 | K50: =IFERROR(VLOOKUP($A50,Filtro!$A$5:$AY$629,9,FALSE),0) -> 7 | L50: =IFERROR(VLOOKUP($A50,Filtro!$A$5:$AY$629,10,FALSE),0) -> 7 | M50: =IFERROR(VLOOKUP($A50,Filtro!$A$5:$AY$629,11,FALSE),0) -> 8 | N50: =IFERROR(VLOOKUP($A50,Filtro!$A$5:$AY$629,12,FALSE),0) -> 6 | O50: =IFERROR(VLOOKUP($A50,Filtro!$A$5:$AY$629,13,FALSE),0) -> 1 | P50: =IFERROR(VLOOKUP($A50,Filtro!$A$5:$AY$629,14,FALSE),0) -> 6 | Q50: =IFERROR(VLOOKUP($A50,Filtro!$A$5:$AY$629,15,FALSE),0) -> 1 | R50: =IFERROR(VLOOKUP($A50,Filtro!$A$5:$AY$629,16,FALSE),0) -> 2 | S50: =IFERROR(VLOOKUP($A50,Filtro!$A$5:$AY$629,17,FALSE),0) -> 1 | T50: =IFERROR(VLOOKUP($A50,Filtro!$A$5:$AY$629,18,FALSE),0) -> 1 | U50: =CP50 & CQ50 ->  | CP50: =IF(AND(E50<>0,Q50=""), "* No olvide escribir en la celda de Pueblos Originarios (Digite CERO si no tiene). ",IF(AND(F50<>0,R50=""), "* No olvide escribir en la celda de Pueblos Originarios (Digite CERO si no tiene). ","")) ->  | CQ50: =IF(AND(E50<>0,S50=""), "* No olvide escribir en la celda de Población Migrantes (Digite CERO si no tiene). ",IF(AND(F50<>0,T50=""), "* No olvide escribir en la celda de Población Migrantes (Digite CERO si no tiene). ","")) ->  | DO50: =IF(AND(E50<>0,Q50=""), 1,IF(AND(F50<>0,R50=""), 1,0)) -> 0 | DP50: =IF(AND(E50<>0,S50=""), 1,IF(AND(F50<>0,T50=""), 1,0)) -> 0
C51: TOTAL | D51: =+E51+F51 -> 684 | E51: =+G51+I51+K51+M51+O51 -> 359 | F51: =+H51+J51+L51+N51+P51 -> 325 | G51: =SUM(G49:G50) -> 99 | H51: =SUM(H49:H50) -> 90 | I51: 102 | J51: 68 | K51: 78 | L51: 71 | M51: 54 | N51: 57 | O51: 26 | P51: 39 | Q51: 5 | R51: 5 | S51: 15 | T51: 12 | U51: =CM51 & CN51 ->  | CM51: =IF($D51>=$Q51+$R51,"","* El Total de Pueblos Originarios no debe ser mayor al total de niños en control. ") ->  | CN51: =IF($D51>=$S51+$T51,"","* El Total de Pueblación Migrantes no debe ser mayor al total de niños en control. ") ->  | DL51: =IF($D51>=$Q51+$R51,0,1) -> 0 | DM51: =IF($D51>=$S51+$T51,0,1) -> 0
A52: P2400210 | C52: PROMEDIO (-0,9 A + 0,9) | D52: 6561 | E52: =+G52+I52+K52+M52+O52 -> 3212 | F52: =+H52+J52+L52+N52+P52 -> 3349 | G52: =IFERROR(VLOOKUP($A52,Filtro!$A$5:$AY$629,5,FALSE),0) -> 1072 | H52: =IFERROR(VLOOKUP($A52,Filtro!$A$5:$AY$629,6,FALSE),0) -> 1126 | I52: =IFERROR(VLOOKUP($A52,Filtro!$A$5:$AY$629,7,FALSE),0) -> 863 | J52: =IFERROR(VLOOKUP($A52,Filtro!$A$5:$AY$629,8,FALSE),0) -> 824 | K52: =IFERROR(VLOOKUP($A52,Filtro!$A$5:$AY$629,9,FALSE),0) -> 561 | L52: =IFERROR(VLOOKUP($A52,Filtro!$A$5:$AY$629,10,FALSE),0) -> 616 | M52: =IFERROR(VLOOKUP($A52,Filtro!$A$5:$AY$629,11,FALSE),0) -> 395 | N52: =IFERROR(VLOOKUP($A52,Filtro!$A$5:$AY$629,12,FALSE),0) -> 425 | O52: =IFERROR(VLOOKUP($A52,Filtro!$A$5:$AY$629,13,FALSE),0) -> 321 | P52: =IFERROR(VLOOKUP($A52,Filtro!$A$5:$AY$629,14,FALSE),0) -> 358 | Q52: =IFERROR(VLOOKUP($A52,Filtro!$A$5:$AY$629,15,FALSE),0) -> 55 | R52: =IFERROR(VLOOKUP($A52,Filtro!$A$5:$AY$629,16,FALSE),0) -> 63 | S52: =IFERROR(VLOOKUP($A52,Filtro!$A$5:$AY$629,17,FALSE),0) -> 144 | T52: =IFERROR(VLOOKUP($A52,Filtro!$A$5:$AY$629,18,FALSE),0) -> 170 | U52: =CP52 & CQ52 ->  | CP52: =IF(AND(E52<>0,Q52=""), "* No olvide escribir en la celda de Pueblos Originarios (Digite CERO si no tiene). ",IF(AND(F52<>0,R52=""), "* No olvide escribir en la celda de Pueblos Originarios (Digite CERO si no tiene). ","")) ->  | CQ52: =IF(AND(E52<>0,S52=""), "* No olvide escribir en la celda de Población Migrantes (Digite CERO si no tiene). ",IF(AND(F52<>0,T52=""), "* No olvide escribir en la celda de Población Migrantes (Digite CERO si no tiene). ","")) ->  | DO52: =IF(AND(E52<>0,Q52=""), 1,IF(AND(F52<>0,R52=""), 1,0)) -> 0 | DP52: =IF(AND(E52<>0,S52=""), 1,IF(AND(F52<>0,T52=""), 1,0)) -> 0
A53: P2400220 | B53: INDICADOR TALLA/EDAD | C53: + 2 D.S. (>= +2.0) | D53: 880 | E53: =+G53+I53+K53+M53+O53 -> 434 | F53: 446 | G53: =IFERROR(VLOOKUP($A53,Filtro!$A$5:$AY$629,5,FALSE),0) -> 125 | H53: =IFERROR(VLOOKUP($A53,Filtro!$A$5:$AY$629,6,FALSE),0) -> 110 | I53: =IFERROR(VLOOKUP($A53,Filtro!$A$5:$AY$629,7,FALSE),0) -> 108 | J53: =IFERROR(VLOOKUP($A53,Filtro!$A$5:$AY$629,8,FALSE),0) -> 95 | K53: =IFERROR(VLOOKUP($A53,Filtro!$A$5:$AY$629,9,FALSE),0) -> 74 | L53: =IFERROR(VLOOKUP($A53,Filtro!$A$5:$AY$629,10,FALSE),0) -> 93 | M53: =IFERROR(VLOOKUP($A53,Filtro!$A$5:$AY$629,11,FALSE),0) -> 63 | N53: =IFERROR(VLOOKUP($A53,Filtro!$A$5:$AY$629,12,FALSE),0) -> 93 | O53: =IFERROR(VLOOKUP($A53,Filtro!$A$5:$AY$629,13,FALSE),0) -> 64 | P53: =IFERROR(VLOOKUP($A53,Filtro!$A$5:$AY$629,14,FALSE),0) -> 55 | Q53: =IFERROR(VLOOKUP($A53,Filtro!$A$5:$AY$629,15,FALSE),0) -> 9 | R53: =IFERROR(VLOOKUP($A53,Filtro!$A$5:$AY$629,16,FALSE),0) -> 10 | S53: =IFERROR(VLOOKUP($A53,Filtro!$A$5:$AY$629,17,FALSE),0) -> 7 | T53: =IFERROR(VLOOKUP($A53,Filtro!$A$5:$AY$629,18,FALSE),0) -> 11 | U53: =CP53 & CQ53 ->  | CP53: =IF(AND(E53<>0,Q53=""), "* No olvide escribir en la celda de Pueblos Originarios (Digite CERO si no tiene). ",IF(AND(F53<>0,R53=""), "* No olvide escribir en la celda de Pueblos Originarios (Digite CERO si no tiene). ","")) ->  | CQ53: =IF(AND(E53<>0,S53=""), "* No olvide escribir en la celda de Población Migrantes (Digite CERO si no tiene). ",IF(AND(F53<>0,T53=""), "* No olvide escribir en la celda de Población Migrantes (Digite CERO si no tiene). ","")) ->  | DO53: =IF(AND(E53<>0,Q53=""), 1,IF(AND(F53<>0,R53=""), 1,0)) -> 0 | DP53: =IF(AND(E53<>0,S53=""), 1,IF(AND(F53<>0,T53=""), 1,0)) -> 0
A54: P2400230 | C54: + 1 D.S. (+1.0 a +1.9) | D54: 2937 | E54: 1510 | F54: 1427 | G54: =IFERROR(VLOOKUP($A54,Filtro!$A$5:$AY$629,5,FALSE),0) -> 408 | H54: =IFERROR(VLOOKUP($A54,Filtro!$A$5:$AY$629,6,FALSE),0) -> 333 | I54: =IFERROR(VLOOKUP($A54,Filtro!$A$5:$AY$629,7,FALSE),0) -> 347 | J54: =IFERROR(VLOOKUP($A54,Filtro!$A$5:$AY$629,8,FALSE),0) -> 306 | K54: =IFERROR(VLOOKUP($A54,Filtro!$A$5:$AY$629,9,FALSE),0) -> 293 | L54: =IFERROR(VLOOKUP($A54,Filtro!$A$5:$AY$629,10,FALSE),0) -> 289 | M54: =IFERROR(VLOOKUP($A54,Filtro!$A$5:$AY$629,11,FALSE),0) -> 268 | N54: =IFERROR(VLOOKUP($A54,Filtro!$A$5:$AY$629,12,FALSE),0) -> 278 | O54: =IFERROR(VLOOKUP($A54,Filtro!$A$5:$AY$629,13,FALSE),0) -> 194 | P54: =IFERROR(VLOOKUP($A54,Filtro!$A$5:$AY$629,14,FALSE),0) -> 221 | Q54: =IFERROR(VLOOKUP($A54,Filtro!$A$5:$AY$629,15,FALSE),0) -> 12 | R54: =IFERROR(VLOOKUP($A54,Filtro!$A$5:$AY$629,16,FALSE),0) -> 15 | S54: =IFERROR(VLOOKUP($A54,Filtro!$A$5:$AY$629,17,FALSE),0) -> 30 | T54: =IFERROR(VLOOKUP($A54,Filtro!$A$5:$AY$629,18,FALSE),0) -> 26 | U54: =CP54 & CQ54 ->  | CP54: =IF(AND(E54<>0,Q54=""), "* No olvide escribir en la celda de Pueblos Originarios (Digite CERO si no tiene). ",IF(AND(F54<>0,R54=""), "* No olvide escribir en la celda de Pueblos Originarios (Digite CERO si no tiene). ","")) ->  | CQ54: =IF(AND(E54<>0,S54=""), "* No olvide escribir en la celda de Población Migrantes (Digite CERO si no tiene). ",IF(AND(F54<>0,T54=""), "* No olvide escribir en la celda de Población Migrantes (Digite CERO si no tiene). ","")) ->  | DO54: =IF(AND(E54<>0,Q54=""), 1,IF(AND(F54<>0,R54=""), 1,0)) -> 0 | DP54: =IF(AND(E54<>0,S54=""), 1,IF(AND(F54<>0,T54=""), 1,0)) -> 0
C55: TOTAL | D55: 3817 | E55: =+G55+I55+K55+M55+O55 -> 1944 | F55: =+H55+J55+L55+N55+P55 -> 1873 | G55: =SUM(G53:G54) -> 533 | H55: =SUM(H53:H54) -> 443 | I55: 455 | J55: 401 | K55: 367 | L55: 382 | M55: 331 | N55: 371 | O55: 258 | P55: 276 | Q55: 21 | R55: 25 | S55: 37 | T55: 37 | U55: =CM55 & CN55 ->  | CM55: =IF($D55>=$Q55+$R55,"","* El Total de Pueblos Originarios no debe ser mayor al total de niños en control. ") ->  | CN55: =IF($D55>=$S55+$T55,"","* El Total de Pueblación Migrantes no debe ser mayor al total de niños en control. ") ->  | DL55: =IF($D55>=$Q55+$R55,0,1) -> 0 | DM55: =IF($D55>=$S55+$T55,0,1) -> 0
A56: P2400240 | C56: - 1 D.S. (-1.0 a -1.9) | D56: 1452 | E56: =+G56+I56+K56+M56+O56 -> 747 | F56: 705 | G56: =IFERROR(VLOOKUP($A56,Filtro!$A$5:$AY$629,5,FALSE),0) -> 245 | H56: =IFERROR(VLOOKUP($A56,Filtro!$A$5:$AY$629,6,FALSE),0) -> 251 | I56: =IFERROR(VLOOKUP($A56,Filtro!$A$5:$AY$629,7,FALSE),0) -> 171 | J56: =IFERROR(VLOOKUP($A56,Filtro!$A$5:$AY$629,8,FALSE),0) -> 139 | K56: =IFERROR(VLOOKUP($A56,Filtro!$A$5:$AY$629,9,FALSE),0) -> 134 | L56: =IFERROR(VLOOKUP($A56,Filtro!$A$5:$AY$629,10,FALSE),0) -> 158 | M56: =IFERROR(VLOOKUP($A56,Filtro!$A$5:$AY$629,11,FALSE),0) -> 117 | N56: =IFERROR(VLOOKUP($A56,Filtro!$A$5:$AY$629,12,FALSE),0) -> 86 | O56: =IFERROR(VLOOKUP($A56,Filtro!$A$5:$AY$629,13,FALSE),0) -> 80 | P56: =IFERROR(VLOOKUP($A56,Filtro!$A$5:$AY$629,14,FALSE),0) -> 71 | Q56: =IFERROR(VLOOKUP($A56,Filtro!$A$5:$AY$629,15,FALSE),0) -> 8 | R56: =IFERROR(VLOOKUP($A56,Filtro!$A$5:$AY$629,16,FALSE),0) -> 9 | S56: =IFERROR(VLOOKUP($A56,Filtro!$A$5:$AY$629,17,FALSE),0) -> 37 | T56: =IFERROR(VLOOKUP($A56,Filtro!$A$5:$AY$629,18,FALSE),0) -> 34 | U56: =CP56 & CQ56 ->  | CP56: =IF(AND(E56<>0,Q56=""), "* No olvide escribir en la celda de Pueblos Originarios (Digite CERO si no tiene). ",IF(AND(F56<>0,R56=""), "* No olvide escribir en la celda de Pueblos Originarios (Digite CERO si no tiene). ","")) ->  | CQ56: =IF(AND(E56<>0,S56=""), "* No olvide escribir en la celda de Población Migrantes (Digite CERO si no tiene). ",IF(AND(F56<>0,T56=""), "* No olvide escribir en la celda de Población Migrantes (Digite CERO si no tiene). ","")) ->  | DO56: =IF(AND(E56<>0,Q56=""), 1,IF(AND(F56<>0,R56=""), 1,0)) -> 0 | DP56: =IF(AND(E56<>0,S56=""), 1,IF(AND(F56<>0,T56=""), 1,0)) -> 0
A57: P2400250 | C57: - 2 D.S. (<= -2.0) | D57: 200 | E57: 111 | F57: 89 | G57: =IFERROR(VLOOKUP($A57,Filtro!$A$5:$AY$629,5,FALSE),0) -> 35 | H57: =IFERROR(VLOOKUP($A57,Filtro!$A$5:$AY$629,6,FALSE),0) -> 28 | I57: =IFERROR(VLOOKUP($A57,Filtro!$A$5:$AY$629,7,FALSE),0) -> 27 | J57: =IFERROR(VLOOKUP($A57,Filtro!$A$5:$AY$629,8,FALSE),0) -> 15 | K57: =IFERROR(VLOOKUP($A57,Filtro!$A$5:$AY$629,9,FALSE),0) -> 19 | L57: =IFERROR(VLOOKUP($A57,Filtro!$A$5:$AY$629,10,FALSE),0) -> 25 | M57: =IFERROR(VLOOKUP($A57,Filtro!$A$5:$AY$629,11,FALSE),0) -> 15 | N57: =IFERROR(VLOOKUP($A57,Filtro!$A$5:$AY$629,12,FALSE),0) -> 11 | O57: =IFERROR(VLOOKUP($A57,Filtro!$A$5:$AY$629,13,FALSE),0) -> 15 | P57: =IFERROR(VLOOKUP($A57,Filtro!$A$5:$AY$629,14,FALSE),0) -> 10 | Q57: =IFERROR(VLOOKUP($A57,Filtro!$A$5:$AY$629,15,FALSE),0) -> 5 | R57: =IFERROR(VLOOKUP($A57,Filtro!$A$5:$AY$629,16,FALSE),0) -> 2 | S57: =IFERROR(VLOOKUP($A57,Filtro!$A$5:$AY$629,17,FALSE),0) -> 7 | T57: =IFERROR(VLOOKUP($A57,Filtro!$A$5:$AY$629,18,FALSE),0) -> 1 | U57: =CP57 & CQ57 ->  | CP57: =IF(AND(E57<>0,Q57=""), "* No olvide escribir en la celda de Pueblos Originarios (Digite CERO si no tiene). ",IF(AND(F57<>0,R57=""), "* No olvide escribir en la celda de Pueblos Originarios (Digite CERO si no tiene). ","")) ->  | CQ57: =IF(AND(E57<>0,S57=""), "* No olvide escribir en la celda de Población Migrantes (Digite CERO si no tiene). ",IF(AND(F57<>0,T57=""), "* No olvide escribir en la celda de Población Migrantes (Digite CERO si no tiene). ","")) ->  | DO57: =IF(AND(E57<>0,Q57=""), 1,IF(AND(F57<>0,R57=""), 1,0)) -> 0 | DP57: =IF(AND(E57<>0,S57=""), 1,IF(AND(F57<>0,T57=""), 1,0)) -> 0
C58: TOTAL | D58: 0 | E58: =+G58+I58+K58+M58+O58 -> 0 | F58: =+H58+J58+L58+N58+P58 -> 0 | G58: 0 | H58: 0 | I58: 0 | J58: 0 | K58: 0 | L58: 0 | M58: 0 | N58: 0 | O58: 0 | P58: 0 | Q58: 0 | R58: 0 | S58: 0 | T58: 0 | U58: =CM58 & CN58 ->  | CM58: =IF($D58>=$Q58+$R58,"","* El Total de Pueblos Originarios no debe ser mayor al total de niños en control. ") ->  | CN58: =IF($D58>=$S58+$T58,"","* El Total de Pueblación Migrantes no debe ser mayor al total de niños en control. ") ->  | DL58: =IF($D58>=$Q58+$R58,0,1) -> 0 | DM58: =IF($D58>=$S58+$T58,0,1) -> 0
A59: P2400260 | C59: PROMEDIO (-0,9 A + 0,9) | D59: 9366 | E59: =+G59+I59+K59+M59+O59 -> 4728 | F59: 4638 | G59: =IFERROR(VLOOKUP($A59,Filtro!$A$5:$AY$629,5,FALSE),0) -> 1385 | H59: =IFERROR(VLOOKUP($A59,Filtro!$A$5:$AY$629,6,FALSE),0) -> 1400 | I59: =IFERROR(VLOOKUP($A59,Filtro!$A$5:$AY$629,7,FALSE),0) -> 1182 | J59: =IFERROR(VLOOKUP($A59,Filtro!$A$5:$AY$629,8,FALSE),0) -> 1110 | K59: =IFERROR(VLOOKUP($A59,Filtro!$A$5:$AY$629,9,FALSE),0) -> 894 | L59: =IFERROR(VLOOKUP($A59,Filtro!$A$5:$AY$629,10,FALSE),0) -> 874 | M59: =IFERROR(VLOOKUP($A59,Filtro!$A$5:$AY$629,11,FALSE),0) -> 688 | N59: =IFERROR(VLOOKUP($A59,Filtro!$A$5:$AY$629,12,FALSE),0) -> 696 | O59: =IFERROR(VLOOKUP($A59,Filtro!$A$5:$AY$629,13,FALSE),0) -> 579 | P59: =IFERROR(VLOOKUP($A59,Filtro!$A$5:$AY$629,14,FALSE),0) -> 558 | Q59: =IFERROR(VLOOKUP($A59,Filtro!$A$5:$AY$629,15,FALSE),0) -> 61 | R59: =IFERROR(VLOOKUP($A59,Filtro!$A$5:$AY$629,16,FALSE),0) -> 63 | S59: =IFERROR(VLOOKUP($A59,Filtro!$A$5:$AY$629,17,FALSE),0) -> 145 | T59: =IFERROR(VLOOKUP($A59,Filtro!$A$5:$AY$629,18,FALSE),0) -> 150 | U59: =CP59 & CQ59 ->  | CP59: =IF(AND(E59<>0,Q59=""), "* No olvide escribir en la celda de Pueblos Originarios (Digite CERO si no tiene). ",IF(AND(F59<>0,R59=""), "* No olvide escribir en la celda de Pueblos Originarios (Digite CERO si no tiene). ","")) ->  | CQ59: =IF(AND(E59<>0,S59=""), "* No olvide escribir en la celda de Población Migrantes (Digite CERO si no tiene). ",IF(AND(F59<>0,T59=""), "* No olvide escribir en la celda de Población Migrantes (Digite CERO si no tiene). ","")) ->  | DO59: =IF(AND(E59<>0,Q59=""), 1,IF(AND(F59<>0,R59=""), 1,0)) -> 0 | DP59: =IF(AND(E59<>0,S59=""), 1,IF(AND(F59<>0,T59=""), 1,0)) -> 0
A60: P2400270 | B60: INDICADOR PERIMETRO DE CINTURA / EDAD | C60: NORMAL (<p75) | D60: 8495 | E60: 4211 | F60: 4284 | G60: =IFERROR(VLOOKUP($A60,Filtro!$A$5:$AY$629,5,FALSE),0) -> 1245 | H60: =IFERROR(VLOOKUP($A60,Filtro!$A$5:$AY$629,6,FALSE),0) -> 1276 | I60: =IFERROR(VLOOKUP($A60,Filtro!$A$5:$AY$629,7,FALSE),0) -> 1063 | J60: =IFERROR(VLOOKUP($A60,Filtro!$A$5:$AY$629,8,FALSE),0) -> 999 | K60: =IFERROR(VLOOKUP($A60,Filtro!$A$5:$AY$629,9,FALSE),0) -> 831 | L60: =IFERROR(VLOOKUP($A60,Filtro!$A$5:$AY$629,10,FALSE),0) -> 837 | M60: =IFERROR(VLOOKUP($A60,Filtro!$A$5:$AY$629,11,FALSE),0) -> 649 | N60: =IFERROR(VLOOKUP($A60,Filtro!$A$5:$AY$629,12,FALSE),0) -> 667 | O60: =IFERROR(VLOOKUP($A60,Filtro!$A$5:$AY$629,13,FALSE),0) -> 423 | P60: =IFERROR(VLOOKUP($A60,Filtro!$A$5:$AY$629,14,FALSE),0) -> 505 | Q60: =IFERROR(VLOOKUP($A60,Filtro!$A$5:$AY$629,15,FALSE),0) -> 32 | R60: =IFERROR(VLOOKUP($A60,Filtro!$A$5:$AY$629,16,FALSE),0) -> 33 | S60: =IFERROR(VLOOKUP($A60,Filtro!$A$5:$AY$629,17,FALSE),0) -> 105 | T60: =IFERROR(VLOOKUP($A60,Filtro!$A$5:$AY$629,18,FALSE),0) -> 118 | U60: =CP60 & CQ60 ->  | CP60: =IF(AND(E60<>0,Q60=""), "* No olvide escribir en la celda de Pueblos Originarios (Digite CERO si no tiene). ",IF(AND(F60<>0,R60=""), "* No olvide escribir en la celda de Pueblos Originarios (Digite CERO si no tiene). ","")) ->  | CQ60: =IF(AND(E60<>0,S60=""), "* No olvide escribir en la celda de Población Migrantes (Digite CERO si no tiene). ",IF(AND(F60<>0,T60=""), "* No olvide escribir en la celda de Población Migrantes (Digite CERO si no tiene). ","")) ->  | DO60: =IF(AND(E60<>0,Q60=""), 1,IF(AND(F60<>0,R60=""), 1,0)) -> 0 | DP60: =IF(AND(E60<>0,S60=""), 1,IF(AND(F60<>0,T60=""), 1,0)) -> 0
A61: P2400280 | C61: RIESGO DE OBESIDAD ABDOMINAL (75<p<90) | D61: 2681 | E61: 1346 | F61: 1335 | G61: =IFERROR(VLOOKUP($A61,Filtro!$A$5:$AY$629,5,FALSE),0) -> 356 | H61: =IFERROR(VLOOKUP($A61,Filtro!$A$5:$AY$629,6,FALSE),0) -> 324 | I61: =IFERROR(VLOOKUP($A61,Filtro!$A$5:$AY$629,7,FALSE),0) -> 316 | J61: =IFERROR(VLOOKUP($A61,Filtro!$A$5:$AY$629,8,FALSE),0) -> 279 | K61: =IFERROR(VLOOKUP($A61,Filtro!$A$5:$AY$629,9,FALSE),0) -> 250 | L61: =IFERROR(VLOOKUP($A61,Filtro!$A$5:$AY$629,10,FALSE),0) -> 267 | M61: =IFERROR(VLOOKUP($A61,Filtro!$A$5:$AY$629,11,FALSE),0) -> 232 | N61: =IFERROR(VLOOKUP($A61,Filtro!$A$5:$AY$629,12,FALSE),0) -> 259 | O61: =IFERROR(VLOOKUP($A61,Filtro!$A$5:$AY$629,13,FALSE),0) -> 192 | P61: =IFERROR(VLOOKUP($A61,Filtro!$A$5:$AY$629,14,FALSE),0) -> 206 | Q61: =IFERROR(VLOOKUP($A61,Filtro!$A$5:$AY$629,15,FALSE),0) -> 11 | R61: =IFERROR(VLOOKUP($A61,Filtro!$A$5:$AY$629,16,FALSE),0) -> 10 | S61: =IFERROR(VLOOKUP($A61,Filtro!$A$5:$AY$629,17,FALSE),0) -> 11 | T61: =IFERROR(VLOOKUP($A61,Filtro!$A$5:$AY$629,18,FALSE),0) -> 11 | U61: =CP61 & CQ61 ->  | CP61: =IF(AND(E61<>0,Q61=""), "* No olvide escribir en la celda de Pueblos Originarios (Digite CERO si no tiene). ",IF(AND(F61<>0,R61=""), "* No olvide escribir en la celda de Pueblos Originarios (Digite CERO si no tiene). ","")) ->  | CQ61: =IF(AND(E61<>0,S61=""), "* No olvide escribir en la celda de Población Migrantes (Digite CERO si no tiene). ",IF(AND(F61<>0,T61=""), "* No olvide escribir en la celda de Población Migrantes (Digite CERO si no tiene). ","")) ->  | DO61: =IF(AND(E61<>0,Q61=""), 1,IF(AND(F61<>0,R61=""), 1,0)) -> 0 | DP61: =IF(AND(E61<>0,S61=""), 1,IF(AND(F61<>0,T61=""), 1,0)) -> 0
A62: P2400290 | C62: OBESIDAD ABDOMINAL (>p90) | D62: 3256 | E62: 1721 | F62: 1535 | G62: =IFERROR(VLOOKUP($A62,Filtro!$A$5:$AY$629,5,FALSE),0) -> 382 | H62: =IFERROR(VLOOKUP($A62,Filtro!$A$5:$AY$629,6,FALSE),0) -> 325 | I62: =IFERROR(VLOOKUP($A62,Filtro!$A$5:$AY$629,7,FALSE),0) -> 343 | J62: =IFERROR(VLOOKUP($A62,Filtro!$A$5:$AY$629,8,FALSE),0) -> 315 | K62: =IFERROR(VLOOKUP($A62,Filtro!$A$5:$AY$629,9,FALSE),0) -> 353 | L62: =IFERROR(VLOOKUP($A62,Filtro!$A$5:$AY$629,10,FALSE),0) -> 334 | M62: =IFERROR(VLOOKUP($A62,Filtro!$A$5:$AY$629,11,FALSE),0) -> 355 | N62: =IFERROR(VLOOKUP($A62,Filtro!$A$5:$AY$629,12,FALSE),0) -> 320 | O62: =IFERROR(VLOOKUP($A62,Filtro!$A$5:$AY$629,13,FALSE),0) -> 288 | P62: =IFERROR(VLOOKUP($A62,Filtro!$A$5:$AY$629,14,FALSE),0) -> 241 | Q62: =IFERROR(VLOOKUP($A62,Filtro!$A$5:$AY$629,15,FALSE),0) -> 13 | R62: =IFERROR(VLOOKUP($A62,Filtro!$A$5:$AY$629,16,FALSE),0) -> 13 | S62: =IFERROR(VLOOKUP($A62,Filtro!$A$5:$AY$629,17,FALSE),0) -> 20 | T62: =IFERROR(VLOOKUP($A62,Filtro!$A$5:$AY$629,18,FALSE),0) -> 13 | U62: =CP62 & CQ62 ->  | CP62: =IF(AND(E62<>0,Q62=""), "* No olvide escribir en la celda de Pueblos Originarios (Digite CERO si no tiene). ",IF(AND(F62<>0,R62=""), "* No olvide escribir en la celda de Pueblos Originarios (Digite CERO si no tiene). ","")) ->  | CQ62: =IF(AND(E62<>0,S62=""), "* No olvide escribir en la celda de Población Migrantes (Digite CERO si no tiene). ",IF(AND(F62<>0,T62=""), "* No olvide escribir en la celda de Población Migrantes (Digite CERO si no tiene). ","")) ->  | DO62: =IF(AND(E62<>0,Q62=""), 1,IF(AND(F62<>0,R62=""), 1,0)) -> 0 | DP62: =IF(AND(E62<>0,S62=""), 1,IF(AND(F62<>0,T62=""), 1,0)) -> 0
C63: TOTAL | D63: =+E63+F63 -> 0 | E63: =+G63+I63+K63+M63+O63 -> 0 | F63: =+H63+J63+L63+N63+P63 -> 0 | G63: 0 | H63: 0 | I63: 0 | J63: 0 | K63: 0 | L63: 0 | M63: 0 | N63: 0 | O63: 0 | P63: 0 | Q63: 0 | R63: 0 | S63: 0 | T63: 0 | U63: =CM63 & CN63 ->  | CM63: =IF($D63>=$Q63+$R63,"","* El Total de Pueblos Originarios no debe ser mayor al total de niños en control. ") ->  | CN63: =IF($D63>=$S63+$T63,"","* El Total de Pueblación Migrantes no debe ser mayor al total de niños en control. ") ->  | DL63: =IF($D63>=$Q63+$R63,0,1) -> 0 | DM63: =IF($D63>=$S63+$T63,0,1) -> 0
A64: P2400300 | B64: DIAGNOSTICO NUTRICIONAL INTEGRADO | C64: RIESGO DE DESNUTRIR/ DEFICIT PONDERAL* | D64: 596 | E64: =+G64+I64+K64+M64+O64 -> 306 | F64: 290 | G64: =IFERROR(VLOOKUP($A64,Filtro!$A$5:$AY$629,5,FALSE),0) -> 85 | H64: =IFERROR(VLOOKUP($A64,Filtro!$A$5:$AY$629,6,FALSE),0) -> 81 | I64: =IFERROR(VLOOKUP($A64,Filtro!$A$5:$AY$629,7,FALSE),0) -> 85 | J64: =IFERROR(VLOOKUP($A64,Filtro!$A$5:$AY$629,8,FALSE),0) -> 64 | K64: =IFERROR(VLOOKUP($A64,Filtro!$A$5:$AY$629,9,FALSE),0) -> 69 | L64: =IFERROR(VLOOKUP($A64,Filtro!$A$5:$AY$629,10,FALSE),0) -> 60 | M64: =IFERROR(VLOOKUP($A64,Filtro!$A$5:$AY$629,11,FALSE),0) -> 45 | N64: =IFERROR(VLOOKUP($A64,Filtro!$A$5:$AY$629,12,FALSE),0) -> 55 | O64: =IFERROR(VLOOKUP($A64,Filtro!$A$5:$AY$629,13,FALSE),0) -> 22 | P64: =IFERROR(VLOOKUP($A64,Filtro!$A$5:$AY$629,14,FALSE),0) -> 30 | Q64: =IFERROR(VLOOKUP($A64,Filtro!$A$5:$AY$629,15,FALSE),0) -> 5 | R64: =IFERROR(VLOOKUP($A64,Filtro!$A$5:$AY$629,16,FALSE),0) -> 3 | S64: =IFERROR(VLOOKUP($A64,Filtro!$A$5:$AY$629,17,FALSE),0) -> 10 | T64: =IFERROR(VLOOKUP($A64,Filtro!$A$5:$AY$629,18,FALSE),0) -> 12 | U64: =CP64 & CQ64 ->  | CP64: =IF(AND(E64<>0,Q64=""), "* No olvide escribir en la celda de Pueblos Originarios (Digite CERO si no tiene). ",IF(AND(F64<>0,R64=""), "* No olvide escribir en la celda de Pueblos Originarios (Digite CERO si no tiene). ","")) ->  | CQ64: =IF(AND(E64<>0,S64=""), "* No olvide escribir en la celda de Población Migrantes (Digite CERO si no tiene). ",IF(AND(F64<>0,T64=""), "* No olvide escribir en la celda de Población Migrantes (Digite CERO si no tiene). ","")) ->  | DO64: =IF(AND(E64<>0,Q64=""), 1,IF(AND(F64<>0,R64=""), 1,0)) -> 0 | DP64: =IF(AND(E64<>0,S64=""), 1,IF(AND(F64<>0,T64=""), 1,0)) -> 0
A65: P2400310 | C65: DESNUTRIDO | D65: 59 | E65: 31 | F65: 28 | G65: =IFERROR(VLOOKUP($A65,Filtro!$A$5:$AY$629,5,FALSE),0) -> 8 | H65: =IFERROR(VLOOKUP($A65,Filtro!$A$5:$AY$629,6,FALSE),0) -> 7 | I65: =IFERROR(VLOOKUP($A65,Filtro!$A$5:$AY$629,7,FALSE),0) -> 6 | J65: =IFERROR(VLOOKUP($A65,Filtro!$A$5:$AY$629,8,FALSE),0) -> 3 | K65: =IFERROR(VLOOKUP($A65,Filtro!$A$5:$AY$629,9,FALSE),0) -> 6 | L65: =IFERROR(VLOOKUP($A65,Filtro!$A$5:$AY$629,10,FALSE),0) -> 9 | M65: =IFERROR(VLOOKUP($A65,Filtro!$A$5:$AY$629,11,FALSE),0) -> 9 | N65: =IFERROR(VLOOKUP($A65,Filtro!$A$5:$AY$629,12,FALSE),0) -> 5 | O65: =IFERROR(VLOOKUP($A65,Filtro!$A$5:$AY$629,13,FALSE),0) -> 2 | P65: =IFERROR(VLOOKUP($A65,Filtro!$A$5:$AY$629,14,FALSE),0) -> 4 | Q65: =IFERROR(VLOOKUP($A65,Filtro!$A$5:$AY$629,15,FALSE),0) -> 0 | R65: =IFERROR(VLOOKUP($A65,Filtro!$A$5:$AY$629,16,FALSE),0) -> 0 | S65: =IFERROR(VLOOKUP($A65,Filtro!$A$5:$AY$629,17,FALSE),0) -> 1 | T65: =IFERROR(VLOOKUP($A65,Filtro!$A$5:$AY$629,18,FALSE),0) -> 1 | DO65: 0 | DP65: 0
A66: P2400320 | C66: SOBREPESO / RIESGO OBESIDAD | D66: 3651 | E66: 1789 | F66: 1862 | G66: =IFERROR(VLOOKUP($A66,Filtro!$A$5:$AY$629,5,FALSE),0) -> 528 | H66: =IFERROR(VLOOKUP($A66,Filtro!$A$5:$AY$629,6,FALSE),0) -> 471 | I66: =IFERROR(VLOOKUP($A66,Filtro!$A$5:$AY$629,7,FALSE),0) -> 396 | J66: =IFERROR(VLOOKUP($A66,Filtro!$A$5:$AY$629,8,FALSE),0) -> 416 | K66: =IFERROR(VLOOKUP($A66,Filtro!$A$5:$AY$629,9,FALSE),0) -> 357 | L66: =IFERROR(VLOOKUP($A66,Filtro!$A$5:$AY$629,10,FALSE),0) -> 375 | M66: =IFERROR(VLOOKUP($A66,Filtro!$A$5:$AY$629,11,FALSE),0) -> 285 | N66: =IFERROR(VLOOKUP($A66,Filtro!$A$5:$AY$629,12,FALSE),0) -> 328 | O66: =IFERROR(VLOOKUP($A66,Filtro!$A$5:$AY$629,13,FALSE),0) -> 223 | P66: =IFERROR(VLOOKUP($A66,Filtro!$A$5:$AY$629,14,FALSE),0) -> 272 | Q66: =IFERROR(VLOOKUP($A66,Filtro!$A$5:$AY$629,15,FALSE),0) -> 21 | R66: =IFERROR(VLOOKUP($A66,Filtro!$A$5:$AY$629,16,FALSE),0) -> 23 | S66: =IFERROR(VLOOKUP($A66,Filtro!$A$5:$AY$629,17,FALSE),0) -> 47 | T66: =IFERROR(VLOOKUP($A66,Filtro!$A$5:$AY$629,18,FALSE),0) -> 36 | DO66: 0 | DP66: 0
A67: P2400330 | C67: OBESO | D67: 3102 | E67: 1552 | F67: 1550 | G67: =IFERROR(VLOOKUP($A67,Filtro!$A$5:$AY$629,5,FALSE),0) -> 403 | H67: =IFERROR(VLOOKUP($A67,Filtro!$A$5:$AY$629,6,FALSE),0) -> 373 | I67: =IFERROR(VLOOKUP($A67,Filtro!$A$5:$AY$629,7,FALSE),0) -> 307 | J67: =IFERROR(VLOOKUP($A67,Filtro!$A$5:$AY$629,8,FALSE),0) -> 323 | K67: =IFERROR(VLOOKUP($A67,Filtro!$A$5:$AY$629,9,FALSE),0) -> 287 | L67: =IFERROR(VLOOKUP($A67,Filtro!$A$5:$AY$629,10,FALSE),0) -> 309 | M67: =IFERROR(VLOOKUP($A67,Filtro!$A$5:$AY$629,11,FALSE),0) -> 284 | N67: =IFERROR(VLOOKUP($A67,Filtro!$A$5:$AY$629,12,FALSE),0) -> 310 | O67: =IFERROR(VLOOKUP($A67,Filtro!$A$5:$AY$629,13,FALSE),0) -> 271 | P67: =IFERROR(VLOOKUP($A67,Filtro!$A$5:$AY$629,14,FALSE),0) -> 235 | Q67: =IFERROR(VLOOKUP($A67,Filtro!$A$5:$AY$629,15,FALSE),0) -> 14 | R67: =IFERROR(VLOOKUP($A67,Filtro!$A$5:$AY$629,16,FALSE),0) -> 17 | S67: =IFERROR(VLOOKUP($A67,Filtro!$A$5:$AY$629,17,FALSE),0) -> 17 | T67: =IFERROR(VLOOKUP($A67,Filtro!$A$5:$AY$629,18,FALSE),0) -> 22 | DO67: 0 | DP67: 0
A68: P2400340 | C68: OBESO SEVERO | D68: 1533 | E68: 996 | F68: 537 | G68: =IFERROR(VLOOKUP($A68,Filtro!$A$5:$AY$629,5,FALSE),0) -> 187 | H68: =IFERROR(VLOOKUP($A68,Filtro!$A$5:$AY$629,6,FALSE),0) -> 95 | I68: =IFERROR(VLOOKUP($A68,Filtro!$A$5:$AY$629,7,FALSE),0) -> 240 | J68: =IFERROR(VLOOKUP($A68,Filtro!$A$5:$AY$629,8,FALSE),0) -> 131 | K68: =IFERROR(VLOOKUP($A68,Filtro!$A$5:$AY$629,9,FALSE),0) -> 216 | L68: =IFERROR(VLOOKUP($A68,Filtro!$A$5:$AY$629,10,FALSE),0) -> 121 | M68: =IFERROR(VLOOKUP($A68,Filtro!$A$5:$AY$629,11,FALSE),0) -> 208 | N68: =IFERROR(VLOOKUP($A68,Filtro!$A$5:$AY$629,12,FALSE),0) -> 120 | O68: =IFERROR(VLOOKUP($A68,Filtro!$A$5:$AY$629,13,FALSE),0) -> 145 | P68: =IFERROR(VLOOKUP($A68,Filtro!$A$5:$AY$629,14,FALSE),0) -> 70 | Q68: =IFERROR(VLOOKUP($A68,Filtro!$A$5:$AY$629,15,FALSE),0) -> 7 | R68: =IFERROR(VLOOKUP($A68,Filtro!$A$5:$AY$629,16,FALSE),0) -> 3 | S68: =IFERROR(VLOOKUP($A68,Filtro!$A$5:$AY$629,17,FALSE),0) -> 14 | T68: =IFERROR(VLOOKUP($A68,Filtro!$A$5:$AY$629,18,FALSE),0) -> 4 | DO68: 0 | DP68: 0
A69: P2400350 | C69: NORMAL | D69: 8688 | E69: 4239 | F69: =+H69+J69+L69+N69+P69 -> 4449 | G69: =IFERROR(VLOOKUP($A69,Filtro!$A$5:$AY$629,5,FALSE),0) -> 1422 | H69: =IFERROR(VLOOKUP($A69,Filtro!$A$5:$AY$629,6,FALSE),0) -> 1521 | I69: =IFERROR(VLOOKUP($A69,Filtro!$A$5:$AY$629,7,FALSE),0) -> 1114 | J69: =IFERROR(VLOOKUP($A69,Filtro!$A$5:$AY$629,8,FALSE),0) -> 1054 | K69: =IFERROR(VLOOKUP($A69,Filtro!$A$5:$AY$629,9,FALSE),0) -> 756 | L69: =IFERROR(VLOOKUP($A69,Filtro!$A$5:$AY$629,10,FALSE),0) -> 833 | M69: =IFERROR(VLOOKUP($A69,Filtro!$A$5:$AY$629,11,FALSE),0) -> 550 | N69: =IFERROR(VLOOKUP($A69,Filtro!$A$5:$AY$629,12,FALSE),0) -> 594 | O69: =IFERROR(VLOOKUP($A69,Filtro!$A$5:$AY$629,13,FALSE),0) -> 397 | P69: =IFERROR(VLOOKUP($A69,Filtro!$A$5:$AY$629,14,FALSE),0) -> 447 | Q69: =IFERROR(VLOOKUP($A69,Filtro!$A$5:$AY$629,15,FALSE),0) -> 59 | R69: =IFERROR(VLOOKUP($A69,Filtro!$A$5:$AY$629,16,FALSE),0) -> 62 | S69: =IFERROR(VLOOKUP($A69,Filtro!$A$5:$AY$629,17,FALSE),0) -> 153 | T69: =IFERROR(VLOOKUP($A69,Filtro!$A$5:$AY$629,18,FALSE),0) -> 150 | DO69: 0 | DP69: 0
C70: SUBTOTAL | D70: =+E70+F70 -> 0 | E70: =+G70+I70+K70+M70+O70 -> 0 | F70: =+H70+J70+L70+N70+P70 -> 0 | G70: 0 | H70: 0 | I70: 0 | J70: 0 | K70: 0 | L70: 0 | M70: 0 | N70: 0 | O70: 0 | P70: 0 | Q70: 0 | R70: 0 | S70: 0 | T70: 0 | U70: =CM70 & CN70 ->  | CM70: =IF($D70>=$Q70+$R70,"","* El Total de Pueblos Originarios no debe ser mayor al total de niños en control. ") ->  | CN70: =IF($D70>=$S70+$T70,"","* El Total de Pueblación Migrantes no debe ser mayor al total de niños en control. ") ->  | DL70: =IF($D70>=$Q70+$R70,0,1) -> 0 | DM70: =IF($D70>=$S70+$T70,0,1) -> 0
A71: P2400360 | C71: DESNUTRICIÓN SECUNDARIA | D71: 7 | E71: =+G71+I71+K71+M71+O71 -> 3 | F71: =+H71+J71+L71+N71+P71 -> 4 | G71: =IFERROR(VLOOKUP($A71,Filtro!$A$5:$AY$629,5,FALSE),0) -> 0 | H71: =IFERROR(VLOOKUP($A71,Filtro!$A$5:$AY$629,6,FALSE),0) -> 3 | I71: =IFERROR(VLOOKUP($A71,Filtro!$A$5:$AY$629,7,FALSE),0) -> 2 | J71: =IFERROR(VLOOKUP($A71,Filtro!$A$5:$AY$629,8,FALSE),0) -> 1 | K71: =IFERROR(VLOOKUP($A71,Filtro!$A$5:$AY$629,9,FALSE),0) -> 0 | L71: =IFERROR(VLOOKUP($A71,Filtro!$A$5:$AY$629,10,FALSE),0) -> 0 | M71: =IFERROR(VLOOKUP($A71,Filtro!$A$5:$AY$629,11,FALSE),0) -> 0 | N71: =IFERROR(VLOOKUP($A71,Filtro!$A$5:$AY$629,12,FALSE),0) -> 0 | O71: =IFERROR(VLOOKUP($A71,Filtro!$A$5:$AY$629,13,FALSE),0) -> 1 | P71: =IFERROR(VLOOKUP($A71,Filtro!$A$5:$AY$629,14,FALSE),0) -> 0 | Q71: =IFERROR(VLOOKUP($A71,Filtro!$A$5:$AY$629,15,FALSE),0) -> 0 | R71: =IFERROR(VLOOKUP($A71,Filtro!$A$5:$AY$629,16,FALSE),0) -> 0 | S71: =IFERROR(VLOOKUP($A71,Filtro!$A$5:$AY$629,17,FALSE),0) -> 0 | T71: =IFERROR(VLOOKUP($A71,Filtro!$A$5:$AY$629,18,FALSE),0) -> 0 | U71: =CP71 & CQ71 ->  | CP71: =IF(AND(E71<>0,Q71=""), "* No olvide escribir en la celda de Pueblos Originarios (Digite CERO si no tiene). ",IF(AND(F71<>0,R71=""), "* No olvide escribir en la celda de Pueblos Originarios (Digite CERO si no tiene). ","")) ->  | CQ71: =IF(AND(E71<>0,S71=""), "* No olvide escribir en la celda de Población Migrantes (Digite CERO si no tiene). ",IF(AND(F71<>0,T71=""), "* No olvide escribir en la celda de Población Migrantes (Digite CERO si no tiene). ","")) ->  | DO71: =IF(AND(E71<>0,Q71=""), 1,IF(AND(F71<>0,R71=""), 1,0)) -> 0 | DP71: =IF(AND(E71<>0,S71=""), 1,IF(AND(F71<>0,T71=""), 1,0)) -> 0
C72: T O T A L | D72: =SUM(E72:F72) -> 17636 | E72: =SUM(E64:E69)+E71 -> 8916 | F72: 8720 | G72: 2633 | H72: 2551 | I72: 2150 | J72: 1992 | K72: 1691 | L72: 1707 | M72: 1381 | N72: 1412 | O72: 1061 | P72: 1058 | Q72: 106 | R72: 108 | S72: 242 | T72: 225 | U72: =CM72 & CN72 ->  | CM72: =IF($D72>=$Q72+$R72,"","* El Total de Pueblos Originarios no debe ser mayor al total de niños en control. ") ->  | CN72: =IF($D72>=$S72+$T72,"","* El Total de Pueblación Migrantes no debe ser mayor al total de niños en control. ") ->  | DL72: =IF($D72>=$Q72+$R72,0,1) -> 0 | DM72: =IF($D72>=$S72+$T72,0,1) -> 0
A73: P2501801 | B73: NIÑOS SIN EVALUACIÓN NUTRICIONAL POR CURSO DE VIDA (RECIÉN NACIDOS) O POR CONDICIÓN ESPECIAL DE SALUD | D73: =SUM(E73:F73) -> 18 | E73: =+G73+I73+K73+M73+O73 -> 8 | F73: =+H73+J73+L73+N73+P73 -> 10 | G73: =IFERROR(VLOOKUP($A73,Filtro!$A$5:$AY$629,5,FALSE),0) -> 1 | H73: =IFERROR(VLOOKUP($A73,Filtro!$A$5:$AY$629,6,FALSE),0) -> 1 | I73: =IFERROR(VLOOKUP($A73,Filtro!$A$5:$AY$629,7,FALSE),0) -> 2 | J73: =IFERROR(VLOOKUP($A73,Filtro!$A$5:$AY$629,8,FALSE),0) -> 3 | K73: =IFERROR(VLOOKUP($A73,Filtro!$A$5:$AY$629,9,FALSE),0) -> 1 | L73: =IFERROR(VLOOKUP($A73,Filtro!$A$5:$AY$629,10,FALSE),0) -> 1 | M73: =IFERROR(VLOOKUP($A73,Filtro!$A$5:$AY$629,11,FALSE),0) -> 1 | N73: =IFERROR(VLOOKUP($A73,Filtro!$A$5:$AY$629,12,FALSE),0) -> 2 | O73: =IFERROR(VLOOKUP($A73,Filtro!$A$5:$AY$629,13,FALSE),0) -> 3 | P73: =IFERROR(VLOOKUP($A73,Filtro!$A$5:$AY$629,14,FALSE),0) -> 3 | Q73: =IFERROR(VLOOKUP($A73,Filtro!$A$5:$AY$629,15,FALSE),0) -> 0 | R73: =IFERROR(VLOOKUP($A73,Filtro!$A$5:$AY$629,16,FALSE),0) -> 0 | S73: =IFERROR(VLOOKUP($A73,Filtro!$A$5:$AY$629,17,FALSE),0) -> 0 | T73: =IFERROR(VLOOKUP($A73,Filtro!$A$5:$AY$629,18,FALSE),0) -> 0
B74: NOTA(*): El Diagnóstico Nutricional Integrado de Déficit para los niños (as) 5 años y más denomina Déficit Ponderal al Riesgo de Desnutrir.
B75: SECCION B: POBLACION EN CONTROL SEGÚN RESULTADO DE EVALUACIÓN DEL DESARROLLO PSICOMOTOR
B76: RESULTADO Y GRUPOS DE EDAD | D76: TOTAL | E76: Hombres | F76: Mujeres | G76: Pueblos Originarios | H76: Migrantes
A77: P2501802 | B77: NORMAL | C77: Menor de 12 meses | D77: =SUM(E77:F77) -> 2434 | E77: =IFERROR(VLOOKUP($A77,Filtro!$A$5:$AY$629,3,FALSE),0) -> 1230 | F77: =IFERROR(VLOOKUP($A77,Filtro!$A$5:$AY$629,4,FALSE),0) -> 1204 | G77: =IFERROR(VLOOKUP($A77,Filtro!$A$5:$AY$629,5,FALSE),0) -> 27 | H77: =IFERROR(VLOOKUP($A77,Filtro!$A$5:$AY$629,6,FALSE),0) -> 8 | CF77: =IF($G1+$I1+$K1+$M1+$O1+$Q1+$S1+$U1<$E77+$E83,"* La suma de Población Masculina Menor de 12 meses según resultado de 'Riesgo y Retraso' no puede ser mayor que la Población Masculina bajo control de la sección A. ","") -> * La suma de Población Masculina Menor de 12 meses según resultado de 'Riesgo y Retraso' no puede ser mayor que la Población Masculina bajo control de la sección A. | CG77: =IF($H1+$J1+$L1+$N1+$P1+$R1+$T1+$V1<$F77+$F83,"* La suma de Población Femenina de Menor de 12 meses según resultado de 'Riesgo y Retraso' no puede ser mayor que la Población Femenina bajo control de la sección A. ","") -> * La suma de Población Femenina de Menor de 12 meses según resultado de 'Riesgo y Retraso' no puede ser mayor que la Población Femenina bajo control de la sección A. | DE77: =IF($G1+$I1+$K1+$M1+$O1+$Q1+$S1+$U1<$E77+$E83,1,0) -> 1 | DF77: =IF($H1+$J1+$L1+$N1+$P1+$R1+$T1+$V1<$F77+$F83,1,0) -> 1
A78: P2501803 | C78: 12 a 17 meses | D78: =SUM(E78:F78) -> 820 | E78: =IFERROR(VLOOKUP($A78,Filtro!$A$5:$AY$629,3,FALSE),0) -> 401 | F78: =IFERROR(VLOOKUP($A78,Filtro!$A$5:$AY$629,4,FALSE),0) -> 419 | G78: =IFERROR(VLOOKUP($A78,Filtro!$A$5:$AY$629,5,FALSE),0) -> 3 | H78: =IFERROR(VLOOKUP($A78,Filtro!$A$5:$AY$629,6,FALSE),0) -> 6 | CF78: =IF($K$11<$E$90+$E$96,"* La suma de Población Masculina de 12 a 17 meses según resultado de 'Riesgo y Retraso' no puede ser mayor que la Población Masculina bajo control de la sección A. ","") ->  | CG78: =IF($L$11<$F$90+$F$96,"* La suma de Población Femenina de 12 a 17 meses según resultado de 'Riesgo y Retraso' no puede ser mayor que la Población Femenina bajo control de la sección A. ","") ->  | DE78: =IF($K$11<$E$90+$E$96,1,0) -> 0 | DF78: =IF($L$11<$F$90+$F$96,1,0) -> 0
A79: P2501804 | C79: 18 a 23 meses | D79: 2045 | E79: =IFERROR(VLOOKUP($A79,Filtro!$A$5:$AY$629,3,FALSE),0) -> 971 | F79: =IFERROR(VLOOKUP($A79,Filtro!$A$5:$AY$629,4,FALSE),0) -> 1074 | G79: =IFERROR(VLOOKUP($A79,Filtro!$A$5:$AY$629,5,FALSE),0) -> 18 | H79: =IFERROR(VLOOKUP($A79,Filtro!$A$5:$AY$629,6,FALSE),0) -> 17 | CF79: =IF($M$11<$E$91+$E$97,"* La suma de Población Masculina de 18 a 23 meses según resultado de 'Riesgo y Retraso' no puede ser mayor que la Población Masculina bajo control de la sección A. ","") ->  | CG79: =IF($N$11<$F$91+$F$97,"* La suma de Población Femenina de 18 a 23 meses según resultado de 'Riesgo y Retraso' no puede ser mayor que la Población Femenina bajo control de la sección A. ","") ->  | DE79: =IF($M$11<$E$91+$E$97,1,0) -> 0 | DF79: =IF($N$11<$F$91+$F$97,1,0) -> 0
A80: P2501805 | C80: 24 a 35 meses | D80: 971 | E80: =IFERROR(VLOOKUP($A80,Filtro!$A$5:$AY$629,3,FALSE),0) -> 484 | F80: =IFERROR(VLOOKUP($A80,Filtro!$A$5:$AY$629,4,FALSE),0) -> 487 | G80: =IFERROR(VLOOKUP($A80,Filtro!$A$5:$AY$629,5,FALSE),0) -> 4 | H80: =IFERROR(VLOOKUP($A80,Filtro!$A$5:$AY$629,6,FALSE),0) -> 3 | CF80: =IF($AA1+$AE1+$AC1<$E80+$E86,"* La suma de Población Masculina de 24 a 47 meses según resultado de 'Riesgo y Retraso' no puede ser mayor que la Población Masculina bajo control de la sección A. ","") -> * La suma de Población Masculina de 24 a 47 meses según resultado de 'Riesgo y Retraso' no puede ser mayor que la Población Masculina bajo control de la sección A. | CG80: =IF($AB1+$AF1+$AD1<$F80+$F86,"* La suma de Población Femenina de 24 a 47 meses según resultado de 'Riesgo y Retraso' no puede ser mayor que la Población Femenina bajo control de la sección A. ","") -> * La suma de Población Femenina de 24 a 47 meses según resultado de 'Riesgo y Retraso' no puede ser mayor que la Población Femenina bajo control de la sección A. | DE80: =IF($AA1+$AE1+$AC1<$E80+$E86,1,0) -> 1 | DF80: =IF($AB1+$AF1+$AD1<$F80+$F86,1,0) -> 1
A81: P2501806 | C81: 36 a 47 meses | D81: 2203 | E81: =IFERROR(VLOOKUP($A81,Filtro!$A$5:$AY$629,3,FALSE),0) -> 1032 | F81: =IFERROR(VLOOKUP($A81,Filtro!$A$5:$AY$629,4,FALSE),0) -> 1171 | G81: =IFERROR(VLOOKUP($A81,Filtro!$A$5:$AY$629,5,FALSE),0) -> 27 | H81: =IFERROR(VLOOKUP($A81,Filtro!$A$5:$AY$629,6,FALSE),0) -> 30
A82: P2501807 | C82: 48 a 59 meses | D82: 691 | E82: =IFERROR(VLOOKUP($A82,Filtro!$A$5:$AY$629,3,FALSE),0) -> 374 | F82: =IFERROR(VLOOKUP($A82,Filtro!$A$5:$AY$629,4,FALSE),0) -> 317 | G82: =IFERROR(VLOOKUP($A82,Filtro!$A$5:$AY$629,5,FALSE),0) -> 7 | H82: =IFERROR(VLOOKUP($A82,Filtro!$A$5:$AY$629,6,FALSE),0) -> 3 | CF82: =IF($S$11<$E$94+$E$100,"* La suma de Población Masculina de 48 a 59 meses según resultado de 'Riesgo y Retraso' no puede ser mayor que la Población Masculina bajo control de la sección A. ","") ->  | CG82: =IF($T$11<$F$94+$F$100,"* La suma de Población Femenina de 48 a 59 meses según resultado de 'Riesgo y Retraso' no puede ser mayor que la Población Femenina bajo control de la sección A. ","") ->  | DE82: =IF($S$11<$E$94+$E$100,1,0) -> 0 | DF82: =IF($T$11<$F$94+$F$100,1,0) -> 0
A83: P2501808 | B83: NORMAL CON REZAGO | C83: Menor de 12 meses | D83: =SUM(E83:F83) -> 71 | E83: =IFERROR(VLOOKUP($A83,Filtro!$A$5:$AY$629,3,FALSE),0) -> 42 | F83: =IFERROR(VLOOKUP($A83,Filtro!$A$5:$AY$629,4,FALSE),0) -> 29 | G83: =IFERROR(VLOOKUP($A83,Filtro!$A$5:$AY$629,5,FALSE),0) -> 0 | H83: =IFERROR(VLOOKUP($A83,Filtro!$A$5:$AY$629,6,FALSE),0) -> 0 | CF83: =IF($G6+$I6+$K6+$M6+$O6+$Q6+$S6+$U6<$E83+$E89,"* La suma de Población Masculina Menor de 12 meses según resultado de 'Riesgo y Retraso' no puede ser mayor que la Población Masculina bajo control de la sección A. ","") -> * La suma de Población Masculina Menor de 12 meses según resultado de 'Riesgo y Retraso' no puede ser mayor que la Población Masculina bajo control de la sección A. | CG83: =IF($H6+$J6+$L6+$N6+$P6+$R6+$T6+$V6<$F83+$F89,"* La suma de Población Femenina de Menor de 12 meses según resultado de 'Riesgo y Retraso' no puede ser mayor que la Población Femenina bajo control de la sección A. ","") -> * La suma de Población Femenina de Menor de 12 meses según resultado de 'Riesgo y Retraso' no puede ser mayor que la Población Femenina bajo control de la sección A. | DE83: =IF($G6+$I6+$K6+$M6+$O6+$Q6+$S6+$U6<$E83+$E89,1,0) -> 1 | DF83: =IF($H6+$J6+$L6+$N6+$P6+$R6+$T6+$V6<$F83+$F89,1,0) -> 1
A84: P2501809 | C84: 12 a 17 meses | D84: 38 | E84: =IFERROR(VLOOKUP($A84,Filtro!$A$5:$AY$629,3,FALSE),0) -> 20 | F84: =IFERROR(VLOOKUP($A84,Filtro!$A$5:$AY$629,4,FALSE),0) -> 18 | G84: =IFERROR(VLOOKUP($A84,Filtro!$A$5:$AY$629,5,FALSE),0) -> 1 | H84: =IFERROR(VLOOKUP($A84,Filtro!$A$5:$AY$629,6,FALSE),0) -> 0 | CF84: =IF($K$11<$E$90+$E$96,"* La suma de Población Masculina de 12 a 17 meses según resultado de 'Riesgo y Retraso' no puede ser mayor que la Población Masculina bajo control de la sección A. ","") ->  | CG84: =IF($L$11<$F$90+$F$96,"* La suma de Población Femenina de 12 a 17 meses según resultado de 'Riesgo y Retraso' no puede ser mayor que la Población Femenina bajo control de la sección A. ","") ->  | DE84: =IF($K$11<$E$90+$E$96,1,0) -> 0 | DF84: =IF($L$11<$F$90+$F$96,1,0) -> 0
A85: P2501810 | C85: 18 a 23 meses | D85: 140 | E85: =IFERROR(VLOOKUP($A85,Filtro!$A$5:$AY$629,3,FALSE),0) -> 86 | F85: =IFERROR(VLOOKUP($A85,Filtro!$A$5:$AY$629,4,FALSE),0) -> 54 | G85: =IFERROR(VLOOKUP($A85,Filtro!$A$5:$AY$629,5,FALSE),0) -> 4 | H85: =IFERROR(VLOOKUP($A85,Filtro!$A$5:$AY$629,6,FALSE),0) -> 2 | CF85: =IF($M$11<$E$91+$E$97,"* La suma de Población Masculina de 18 a 23 meses según resultado de 'Riesgo y Retraso' no puede ser mayor que la Población Masculina bajo control de la sección A. ","") ->  | CG85: =IF($N$11<$F$91+$F$97,"* La suma de Población Femenina de 18 a 23 meses según resultado de 'Riesgo y Retraso' no puede ser mayor que la Población Femenina bajo control de la sección A. ","") ->  | DE85: =IF($M$11<$E$91+$E$97,1,0) -> 0 | DF85: =IF($N$11<$F$91+$F$97,1,0) -> 0
A86: P2501811 | C86: 24 a 35 meses | D86: 107 | E86: =IFERROR(VLOOKUP($A86,Filtro!$A$5:$AY$629,3,FALSE),0) -> 78 | F86: =IFERROR(VLOOKUP($A86,Filtro!$A$5:$AY$629,4,FALSE),0) -> 29 | G86: =IFERROR(VLOOKUP($A86,Filtro!$A$5:$AY$629,5,FALSE),0) -> 2 | H86: =IFERROR(VLOOKUP($A86,Filtro!$A$5:$AY$629,6,FALSE),0) -> 2 | CF86: =IF($AA6+$AE6+$AC6<$E86+$E92,"* La suma de Población Masculina de 24 a 47 meses según resultado de 'Riesgo y Retraso' no puede ser mayor que la Población Masculina bajo control de la sección A. ","") -> * La suma de Población Masculina de 24 a 47 meses según resultado de 'Riesgo y Retraso' no puede ser mayor que la Población Masculina bajo control de la sección A. | CG86: =IF($AB6+$AF6+$AD6<$F86+$F92,"* La suma de Población Femenina de 24 a 47 meses según resultado de 'Riesgo y Retraso' no puede ser mayor que la Población Femenina bajo control de la sección A. ","") -> * La suma de Población Femenina de 24 a 47 meses según resultado de 'Riesgo y Retraso' no puede ser mayor que la Población Femenina bajo control de la sección A. | DE86: =IF($AA6+$AE6+$AC6<$E86+$E92,1,0) -> 1 | DF86: =IF($AB6+$AF6+$AD6<$F86+$F92,1,0) -> 1
A87: P2501812 | C87: 36 a 47 meses | D87: 211 | E87: =IFERROR(VLOOKUP($A87,Filtro!$A$5:$AY$629,3,FALSE),0) -> 106 | F87: =IFERROR(VLOOKUP($A87,Filtro!$A$5:$AY$629,4,FALSE),0) -> 105 | G87: =IFERROR(VLOOKUP($A87,Filtro!$A$5:$AY$629,5,FALSE),0) -> 3 | H87: =IFERROR(VLOOKUP($A87,Filtro!$A$5:$AY$629,6,FALSE),0) -> 4
A88: P2501813 | C88: 48 a 59 meses | D88: 19 | E88: =IFERROR(VLOOKUP($A88,Filtro!$A$5:$AY$629,3,FALSE),0) -> 15 | F88: =IFERROR(VLOOKUP($A88,Filtro!$A$5:$AY$629,4,FALSE),0) -> 4 | G88: =IFERROR(VLOOKUP($A88,Filtro!$A$5:$AY$629,5,FALSE),0) -> 0 | H88: =IFERROR(VLOOKUP($A88,Filtro!$A$5:$AY$629,6,FALSE),0) -> 0 | CF88: =IF($S$11<$E$94+$E$100,"* La suma de Población Masculina de 48 a 59 meses según resultado de 'Riesgo y Retraso' no puede ser mayor que la Población Masculina bajo control de la sección A. ","") ->  | CG88: =IF($T$11<$F$94+$F$100,"* La suma de Población Femenina de 48 a 59 meses según resultado de 'Riesgo y Retraso' no puede ser mayor que la Población Femenina bajo control de la sección A. ","") ->  | DE88: =IF($S$11<$E$94+$E$100,1,0) -> 0 | DF88: =IF($T$11<$F$94+$F$100,1,0) -> 0
A89: P2100200 | B89: RIESGO | C89: Menor de 12 meses | D89: 117 | E89: =IFERROR(VLOOKUP($A89,Filtro!$A$5:$AY$629,3,FALSE),0) -> 60 | F89: =IFERROR(VLOOKUP($A89,Filtro!$A$5:$AY$629,4,FALSE),0) -> 57 | G89: =IFERROR(VLOOKUP($A89,Filtro!$A$5:$AY$629,5,FALSE),0) -> 4 | H89: =IFERROR(VLOOKUP($A89,Filtro!$A$5:$AY$629,6,FALSE),0) -> 2 | DE89: =IF(#REF!+#REF!+#REF!+#REF!+#REF!+#REF!+$G11+$I11<$E89+$E95,1,0) ->  | DF89: =IF(#REF!+#REF!+#REF!+#REF!+#REF!+#REF!+$H11+$J11<$F89+$F95,1,0) -> 
A90: P2300100 | C90: 12 a 17 meses | D90: 53 | E90: =IFERROR(VLOOKUP($A90,Filtro!$A$5:$AY$629,3,FALSE),0) -> 35 | F90: =IFERROR(VLOOKUP($A90,Filtro!$A$5:$AY$629,4,FALSE),0) -> 18 | G90: =IFERROR(VLOOKUP($A90,Filtro!$A$5:$AY$629,5,FALSE),0) -> 3 | H90: =IFERROR(VLOOKUP($A90,Filtro!$A$5:$AY$629,6,FALSE),0) -> 2 | DE90: =IF($K$11<$E$90+$E$96,1,0) -> 0 | DF90: =IF($L$11<$F$90+$F$96,1,0) -> 0
A91: P2300200 | C91: 18 a 23 meses | D91: 276 | E91: =IFERROR(VLOOKUP($A91,Filtro!$A$5:$AY$629,3,FALSE),0) -> 174 | F91: =IFERROR(VLOOKUP($A91,Filtro!$A$5:$AY$629,4,FALSE),0) -> 102 | G91: =IFERROR(VLOOKUP($A91,Filtro!$A$5:$AY$629,5,FALSE),0) -> 3 | H91: =IFERROR(VLOOKUP($A91,Filtro!$A$5:$AY$629,6,FALSE),0) -> 3 | DE91: =IF($M$11<$E$91+$E$97,1,0) -> 0 | DF91: =IF($N$11<$F$91+$F$97,1,0) -> 0
A92: P2501814 | C92: 24 a 35 meses | D92: 109 | E92: =IFERROR(VLOOKUP($A92,Filtro!$A$5:$AY$629,3,FALSE),0) -> 72 | F92: =IFERROR(VLOOKUP($A92,Filtro!$A$5:$AY$629,4,FALSE),0) -> 37 | G92: =IFERROR(VLOOKUP($A92,Filtro!$A$5:$AY$629,5,FALSE),0) -> 3 | H92: =IFERROR(VLOOKUP($A92,Filtro!$A$5:$AY$629,6,FALSE),0) -> 2 | DE92: =IF($O11+$Q11+#REF!<$E92+$E98,1,0) ->  | DF92: =IF($P11+$R11+#REF!<$F92+$F98,1,0) -> 
A93: P2501815 | C93: 36 a 47 meses | D93: 208 | E93: =IFERROR(VLOOKUP($A93,Filtro!$A$5:$AY$629,3,FALSE),0) -> 126 | F93: =IFERROR(VLOOKUP($A93,Filtro!$A$5:$AY$629,4,FALSE),0) -> 82 | G93: =IFERROR(VLOOKUP($A93,Filtro!$A$5:$AY$629,5,FALSE),0) -> 4 | H93: =IFERROR(VLOOKUP($A93,Filtro!$A$5:$AY$629,6,FALSE),0) -> 4
A94: P2100500 | C94: 48 a 59 meses | D94: 9 | E94: =IFERROR(VLOOKUP($A94,Filtro!$A$5:$AY$629,3,FALSE),0) -> 7 | F94: =IFERROR(VLOOKUP($A94,Filtro!$A$5:$AY$629,4,FALSE),0) -> 2 | G94: =IFERROR(VLOOKUP($A94,Filtro!$A$5:$AY$629,5,FALSE),0) -> 0 | H94: =IFERROR(VLOOKUP($A94,Filtro!$A$5:$AY$629,6,FALSE),0) -> 0 | CF94: =IF($S$11<$E$94+$E$100,"* La suma de Población Masculina de 48 a 59 meses según resultado de 'Riesgo y Retraso' no puede ser mayor que la Población Masculina bajo control de la sección A. ","") ->  | CG94: =IF($T$11<$F$94+$F$100,"* La suma de Población Femenina de 48 a 59 meses según resultado de 'Riesgo y Retraso' no puede ser mayor que la Población Femenina bajo control de la sección A. ","") ->  | DE94: =IF($S$11<$E$94+$E$100,1,0) -> 0 | DF94: =IF($T$11<$F$94+$F$100,1,0) -> 0
A95: P2100600 | B95: RETRASO | C95: Menor de 12 meses | D95: 53 | E95: =IFERROR(VLOOKUP($A95,Filtro!$A$5:$AY$629,3,FALSE),0) -> 25 | F95: =IFERROR(VLOOKUP($A95,Filtro!$A$5:$AY$629,4,FALSE),0) -> 28 | G95: =IFERROR(VLOOKUP($A95,Filtro!$A$5:$AY$629,5,FALSE),0) -> 2 | H95: =IFERROR(VLOOKUP($A95,Filtro!$A$5:$AY$629,6,FALSE),0) -> 0
A96: P2300300 | C96: 12 a 17 meses | D96: 12 | E96: =IFERROR(VLOOKUP($A96,Filtro!$A$5:$AY$629,3,FALSE),0) -> 9 | F96: =IFERROR(VLOOKUP($A96,Filtro!$A$5:$AY$629,4,FALSE),0) -> 3 | G96: =IFERROR(VLOOKUP($A96,Filtro!$A$5:$AY$629,5,FALSE),0) -> 0 | H96: =IFERROR(VLOOKUP($A96,Filtro!$A$5:$AY$629,6,FALSE),0) -> 0
A97: P2300400 | C97: 18 a 23 meses | D97: 136 | E97: =IFERROR(VLOOKUP($A97,Filtro!$A$5:$AY$629,3,FALSE),0) -> 94 | F97: =IFERROR(VLOOKUP($A97,Filtro!$A$5:$AY$629,4,FALSE),0) -> 42 | G97: =IFERROR(VLOOKUP($A97,Filtro!$A$5:$AY$629,5,FALSE),0) -> 1 | H97: =IFERROR(VLOOKUP($A97,Filtro!$A$5:$AY$629,6,FALSE),0) -> 2
A98: P2501816 | C98: 24 a 35 meses | D98: 24 | E98: =IFERROR(VLOOKUP($A98,Filtro!$A$5:$AY$629,3,FALSE),0) -> 15 | F98: =IFERROR(VLOOKUP($A98,Filtro!$A$5:$AY$629,4,FALSE),0) -> 9 | G98: =IFERROR(VLOOKUP($A98,Filtro!$A$5:$AY$629,5,FALSE),0) -> 0 | H98: =IFERROR(VLOOKUP($A98,Filtro!$A$5:$AY$629,6,FALSE),0) -> 1
A99: P2501817 | C99: 36 a 47 meses | D99: 95 | E99: =IFERROR(VLOOKUP($A99,Filtro!$A$5:$AY$629,3,FALSE),0) -> 68 | F99: =IFERROR(VLOOKUP($A99,Filtro!$A$5:$AY$629,4,FALSE),0) -> 27 | G99: =IFERROR(VLOOKUP($A99,Filtro!$A$5:$AY$629,5,FALSE),0) -> 1 | H99: =IFERROR(VLOOKUP($A99,Filtro!$A$5:$AY$629,6,FALSE),0) -> 1
A100: P2300000 | C100: 48 a 59 meses | D100: =SUM(E100:F100) -> 12 | E100: =IFERROR(VLOOKUP($A100,Filtro!$A$5:$AY$629,3,FALSE),0) -> 12 | F100: =IFERROR(VLOOKUP($A100,Filtro!$A$5:$AY$629,4,FALSE),0) -> 0 | G100: =IFERROR(VLOOKUP($A100,Filtro!$A$5:$AY$629,5,FALSE),0) -> 1 | H100: =IFERROR(VLOOKUP($A100,Filtro!$A$5:$AY$629,6,FALSE),0) -> 0
B101: SECCION C: POBLACIÓN MENOR DE 1 AÑO EN CONTROL, SEGÚN SCORE RIESGO EN IRA Y VISITA DOMICILIARIA INTEGRAL
B102: RESULTADO | D102: TOTAL | E102: Diada, menor de 10 días | F102: 1 mes | G102: 2 meses | H102: 3 meses | I102: 4 meses | J102: 5 meses | K102: 6 meses | L102: 7 a 12 meses | M102: Total de Niños y Niñas que han recibido VDI | N102: Pueblos Originarios | O102: Migrantes
A104: P2090300 | B104: SCORE DE RIESGO | C104: LEVE | D104: =SUM(E104:L104) -> 6292 | E104: =IFERROR(VLOOKUP($A104,Filtro!$A$5:$AY$629,3,FALSE),0) -> 320 | F104: =IFERROR(VLOOKUP($A104,Filtro!$A$5:$AY$629,4,FALSE),0) -> 535 | G104: =IFERROR(VLOOKUP($A104,Filtro!$A$5:$AY$629,5,FALSE),0) -> 711 | H104: =IFERROR(VLOOKUP($A104,Filtro!$A$5:$AY$629,6,FALSE),0) -> 530 | I104: =IFERROR(VLOOKUP($A104,Filtro!$A$5:$AY$629,7,FALSE),0) -> 724 | J104: =IFERROR(VLOOKUP($A104,Filtro!$A$5:$AY$629,8,FALSE),0) -> 482 | K104: =IFERROR(VLOOKUP($A104,Filtro!$A$5:$AY$629,9,FALSE),0) -> 746 | L104: =IFERROR(VLOOKUP($A104,Filtro!$A$5:$AY$629,10,FALSE),0) -> 2244 | M104: =IFERROR(VLOOKUP($A104,Filtro!$A$5:$AY$629,11,FALSE),0) -> 0 | N104: =IFERROR(VLOOKUP($A104,Filtro!$A$5:$AY$629,12,FALSE),0) -> 48 | O104: =IFERROR(VLOOKUP($A104,Filtro!$A$5:$AY$629,13,FALSE),0) -> 22
A105: P2090400 | C105: MODERADO | D105: =SUM(E105:L105) -> 1011 | E105: =IFERROR(VLOOKUP($A105,Filtro!$A$5:$AY$629,3,FALSE),0) -> 27 | F105: =IFERROR(VLOOKUP($A105,Filtro!$A$5:$AY$629,4,FALSE),0) -> 74 | G105: =IFERROR(VLOOKUP($A105,Filtro!$A$5:$AY$629,5,FALSE),0) -> 105 | H105: =IFERROR(VLOOKUP($A105,Filtro!$A$5:$AY$629,6,FALSE),0) -> 67 | I105: =IFERROR(VLOOKUP($A105,Filtro!$A$5:$AY$629,7,FALSE),0) -> 102 | J105: =IFERROR(VLOOKUP($A105,Filtro!$A$5:$AY$629,8,FALSE),0) -> 69 | K105: =IFERROR(VLOOKUP($A105,Filtro!$A$5:$AY$629,9,FALSE),0) -> 135 | L105: =IFERROR(VLOOKUP($A105,Filtro!$A$5:$AY$629,10,FALSE),0) -> 432 | M105: =IFERROR(VLOOKUP($A105,Filtro!$A$5:$AY$629,11,FALSE),0) -> 195 | N105: =IFERROR(VLOOKUP($A105,Filtro!$A$5:$AY$629,12,FALSE),0) -> 7 | O105: =IFERROR(VLOOKUP($A105,Filtro!$A$5:$AY$629,13,FALSE),0) -> 3 | CH105: =IF($D105<$M105, "* Niños visitados no puede ser mayor que el total Score Moderado. ","") ->  | DF105: =IF($D105<$M105, 1,0) -> 0
A106: P2100100 | C106: GRAVE | D106: =SUM(E106:L106) -> 410 | E106: =IFERROR(VLOOKUP($A106,Filtro!$A$5:$AY$629,3,FALSE),0) -> 7 | F106: =IFERROR(VLOOKUP($A106,Filtro!$A$5:$AY$629,4,FALSE),0) -> 33 | G106: =IFERROR(VLOOKUP($A106,Filtro!$A$5:$AY$629,5,FALSE),0) -> 49 | H106: =IFERROR(VLOOKUP($A106,Filtro!$A$5:$AY$629,6,FALSE),0) -> 30 | I106: =IFERROR(VLOOKUP($A106,Filtro!$A$5:$AY$629,7,FALSE),0) -> 39 | J106: =IFERROR(VLOOKUP($A106,Filtro!$A$5:$AY$629,8,FALSE),0) -> 54 | K106: =IFERROR(VLOOKUP($A106,Filtro!$A$5:$AY$629,9,FALSE),0) -> 37 | L106: =IFERROR(VLOOKUP($A106,Filtro!$A$5:$AY$629,10,FALSE),0) -> 161 | M106: =IFERROR(VLOOKUP($A106,Filtro!$A$5:$AY$629,11,FALSE),0) -> 174 | N106: =IFERROR(VLOOKUP($A106,Filtro!$A$5:$AY$629,12,FALSE),0) -> 2 | O106: =IFERROR(VLOOKUP($A106,Filtro!$A$5:$AY$629,13,FALSE),0) -> 5 | CH106: =IF($D106<$M106, "* Niños visitados no puede ser mayor que el total Score Grave. ","") ->  | DF106: =IF($D106<$M106,1,0) -> 0
C107: TOTAL | D107: =SUM(E107:L107) -> 7713 | E107: =SUM(E104:E106) -> 354 | F107: 642 | G107: 865 | H107: 627 | I107: 865 | J107: 605 | K107: =SUM(K104:K106) -> 918 | L107: 2837 | M107: =SUM(M105:M106) -> 369 | N107: =SUM(N104:N106) -> 57 | O107: =SUM(O104:O106) -> 30
B108: SECCION D: POBLACIÓN EN CONTROL EN EL SEMESTRE CON CONSULTA NUTRICIONAL, SEGÚN ESTRATEGIA
B109: NIÑO/A CON CONSULTA NUTRICIONAL EN | D109: TOTAL
A111: P2200700 | B111: Del 5to mes | D111: =IFERROR(VLOOKUP($A111,Filtro!$A$5:$AY$629,2,FALSE),0) -> 2495
A112: P2200800 | B112: De los 3 años y 6 meses | D112: =IFERROR(VLOOKUP($A112,Filtro!$A$5:$AY$629,2,FALSE),0) -> 1588
B113: SECCION E: POBLACIÓN INASISTENTE A CONTROL DEL NIÑO SANO (AL CORTE)
B114: EDAD | D114: TOTAL
A116: P2501818 | B116: 0 - 11 meses | D116: =IFERROR(VLOOKUP($A116,Filtro!$A$5:$AY$629,2,FALSE),0) -> 559
A117: P2501819 | B117: 12 - 24 meses | D117: =IFERROR(VLOOKUP($A117,Filtro!$A$5:$AY$629,2,FALSE),0) -> 938
A118: P2501820 | B118: 25 - 35 meses | D118: =IFERROR(VLOOKUP($A118,Filtro!$A$5:$AY$629,2,FALSE),0) -> 1403
A119: P2501821 | B119: 36 - 59 meses | D119: =IFERROR(VLOOKUP($A119,Filtro!$A$5:$AY$629,2,FALSE),0) -> 3486
A120: P2501822 | B120: 60 meses - 9 años | D120: =IFERROR(VLOOKUP($A120,Filtro!$A$5:$AY$629,2,FALSE),0) -> 10612
B121: TOTAL | D121: =SUM(D116:D120) -> 16998
B122: SECCION F: POBLACIÓN INFANTIL SEGÚN DIAGNÓSTICO DE PRESIÓN ARTERIAL (Incluida en sección A y A1)
B123: CLASIFICACIÓN | D123: Total | G123: GRUPOS DE EDAD (en meses) | M123: Derivación Nivel Secundario
G124: 36 a 47 meses | I124: 48 a 71 meses | K124: 6-9 años
D125: Total | E125: Hombres | F125: Mujeres | G125: Hombres | H125: Mujeres | I125: Hombres | J125: Mujeres | K125: Hombres | L125: Mujeres
A126: P2300530 | B126: NORMAL (PA menor al percentil 90) | D126: =SUM(E126:F126) -> 12914 | E126: =+G126+I126+K126 -> 6259 | F126: =+H126+J126+L126 -> 6655 | G126: =IFERROR(VLOOKUP($A126,Filtro!$A$5:$AY$629,5,FALSE),0) -> 695 | H126: =IFERROR(VLOOKUP($A126,Filtro!$A$5:$AY$629,6,FALSE),0) -> 788 | I126: =IFERROR(VLOOKUP($A126,Filtro!$A$5:$AY$629,7,FALSE),0) -> 2097 | J126: =IFERROR(VLOOKUP($A126,Filtro!$A$5:$AY$629,8,FALSE),0) -> 2220 | K126: =IFERROR(VLOOKUP($A126,Filtro!$A$5:$AY$629,9,FALSE),0) -> 3467 | L126: =IFERROR(VLOOKUP($A126,Filtro!$A$5:$AY$629,10,FALSE),0) -> 3647 | M126: =IFERROR(VLOOKUP($A126,Filtro!$A$5:$AY$629,11,FALSE),0) -> 0 | CO126: =IF($G126<=SUM($Q$11:$R$11),"","* Niños(as) de 36 a 47 ms clasificados debe ser menor o igual al Total de la población de niños bajo control de en sección A misma edad. ") -> * Niños(as) de 36 a 47 ms clasificados debe ser menor o igual al Total de la población de niños bajo control de en sección A misma edad. | CP126: =IF($J126<=SUM($S$11:$T$11,$G$44:$H$44),"","* Niños(as) de 48 a 71 meses clasificados debe ser menor o igual al Total de la población de niños bajo control de en sección A y A1 de la misma edad. ") ->  | CQ126: =IF($L126<=SUM($O$44:$P$44),"","* Niños(as) de 6 a 9 años clasificados debe ser menor o igual al Total de la población de niños bajo control de en sección A1 misma edad ") -> * Niños(as) de 6 a 9 años clasificados debe ser menor o igual al Total de la población de niños bajo control de en sección A1 misma edad | DK126: =IF($G126<=SUM($Q$11:$R$11),0,1) -> 1 | DL126: =IF($J126<=SUM($S$11:$T$11,$G$44:$H$44),0,1) -> 0 | DM126: =IF($L126<=SUM($O$44:$P$44),0,1) -> 1
A127: P2300540 | B127: PRESIÓN ARTERIAL ELEVADA | D127: =SUM(E127:F127) -> 697 | E127: =+G127+I127+K127 -> 350 | F127: 347 | G127: =IFERROR(VLOOKUP($A127,Filtro!$A$5:$AY$629,5,FALSE),0) -> 32 | H127: =IFERROR(VLOOKUP($A127,Filtro!$A$5:$AY$629,6,FALSE),0) -> 29 | I127: =IFERROR(VLOOKUP($A127,Filtro!$A$5:$AY$629,7,FALSE),0) -> 103 | J127: =IFERROR(VLOOKUP($A127,Filtro!$A$5:$AY$629,8,FALSE),0) -> 117 | K127: =IFERROR(VLOOKUP($A127,Filtro!$A$5:$AY$629,9,FALSE),0) -> 215 | L127: =IFERROR(VLOOKUP($A127,Filtro!$A$5:$AY$629,10,FALSE),0) -> 201 | M127: =IFERROR(VLOOKUP($A127,Filtro!$A$5:$AY$629,11,FALSE),0) -> 3 | CO127: =IF($G127<=SUM($Q$11:$R$11),"","* Niños(as) de 36 a 47 ms clasificados debe ser menor o igual al Total de la población de niños bajo control de en sección A misma edad. ") ->  | CP127: =IF($J127<=SUM($S$11:$T$11,$G$44:$H$44),"","* Niños(as) de 48 a 71 meses clasificados debe ser menor o igual al Total de la población de niños bajo control de en sección A y A1 de la misma edad. ") ->  | CQ127: =IF($L127<=SUM($O$44:$P$44),"","* Niños(as) de 6 a 9 años clasificados debe ser menor o igual al Total de la población de niños bajo control de en sección A1 misma edad ") ->  | DK127: =IF($G127<=SUM($Q$11:$R$11),0,1) -> 0 | DL127: =IF($J127<=SUM($S$11:$T$11,$G$44:$H$44),0,1) -> 0 | DM127: =IF($L127<=SUM($O$44:$P$44),0,1) -> 0
A128: P2300550 | B128: HTA ESTADIO I | D128: 236 | E128: =+G128+I128+K128 -> 122 | F128: 114 | G128: =IFERROR(VLOOKUP($A128,Filtro!$A$5:$AY$629,5,FALSE),0) -> 17 | H128: =IFERROR(VLOOKUP($A128,Filtro!$A$5:$AY$629,6,FALSE),0) -> 17 | I128: =IFERROR(VLOOKUP($A128,Filtro!$A$5:$AY$629,7,FALSE),0) -> 34 | J128: =IFERROR(VLOOKUP($A128,Filtro!$A$5:$AY$629,8,FALSE),0) -> 31 | K128: =IFERROR(VLOOKUP($A128,Filtro!$A$5:$AY$629,9,FALSE),0) -> 71 | L128: =IFERROR(VLOOKUP($A128,Filtro!$A$5:$AY$629,10,FALSE),0) -> 66 | M128: =IFERROR(VLOOKUP($A128,Filtro!$A$5:$AY$629,11,FALSE),0) -> 4 | CO128: =IF($G128<=SUM($Q$11:$R$11),"","* Niños(as) de 36 a 47 ms clasificados debe ser menor o igual al Total de la población de niños bajo control de en sección A misma edad. ") ->  | CP128: =IF($J128<=SUM($S$11:$T$11,$G$44:$H$44),"","* Niños(as) de 48 a 71 meses clasificados debe ser menor o igual al Total de la población de niños bajo control de en sección A y A1 de la misma edad. ") ->  | CQ128: =IF($L128<=SUM($O$44:$P$44),"","* Niños(as) de 6 a 9 años clasificados debe ser menor o igual al Total de la población de niños bajo control de en sección A1 misma edad ") ->  | DK128: =IF($G128<=SUM($Q$11:$R$11),0,1) -> 0 | DL128: =IF($J128<=SUM($S$11:$T$11,$G$44:$H$44),0,1) -> 0 | DM128: =IF($L128<=SUM($O$44:$P$44),0,1) -> 0
A129: P2300560 | B129: HTA ESTADIO II | D129: 56 | E129: 31 | F129: 25 | G129: =IFERROR(VLOOKUP($A129,Filtro!$A$5:$AY$629,5,FALSE),0) -> 3 | H129: =IFERROR(VLOOKUP($A129,Filtro!$A$5:$AY$629,6,FALSE),0) -> 8 | I129: =IFERROR(VLOOKUP($A129,Filtro!$A$5:$AY$629,7,FALSE),0) -> 15 | J129: =IFERROR(VLOOKUP($A129,Filtro!$A$5:$AY$629,8,FALSE),0) -> 5 | K129: =IFERROR(VLOOKUP($A129,Filtro!$A$5:$AY$629,9,FALSE),0) -> 13 | L129: =IFERROR(VLOOKUP($A129,Filtro!$A$5:$AY$629,10,FALSE),0) -> 12 | M129: =IFERROR(VLOOKUP($A129,Filtro!$A$5:$AY$629,11,FALSE),0) -> 14 | CO129: =IF($G129<=SUM($Q$11:$R$11),"","* Niños(as) de 36 a 47 ms clasificados debe ser menor o igual al Total de la población de niños bajo control de en sección A misma edad. ") ->  | CP129: =IF($J129<=SUM($S$11:$T$11,$G$44:$H$44),"","* Niños(as) de 48 a 71 meses clasificados debe ser menor o igual al Total de la población de niños bajo control de en sección A y A1 de la misma edad. ") ->  | CQ129: =IF($L129<=SUM($O$44:$P$44),"","* Niños(as) de 6 a 9 años clasificados debe ser menor o igual al Total de la población de niños bajo control de en sección A1 misma edad ") ->  | DK129: =IF($G129<=SUM($Q$11:$R$11),0,1) -> 0 | DL129: =IF($J129<=SUM($S$11:$T$11,$G$44:$H$44),0,1) -> 0 | DM129: =IF($L129<=SUM($O$44:$P$44),0,1) -> 0
B130: TOTAL | D130: =SUM(E130:F130) -> 13903 | E130: =+G130+I130+K130 -> 6762 | F130: =+H130+J130+L130 -> 7141 | G130: =SUM(G126:G129) -> 747 | H130: =SUM(H126:H129) -> 842 | I130: =SUM(I126:I129) -> 2249 | J130: 2373 | K130: 3766 | L130: =SUM(L126:L129) -> 3926 | M130: =SUM(M126:M129) -> 21 | CO130: =IF($G130<=SUM(Q11:R11),"","* Niños(as) de 36 a 47 ms clasificados debe ser menor o igual al Total de la población de niños bajo control de en sección A misma edad. ") -> * Niños(as) de 36 a 47 ms clasificados debe ser menor o igual al Total de la población de niños bajo control de en sección A misma edad. | CP130: =IF($J130<=SUM($S$11:$T$11,$G$44:$H$44),"","* Niños(as) de 48 a 71 meses clasificados debe ser menor o igual al Total de la población de niños bajo control de en sección A y A1 de la misma edad. ") ->  | CQ130: =IF($L130<=SUM($O$44:$P$44),"","* Niños(as) de 6 a 9 años clasificados debe ser menor o igual al Total de la población de niños bajo control de en sección A1 misma edad ") -> * Niños(as) de 6 a 9 años clasificados debe ser menor o igual al Total de la población de niños bajo control de en sección A1 misma edad | DK130: =IF($G130<=SUM($Q$11:$R$11),0,1) -> 1 | DL130: =IF($J130<=SUM($S$11:$T$11,$G$44:$H$44),0,1) -> 0 | DM130: =IF($L130<=SUM($O$44:$P$44),0,1) -> 1
B131: SECCION G: POBLACIÓN INFANTIL EUTRÓFICA, SEGÚN RIESGO DE MALNUTRICIÓN POR EXCESO (Incluida en sección A y A1)
B132: RESULTADO | D132: TOTAL | E132: GRUPOS DE EDAD (en meses)
E133: 4 a 11 meses | F133: 12 a 23 meses | G133: 24 a 35 meses | H133: 36 a 47 meses | I133: 48 a 59 meses | J133: 60 a 71 meses
A134: P2300570 | B134: SIN RIESGO | D134: =SUM(E134:J134) -> 9609 | E134: =IFERROR(VLOOKUP($A134,Filtro!$A$5:$AY$629,3,FALSE),0) -> 1391 | F134: =IFERROR(VLOOKUP($A134,Filtro!$A$5:$AY$629,4,FALSE),0) -> 1927 | G134: =IFERROR(VLOOKUP($A134,Filtro!$A$5:$AY$629,5,FALSE),0) -> 1751 | H134: =IFERROR(VLOOKUP($A134,Filtro!$A$5:$AY$629,6,FALSE),0) -> 1669 | I134: =IFERROR(VLOOKUP($A134,Filtro!$A$5:$AY$629,7,FALSE),0) -> 1584 | J134: =IFERROR(VLOOKUP($A134,Filtro!$A$5:$AY$629,8,FALSE),0) -> 1287 | K134: =CG134 & CH134 & CI134 & CJ134 & CK134 & CL134 -> * Niños(as) de 4 a 11 ms clasificados debe ser menor o igual al Total niños diagnostidos en NORMAL sección A misma edad. * Niños(as) de 12 a 23 ms clasificados debe ser menor o igual al Total niños diagnosticados en NORMAL en sección A misma edad. * Niños(as) de 24 a 35 ms clasificados debe ser menor o igual al Total niños diagnosticados en NORMAL en sección A misma edad. * Niños(as) de 36 a 47 ms clasificados debe ser menor o igual al Total niños diagnosticos en NORMAL en sección A misma edad. * Niños(as) de 48 a 59 ms clasificados debe ser menor o igual al Total niños diagnosticados en NORMAL en sección A misma edad. | CG134: =IF($E134<=SUM($G$35:$J$35),"","* Niños(as) de 4 a 11 ms clasificados debe ser menor o igual al Total niños diagnostidos en NORMAL sección A misma edad. ") -> * Niños(as) de 4 a 11 ms clasificados debe ser menor o igual al Total niños diagnostidos en NORMAL sección A misma edad. | CH134: =IF($F134<=SUM($K$35:$N$35),"","* Niños(as) de 12 a 23 ms clasificados debe ser menor o igual al Total niños diagnosticados en NORMAL en sección A misma edad. ") -> * Niños(as) de 12 a 23 ms clasificados debe ser menor o igual al Total niños diagnosticados en NORMAL en sección A misma edad. | CI134: =IF($G134<=SUM($O$35:$P$35),"","* Niños(as) de 24 a 35 ms clasificados debe ser menor o igual al Total niños diagnosticados en NORMAL en sección A misma edad. ") -> * Niños(as) de 24 a 35 ms clasificados debe ser menor o igual al Total niños diagnosticados en NORMAL en sección A misma edad. | CJ134: =IF($H134<=SUM($Q$35:$R$35),"","* Niños(as) de 36 a 47 ms clasificados debe ser menor o igual al Total niños diagnosticos en NORMAL en sección A misma edad. ") -> * Niños(as) de 36 a 47 ms clasificados debe ser menor o igual al Total niños diagnosticos en NORMAL en sección A misma edad. | CK134: =IF($I134<=SUM($S$35:$T$35),"","* Niños(as) de 48 a 59 ms clasificados debe ser menor o igual al Total niños diagnosticados en NORMAL en sección A misma edad. ") -> * Niños(as) de 48 a 59 ms clasificados debe ser menor o igual al Total niños diagnosticados en NORMAL en sección A misma edad. | CL134: =IF($J134<=SUM($G$69:$H$69),"","* Niños(as) de 60 a 71 ms clasificados debe ser menor o igual al Total niños diagnosticados en NORMAL en sección A1 misma edad. ") ->  | DF134: =IF($E134<=SUM($G$35:$J$35),0,1) -> 1 | DG134: =IF($F134<=SUM($K$35:$N$35),0,1) -> 1 | DH134: =IF($G134<=SUM($O$35:$P$35),0,1) -> 1 | DI134: =IF($H134<=SUM($Q$35:$R$35),0,1) -> 1 | DJ134: =IF($I134<=SUM($S$35:$T$35),0,1) -> 1 | DK134: =IF($J134<=SUM($G$69:$H$69),0,1) -> 0
A135: P2300580 | B135: CON RIESGO | D135: =SUM(E135:J135) -> 4269 | E135: =IFERROR(VLOOKUP($A135,Filtro!$A$5:$AY$629,3,FALSE),0) -> 687 | F135: =IFERROR(VLOOKUP($A135,Filtro!$A$5:$AY$629,4,FALSE),0) -> 899 | G135: =IFERROR(VLOOKUP($A135,Filtro!$A$5:$AY$629,5,FALSE),0) -> 729 | H135: =IFERROR(VLOOKUP($A135,Filtro!$A$5:$AY$629,6,FALSE),0) -> 609 | I135: =IFERROR(VLOOKUP($A135,Filtro!$A$5:$AY$629,7,FALSE),0) -> 710 | J135: =IFERROR(VLOOKUP($A135,Filtro!$A$5:$AY$629,8,FALSE),0) -> 635 | K135: =CG135 & CH135 & CI135 & CJ135 & CK135 & CL135 -> * Niños(as) de 4 a 11 ms clasificados debe ser menor o igual al Total niños diagnostidos en NORMAL sección A misma edad. * Niños(as) de 12 a 23 ms clasificados debe ser menor o igual al Total niños diagnosticados en NORMAL en sección A misma edad. * Niños(as) de 24 a 35 ms clasificados debe ser menor o igual al Total niños diagnosticados en NORMAL en sección A misma edad. * Niños(as) de 36 a 47 ms clasificados debe ser menor o igual al Total niños diagnosticos en NORMAL en sección A misma edad. * Niños(as) de 48 a 59 ms clasificados debe ser menor o igual al Total niños diagnosticados en NORMAL en sección A misma edad. | CG135: =IF($E135<=SUM($G$35:$J$35),"","* Niños(as) de 4 a 11 ms clasificados debe ser menor o igual al Total niños diagnostidos en NORMAL sección A misma edad. ") -> * Niños(as) de 4 a 11 ms clasificados debe ser menor o igual al Total niños diagnostidos en NORMAL sección A misma edad. | CH135: =IF($F135<=SUM($K$35:$N$35),"","* Niños(as) de 12 a 23 ms clasificados debe ser menor o igual al Total niños diagnosticados en NORMAL en sección A misma edad. ") -> * Niños(as) de 12 a 23 ms clasificados debe ser menor o igual al Total niños diagnosticados en NORMAL en sección A misma edad. | CI135: =IF($G135<=SUM($O$35:$P$35),"","* Niños(as) de 24 a 35 ms clasificados debe ser menor o igual al Total niños diagnosticados en NORMAL en sección A misma edad. ") -> * Niños(as) de 24 a 35 ms clasificados debe ser menor o igual al Total niños diagnosticados en NORMAL en sección A misma edad. | CJ135: =IF($H135<=SUM($Q$35:$R$35),"","* Niños(as) de 36 a 47 ms clasificados debe ser menor o igual al Total niños diagnosticos en NORMAL en sección A misma edad. ") -> * Niños(as) de 36 a 47 ms clasificados debe ser menor o igual al Total niños diagnosticos en NORMAL en sección A misma edad. | CK135: =IF($I135<=SUM($S$35:$T$35),"","* Niños(as) de 48 a 59 ms clasificados debe ser menor o igual al Total niños diagnosticados en NORMAL en sección A misma edad. ") -> * Niños(as) de 48 a 59 ms clasificados debe ser menor o igual al Total niños diagnosticados en NORMAL en sección A misma edad. | CL135: =IF($J135<=SUM($G$69:$H$69),"","* Niños(as) de 60 a 71 ms clasificados debe ser menor o igual al Total niños diagnosticados en NORMAL en sección A1 misma edad. ") ->  | DF135: =IF($E135<=SUM($G$35:$J$35),0,1) -> 1 | DG135: =IF($F135<=SUM($K$35:$N$35),0,1) -> 1 | DH135: =IF($G135<=SUM($O$35:$P$35),0,1) -> 1 | DI135: =IF($H135<=SUM($Q$35:$R$35),0,1) -> 1 | DJ135: =IF($I135<=SUM($S$35:$T$35),0,1) -> 1 | DK135: =IF($J135<=SUM($G$69:$H$69),0,1) -> 0
B136: TOTAL | D136: =SUM(E136:J136) -> 13878 | E136: =SUM(E134:E135) -> 2078 | F136: 2826 | G136: 2480 | H136: 2278 | I136: 2294 | J136: 1922 | K136: =CG136 & CH136 & CI136 & CJ136 & CK136 & CL136 -> * Niños(as) de 4 a 11 ms clasificados debe ser menor o igual al Total niños diagnostidos en NORMAL sección A misma edad. * Niños(as) de 12 a 23 ms clasificados debe ser menor o igual al Total niños diagnosticados en NORMAL en sección A misma edad. * Niños(as) de 24 a 35 ms clasificados debe ser menor o igual al Total niños diagnosticados en NORMAL en sección A misma edad. * Niños(as) de 36 a 47 ms clasificados debe ser menor o igual al Total niños diagnosticos en NORMAL en sección A misma edad. * Niños(as) de 48 a 59 ms clasificados debe ser menor o igual al Total niños diagnosticados en NORMAL en sección A misma edad. | CG136: =IF($E136<=SUM($G$35:$J$35),"","* Niños(as) de 4 a 11 ms clasificados debe ser menor o igual al Total niños diagnostidos en NORMAL sección A misma edad. ") -> * Niños(as) de 4 a 11 ms clasificados debe ser menor o igual al Total niños diagnostidos en NORMAL sección A misma edad. | CH136: =IF($F136<=SUM($K$35:$N$35),"","* Niños(as) de 12 a 23 ms clasificados debe ser menor o igual al Total niños diagnosticados en NORMAL en sección A misma edad. ") -> * Niños(as) de 12 a 23 ms clasificados debe ser menor o igual al Total niños diagnosticados en NORMAL en sección A misma edad. | CI136: =IF($G136<=SUM($O$35:$P$35),"","* Niños(as) de 24 a 35 ms clasificados debe ser menor o igual al Total niños diagnosticados en NORMAL en sección A misma edad. ") -> * Niños(as) de 24 a 35 ms clasificados debe ser menor o igual al Total niños diagnosticados en NORMAL en sección A misma edad. | CJ136: =IF($H136<=SUM($Q$35:$R$35),"","* Niños(as) de 36 a 47 ms clasificados debe ser menor o igual al Total niños diagnosticos en NORMAL en sección A misma edad. ") -> * Niños(as) de 36 a 47 ms clasificados debe ser menor o igual al Total niños diagnosticos en NORMAL en sección A misma edad. | CK136: =IF($I136<=SUM($S$35:$T$35),"","* Niños(as) de 48 a 59 ms clasificados debe ser menor o igual al Total niños diagnosticados en NORMAL en sección A misma edad. ") -> * Niños(as) de 48 a 59 ms clasificados debe ser menor o igual al Total niños diagnosticados en NORMAL en sección A misma edad. | CL136: =IF($J136<=SUM($G$69:$H$69),"","* Niños(as) de 60 a 71 ms clasificados debe ser menor o igual al Total niños diagnosticados en NORMAL en sección A1 misma edad. ") ->  | DF136: =IF($E136<=SUM($G$35:$J$35),0,1) -> 1 | DG136: =IF($F136<=SUM($K$35:$N$35),0,1) -> 1 | DH136: =IF($G136<=SUM($O$35:$P$35),0,1) -> 1 | DI136: =IF($H136<=SUM($Q$35:$R$35),0,1) -> 1 | DJ136: =IF($I136<=SUM($S$35:$T$35),0,1) -> 1 | DK136: =IF($J136<=SUM($G$69:$H$69),0,1) -> 0
B137: SECCION H: POBLACIÓN SEGÚN DIAGNÓSTICO DE NIÑOS, NIÑAS Y ADOLESCENTES CON NECESIDADES ESPECIALES DE ATENCIÓN EN SALUD (NANEAS) (Incluida en sección A y A1)
B138: DIAGNOSTICOS | D138: TOTAL | G138: GRUPOS DE EDAD (en meses - años) Y SEXO | AS138: Pueblos Originarios | AU138: Población Migrantes
G139: Menor de 1 mes | I139: 1 mes | K139: 2 meses | M139: 3 meses | O139: 4 meses | Q139: 5 meses | S139: 6 meses | U139: 7 a 11 meses | W139: 12 a 17 meses | Y139: 18 a 23 meses | AA139: 24 a 35 meses | AC139: 36 a 41 meses | AE139: 42 a 47 meses | AG139: 48 a 59 meses | AI139: 60 a 71 meses | AK139: 6 a 7 años | AM139: 8 a 9 años | AO139: 10 a 14 años | AQ139: 15 a 19 años
D140: Ambos sexos | E140: Hombres | F140: Mujeres | G140: Hombres | H140: Mujeres | I140: Hombres | J140: Mujeres | K140: Hombres | L140: Mujeres | M140: Hombres | N140: Mujeres | O140: Hombres | P140: Mujeres | Q140: Hombres | R140: Mujeres | S140: Hombres | T140: Mujeres | U140: Hombres | V140: Mujeres | W140: Hombres | X140: Mujeres | Y140: Hombres | Z140: Mujeres | AA140: Hombres | AB140: Mujeres | AC140: Hombres | AD140: Mujeres | AE140: Hombres | AF140: Mujeres | AG140: Hombres | AH140: Mujeres | AI140: Hombres | AJ140: Mujeres | AK140: Hombres | AL140: Mujeres | AM140: Hombres | AN140: Mujeres | AO140: Hombres | AP140: Mujeres | AQ140: Hombres | AR140: Mujeres | AS140: Hombres | AT140: Mujeres | AU140: Hombres | AV140: Mujeres
B141: TOTAL POBLACIÓN NANEAS BAJO CONTROL | D141: =SUM(E141:F141) -> 4663 | E141: =+G141+I141+K141+M141+O141+Q141+S141+U141+W141+Y141+AA141+AC141+AE141+AG141+AI141+AO141+AQ141+AK141+AM141 -> 2713 | F141: 1950 | G141: =SUM(G142:G185) -> 4 | H141: =SUM(H142:H185) -> 4 | I141: 18 | J141: 10 | K141: 26 | L141: 15 | M141: 21 | N141: 18 | O141: 24 | P141: 19 | Q141: 27 | R141: 19 | S141: 30 | T141: 31 | U141: 135 | V141: 99 | W141: 181 | X141: 138 | Y141: 130 | Z141: 67 | AA141: 214 | AB141: 184 | AC141: 225 | AD141: 127 | AE141: 62 | AF141: 31 | AG141: 303 | AH141: 224 | AI141: 305 | AJ141: 178 | AK141: 398 | AL141: 288 | AM141: 285 | AN141: 221 | AO141: 217 | AP141: 178 | AQ141: 108 | AR141: 99 | AS141: 8 | AT141: 9 | AU141: 7 | AV141: 10 | AW141: =CG141&CH141&CI141&CJ141 -> 
A142: P2500400 | B142: Síndrome de Down | D142: 123 | E142: 51 | F142: 72 | G142: =IFERROR(VLOOKUP($A142,Filtro!$A$5:$AY$629,5,FALSE),0) -> 0 | H142: =IFERROR(VLOOKUP($A142,Filtro!$A$5:$AY$629,6,FALSE),0) -> 0 | I142: =IFERROR(VLOOKUP($A142,Filtro!$A$5:$AY$629,7,FALSE),0) -> 0 | J142: =IFERROR(VLOOKUP($A142,Filtro!$A$5:$AY$629,8,FALSE),0) -> 0 | K142: =IFERROR(VLOOKUP($A142,Filtro!$A$5:$AY$629,9,FALSE),0) -> 0 | L142: =IFERROR(VLOOKUP($A142,Filtro!$A$5:$AY$629,10,FALSE),0) -> 1 | M142: =IFERROR(VLOOKUP($A142,Filtro!$A$5:$AY$629,11,FALSE),0) -> 1 | N142: =IFERROR(VLOOKUP($A142,Filtro!$A$5:$AY$629,12,FALSE),0) -> 1 | O142: =IFERROR(VLOOKUP($A142,Filtro!$A$5:$AY$629,13,FALSE),0) -> 3 | P142: =IFERROR(VLOOKUP($A142,Filtro!$A$5:$AY$629,14,FALSE),0) -> 2 | Q142: =IFERROR(VLOOKUP($A142,Filtro!$A$5:$AY$629,15,FALSE),0) -> 1 | R142: =IFERROR(VLOOKUP($A142,Filtro!$A$5:$AY$629,16,FALSE),0) -> 0 | S142: =IFERROR(VLOOKUP($A142,Filtro!$A$5:$AY$629,17,FALSE),0) -> 0 | T142: =IFERROR(VLOOKUP($A142,Filtro!$A$5:$AY$629,18,FALSE),0) -> 0 | U142: =IFERROR(VLOOKUP($A142,Filtro!$A$5:$AY$629,19,FALSE),0) -> 1 | V142: =IFERROR(VLOOKUP($A142,Filtro!$A$5:$AY$629,20,FALSE),0) -> 5 | W142: =IFERROR(VLOOKUP($A142,Filtro!$A$5:$AY$629,21,FALSE),0) -> 2 | X142: =IFERROR(VLOOKUP($A142,Filtro!$A$5:$AY$629,22,FALSE),0) -> 6 | Y142: =IFERROR(VLOOKUP($A142,Filtro!$A$5:$AY$629,23,FALSE),0) -> 2 | Z142: =IFERROR(VLOOKUP($A142,Filtro!$A$5:$AY$629,24,FALSE),0) -> 4 | AA142: =IFERROR(VLOOKUP($A142,Filtro!$A$5:$AY$629,25,FALSE),0) -> 9 | AB142: =IFERROR(VLOOKUP($A142,Filtro!$A$5:$AY$629,26,FALSE),0) -> 8 | AC142: =IFERROR(VLOOKUP($A142,Filtro!$A$5:$AY$629,27,FALSE),0) -> 5 | AD142: =IFERROR(VLOOKUP($A142,Filtro!$A$5:$AY$629,28,FALSE),0) -> 4 | AE142: =IFERROR(VLOOKUP($A142,Filtro!$A$5:$AY$629,29,FALSE),0) -> 1 | AF142: =IFERROR(VLOOKUP($A142,Filtro!$A$5:$AY$629,30,FALSE),0) -> 0 | AG142: =IFERROR(VLOOKUP($A142,Filtro!$A$5:$AY$629,31,FALSE),0) -> 8 | AH142: =IFERROR(VLOOKUP($A142,Filtro!$A$5:$AY$629,32,FALSE),0) -> 8 | AI142: =IFERROR(VLOOKUP($A142,Filtro!$A$5:$AY$629,33,FALSE),0) -> 7 | AJ142: =IFERROR(VLOOKUP($A142,Filtro!$A$5:$AY$629,34,FALSE),0) -> 9 | AK142: =IFERROR(VLOOKUP($A142,Filtro!$A$5:$AY$629,35,FALSE),0) -> 4 | AL142: =IFERROR(VLOOKUP($A142,Filtro!$A$5:$AY$629,36,FALSE),0) -> 14 | AM142: =IFERROR(VLOOKUP($A142,Filtro!$A$5:$AY$629,37,FALSE),0) -> 4 | AN142: =IFERROR(VLOOKUP($A142,Filtro!$A$5:$AY$629,38,FALSE),0) -> 3 | AO142: =IFERROR(VLOOKUP($A142,Filtro!$A$5:$AY$629,39,FALSE),0) -> 3 | AP142: =IFERROR(VLOOKUP($A142,Filtro!$A$5:$AY$629,40,FALSE),0) -> 3 | AQ142: =IFERROR(VLOOKUP($A142,Filtro!$A$5:$AY$629,41,FALSE),0) -> 0 | AR142: =IFERROR(VLOOKUP($A142,Filtro!$A$5:$AY$629,42,FALSE),0) -> 4 | AS142: =IFERROR(VLOOKUP($A142,Filtro!$A$5:$AY$629,43,FALSE),0) -> 1 | AT142: =IFERROR(VLOOKUP($A142,Filtro!$A$5:$AY$629,44,FALSE),0) -> 0 | AU142: =IFERROR(VLOOKUP($A142,Filtro!$A$5:$AY$629,45,FALSE),0) -> 1 | AV142: =IFERROR(VLOOKUP($A142,Filtro!$A$5:$AY$629,46,FALSE),0) -> 1 | AW142: =CG142&CH142&CI142&CJ142 ->  | CG142: =IF(DF142=1,"* No olvide escribir en las celdas de ""Pueblos Originarios"" (Digite Cero si no tiene).","") ->  | CH142: =IF(DG142=1,"* No olvide escribir en las celdas de ""Población Migrante"" (Digite Cero si no tiene).","") ->  | CI142: =IF(DH142=1,"* La suma de las celdas de ""Pueblos Originarios""no debe superar el Total.","") ->  | CJ142: =IF(DI142=1,"* La suma de las celdas de ""Población Migrante"" no debe superar el Total.","") ->  | DF142: =IF(AND($D142<>0,OR(AS142="",AT142="")),1,0) -> 0 | DG142: =IF(AND($D142<>0,OR(AU142="",AV142="")),1,0) -> 0 | DH142: =IF((AS142+AT142)>$D142,1,0) -> 0 | DI142: =IF((AV142+AU142)>$D142,1,0) -> 0
A143: P2500500 | B143: Trastorno del Espectro Autista | C143: Trastorno del Espectro Autista | D143: 853 | E143: 636 | F143: 217 | G143: =IFERROR(VLOOKUP($A143,Filtro!$A$5:$AY$629,5,FALSE),0) -> 0 | H143: =IFERROR(VLOOKUP($A143,Filtro!$A$5:$AY$629,6,FALSE),0) -> 0 | I143: =IFERROR(VLOOKUP($A143,Filtro!$A$5:$AY$629,7,FALSE),0) -> 0 | J143: =IFERROR(VLOOKUP($A143,Filtro!$A$5:$AY$629,8,FALSE),0) -> 0 | K143: =IFERROR(VLOOKUP($A143,Filtro!$A$5:$AY$629,9,FALSE),0) -> 0 | L143: =IFERROR(VLOOKUP($A143,Filtro!$A$5:$AY$629,10,FALSE),0) -> 0 | M143: =IFERROR(VLOOKUP($A143,Filtro!$A$5:$AY$629,11,FALSE),0) -> 0 | N143: =IFERROR(VLOOKUP($A143,Filtro!$A$5:$AY$629,12,FALSE),0) -> 0 | O143: =IFERROR(VLOOKUP($A143,Filtro!$A$5:$AY$629,13,FALSE),0) -> 0 | P143: =IFERROR(VLOOKUP($A143,Filtro!$A$5:$AY$629,14,FALSE),0) -> 0 | Q143: =IFERROR(VLOOKUP($A143,Filtro!$A$5:$AY$629,15,FALSE),0) -> 1 | R143: =IFERROR(VLOOKUP($A143,Filtro!$A$5:$AY$629,16,FALSE),0) -> 0 | S143: =IFERROR(VLOOKUP($A143,Filtro!$A$5:$AY$629,17,FALSE),0) -> 0 | T143: =IFERROR(VLOOKUP($A143,Filtro!$A$5:$AY$629,18,FALSE),0) -> 0 | U143: =IFERROR(VLOOKUP($A143,Filtro!$A$5:$AY$629,19,FALSE),0) -> 0 | V143: =IFERROR(VLOOKUP($A143,Filtro!$A$5:$AY$629,20,FALSE),0) -> 0 | W143: =IFERROR(VLOOKUP($A143,Filtro!$A$5:$AY$629,21,FALSE),0) -> 4 | X143: =IFERROR(VLOOKUP($A143,Filtro!$A$5:$AY$629,22,FALSE),0) -> 0 | Y143: =IFERROR(VLOOKUP($A143,Filtro!$A$5:$AY$629,23,FALSE),0) -> 3 | Z143: =IFERROR(VLOOKUP($A143,Filtro!$A$5:$AY$629,24,FALSE),0) -> 1 | AA143: =IFERROR(VLOOKUP($A143,Filtro!$A$5:$AY$629,25,FALSE),0) -> 41 | AB143: =IFERROR(VLOOKUP($A143,Filtro!$A$5:$AY$629,26,FALSE),0) -> 20 | AC143: =IFERROR(VLOOKUP($A143,Filtro!$A$5:$AY$629,27,FALSE),0) -> 84 | AD143: =IFERROR(VLOOKUP($A143,Filtro!$A$5:$AY$629,28,FALSE),0) -> 31 | AE143: =IFERROR(VLOOKUP($A143,Filtro!$A$5:$AY$629,29,FALSE),0) -> 33 | AF143: =IFERROR(VLOOKUP($A143,Filtro!$A$5:$AY$629,30,FALSE),0) -> 10 | AG143: =IFERROR(VLOOKUP($A143,Filtro!$A$5:$AY$629,31,FALSE),0) -> 132 | AH143: =IFERROR(VLOOKUP($A143,Filtro!$A$5:$AY$629,32,FALSE),0) -> 55 | AI143: =IFERROR(VLOOKUP($A143,Filtro!$A$5:$AY$629,33,FALSE),0) -> 99 | AJ143: =IFERROR(VLOOKUP($A143,Filtro!$A$5:$AY$629,34,FALSE),0) -> 34 | AK143: =IFERROR(VLOOKUP($A143,Filtro!$A$5:$AY$629,35,FALSE),0) -> 126 | AL143: =IFERROR(VLOOKUP($A143,Filtro!$A$5:$AY$629,36,FALSE),0) -> 37 | AM143: =IFERROR(VLOOKUP($A143,Filtro!$A$5:$AY$629,37,FALSE),0) -> 73 | AN143: =IFERROR(VLOOKUP($A143,Filtro!$A$5:$AY$629,38,FALSE),0) -> 13 | AO143: =IFERROR(VLOOKUP($A143,Filtro!$A$5:$AY$629,39,FALSE),0) -> 32 | AP143: =IFERROR(VLOOKUP($A143,Filtro!$A$5:$AY$629,40,FALSE),0) -> 12 | AQ143: =IFERROR(VLOOKUP($A143,Filtro!$A$5:$AY$629,41,FALSE),0) -> 8 | AR143: =IFERROR(VLOOKUP($A143,Filtro!$A$5:$AY$629,42,FALSE),0) -> 4 | AS143: =IFERROR(VLOOKUP($A143,Filtro!$A$5:$AY$629,43,FALSE),0) -> 1 | AT143: =IFERROR(VLOOKUP($A143,Filtro!$A$5:$AY$629,44,FALSE),0) -> 3 | AU143: =IFERROR(VLOOKUP($A143,Filtro!$A$5:$AY$629,45,FALSE),0) -> 3 | AV143: =IFERROR(VLOOKUP($A143,Filtro!$A$5:$AY$629,46,FALSE),0) -> 0 | AW143: =CG143&CH143&CI143&CJ143 ->  | CG143: =IF(DF143=1,"* No olvide escribir en las celdas de ""Pueblos Originarios"" (Digite Cero si no tiene).","") ->  | CH143: =IF(DG143=1,"* No olvide escribir en las celdas de ""Población Migrante"" (Digite Cero si no tiene).","") ->  | CI143: =IF(DH143=1,"* La suma de las celdas de ""Pueblos Originarios""no debe superar el Total.","") ->  | CJ143: =IF(DI143=1,"* La suma de las celdas de ""Población Migrante"" no debe superar el Total.","") ->  | DF143: =IF(AND($D143<>0,OR(AS143="",AT143="")),1,0) -> 0 | DG143: =IF(AND($D143<>0,OR(AU143="",AV143="")),1,0) -> 0 | DH143: =IF((AS143+AT143)>$D143,1,0) -> 0 | DI143: =IF((AV143+AU143)>$D143,1,0) -> 0
A144: P2501823 | B144: Síndrome de Rett | C144: Síndrome de Rett | D144: 1 | E144: 0 | F144: 1 | G144: =IFERROR(VLOOKUP($A144,Filtro!$A$5:$AY$629,5,FALSE),0) -> 0 | H144: =IFERROR(VLOOKUP($A144,Filtro!$A$5:$AY$629,6,FALSE),0) -> 0 | I144: =IFERROR(VLOOKUP($A144,Filtro!$A$5:$AY$629,7,FALSE),0) -> 0 | J144: =IFERROR(VLOOKUP($A144,Filtro!$A$5:$AY$629,8,FALSE),0) -> 0 | K144: =IFERROR(VLOOKUP($A144,Filtro!$A$5:$AY$629,9,FALSE),0) -> 0 | L144: =IFERROR(VLOOKUP($A144,Filtro!$A$5:$AY$629,10,FALSE),0) -> 0 | M144: =IFERROR(VLOOKUP($A144,Filtro!$A$5:$AY$629,11,FALSE),0) -> 0 | N144: =IFERROR(VLOOKUP($A144,Filtro!$A$5:$AY$629,12,FALSE),0) -> 0 | O144: =IFERROR(VLOOKUP($A144,Filtro!$A$5:$AY$629,13,FALSE),0) -> 0 | P144: =IFERROR(VLOOKUP($A144,Filtro!$A$5:$AY$629,14,FALSE),0) -> 0 | Q144: =IFERROR(VLOOKUP($A144,Filtro!$A$5:$AY$629,15,FALSE),0) -> 0 | R144: =IFERROR(VLOOKUP($A144,Filtro!$A$5:$AY$629,16,FALSE),0) -> 0 | S144: =IFERROR(VLOOKUP($A144,Filtro!$A$5:$AY$629,17,FALSE),0) -> 0 | T144: =IFERROR(VLOOKUP($A144,Filtro!$A$5:$AY$629,18,FALSE),0) -> 0 | U144: =IFERROR(VLOOKUP($A144,Filtro!$A$5:$AY$629,19,FALSE),0) -> 0 | V144: =IFERROR(VLOOKUP($A144,Filtro!$A$5:$AY$629,20,FALSE),0) -> 0 | W144: =IFERROR(VLOOKUP($A144,Filtro!$A$5:$AY$629,21,FALSE),0) -> 0 | X144: =IFERROR(VLOOKUP($A144,Filtro!$A$5:$AY$629,22,FALSE),0) -> 0 | Y144: =IFERROR(VLOOKUP($A144,Filtro!$A$5:$AY$629,23,FALSE),0) -> 0 | Z144: =IFERROR(VLOOKUP($A144,Filtro!$A$5:$AY$629,24,FALSE),0) -> 0 | AA144: =IFERROR(VLOOKUP($A144,Filtro!$A$5:$AY$629,25,FALSE),0) -> 0 | AB144: =IFERROR(VLOOKUP($A144,Filtro!$A$5:$AY$629,26,FALSE),0) -> 0 | AC144: =IFERROR(VLOOKUP($A144,Filtro!$A$5:$AY$629,27,FALSE),0) -> 0 | AD144: =IFERROR(VLOOKUP($A144,Filtro!$A$5:$AY$629,28,FALSE),0) -> 0 | AE144: =IFERROR(VLOOKUP($A144,Filtro!$A$5:$AY$629,29,FALSE),0) -> 0 | AF144: =IFERROR(VLOOKUP($A144,Filtro!$A$5:$AY$629,30,FALSE),0) -> 0 | AG144: =IFERROR(VLOOKUP($A144,Filtro!$A$5:$AY$629,31,FALSE),0) -> 0 | AH144: =IFERROR(VLOOKUP($A144,Filtro!$A$5:$AY$629,32,FALSE),0) -> 0 | AI144: =IFERROR(VLOOKUP($A144,Filtro!$A$5:$AY$629,33,FALSE),0) -> 0 | AJ144: =IFERROR(VLOOKUP($A144,Filtro!$A$5:$AY$629,34,FALSE),0) -> 0 | AK144: =IFERROR(VLOOKUP($A144,Filtro!$A$5:$AY$629,35,FALSE),0) -> 0 | AL144: =IFERROR(VLOOKUP($A144,Filtro!$A$5:$AY$629,36,FALSE),0) -> 0 | AM144: =IFERROR(VLOOKUP($A144,Filtro!$A$5:$AY$629,37,FALSE),0) -> 0 | AN144: =IFERROR(VLOOKUP($A144,Filtro!$A$5:$AY$629,38,FALSE),0) -> 0 | AO144: =IFERROR(VLOOKUP($A144,Filtro!$A$5:$AY$629,39,FALSE),0) -> 0 | AP144: =IFERROR(VLOOKUP($A144,Filtro!$A$5:$AY$629,40,FALSE),0) -> 0 | AQ144: =IFERROR(VLOOKUP($A144,Filtro!$A$5:$AY$629,41,FALSE),0) -> 0 | AR144: =IFERROR(VLOOKUP($A144,Filtro!$A$5:$AY$629,42,FALSE),0) -> 1 | AS144: =IFERROR(VLOOKUP($A144,Filtro!$A$5:$AY$629,43,FALSE),0) -> 0 | AT144: =IFERROR(VLOOKUP($A144,Filtro!$A$5:$AY$629,44,FALSE),0) -> 0 | AU144: =IFERROR(VLOOKUP($A144,Filtro!$A$5:$AY$629,45,FALSE),0) -> 0 | AV144: =IFERROR(VLOOKUP($A144,Filtro!$A$5:$AY$629,46,FALSE),0) -> 0
A145: P2500700 | B145: Parálisis Cerebral | C145: Parálisis Cerebral | D145: 55 | E145: 31 | F145: 24 | G145: =IFERROR(VLOOKUP($A145,Filtro!$A$5:$AY$629,5,FALSE),0) -> 0 | H145: =IFERROR(VLOOKUP($A145,Filtro!$A$5:$AY$629,6,FALSE),0) -> 0 | I145: =IFERROR(VLOOKUP($A145,Filtro!$A$5:$AY$629,7,FALSE),0) -> 0 | J145: =IFERROR(VLOOKUP($A145,Filtro!$A$5:$AY$629,8,FALSE),0) -> 0 | K145: =IFERROR(VLOOKUP($A145,Filtro!$A$5:$AY$629,9,FALSE),0) -> 0 | L145: =IFERROR(VLOOKUP($A145,Filtro!$A$5:$AY$629,10,FALSE),0) -> 0 | M145: =IFERROR(VLOOKUP($A145,Filtro!$A$5:$AY$629,11,FALSE),0) -> 0 | N145: =IFERROR(VLOOKUP($A145,Filtro!$A$5:$AY$629,12,FALSE),0) -> 0 | O145: =IFERROR(VLOOKUP($A145,Filtro!$A$5:$AY$629,13,FALSE),0) -> 0 | P145: =IFERROR(VLOOKUP($A145,Filtro!$A$5:$AY$629,14,FALSE),0) -> 0 | Q145: =IFERROR(VLOOKUP($A145,Filtro!$A$5:$AY$629,15,FALSE),0) -> 0 | R145: =IFERROR(VLOOKUP($A145,Filtro!$A$5:$AY$629,16,FALSE),0) -> 0 | S145: =IFERROR(VLOOKUP($A145,Filtro!$A$5:$AY$629,17,FALSE),0) -> 0 | T145: =IFERROR(VLOOKUP($A145,Filtro!$A$5:$AY$629,18,FALSE),0) -> 2 | U145: =IFERROR(VLOOKUP($A145,Filtro!$A$5:$AY$629,19,FALSE),0) -> 0 | V145: =IFERROR(VLOOKUP($A145,Filtro!$A$5:$AY$629,20,FALSE),0) -> 0 | W145: =IFERROR(VLOOKUP($A145,Filtro!$A$5:$AY$629,21,FALSE),0) -> 0 | X145: =IFERROR(VLOOKUP($A145,Filtro!$A$5:$AY$629,22,FALSE),0) -> 1 | Y145: =IFERROR(VLOOKUP($A145,Filtro!$A$5:$AY$629,23,FALSE),0) -> 1 | Z145: =IFERROR(VLOOKUP($A145,Filtro!$A$5:$AY$629,24,FALSE),0) -> 0 | AA145: =IFERROR(VLOOKUP($A145,Filtro!$A$5:$AY$629,25,FALSE),0) -> 2 | AB145: =IFERROR(VLOOKUP($A145,Filtro!$A$5:$AY$629,26,FALSE),0) -> 0 | AC145: =IFERROR(VLOOKUP($A145,Filtro!$A$5:$AY$629,27,FALSE),0) -> 2 | AD145: =IFERROR(VLOOKUP($A145,Filtro!$A$5:$AY$629,28,FALSE),0) -> 0 | AE145: =IFERROR(VLOOKUP($A145,Filtro!$A$5:$AY$629,29,FALSE),0) -> 0 | AF145: =IFERROR(VLOOKUP($A145,Filtro!$A$5:$AY$629,30,FALSE),0) -> 0 | AG145: =IFERROR(VLOOKUP($A145,Filtro!$A$5:$AY$629,31,FALSE),0) -> 3 | AH145: =IFERROR(VLOOKUP($A145,Filtro!$A$5:$AY$629,32,FALSE),0) -> 1 | AI145: =IFERROR(VLOOKUP($A145,Filtro!$A$5:$AY$629,33,FALSE),0) -> 3 | AJ145: =IFERROR(VLOOKUP($A145,Filtro!$A$5:$AY$629,34,FALSE),0) -> 1 | AK145: =IFERROR(VLOOKUP($A145,Filtro!$A$5:$AY$629,35,FALSE),0) -> 6 | AL145: =IFERROR(VLOOKUP($A145,Filtro!$A$5:$AY$629,36,FALSE),0) -> 6 | AM145: =IFERROR(VLOOKUP($A145,Filtro!$A$5:$AY$629,37,FALSE),0) -> 0 | AN145: =IFERROR(VLOOKUP($A145,Filtro!$A$5:$AY$629,38,FALSE),0) -> 2 | AO145: =IFERROR(VLOOKUP($A145,Filtro!$A$5:$AY$629,39,FALSE),0) -> 8 | AP145: =IFERROR(VLOOKUP($A145,Filtro!$A$5:$AY$629,40,FALSE),0) -> 7 | AQ145: =IFERROR(VLOOKUP($A145,Filtro!$A$5:$AY$629,41,FALSE),0) -> 6 | AR145: =IFERROR(VLOOKUP($A145,Filtro!$A$5:$AY$629,42,FALSE),0) -> 4 | AS145: =IFERROR(VLOOKUP($A145,Filtro!$A$5:$AY$629,43,FALSE),0) -> 0 | AT145: =IFERROR(VLOOKUP($A145,Filtro!$A$5:$AY$629,44,FALSE),0) -> 0 | AU145: =IFERROR(VLOOKUP($A145,Filtro!$A$5:$AY$629,45,FALSE),0) -> 0 | AV145: =IFERROR(VLOOKUP($A145,Filtro!$A$5:$AY$629,46,FALSE),0) -> 1
A146: P2501824 | B146: Epilepsia | C146: Epilepsia | D146: 69 | E146: 33 | F146: 36 | G146: =IFERROR(VLOOKUP($A146,Filtro!$A$5:$AY$629,5,FALSE),0) -> 0 | H146: =IFERROR(VLOOKUP($A146,Filtro!$A$5:$AY$629,6,FALSE),0) -> 0 | I146: =IFERROR(VLOOKUP($A146,Filtro!$A$5:$AY$629,7,FALSE),0) -> 0 | J146: =IFERROR(VLOOKUP($A146,Filtro!$A$5:$AY$629,8,FALSE),0) -> 0 | K146: =IFERROR(VLOOKUP($A146,Filtro!$A$5:$AY$629,9,FALSE),0) -> 0 | L146: =IFERROR(VLOOKUP($A146,Filtro!$A$5:$AY$629,10,FALSE),0) -> 0 | M146: =IFERROR(VLOOKUP($A146,Filtro!$A$5:$AY$629,11,FALSE),0) -> 0 | N146: =IFERROR(VLOOKUP($A146,Filtro!$A$5:$AY$629,12,FALSE),0) -> 1 | O146: =IFERROR(VLOOKUP($A146,Filtro!$A$5:$AY$629,13,FALSE),0) -> 0 | P146: =IFERROR(VLOOKUP($A146,Filtro!$A$5:$AY$629,14,FALSE),0) -> 0 | Q146: =IFERROR(VLOOKUP($A146,Filtro!$A$5:$AY$629,15,FALSE),0) -> 1 | R146: =IFERROR(VLOOKUP($A146,Filtro!$A$5:$AY$629,16,FALSE),0) -> 0 | S146: =IFERROR(VLOOKUP($A146,Filtro!$A$5:$AY$629,17,FALSE),0) -> 0 | T146: =IFERROR(VLOOKUP($A146,Filtro!$A$5:$AY$629,18,FALSE),0) -> 0 | U146: =IFERROR(VLOOKUP($A146,Filtro!$A$5:$AY$629,19,FALSE),0) -> 1 | V146: =IFERROR(VLOOKUP($A146,Filtro!$A$5:$AY$629,20,FALSE),0) -> 0 | W146: =IFERROR(VLOOKUP($A146,Filtro!$A$5:$AY$629,21,FALSE),0) -> 1 | X146: =IFERROR(VLOOKUP($A146,Filtro!$A$5:$AY$629,22,FALSE),0) -> 3 | Y146: =IFERROR(VLOOKUP($A146,Filtro!$A$5:$AY$629,23,FALSE),0) -> 0 | Z146: =IFERROR(VLOOKUP($A146,Filtro!$A$5:$AY$629,24,FALSE),0) -> 0 | AA146: =IFERROR(VLOOKUP($A146,Filtro!$A$5:$AY$629,25,FALSE),0) -> 3 | AB146: =IFERROR(VLOOKUP($A146,Filtro!$A$5:$AY$629,26,FALSE),0) -> 3 | AC146: =IFERROR(VLOOKUP($A146,Filtro!$A$5:$AY$629,27,FALSE),0) -> 4 | AD146: =IFERROR(VLOOKUP($A146,Filtro!$A$5:$AY$629,28,FALSE),0) -> 2 | AE146: =IFERROR(VLOOKUP($A146,Filtro!$A$5:$AY$629,29,FALSE),0) -> 0 | AF146: =IFERROR(VLOOKUP($A146,Filtro!$A$5:$AY$629,30,FALSE),0) -> 0 | AG146: =IFERROR(VLOOKUP($A146,Filtro!$A$5:$AY$629,31,FALSE),0) -> 2 | AH146: =IFERROR(VLOOKUP($A146,Filtro!$A$5:$AY$629,32,FALSE),0) -> 4 | AI146: =IFERROR(VLOOKUP($A146,Filtro!$A$5:$AY$629,33,FALSE),0) -> 1 | AJ146: =IFERROR(VLOOKUP($A146,Filtro!$A$5:$AY$629,34,FALSE),0) -> 1 | AK146: =IFERROR(VLOOKUP($A146,Filtro!$A$5:$AY$629,35,FALSE),0) -> 8 | AL146: =IFERROR(VLOOKUP($A146,Filtro!$A$5:$AY$629,36,FALSE),0) -> 8 | AM146: =IFERROR(VLOOKUP($A146,Filtro!$A$5:$AY$629,37,FALSE),0) -> 2 | AN146: =IFERROR(VLOOKUP($A146,Filtro!$A$5:$AY$629,38,FALSE),0) -> 2 | AO146: =IFERROR(VLOOKUP($A146,Filtro!$A$5:$AY$629,39,FALSE),0) -> 4 | AP146: =IFERROR(VLOOKUP($A146,Filtro!$A$5:$AY$629,40,FALSE),0) -> 8 | AQ146: =IFERROR(VLOOKUP($A146,Filtro!$A$5:$AY$629,41,FALSE),0) -> 6 | AR146: =IFERROR(VLOOKUP($A146,Filtro!$A$5:$AY$629,42,FALSE),0) -> 4 | AS146: =IFERROR(VLOOKUP($A146,Filtro!$A$5:$AY$629,43,FALSE),0) -> 0 | AT146: =IFERROR(VLOOKUP($A146,Filtro!$A$5:$AY$629,44,FALSE),0) -> 0 | AU146: =IFERROR(VLOOKUP($A146,Filtro!$A$5:$AY$629,45,FALSE),0) -> 0 | AV146: =IFERROR(VLOOKUP($A146,Filtro!$A$5:$AY$629,46,FALSE),0) -> 0 | CG146: =IF(DF146=1,"* No olvide escribir en las celdas de ""Pueblos Originarios"" (Digite Cero si no tiene).","") ->  | CH146: =IF(DG146=1,"* No olvide escribir en las celdas de ""Población Migrante"" (Digite Cero si no tiene).","") ->  | CI146: =IF(DH146=1,"* La suma de las celdas de ""Pueblos Originarios""no debe superar el Total.","") ->  | CJ146: =IF(DI146=1,"* La suma de las celdas de ""Población Migrante"" no debe superar el Total.","") ->  | DF146: =IF(AND($D146<>0,OR(AS146="",AT146="")),1,0) -> 0 | DG146: =IF(AND($D146<>0,OR(AU146="",AV146="")),1,0) -> 0 | DH146: =IF((AS146+AT146)>$D146,1,0) -> 0 | DI146: =IF((AV146+AU146)>$D146,1,0) -> 0
A147: P2501825 | B147: Otros trastornos del Neurodesarrollo (no incluye TEA) | C147: Otros trastornos del Neurodesarrollo ( no incluye TEA) | D147: 55 | E147: 33 | F147: 22 | G147: =IFERROR(VLOOKUP($A147,Filtro!$A$5:$AY$629,5,FALSE),0) -> 0 | H147: =IFERROR(VLOOKUP($A147,Filtro!$A$5:$AY$629,6,FALSE),0) -> 0 | I147: =IFERROR(VLOOKUP($A147,Filtro!$A$5:$AY$629,7,FALSE),0) -> 0 | J147: =IFERROR(VLOOKUP($A147,Filtro!$A$5:$AY$629,8,FALSE),0) -> 0 | K147: =IFERROR(VLOOKUP($A147,Filtro!$A$5:$AY$629,9,FALSE),0) -> 0 | L147: =IFERROR(VLOOKUP($A147,Filtro!$A$5:$AY$629,10,FALSE),0) -> 0 | M147: =IFERROR(VLOOKUP($A147,Filtro!$A$5:$AY$629,11,FALSE),0) -> 0 | N147: =IFERROR(VLOOKUP($A147,Filtro!$A$5:$AY$629,12,FALSE),0) -> 0 | O147: =IFERROR(VLOOKUP($A147,Filtro!$A$5:$AY$629,13,FALSE),0) -> 0 | P147: =IFERROR(VLOOKUP($A147,Filtro!$A$5:$AY$629,14,FALSE),0) -> 0 | Q147: =IFERROR(VLOOKUP($A147,Filtro!$A$5:$AY$629,15,FALSE),0) -> 0 | R147: =IFERROR(VLOOKUP($A147,Filtro!$A$5:$AY$629,16,FALSE),0) -> 0 | S147: =IFERROR(VLOOKUP($A147,Filtro!$A$5:$AY$629,17,FALSE),0) -> 0 | T147: =IFERROR(VLOOKUP($A147,Filtro!$A$5:$AY$629,18,FALSE),0) -> 0 | U147: =IFERROR(VLOOKUP($A147,Filtro!$A$5:$AY$629,19,FALSE),0) -> 1 | V147: =IFERROR(VLOOKUP($A147,Filtro!$A$5:$AY$629,20,FALSE),0) -> 0 | W147: =IFERROR(VLOOKUP($A147,Filtro!$A$5:$AY$629,21,FALSE),0) -> 1 | X147: =IFERROR(VLOOKUP($A147,Filtro!$A$5:$AY$629,22,FALSE),0) -> 1 | Y147: =IFERROR(VLOOKUP($A147,Filtro!$A$5:$AY$629,23,FALSE),0) -> 2 | Z147: =IFERROR(VLOOKUP($A147,Filtro!$A$5:$AY$629,24,FALSE),0) -> 1 | AA147: =IFERROR(VLOOKUP($A147,Filtro!$A$5:$AY$629,25,FALSE),0) -> 5 | AB147: =IFERROR(VLOOKUP($A147,Filtro!$A$5:$AY$629,26,FALSE),0) -> 3 | AC147: =IFERROR(VLOOKUP($A147,Filtro!$A$5:$AY$629,27,FALSE),0) -> 1 | AD147: =IFERROR(VLOOKUP($A147,Filtro!$A$5:$AY$629,28,FALSE),0) -> 2 | AE147: =IFERROR(VLOOKUP($A147,Filtro!$A$5:$AY$629,29,FALSE),0) -> 1 | AF147: =IFERROR(VLOOKUP($A147,Filtro!$A$5:$AY$629,30,FALSE),0) -> 0 | AG147: =IFERROR(VLOOKUP($A147,Filtro!$A$5:$AY$629,31,FALSE),0) -> 1 | AH147: =IFERROR(VLOOKUP($A147,Filtro!$A$5:$AY$629,32,FALSE),0) -> 2 | AI147: =IFERROR(VLOOKUP($A147,Filtro!$A$5:$AY$629,33,FALSE),0) -> 7 | AJ147: =IFERROR(VLOOKUP($A147,Filtro!$A$5:$AY$629,34,FALSE),0) -> 3 | AK147: =IFERROR(VLOOKUP($A147,Filtro!$A$5:$AY$629,35,FALSE),0) -> 8 | AL147: =IFERROR(VLOOKUP($A147,Filtro!$A$5:$AY$629,36,FALSE),0) -> 4 | AM147: =IFERROR(VLOOKUP($A147,Filtro!$A$5:$AY$629,37,FALSE),0) -> 5 | AN147: =IFERROR(VLOOKUP($A147,Filtro!$A$5:$AY$629,38,FALSE),0) -> 3 | AO147: =IFERROR(VLOOKUP($A147,Filtro!$A$5:$AY$629,39,FALSE),0) -> 1 | AP147: =IFERROR(VLOOKUP($A147,Filtro!$A$5:$AY$629,40,FALSE),0) -> 2 | AQ147: =IFERROR(VLOOKUP($A147,Filtro!$A$5:$AY$629,41,FALSE),0) -> 0 | AR147: =IFERROR(VLOOKUP($A147,Filtro!$A$5:$AY$629,42,FALSE),0) -> 1 | AS147: =IFERROR(VLOOKUP($A147,Filtro!$A$5:$AY$629,43,FALSE),0) -> 0 | AT147: =IFERROR(VLOOKUP($A147,Filtro!$A$5:$AY$629,44,FALSE),0) -> 0 | AU147: =IFERROR(VLOOKUP($A147,Filtro!$A$5:$AY$629,45,FALSE),0) -> 0 | AV147: =IFERROR(VLOOKUP($A147,Filtro!$A$5:$AY$629,46,FALSE),0) -> 0
A148: P2501826 | B148: Hipertensión Arterial | C148: Hipertensión Arterial (En vez de Presión Arterial Elevada) | D148: 43 | E148: 25 | F148: 18 | G148: =IFERROR(VLOOKUP($A148,Filtro!$A$5:$AY$629,5,FALSE),0) -> 0 | H148: =IFERROR(VLOOKUP($A148,Filtro!$A$5:$AY$629,6,FALSE),0) -> 0 | I148: =IFERROR(VLOOKUP($A148,Filtro!$A$5:$AY$629,7,FALSE),0) -> 0 | J148: =IFERROR(VLOOKUP($A148,Filtro!$A$5:$AY$629,8,FALSE),0) -> 0 | K148: =IFERROR(VLOOKUP($A148,Filtro!$A$5:$AY$629,9,FALSE),0) -> 0 | L148: =IFERROR(VLOOKUP($A148,Filtro!$A$5:$AY$629,10,FALSE),0) -> 0 | M148: =IFERROR(VLOOKUP($A148,Filtro!$A$5:$AY$629,11,FALSE),0) -> 0 | N148: =IFERROR(VLOOKUP($A148,Filtro!$A$5:$AY$629,12,FALSE),0) -> 0 | O148: =IFERROR(VLOOKUP($A148,Filtro!$A$5:$AY$629,13,FALSE),0) -> 0 | P148: =IFERROR(VLOOKUP($A148,Filtro!$A$5:$AY$629,14,FALSE),0) -> 0 | Q148: =IFERROR(VLOOKUP($A148,Filtro!$A$5:$AY$629,15,FALSE),0) -> 0 | R148: =IFERROR(VLOOKUP($A148,Filtro!$A$5:$AY$629,16,FALSE),0) -> 0 | S148: =IFERROR(VLOOKUP($A148,Filtro!$A$5:$AY$629,17,FALSE),0) -> 0 | T148: =IFERROR(VLOOKUP($A148,Filtro!$A$5:$AY$629,18,FALSE),0) -> 0 | U148: =IFERROR(VLOOKUP($A148,Filtro!$A$5:$AY$629,19,FALSE),0) -> 0 | V148: =IFERROR(VLOOKUP($A148,Filtro!$A$5:$AY$629,20,FALSE),0) -> 0 | W148: =IFERROR(VLOOKUP($A148,Filtro!$A$5:$AY$629,21,FALSE),0) -> 0 | X148: =IFERROR(VLOOKUP($A148,Filtro!$A$5:$AY$629,22,FALSE),0) -> 0 | Y148: =IFERROR(VLOOKUP($A148,Filtro!$A$5:$AY$629,23,FALSE),0) -> 0 | Z148: =IFERROR(VLOOKUP($A148,Filtro!$A$5:$AY$629,24,FALSE),0) -> 0 | AA148: =IFERROR(VLOOKUP($A148,Filtro!$A$5:$AY$629,25,FALSE),0) -> 0 | AB148: =IFERROR(VLOOKUP($A148,Filtro!$A$5:$AY$629,26,FALSE),0) -> 0 | AC148: =IFERROR(VLOOKUP($A148,Filtro!$A$5:$AY$629,27,FALSE),0) -> 1 | AD148: =IFERROR(VLOOKUP($A148,Filtro!$A$5:$AY$629,28,FALSE),0) -> 1 | AE148: =IFERROR(VLOOKUP($A148,Filtro!$A$5:$AY$629,29,FALSE),0) -> 3 | AF148: =IFERROR(VLOOKUP($A148,Filtro!$A$5:$AY$629,30,FALSE),0) -> 1 | AG148: =IFERROR(VLOOKUP($A148,Filtro!$A$5:$AY$629,31,FALSE),0) -> 2 | AH148: =IFERROR(VLOOKUP($A148,Filtro!$A$5:$AY$629,32,FALSE),0) -> 2 | AI148: =IFERROR(VLOOKUP($A148,Filtro!$A$5:$AY$629,33,FALSE),0) -> 5 | AJ148: =IFERROR(VLOOKUP($A148,Filtro!$A$5:$AY$629,34,FALSE),0) -> 3 | AK148: =IFERROR(VLOOKUP($A148,Filtro!$A$5:$AY$629,35,FALSE),0) -> 6 | AL148: =IFERROR(VLOOKUP($A148,Filtro!$A$5:$AY$629,36,FALSE),0) -> 5 | AM148: =IFERROR(VLOOKUP($A148,Filtro!$A$5:$AY$629,37,FALSE),0) -> 3 | AN148: =IFERROR(VLOOKUP($A148,Filtro!$A$5:$AY$629,38,FALSE),0) -> 5 | AO148: =IFERROR(VLOOKUP($A148,Filtro!$A$5:$AY$629,39,FALSE),0) -> 1 | AP148: =IFERROR(VLOOKUP($A148,Filtro!$A$5:$AY$629,40,FALSE),0) -> 0 | AQ148: =IFERROR(VLOOKUP($A148,Filtro!$A$5:$AY$629,41,FALSE),0) -> 4 | AR148: =IFERROR(VLOOKUP($A148,Filtro!$A$5:$AY$629,42,FALSE),0) -> 1 | AS148: =IFERROR(VLOOKUP($A148,Filtro!$A$5:$AY$629,43,FALSE),0) -> 0 | AT148: =IFERROR(VLOOKUP($A148,Filtro!$A$5:$AY$629,44,FALSE),0) -> 0 | AU148: =IFERROR(VLOOKUP($A148,Filtro!$A$5:$AY$629,45,FALSE),0) -> 0 | AV148: =IFERROR(VLOOKUP($A148,Filtro!$A$5:$AY$629,46,FALSE),0) -> 0
A149: P2501827 | B149: Enfermedad renal crónica | C149: Enfermedad renal crónica | D149: 15 | E149: 12 | F149: 3 | G149: =IFERROR(VLOOKUP($A149,Filtro!$A$5:$AY$629,5,FALSE),0) -> 0 | H149: =IFERROR(VLOOKUP($A149,Filtro!$A$5:$AY$629,6,FALSE),0) -> 0 | I149: =IFERROR(VLOOKUP($A149,Filtro!$A$5:$AY$629,7,FALSE),0) -> 0 | J149: =IFERROR(VLOOKUP($A149,Filtro!$A$5:$AY$629,8,FALSE),0) -> 0 | K149: =IFERROR(VLOOKUP($A149,Filtro!$A$5:$AY$629,9,FALSE),0) -> 0 | L149: =IFERROR(VLOOKUP($A149,Filtro!$A$5:$AY$629,10,FALSE),0) -> 0 | M149: =IFERROR(VLOOKUP($A149,Filtro!$A$5:$AY$629,11,FALSE),0) -> 0 | N149: =IFERROR(VLOOKUP($A149,Filtro!$A$5:$AY$629,12,FALSE),0) -> 0 | O149: =IFERROR(VLOOKUP($A149,Filtro!$A$5:$AY$629,13,FALSE),0) -> 1 | P149: =IFERROR(VLOOKUP($A149,Filtro!$A$5:$AY$629,14,FALSE),0) -> 0 | Q149: =IFERROR(VLOOKUP($A149,Filtro!$A$5:$AY$629,15,FALSE),0) -> 0 | R149: =IFERROR(VLOOKUP($A149,Filtro!$A$5:$AY$629,16,FALSE),0) -> 0 | S149: =IFERROR(VLOOKUP($A149,Filtro!$A$5:$AY$629,17,FALSE),0) -> 0 | T149: =IFERROR(VLOOKUP($A149,Filtro!$A$5:$AY$629,18,FALSE),0) -> 0 | U149: =IFERROR(VLOOKUP($A149,Filtro!$A$5:$AY$629,19,FALSE),0) -> 1 | V149: =IFERROR(VLOOKUP($A149,Filtro!$A$5:$AY$629,20,FALSE),0) -> 0 | W149: =IFERROR(VLOOKUP($A149,Filtro!$A$5:$AY$629,21,FALSE),0) -> 1 | X149: =IFERROR(VLOOKUP($A149,Filtro!$A$5:$AY$629,22,FALSE),0) -> 0 | Y149: =IFERROR(VLOOKUP($A149,Filtro!$A$5:$AY$629,23,FALSE),0) -> 2 | Z149: =IFERROR(VLOOKUP($A149,Filtro!$A$5:$AY$629,24,FALSE),0) -> 0 | AA149: =IFERROR(VLOOKUP($A149,Filtro!$A$5:$AY$629,25,FALSE),0) -> 2 | AB149: =IFERROR(VLOOKUP($A149,Filtro!$A$5:$AY$629,26,FALSE),0) -> 0 | AC149: =IFERROR(VLOOKUP($A149,Filtro!$A$5:$AY$629,27,FALSE),0) -> 1 | AD149: =IFERROR(VLOOKUP($A149,Filtro!$A$5:$AY$629,28,FALSE),0) -> 0 | AE149: =IFERROR(VLOOKUP($A149,Filtro!$A$5:$AY$629,29,FALSE),0) -> 0 | AF149: =IFERROR(VLOOKUP($A149,Filtro!$A$5:$AY$629,30,FALSE),0) -> 0 | AG149: =IFERROR(VLOOKUP($A149,Filtro!$A$5:$AY$629,31,FALSE),0) -> 0 | AH149: =IFERROR(VLOOKUP($A149,Filtro!$A$5:$AY$629,32,FALSE),0) -> 0 | AI149: =IFERROR(VLOOKUP($A149,Filtro!$A$5:$AY$629,33,FALSE),0) -> 1 | AJ149: =IFERROR(VLOOKUP($A149,Filtro!$A$5:$AY$629,34,FALSE),0) -> 1 | AK149: =IFERROR(VLOOKUP($A149,Filtro!$A$5:$AY$629,35,FALSE),0) -> 1 | AL149: =IFERROR(VLOOKUP($A149,Filtro!$A$5:$AY$629,36,FALSE),0) -> 1 | AM149: =IFERROR(VLOOKUP($A149,Filtro!$A$5:$AY$629,37,FALSE),0) -> 1 | AN149: =IFERROR(VLOOKUP($A149,Filtro!$A$5:$AY$629,38,FALSE),0) -> 0 | AO149: =IFERROR(VLOOKUP($A149,Filtro!$A$5:$AY$629,39,FALSE),0) -> 0 | AP149: =IFERROR(VLOOKUP($A149,Filtro!$A$5:$AY$629,40,FALSE),0) -> 1 | AQ149: =IFERROR(VLOOKUP($A149,Filtro!$A$5:$AY$629,41,FALSE),0) -> 1 | AR149: =IFERROR(VLOOKUP($A149,Filtro!$A$5:$AY$629,42,FALSE),0) -> 0 | AS149: =IFERROR(VLOOKUP($A149,Filtro!$A$5:$AY$629,43,FALSE),0) -> 0 | AT149: =IFERROR(VLOOKUP($A149,Filtro!$A$5:$AY$629,44,FALSE),0) -> 0 | AU149: =IFERROR(VLOOKUP($A149,Filtro!$A$5:$AY$629,45,FALSE),0) -> 0 | AV149: =IFERROR(VLOOKUP($A149,Filtro!$A$5:$AY$629,46,FALSE),0) -> 0
A150: P2501828 | B150: Otras Enfermedades cardiovasculares crónicas (no incluye Hipertensión Arterial ni Cardiopatías Congénitas) | C150: Otras Enfermedades cardiovasculares crónicas (no incluye Hipertensión Arterial ni Cardiopatías Congénitas) | D150: 22 | E150: 11 | F150: 11 | G150: =IFERROR(VLOOKUP($A150,Filtro!$A$5:$AY$629,5,FALSE),0) -> 0 | H150: =IFERROR(VLOOKUP($A150,Filtro!$A$5:$AY$629,6,FALSE),0) -> 0 | I150: =IFERROR(VLOOKUP($A150,Filtro!$A$5:$AY$629,7,FALSE),0) -> 0 | J150: =IFERROR(VLOOKUP($A150,Filtro!$A$5:$AY$629,8,FALSE),0) -> 0 | K150: =IFERROR(VLOOKUP($A150,Filtro!$A$5:$AY$629,9,FALSE),0) -> 0 | L150: =IFERROR(VLOOKUP($A150,Filtro!$A$5:$AY$629,10,FALSE),0) -> 1 | M150: =IFERROR(VLOOKUP($A150,Filtro!$A$5:$AY$629,11,FALSE),0) -> 0 | N150: =IFERROR(VLOOKUP($A150,Filtro!$A$5:$AY$629,12,FALSE),0) -> 0 | O150: =IFERROR(VLOOKUP($A150,Filtro!$A$5:$AY$629,13,FALSE),0) -> 0 | P150: =IFERROR(VLOOKUP($A150,Filtro!$A$5:$AY$629,14,FALSE),0) -> 0 | Q150: =IFERROR(VLOOKUP($A150,Filtro!$A$5:$AY$629,15,FALSE),0) -> 0 | R150: =IFERROR(VLOOKUP($A150,Filtro!$A$5:$AY$629,16,FALSE),0) -> 0 | S150: =IFERROR(VLOOKUP($A150,Filtro!$A$5:$AY$629,17,FALSE),0) -> 0 | T150: =IFERROR(VLOOKUP($A150,Filtro!$A$5:$AY$629,18,FALSE),0) -> 1 | U150: =IFERROR(VLOOKUP($A150,Filtro!$A$5:$AY$629,19,FALSE),0) -> 1 | V150: =IFERROR(VLOOKUP($A150,Filtro!$A$5:$AY$629,20,FALSE),0) -> 2 | W150: =IFERROR(VLOOKUP($A150,Filtro!$A$5:$AY$629,21,FALSE),0) -> 1 | X150: =IFERROR(VLOOKUP($A150,Filtro!$A$5:$AY$629,22,FALSE),0) -> 1 | Y150: =IFERROR(VLOOKUP($A150,Filtro!$A$5:$AY$629,23,FALSE),0) -> 0 | Z150: =IFERROR(VLOOKUP($A150,Filtro!$A$5:$AY$629,24,FALSE),0) -> 0 | AA150: =IFERROR(VLOOKUP($A150,Filtro!$A$5:$AY$629,25,FALSE),0) -> 0 | AB150: =IFERROR(VLOOKUP($A150,Filtro!$A$5:$AY$629,26,FALSE),0) -> 1 | AC150: =IFERROR(VLOOKUP($A150,Filtro!$A$5:$AY$629,27,FALSE),0) -> 0 | AD150: =IFERROR(VLOOKUP($A150,Filtro!$A$5:$AY$629,28,FALSE),0) -> 0 | AE150: =IFERROR(VLOOKUP($A150,Filtro!$A$5:$AY$629,29,FALSE),0) -> 1 | AF150: =IFERROR(VLOOKUP($A150,Filtro!$A$5:$AY$629,30,FALSE),0) -> 0 | AG150: =IFERROR(VLOOKUP($A150,Filtro!$A$5:$AY$629,31,FALSE),0) -> 2 | AH150: =IFERROR(VLOOKUP($A150,Filtro!$A$5:$AY$629,32,FALSE),0) -> 0 | AI150: =IFERROR(VLOOKUP($A150,Filtro!$A$5:$AY$629,33,FALSE),0) -> 0 | AJ150: =IFERROR(VLOOKUP($A150,Filtro!$A$5:$AY$629,34,FALSE),0) -> 0 | AK150: =IFERROR(VLOOKUP($A150,Filtro!$A$5:$AY$629,35,FALSE),0) -> 1 | AL150: =IFERROR(VLOOKUP($A150,Filtro!$A$5:$AY$629,36,FALSE),0) -> 0 | AM150: =IFERROR(VLOOKUP($A150,Filtro!$A$5:$AY$629,37,FALSE),0) -> 3 | AN150: =IFERROR(VLOOKUP($A150,Filtro!$A$5:$AY$629,38,FALSE),0) -> 4 | AO150: =IFERROR(VLOOKUP($A150,Filtro!$A$5:$AY$629,39,FALSE),0) -> 2 | AP150: =IFERROR(VLOOKUP($A150,Filtro!$A$5:$AY$629,40,FALSE),0) -> 1 | AQ150: =IFERROR(VLOOKUP($A150,Filtro!$A$5:$AY$629,41,FALSE),0) -> 0 | AR150: =IFERROR(VLOOKUP($A150,Filtro!$A$5:$AY$629,42,FALSE),0) -> 0 | AS150: =IFERROR(VLOOKUP($A150,Filtro!$A$5:$AY$629,43,FALSE),0) -> 0 | AT150: =IFERROR(VLOOKUP($A150,Filtro!$A$5:$AY$629,44,FALSE),0) -> 0 | AU150: =IFERROR(VLOOKUP($A150,Filtro!$A$5:$AY$629,45,FALSE),0) -> 0 | AV150: =IFERROR(VLOOKUP($A150,Filtro!$A$5:$AY$629,46,FALSE),0) -> 0
A151: P2501829 | B151: Enfermedades gastrointestinales crónicas (no incluye enfermedad celiaca) | C151: Enfermedades crónicas gastrointestinales (no incluye enfermedad celiaca) | D151: 78 | E151: 45 | F151: 33 | G151: =IFERROR(VLOOKUP($A151,Filtro!$A$5:$AY$629,5,FALSE),0) -> 0 | H151: =IFERROR(VLOOKUP($A151,Filtro!$A$5:$AY$629,6,FALSE),0) -> 0 | I151: =IFERROR(VLOOKUP($A151,Filtro!$A$5:$AY$629,7,FALSE),0) -> 0 | J151: =IFERROR(VLOOKUP($A151,Filtro!$A$5:$AY$629,8,FALSE),0) -> 1 | K151: =IFERROR(VLOOKUP($A151,Filtro!$A$5:$AY$629,9,FALSE),0) -> 1 | L151: =IFERROR(VLOOKUP($A151,Filtro!$A$5:$AY$629,10,FALSE),0) -> 0 | M151: =IFERROR(VLOOKUP($A151,Filtro!$A$5:$AY$629,11,FALSE),0) -> 1 | N151: =IFERROR(VLOOKUP($A151,Filtro!$A$5:$AY$629,12,FALSE),0) -> 0 | O151: =IFERROR(VLOOKUP($A151,Filtro!$A$5:$AY$629,13,FALSE),0) -> 1 | P151: =IFERROR(VLOOKUP($A151,Filtro!$A$5:$AY$629,14,FALSE),0) -> 1 | Q151: =IFERROR(VLOOKUP($A151,Filtro!$A$5:$AY$629,15,FALSE),0) -> 2 | R151: =IFERROR(VLOOKUP($A151,Filtro!$A$5:$AY$629,16,FALSE),0) -> 2 | S151: =IFERROR(VLOOKUP($A151,Filtro!$A$5:$AY$629,17,FALSE),0) -> 1 | T151: =IFERROR(VLOOKUP($A151,Filtro!$A$5:$AY$629,18,FALSE),0) -> 1 | U151: =IFERROR(VLOOKUP($A151,Filtro!$A$5:$AY$629,19,FALSE),0) -> 9 | V151: =IFERROR(VLOOKUP($A151,Filtro!$A$5:$AY$629,20,FALSE),0) -> 6 | W151: =IFERROR(VLOOKUP($A151,Filtro!$A$5:$AY$629,21,FALSE),0) -> 13 | X151: =IFERROR(VLOOKUP($A151,Filtro!$A$5:$AY$629,22,FALSE),0) -> 4 | Y151: =IFERROR(VLOOKUP($A151,Filtro!$A$5:$AY$629,23,FALSE),0) -> 4 | Z151: =IFERROR(VLOOKUP($A151,Filtro!$A$5:$AY$629,24,FALSE),0) -> 2 | AA151: =IFERROR(VLOOKUP($A151,Filtro!$A$5:$AY$629,25,FALSE),0) -> 3 | AB151: =IFERROR(VLOOKUP($A151,Filtro!$A$5:$AY$629,26,FALSE),0) -> 3 | AC151: =IFERROR(VLOOKUP($A151,Filtro!$A$5:$AY$629,27,FALSE),0) -> 0 | AD151: =IFERROR(VLOOKUP($A151,Filtro!$A$5:$AY$629,28,FALSE),0) -> 0 | AE151: =IFERROR(VLOOKUP($A151,Filtro!$A$5:$AY$629,29,FALSE),0) -> 0 | AF151: =IFERROR(VLOOKUP($A151,Filtro!$A$5:$AY$629,30,FALSE),0) -> 0 | AG151: =IFERROR(VLOOKUP($A151,Filtro!$A$5:$AY$629,31,FALSE),0) -> 0 | AH151: =IFERROR(VLOOKUP($A151,Filtro!$A$5:$AY$629,32,FALSE),0) -> 0 | AI151: =IFERROR(VLOOKUP($A151,Filtro!$A$5:$AY$629,33,FALSE),0) -> 1 | AJ151: =IFERROR(VLOOKUP($A151,Filtro!$A$5:$AY$629,34,FALSE),0) -> 2 | AK151: =IFERROR(VLOOKUP($A151,Filtro!$A$5:$AY$629,35,FALSE),0) -> 0 | AL151: =IFERROR(VLOOKUP($A151,Filtro!$A$5:$AY$629,36,FALSE),0) -> 3 | AM151: =IFERROR(VLOOKUP($A151,Filtro!$A$5:$AY$629,37,FALSE),0) -> 3 | AN151: =IFERROR(VLOOKUP($A151,Filtro!$A$5:$AY$629,38,FALSE),0) -> 2 | AO151: =IFERROR(VLOOKUP($A151,Filtro!$A$5:$AY$629,39,FALSE),0) -> 4 | AP151: =IFERROR(VLOOKUP($A151,Filtro!$A$5:$AY$629,40,FALSE),0) -> 4 | AQ151: =IFERROR(VLOOKUP($A151,Filtro!$A$5:$AY$629,41,FALSE),0) -> 2 | AR151: =IFERROR(VLOOKUP($A151,Filtro!$A$5:$AY$629,42,FALSE),0) -> 2 | AS151: =IFERROR(VLOOKUP($A151,Filtro!$A$5:$AY$629,43,FALSE),0) -> 0 | AT151: =IFERROR(VLOOKUP($A151,Filtro!$A$5:$AY$629,44,FALSE),0) -> 0 | AU151: =IFERROR(VLOOKUP($A151,Filtro!$A$5:$AY$629,45,FALSE),0) -> 0 | AV151: =IFERROR(VLOOKUP($A151,Filtro!$A$5:$AY$629,46,FALSE),0) -> 0
A152: P2501830 | B152: Enfermedades crónicas del sistema visual (no incluye estrabismo ni errores de refracción) | C152: Enfermedades crónicas del sistema visual (no incluye Estabismo ni Errores de Refracción) | D152: 9 | E152: 6 | F152: 3 | G152: =IFERROR(VLOOKUP($A152,Filtro!$A$5:$AY$629,5,FALSE),0) -> 0 | H152: =IFERROR(VLOOKUP($A152,Filtro!$A$5:$AY$629,6,FALSE),0) -> 0 | I152: =IFERROR(VLOOKUP($A152,Filtro!$A$5:$AY$629,7,FALSE),0) -> 0 | J152: =IFERROR(VLOOKUP($A152,Filtro!$A$5:$AY$629,8,FALSE),0) -> 0 | K152: =IFERROR(VLOOKUP($A152,Filtro!$A$5:$AY$629,9,FALSE),0) -> 0 | L152: =IFERROR(VLOOKUP($A152,Filtro!$A$5:$AY$629,10,FALSE),0) -> 0 | M152: =IFERROR(VLOOKUP($A152,Filtro!$A$5:$AY$629,11,FALSE),0) -> 0 | N152: =IFERROR(VLOOKUP($A152,Filtro!$A$5:$AY$629,12,FALSE),0) -> 0 | O152: =IFERROR(VLOOKUP($A152,Filtro!$A$5:$AY$629,13,FALSE),0) -> 0 | P152: =IFERROR(VLOOKUP($A152,Filtro!$A$5:$AY$629,14,FALSE),0) -> 0 | Q152: =IFERROR(VLOOKUP($A152,Filtro!$A$5:$AY$629,15,FALSE),0) -> 0 | R152: =IFERROR(VLOOKUP($A152,Filtro!$A$5:$AY$629,16,FALSE),0) -> 0 | S152: =IFERROR(VLOOKUP($A152,Filtro!$A$5:$AY$629,17,FALSE),0) -> 0 | T152: =IFERROR(VLOOKUP($A152,Filtro!$A$5:$AY$629,18,FALSE),0) -> 0 | U152: =IFERROR(VLOOKUP($A152,Filtro!$A$5:$AY$629,19,FALSE),0) -> 0 | V152: =IFERROR(VLOOKUP($A152,Filtro!$A$5:$AY$629,20,FALSE),0) -> 0 | W152: =IFERROR(VLOOKUP($A152,Filtro!$A$5:$AY$629,21,FALSE),0) -> 1 | X152: =IFERROR(VLOOKUP($A152,Filtro!$A$5:$AY$629,22,FALSE),0) -> 0 | Y152: =IFERROR(VLOOKUP($A152,Filtro!$A$5:$AY$629,23,FALSE),0) -> 2 | Z152: =IFERROR(VLOOKUP($A152,Filtro!$A$5:$AY$629,24,FALSE),0) -> 0 | AA152: =IFERROR(VLOOKUP($A152,Filtro!$A$5:$AY$629,25,FALSE),0) -> 0 | AB152: =IFERROR(VLOOKUP($A152,Filtro!$A$5:$AY$629,26,FALSE),0) -> 0 | AC152: =IFERROR(VLOOKUP($A152,Filtro!$A$5:$AY$629,27,FALSE),0) -> 0 | AD152: =IFERROR(VLOOKUP($A152,Filtro!$A$5:$AY$629,28,FALSE),0) -> 0 | AE152: =IFERROR(VLOOKUP($A152,Filtro!$A$5:$AY$629,29,FALSE),0) -> 0 | AF152: =IFERROR(VLOOKUP($A152,Filtro!$A$5:$AY$629,30,FALSE),0) -> 0 | AG152: =IFERROR(VLOOKUP($A152,Filtro!$A$5:$AY$629,31,FALSE),0) -> 0 | AH152: =IFERROR(VLOOKUP($A152,Filtro!$A$5:$AY$629,32,FALSE),0) -> 0 | AI152: =IFERROR(VLOOKUP($A152,Filtro!$A$5:$AY$629,33,FALSE),0) -> 1 | AJ152: =IFERROR(VLOOKUP($A152,Filtro!$A$5:$AY$629,34,FALSE),0) -> 1 | AK152: =IFERROR(VLOOKUP($A152,Filtro!$A$5:$AY$629,35,FALSE),0) -> 0 | AL152: =IFERROR(VLOOKUP($A152,Filtro!$A$5:$AY$629,36,FALSE),0) -> 0 | AM152: =IFERROR(VLOOKUP($A152,Filtro!$A$5:$AY$629,37,FALSE),0) -> 1 | AN152: =IFERROR(VLOOKUP($A152,Filtro!$A$5:$AY$629,38,FALSE),0) -> 0 | AO152: =IFERROR(VLOOKUP($A152,Filtro!$A$5:$AY$629,39,FALSE),0) -> 0 | AP152: =IFERROR(VLOOKUP($A152,Filtro!$A$5:$AY$629,40,FALSE),0) -> 1 | AQ152: =IFERROR(VLOOKUP($A152,Filtro!$A$5:$AY$629,41,FALSE),0) -> 1 | AR152: =IFERROR(VLOOKUP($A152,Filtro!$A$5:$AY$629,42,FALSE),0) -> 1 | AS152: =IFERROR(VLOOKUP($A152,Filtro!$A$5:$AY$629,43,FALSE),0) -> 0 | AT152: =IFERROR(VLOOKUP($A152,Filtro!$A$5:$AY$629,44,FALSE),0) -> 0 | AU152: =IFERROR(VLOOKUP($A152,Filtro!$A$5:$AY$629,45,FALSE),0) -> 0 | AV152: =IFERROR(VLOOKUP($A152,Filtro!$A$5:$AY$629,46,FALSE),0) -> 0 | CG152: =IF(DF152=1,"* No olvide escribir en las celdas de ""Pueblos Originarios"" (Digite Cero si no tiene).","") ->  | CH152: =IF(DG152=1,"* No olvide escribir en las celdas de ""Población Migrante"" (Digite Cero si no tiene).","") ->  | CI152: =IF(DH152=1,"* La suma de las celdas de ""Pueblos Originarios""no debe superar el Total.","") ->  | CJ152: =IF(DI152=1,"* La suma de las celdas de ""Población Migrante"" no debe superar el Total.","") ->  | DF152: =IF(AND($D152<>0,OR(AS152="",AT152="")),1,0) -> 0 | DG152: =IF(AND($D152<>0,OR(AU152="",AV152="")),1,0) -> 0 | DH152: =IF((AS152+AT152)>$D152,1,0) -> 0 | DI152: =IF((AV152+AU152)>$D152,1,0) -> 0
A153: P2501831 | B153: Enfermedades crónicas del oído | C153: Enfermedades crónicas del oído | D153: 31 | E153: 16 | F153: 15 | G153: =IFERROR(VLOOKUP($A153,Filtro!$A$5:$AY$629,5,FALSE),0) -> 0 | H153: =IFERROR(VLOOKUP($A153,Filtro!$A$5:$AY$629,6,FALSE),0) -> 0 | I153: =IFERROR(VLOOKUP($A153,Filtro!$A$5:$AY$629,7,FALSE),0) -> 0 | J153: =IFERROR(VLOOKUP($A153,Filtro!$A$5:$AY$629,8,FALSE),0) -> 0 | K153: =IFERROR(VLOOKUP($A153,Filtro!$A$5:$AY$629,9,FALSE),0) -> 0 | L153: =IFERROR(VLOOKUP($A153,Filtro!$A$5:$AY$629,10,FALSE),0) -> 0 | M153: =IFERROR(VLOOKUP($A153,Filtro!$A$5:$AY$629,11,FALSE),0) -> 0 | N153: =IFERROR(VLOOKUP($A153,Filtro!$A$5:$AY$629,12,FALSE),0) -> 0 | O153: =IFERROR(VLOOKUP($A153,Filtro!$A$5:$AY$629,13,FALSE),0) -> 0 | P153: =IFERROR(VLOOKUP($A153,Filtro!$A$5:$AY$629,14,FALSE),0) -> 1 | Q153: =IFERROR(VLOOKUP($A153,Filtro!$A$5:$AY$629,15,FALSE),0) -> 2 | R153: =IFERROR(VLOOKUP($A153,Filtro!$A$5:$AY$629,16,FALSE),0) -> 0 | S153: =IFERROR(VLOOKUP($A153,Filtro!$A$5:$AY$629,17,FALSE),0) -> 2 | T153: =IFERROR(VLOOKUP($A153,Filtro!$A$5:$AY$629,18,FALSE),0) -> 0 | U153: =IFERROR(VLOOKUP($A153,Filtro!$A$5:$AY$629,19,FALSE),0) -> 1 | V153: =IFERROR(VLOOKUP($A153,Filtro!$A$5:$AY$629,20,FALSE),0) -> 2 | W153: =IFERROR(VLOOKUP($A153,Filtro!$A$5:$AY$629,21,FALSE),0) -> 0 | X153: =IFERROR(VLOOKUP($A153,Filtro!$A$5:$AY$629,22,FALSE),0) -> 0 | Y153: =IFERROR(VLOOKUP($A153,Filtro!$A$5:$AY$629,23,FALSE),0) -> 3 | Z153: =IFERROR(VLOOKUP($A153,Filtro!$A$5:$AY$629,24,FALSE),0) -> 1 | AA153: =IFERROR(VLOOKUP($A153,Filtro!$A$5:$AY$629,25,FALSE),0) -> 3 | AB153: =IFERROR(VLOOKUP($A153,Filtro!$A$5:$AY$629,26,FALSE),0) -> 1 | AC153: =IFERROR(VLOOKUP($A153,Filtro!$A$5:$AY$629,27,FALSE),0) -> 1 | AD153: =IFERROR(VLOOKUP($A153,Filtro!$A$5:$AY$629,28,FALSE),0) -> 1 | AE153: =IFERROR(VLOOKUP($A153,Filtro!$A$5:$AY$629,29,FALSE),0) -> 0 | AF153: =IFERROR(VLOOKUP($A153,Filtro!$A$5:$AY$629,30,FALSE),0) -> 0 | AG153: =IFERROR(VLOOKUP($A153,Filtro!$A$5:$AY$629,31,FALSE),0) -> 1 | AH153: =IFERROR(VLOOKUP($A153,Filtro!$A$5:$AY$629,32,FALSE),0) -> 2 | AI153: =IFERROR(VLOOKUP($A153,Filtro!$A$5:$AY$629,33,FALSE),0) -> 1 | AJ153: =IFERROR(VLOOKUP($A153,Filtro!$A$5:$AY$629,34,FALSE),0) -> 1 | AK153: =IFERROR(VLOOKUP($A153,Filtro!$A$5:$AY$629,35,FALSE),0) -> 0 | AL153: =IFERROR(VLOOKUP($A153,Filtro!$A$5:$AY$629,36,FALSE),0) -> 2 | AM153: =IFERROR(VLOOKUP($A153,Filtro!$A$5:$AY$629,37,FALSE),0) -> 1 | AN153: =IFERROR(VLOOKUP($A153,Filtro!$A$5:$AY$629,38,FALSE),0) -> 1 | AO153: =IFERROR(VLOOKUP($A153,Filtro!$A$5:$AY$629,39,FALSE),0) -> 0 | AP153: =IFERROR(VLOOKUP($A153,Filtro!$A$5:$AY$629,40,FALSE),0) -> 1 | AQ153: =IFERROR(VLOOKUP($A153,Filtro!$A$5:$AY$629,41,FALSE),0) -> 1 | AR153: =IFERROR(VLOOKUP($A153,Filtro!$A$5:$AY$629,42,FALSE),0) -> 2 | AS153: =IFERROR(VLOOKUP($A153,Filtro!$A$5:$AY$629,43,FALSE),0) -> 0 | AT153: =IFERROR(VLOOKUP($A153,Filtro!$A$5:$AY$629,44,FALSE),0) -> 0 | AU153: =IFERROR(VLOOKUP($A153,Filtro!$A$5:$AY$629,45,FALSE),0) -> 0 | AV153: =IFERROR(VLOOKUP($A153,Filtro!$A$5:$AY$629,46,FALSE),0) -> 0 | CG153: =IF(DF153=1,"* No olvide escribir en las celdas de ""Pueblos Originarios"" (Digite Cero si no tiene).","") ->  | CH153: =IF(DG153=1,"* No olvide escribir en las celdas de ""Población Migrante"" (Digite Cero si no tiene).","") ->  | CI153: =IF(DH153=1,"* La suma de las celdas de ""Pueblos Originarios""no debe superar el Total.","") ->  | CJ153: =IF(DI153=1,"* La suma de las celdas de ""Población Migrante"" no debe superar el Total.","") ->  | DF153: =IF(AND($D153<>0,OR(AS153="",AT153="")),1,0) -> 0 | DG153: =IF(AND($D153<>0,OR(AU153="",AV153="")),1,0) -> 0 | DH153: =IF((AS153+AT153)>$D153,1,0) -> 0 | DI153: =IF((AV153+AU153)>$D153,1,0) -> 0
A154: P2501832 | B154: Enfermedades crónicas de piel y mucosas | C154: Enfermedades crónicas de piel y mucosas | D154: 6 | E154: 4 | F154: 2 | G154: =IFERROR(VLOOKUP($A154,Filtro!$A$5:$AY$629,5,FALSE),0) -> 0 | H154: =IFERROR(VLOOKUP($A154,Filtro!$A$5:$AY$629,6,FALSE),0) -> 0 | I154: =IFERROR(VLOOKUP($A154,Filtro!$A$5:$AY$629,7,FALSE),0) -> 0 | J154: =IFERROR(VLOOKUP($A154,Filtro!$A$5:$AY$629,8,FALSE),0) -> 0 | K154: =IFERROR(VLOOKUP($A154,Filtro!$A$5:$AY$629,9,FALSE),0) -> 0 | L154: =IFERROR(VLOOKUP($A154,Filtro!$A$5:$AY$629,10,FALSE),0) -> 0 | M154: =IFERROR(VLOOKUP($A154,Filtro!$A$5:$AY$629,11,FALSE),0) -> 0 | N154: =IFERROR(VLOOKUP($A154,Filtro!$A$5:$AY$629,12,FALSE),0) -> 0 | O154: =IFERROR(VLOOKUP($A154,Filtro!$A$5:$AY$629,13,FALSE),0) -> 0 | P154: =IFERROR(VLOOKUP($A154,Filtro!$A$5:$AY$629,14,FALSE),0) -> 0 | Q154: =IFERROR(VLOOKUP($A154,Filtro!$A$5:$AY$629,15,FALSE),0) -> 0 | R154: =IFERROR(VLOOKUP($A154,Filtro!$A$5:$AY$629,16,FALSE),0) -> 0 | S154: =IFERROR(VLOOKUP($A154,Filtro!$A$5:$AY$629,17,FALSE),0) -> 0 | T154: =IFERROR(VLOOKUP($A154,Filtro!$A$5:$AY$629,18,FALSE),0) -> 0 | U154: =IFERROR(VLOOKUP($A154,Filtro!$A$5:$AY$629,19,FALSE),0) -> 0 | V154: =IFERROR(VLOOKUP($A154,Filtro!$A$5:$AY$629,20,FALSE),0) -> 1 | W154: =IFERROR(VLOOKUP($A154,Filtro!$A$5:$AY$629,21,FALSE),0) -> 1 | X154: =IFERROR(VLOOKUP($A154,Filtro!$A$5:$AY$629,22,FALSE),0) -> 0 | Y154: =IFERROR(VLOOKUP($A154,Filtro!$A$5:$AY$629,23,FALSE),0) -> 0 | Z154: =IFERROR(VLOOKUP($A154,Filtro!$A$5:$AY$629,24,FALSE),0) -> 0 | AA154: =IFERROR(VLOOKUP($A154,Filtro!$A$5:$AY$629,25,FALSE),0) -> 0 | AB154: =IFERROR(VLOOKUP($A154,Filtro!$A$5:$AY$629,26,FALSE),0) -> 0 | AC154: =IFERROR(VLOOKUP($A154,Filtro!$A$5:$AY$629,27,FALSE),0) -> 0 | AD154: =IFERROR(VLOOKUP($A154,Filtro!$A$5:$AY$629,28,FALSE),0) -> 0 | AE154: =IFERROR(VLOOKUP($A154,Filtro!$A$5:$AY$629,29,FALSE),0) -> 0 | AF154: =IFERROR(VLOOKUP($A154,Filtro!$A$5:$AY$629,30,FALSE),0) -> 0 | AG154: =IFERROR(VLOOKUP($A154,Filtro!$A$5:$AY$629,31,FALSE),0) -> 0 | AH154: =IFERROR(VLOOKUP($A154,Filtro!$A$5:$AY$629,32,FALSE),0) -> 0 | AI154: =IFERROR(VLOOKUP($A154,Filtro!$A$5:$AY$629,33,FALSE),0) -> 0 | AJ154: =IFERROR(VLOOKUP($A154,Filtro!$A$5:$AY$629,34,FALSE),0) -> 0 | AK154: =IFERROR(VLOOKUP($A154,Filtro!$A$5:$AY$629,35,FALSE),0) -> 2 | AL154: =IFERROR(VLOOKUP($A154,Filtro!$A$5:$AY$629,36,FALSE),0) -> 0 | AM154: =IFERROR(VLOOKUP($A154,Filtro!$A$5:$AY$629,37,FALSE),0) -> 1 | AN154: =IFERROR(VLOOKUP($A154,Filtro!$A$5:$AY$629,38,FALSE),0) -> 0 | AO154: =IFERROR(VLOOKUP($A154,Filtro!$A$5:$AY$629,39,FALSE),0) -> 0 | AP154: =IFERROR(VLOOKUP($A154,Filtro!$A$5:$AY$629,40,FALSE),0) -> 1 | AQ154: =IFERROR(VLOOKUP($A154,Filtro!$A$5:$AY$629,41,FALSE),0) -> 0 | AR154: =IFERROR(VLOOKUP($A154,Filtro!$A$5:$AY$629,42,FALSE),0) -> 0 | AS154: =IFERROR(VLOOKUP($A154,Filtro!$A$5:$AY$629,43,FALSE),0) -> 0 | AT154: =IFERROR(VLOOKUP($A154,Filtro!$A$5:$AY$629,44,FALSE),0) -> 0 | AU154: =IFERROR(VLOOKUP($A154,Filtro!$A$5:$AY$629,45,FALSE),0) -> 0 | AV154: =IFERROR(VLOOKUP($A154,Filtro!$A$5:$AY$629,46,FALSE),0) -> 0
A155: P2501400 | B155: Neoplasias | C155: Neoplasias | D155: 3 | E155: 0 | F155: 3 | G155: =IFERROR(VLOOKUP($A155,Filtro!$A$5:$AY$629,5,FALSE),0) -> 0 | H155: =IFERROR(VLOOKUP($A155,Filtro!$A$5:$AY$629,6,FALSE),0) -> 0 | I155: =IFERROR(VLOOKUP($A155,Filtro!$A$5:$AY$629,7,FALSE),0) -> 0 | J155: =IFERROR(VLOOKUP($A155,Filtro!$A$5:$AY$629,8,FALSE),0) -> 0 | K155: =IFERROR(VLOOKUP($A155,Filtro!$A$5:$AY$629,9,FALSE),0) -> 0 | L155: =IFERROR(VLOOKUP($A155,Filtro!$A$5:$AY$629,10,FALSE),0) -> 0 | M155: =IFERROR(VLOOKUP($A155,Filtro!$A$5:$AY$629,11,FALSE),0) -> 0 | N155: =IFERROR(VLOOKUP($A155,Filtro!$A$5:$AY$629,12,FALSE),0) -> 0 | O155: =IFERROR(VLOOKUP($A155,Filtro!$A$5:$AY$629,13,FALSE),0) -> 0 | P155: =IFERROR(VLOOKUP($A155,Filtro!$A$5:$AY$629,14,FALSE),0) -> 0 | Q155: =IFERROR(VLOOKUP($A155,Filtro!$A$5:$AY$629,15,FALSE),0) -> 0 | R155: =IFERROR(VLOOKUP($A155,Filtro!$A$5:$AY$629,16,FALSE),0) -> 0 | S155: =IFERROR(VLOOKUP($A155,Filtro!$A$5:$AY$629,17,FALSE),0) -> 0 | T155: =IFERROR(VLOOKUP($A155,Filtro!$A$5:$AY$629,18,FALSE),0) -> 0 | U155: =IFERROR(VLOOKUP($A155,Filtro!$A$5:$AY$629,19,FALSE),0) -> 0 | V155: =IFERROR(VLOOKUP($A155,Filtro!$A$5:$AY$629,20,FALSE),0) -> 0 | W155: =IFERROR(VLOOKUP($A155,Filtro!$A$5:$AY$629,21,FALSE),0) -> 0 | X155: =IFERROR(VLOOKUP($A155,Filtro!$A$5:$AY$629,22,FALSE),0) -> 0 | Y155: =IFERROR(VLOOKUP($A155,Filtro!$A$5:$AY$629,23,FALSE),0) -> 0 | Z155: =IFERROR(VLOOKUP($A155,Filtro!$A$5:$AY$629,24,FALSE),0) -> 0 | AA155: =IFERROR(VLOOKUP($A155,Filtro!$A$5:$AY$629,25,FALSE),0) -> 0 | AB155: =IFERROR(VLOOKUP($A155,Filtro!$A$5:$AY$629,26,FALSE),0) -> 0 | AC155: =IFERROR(VLOOKUP($A155,Filtro!$A$5:$AY$629,27,FALSE),0) -> 0 | AD155: =IFERROR(VLOOKUP($A155,Filtro!$A$5:$AY$629,28,FALSE),0) -> 1 | AE155: =IFERROR(VLOOKUP($A155,Filtro!$A$5:$AY$629,29,FALSE),0) -> 0 | AF155: =IFERROR(VLOOKUP($A155,Filtro!$A$5:$AY$629,30,FALSE),0) -> 0 | AG155: =IFERROR(VLOOKUP($A155,Filtro!$A$5:$AY$629,31,FALSE),0) -> 0 | AH155: =IFERROR(VLOOKUP($A155,Filtro!$A$5:$AY$629,32,FALSE),0) -> 0 | AI155: =IFERROR(VLOOKUP($A155,Filtro!$A$5:$AY$629,33,FALSE),0) -> 0 | AJ155: =IFERROR(VLOOKUP($A155,Filtro!$A$5:$AY$629,34,FALSE),0) -> 0 | AK155: =IFERROR(VLOOKUP($A155,Filtro!$A$5:$AY$629,35,FALSE),0) -> 0 | AL155: =IFERROR(VLOOKUP($A155,Filtro!$A$5:$AY$629,36,FALSE),0) -> 0 | AM155: =IFERROR(VLOOKUP($A155,Filtro!$A$5:$AY$629,37,FALSE),0) -> 0 | AN155: =IFERROR(VLOOKUP($A155,Filtro!$A$5:$AY$629,38,FALSE),0) -> 2 | AO155: =IFERROR(VLOOKUP($A155,Filtro!$A$5:$AY$629,39,FALSE),0) -> 0 | AP155: =IFERROR(VLOOKUP($A155,Filtro!$A$5:$AY$629,40,FALSE),0) -> 0 | AQ155: =IFERROR(VLOOKUP($A155,Filtro!$A$5:$AY$629,41,FALSE),0) -> 0 | AR155: =IFERROR(VLOOKUP($A155,Filtro!$A$5:$AY$629,42,FALSE),0) -> 0 | AS155: =IFERROR(VLOOKUP($A155,Filtro!$A$5:$AY$629,43,FALSE),0) -> 0 | AT155: =IFERROR(VLOOKUP($A155,Filtro!$A$5:$AY$629,44,FALSE),0) -> 0 | AU155: =IFERROR(VLOOKUP($A155,Filtro!$A$5:$AY$629,45,FALSE),0) -> 0 | AV155: =IFERROR(VLOOKUP($A155,Filtro!$A$5:$AY$629,46,FALSE),0) -> 0 | CG155: =IF(DF155=1,"* No olvide escribir en las celdas de ""Pueblos Originarios"" (Digite Cero si no tiene).","") ->  | CH155: =IF(DG155=1,"* No olvide escribir en las celdas de ""Población Migrante"" (Digite Cero si no tiene).","") ->  | CI155: =IF(DH155=1,"* La suma de las celdas de ""Pueblos Originarios""no debe superar el Total.","") ->  | CJ155: =IF(DI155=1,"* La suma de las celdas de ""Población Migrante"" no debe superar el Total.","") ->  | DF155: =IF(AND($D155<>0,OR(AS155="",AT155="")),1,0) -> 0 | DG155: =IF(AND($D155<>0,OR(AU155="",AV155="")),1,0) -> 0 | DH155: =IF((AS155+AT155)>$D155,1,0) -> 0 | DI155: =IF((AV155+AU155)>$D155,1,0) -> 0
